Workbook

Sheet AER Draft Decision - Labour
B1: AER Draft Decision - Ancillary Network Services - Jemena - 2026–31
B3: Reading guide:
B4: Table 1 | C4: sets out the draft decision X factor referred to in section 16.1.1.2 of Draft Decision Attachment 16 – Alternative control services. For ancillary network services, the X factor is the annual change in wage prices.
B5: Table 2 | C5: sets out the Labour rates for Business and After hours referred to in Tables 16.1 and 16.2 of Draft Decision Attachment 16 - Alternative control services.
B9: Table 1 | C9: X factors for each year of the 2026–31 regulatory control period for ancillary network services, draft decision (per cent)
D11: 2026-27 | E11: 2027-28 | F11: 2028-29 | G11: 2029-30 | H11: 2030-31
B12: Ancillary Network Services X-factor | C12: Per cent | E12: ='Output|Fee Based'!D7 -> -0.009550582168 | F12: ='Output|Fee Based'!E7 -> -0.0111993349 | G12: ='Output|Fee Based'!F7 -> -0.01227436192 | H12: ='Output|Fee Based'!G7 -> -0.01202541615
B14: Note:
B15: We do not apply an X factor for 2026–27 because we set 2026–27 ancillary network services prices in this Draft Determination. To be clear, the labour escalators in this table are operating as de facto X factors. Therefore, positive labour escalators are represented as negative in this table and vice versa. X factors in this table are rounded to 4 decimal places but distributors should use the raw X factors in the draft decision model.
B18: Table 2 | C18: Quoted service hourly labour rates for 2026–27, draft decision ($2026–27)
D20: Initial proposal (business hours) | E20: Draft decision (business hours) | F20: Initial proposal (after hours) | G20: Draft decision (after hours)
B21: 1 | C21: ='Output|Quoted'!B12 -> Administrative Officer | D21: 121.4038624 | E21: 120.34
B22: 2 | C22: ='Output|Quoted'!B13 -> Field Worker | D22: 210.8874625 | E22: 205.1189985 | F22: 370.525541 | G22: ='[1]Output|Quoted'!D18 -> 359.7509969
B23: 3 | C23: ='Output|Quoted'!B14 -> Technical Specialist | D23: 225.0568414 | E23: 218.8440407
B24: 4 | C24: ='Output|Quoted'!B15 -> Engineer | D24: 271.8290229 | E24: 253.35
B25: 5 | C25: ='Output|Quoted'!B16 -> Senior Engineer | D25: 326.1948275 | E25: 304.02
A133: End

Sheet AER Draft Decision - Services
B1: ='AER Draft Decision - Labour'!B1 -> AER Draft Decision - Ancillary Network Services - Jemena - 2026–31
B3: Reading guide:
B4: Table 3 | C4: sets out our draft decision for JEN's prices for its fee-based services
B9: Table 3 | C9: List of Fee-based and quoted ancillary network services prices for 2026–27, draft decision ($2026–27)
F12: PRICES ($2026-27)
B13: Service code | C13: Service | D13: Hours | E13: Service category | F13: Initial proposal | G13: Draft decision | H13: Revised proposal
A14: 1 | B14: ='Output|Fee Based'!B12 -> ND1P | C14: ='Output|Fee Based'!C12 -> Basic connection, single-phase BH | D14: ='Output|Fee Based'!D12 -> Business Hours | E14: ='Output|Fee Based'!E12 -> Basic connection services | F14: 780.2120617 | G14: ='[1]Output|Fee Based'!H12 -> 777.7460481 | H14: ='Output|Fee Based'!H12 -> 813.8869436
A15: 2 | B15: ='Output|Fee Based'!B13 -> ND1P | C15: ='Output|Fee Based'!C13 -> Basic connection, single-phase AH | D15: ='Output|Fee Based'!D13 -> After Hours | E15: ='Output|Fee Based'!E13 -> Basic connection services | F15: 1138.130797 | G15: ='[1]Output|Fee Based'!H13 -> 1133.289355 | H15: ='Output|Fee Based'!H13 -> 1162.506937
A16: 3 | B16: ='Output|Fee Based'!B14 -> ND3P | C16: ='Output|Fee Based'!C14 -> Basic connection, three-phase BH | D16: ='Output|Fee Based'!D14 -> Business Hours | E16: ='Output|Fee Based'!E14 -> Basic connection services | F16: 1043.361561 | G16: ='[1]Output|Fee Based'!H14 -> 1037.95457 | H16: ='Output|Fee Based'!H14 -> 1074.095465
A17: 4 | B17: ='Output|Fee Based'!B15 -> ND3P | C17: ='Output|Fee Based'!C15 -> Basic connection, three-phase AH | D17: ='Output|Fee Based'!D15 -> After Hours | E17: ='Output|Fee Based'!E15 -> Basic connection services | F17: 1401.280296 | G17: ='[1]Output|Fee Based'!H15 -> 1393.497876 | H17: ='Output|Fee Based'!H15 -> 1422.715459
A18: 5 | B18: ='Output|Fee Based'!B16 -> BTSO | C18: ='Output|Fee Based'!C16 -> Temporary connection, single-phase BH | D18: ='Output|Fee Based'!D16 -> Business Hours | E18: ='Output|Fee Based'!E16 -> Connection service | F18: 739.2826314 | G18: ='[1]Output|Fee Based'!H16 -> 737.274048 | H18: ='Output|Fee Based'!H16 -> 773.4149435
A19: 6 | B19: ='Output|Fee Based'!B17 -> BTSO | C19: ='Output|Fee Based'!C17 -> Temporary connection, single-phase AH | D19: ='Output|Fee Based'!D17 -> After Hours | E19: ='Output|Fee Based'!E17 -> Connection service | F19: 1097.201366 | G19: ='[1]Output|Fee Based'!H17 -> 1092.817354 | H19: ='Output|Fee Based'!H17 -> 1122.034937
A20: 7 | B20: ='Output|Fee Based'!B18 -> BTSP | C20: ='Output|Fee Based'!C18 -> Temporary connection, three-phase BH | D20: ='Output|Fee Based'!D18 -> Business Hours | E20: ='Output|Fee Based'!E18 -> Connection service | F20: 789.4012754 | G20: ='[1]Output|Fee Based'!H18 -> 786.8325625 | H20: ='Output|Fee Based'!H18 -> 822.973458
A21: 8 | B21: ='Output|Fee Based'!B19 -> BTSP | C21: ='Output|Fee Based'!C19 -> Temporary connection, three-phase AH | D21: ='Output|Fee Based'!D19 -> After Hours | E21: ='Output|Fee Based'!E19 -> Connection service | F21: 1147.320011 | G21: ='[1]Output|Fee Based'!H19 -> 1142.375869 | H21: ='Output|Fee Based'!H19 -> 1171.593451
A22: 9 | B22: ='Output|Fee Based'!B20 -> SUTK | C22: ='Output|Fee Based'!C20 -> Supply upgrade/enhancement (1ph to 3ph) BH | D22: ='Output|Fee Based'!D20 -> Business Hours | E22: ='Output|Fee Based'!E20 -> Connection service | F22: 1014.261945 | G22: ='[1]Output|Fee Based'!H20 -> 1009.180173 | H22: ='Output|Fee Based'!H20 -> 1045.321069
A23: 10 | B23: ='Output|Fee Based'!B21 -> SUTK | C23: ='Output|Fee Based'!C21 -> Supply upgrade/enhancement (1ph to 3ph) AH | D23: ='Output|Fee Based'!D21 -> After Hours | E23: ='Output|Fee Based'!E21 -> Connection service | F23: 1372.18068 | G23: ='[1]Output|Fee Based'!H21 -> 1364.72348 | H23: ='Output|Fee Based'!H21 -> 1393.941062
A24: 11 | B24: ='Output|Fee Based'!B22 -> RTK1 | C24: ='Output|Fee Based'!C22 -> Replacement of 1-phase overhead service line BH | D24: ='Output|Fee Based'!D22 -> Business Hours | E24: ='Output|Fee Based'!E22 -> Connection service | F24: 781.1778743 | G24: ='[1]Output|Fee Based'!H22 -> 737.274048 | H24: ='Output|Fee Based'!H22 -> 773.4149435
A25: 12 | B25: ='Output|Fee Based'!B23 -> RTK1 | C25: ='Output|Fee Based'!C23 -> Replacement of 1-phase overhead service line AH | D25: ='Output|Fee Based'!D23 -> After Hours | E25: ='Output|Fee Based'!E23 -> Connection service | F25: 1139.096609 | G25: ='[1]Output|Fee Based'!H23 -> 1092.817354 | H25: ='Output|Fee Based'!H23 -> 1122.034937
A26: 13 | B26: ='Output|Fee Based'!B24 -> REEN | C26: ='Output|Fee Based'!C24 -> Field-based energisation BH | D26: ='Output|Fee Based'!D24 -> Business Hours | E26: ='Output|Fee Based'!E24 -> Connection service | F26: 159.823337 | G26: ='[1]Output|Fee Based'!H24 -> 63.71469046 | H26: ='Output|Fee Based'!H24 -> 63.71469046
A27: 14 | B27: ='Output|Fee Based'!B25 -> REEN | C27: ='Output|Fee Based'!C25 -> Field-based energisation AH | D27: ='Output|Fee Based'!D25 -> After Hours | E27: ='Output|Fee Based'!E25 -> Connection service | F27: 227.3885135 | G27: ='[1]Output|Fee Based'!H25 -> 111.224853 | H27: ='Output|Fee Based'!H25 -> 111.224853
A28: 15 | B28: ='Output|Fee Based'!B26 -> DEEN | C28: ='Output|Fee Based'!C26 -> Field-based de-energisation BH | D28: ='Output|Fee Based'!D26 -> Business Hours | E28: ='Output|Fee Based'!E26 -> Connection service | F28: 175.2382182 | G28: ='[1]Output|Fee Based'!H26 -> 91.3737809 | H28: ='Output|Fee Based'!H26 -> 91.3737809
A29: 16 | B29: ='Output|Fee Based'!B27 -> DCTK | C29: ='Output|Fee Based'!C27 -> Disconnection (temporary) BH | D29: ='Output|Fee Based'!D27 -> Business Hours | E29: ='Output|Fee Based'!E27 -> Customer requested supply outage | F29: 496.3128273 | G29: ='[1]Output|Fee Based'!H27 -> 481.3090393 | H29: ='Output|Fee Based'!H27 -> 511.5151111
A30: 17 | B30: ='Output|Fee Based'!B28 -> DCTK | C30: ='Output|Fee Based'!C28 -> Disconnection (temporary) AH | D30: ='Output|Fee Based'!D28 -> After Hours | E30: ='Output|Fee Based'!E28 -> Customer requested supply outage | F30: 793.5996035 | G30: ='[1]Output|Fee Based'!H28 -> 769.0209225 | H30: ='Output|Fee Based'!H28 -> 793.6245279
A31: 18 | B31: ='Output|Fee Based'!B29 -> RCTK | C31: ='Output|Fee Based'!C29 -> Reconnection after temp discon BH | D31: ='Output|Fee Based'!D29 -> Business Hours | E31: ='Output|Fee Based'!E29 -> Customer requested supply outage | F31: 575.3407005 | G31: ='[1]Output|Fee Based'!H29 -> 557.7206398 | H31: ='Output|Fee Based'!H29 -> 593.670905
A32: 19 | B32: ='Output|Fee Based'!B30 -> RCTK | C32: ='Output|Fee Based'!C30 -> Reconnection after temp discon AH | D32: ='Output|Fee Based'!D30 -> After Hours | E32: ='Output|Fee Based'!E30 -> Customer requested supply outage | F32: 926.6796178 | G32: ='[1]Output|Fee Based'!H30 -> 897.7437745 | H32: ='Output|Fee Based'!H30 -> 927.072943
A33: 20 | B33: ='Output|Fee Based'!B31 -> SLOM | C33: ='Output|Fee Based'!C31 -> Security Lighting - O&M | D33: ='Output|Fee Based'!D31 -> Business Hours | E33: ='Output|Fee Based'!E31 -> Security lights | F33: 173.0008115 | G33: ='[1]Output|Fee Based'!H31 -> 177.4413325 | H33: ='Output|Fee Based'!H31 -> 177.4413325
A34: 21 | B34: ='Output|Fee Based'!B32 -> RFOM | C34: ='Output|Fee Based'!C32 -> Enhanced Connection Operation and Maintenance | D34: ='Output|Fee Based'!D32 -> Business Hours | E34: ='Output|Fee Based'!E32 -> Enhanced connection services | F34: 16.174377 | G34: ='[1]Output|Fee Based'!H32 -> 16.16249281 | H34: ='Output|Fee Based'!H32 -> 16.16249281
A35: 22 | B35: ='Output|Fee Based'!B33 -> REENRM | C35: ='Output|Fee Based'!C33 -> Remote energisation | D35: ='Output|Fee Based'!D33 -> Business Hours | E35: ='Output|Fee Based'!E33 -> Auxiliary metering services | F35: 0 | G35: ='[1]Output|Fee Based'!H33 -> 0 | H35: ='Output|Fee Based'!H33 -> 0
A36: 23 | B36: ='Output|Fee Based'!B34 -> DEENRM | C36: ='Output|Fee Based'!C34 -> Remote de-energisation | D36: ='Output|Fee Based'!D34 -> Business Hours | E36: ='Output|Fee Based'!E34 -> Auxiliary metering services | F36: 0 | G36: ='[1]Output|Fee Based'!H34 -> 0 | H36: ='Output|Fee Based'!H34 -> 0
A37: 24 | B37: ='Output|Fee Based'!B35 -> MCTK | C37: ='Output|Fee Based'!C35 -> Meter Alteration BH | D37: ='Output|Fee Based'!D35 -> Business Hours | E37: ='Output|Fee Based'!E35 -> Auxiliary metering services | F37: 637.0002252 | G37: ='[1]Output|Fee Based'!H35 -> 618.7658761 | H37: ='Output|Fee Based'!H35 -> 653.3291497
A38: 25 | B38: ='Output|Fee Based'!B36 -> MCTK | C38: ='Output|Fee Based'!C36 -> Meter Alteration AH | D38: ='Output|Fee Based'!D36 -> After Hours | E38: ='Output|Fee Based'!E36 -> Auxiliary metering services | F38: 988.3391426 | G38: ='[1]Output|Fee Based'!H36 -> 958.7890108 | H38: ='Output|Fee Based'!H36 -> 986.7311877
A39: 26 | B39: ='Output|Fee Based'!B37 -> SPRDRM | C39: ='Output|Fee Based'!C37 -> Remote special meter read | D39: ='Output|Fee Based'!D37 -> Business Hours | E39: ='Output|Fee Based'!E37 -> Auxiliary metering services | F39: 0 | G39: ='[1]Output|Fee Based'!H37 -> 0 | H39: ='Output|Fee Based'!H37 -> 0
A40: 27 | B40: ='Output|Fee Based'!B38 -> MECFRM | C40: ='Output|Fee Based'!C38 -> Remote meter reconfiguration | D40: ='Output|Fee Based'!D38 -> Business Hours | E40: ='Output|Fee Based'!E38 -> Auxiliary metering services | F40: 65.77015975 | G40: ='[1]Output|Fee Based'!H38 -> 65.11491869 | H40: ='Output|Fee Based'!H38 -> 63.63546102
A41: 28 | B41: ='Output|Fee Based'!B39 -> SPRD | C41: ='Output|Fee Based'!C39 -> Field-based special meter reads | D41: ='Output|Fee Based'!D39 -> Business Hours | E41: ='Output|Fee Based'!E39 -> Auxiliary metering services | F41: 199.8300938 | G41: ='[1]Output|Fee Based'!H39 -> 61.40276041 | H41: ='Output|Fee Based'!H39 -> 61.40276041
A42: 29 | B42: ='Output|Fee Based'!B40 -> MTAL | C42: ='Output|Fee Based'!C40 -> Meter test of types 5, 6 and AMI smart metering installations BH | D42: ='Output|Fee Based'!D40 -> Business Hours | E42: ='Output|Fee Based'!E40 -> Auxiliary metering services | F42: 1257.35421 | G42: ='[1]Output|Fee Based'!H40 -> 661.8740474 | H42: ='Output|Fee Based'!H40 -> 661.8740474
A43: 30 | B43: ='Output|Fee Based'!B41 -> MTAL | C43: ='Output|Fee Based'!C41 -> Meter test of types 5, 6 and AMI smart metering installations AH | D43: ='Output|Fee Based'!D41 -> After Hours | E43: ='Output|Fee Based'!E41 -> Auxiliary metering services | F43: 2068.136327 | G43: ='[1]Output|Fee Based'!H41 -> 898.5841584 | H43: ='Output|Fee Based'!H41 -> 898.5841584
A44: 31 | B44: ='Output|Fee Based'!B42 -> MDCH | C44: ='Output|Fee Based'!C42 -> Type 7 metering | D44: ='Output|Fee Based'!D42 -> Business Hours | E44: ='Output|Fee Based'!E42 -> Type 7 metering services | F44: 0 | G44: ='[1]Output|Fee Based'!H42 -> 0 | H44: ='Output|Fee Based'!H42 -> 0
A45: 32 | B45: ='Output|Fee Based'!B43 -> NCUM | C45: ='Output|Fee Based'!C43 -> Non-contestable unmetered loads | D45: ='Output|Fee Based'!D43 -> Business Hours | E45: ='Output|Fee Based'!E43 -> Auxiliary metering services | F45: 0 | G45: ='[1]Output|Fee Based'!H43 -> 0 | H45: ='Output|Fee Based'!H43 -> 0
A46: 33 | B46: ='Output|Fee Based'!B44 -> WSVR | C46: ='Output|Fee Based'!C44 -> Wasted site attendance BH | D46: ='Output|Fee Based'!D44 -> Business Hours | E46: ='Output|Fee Based'!E44 -> Connection service | F46: 637.0002252 | G46: ='[1]Output|Fee Based'!H44 -> 618.7658761 | H46: ='Output|Fee Based'!H44 -> 653.3291497
A47: 34 | B47: ='Output|Fee Based'!B45 -> WSVR | C47: ='Output|Fee Based'!C45 -> Wasted site attendance AH | D47: ='Output|Fee Based'!D45 -> After Hours | E47: ='Output|Fee Based'!E45 -> Connection service | F47: 988.3391426 | G47: ='[1]Output|Fee Based'!H45 -> 958.7890108 | H47: ='Output|Fee Based'!H45 -> 986.7311877
A48: 35 | B48: ='Output|Fee Based'!B46 -> RTK3 | C48: ='Output|Fee Based'!C46 -> Replacement of 3-phase overhead service line BH | D48: ='Output|Fee Based'!D46 -> Business Hours | E48: ='Output|Fee Based'!E46 -> Connection service | F48: 794.6690191 | G48: ='[1]Output|Fee Based'!H46 -> 791.1194759 | H48: ='Output|Fee Based'!H46 -> 827.2603714
A49: 36 | B49: ='Output|Fee Based'!B47 -> RTK3 | C49: ='Output|Fee Based'!C47 -> Replacement of 3-phase overhead service line AH | D49: ='Output|Fee Based'!D47 -> After Hours | E49: ='Output|Fee Based'!E47 -> Connection service | F49: 1152.587754 | G49: ='[1]Output|Fee Based'!H47 -> 1146.662782 | H49: ='Output|Fee Based'!H47 -> 1175.880365
A52: End

Sheet Draft Decision and JEN changes
B1: AER Draft Decision change log
B3: changes in the spreadsheet are also highlighted in orange
B5: Tab | C5: Cells | D5: Description of change
B6: Input|Tax Recovery | C6: G7 | D6: Updated nominal vanilla WACC
B7: Input|Tax Recovery | C7: G11 | D7: Updated depreciation rate
B8: Input|Indirect Cost Rates | C8: D35 | D8: Deleted 6.00% margin
B9: Input|Escalations | C9: row 42 | D9: Included our draft decision labour escalator
B10: Input|Escalations | C10: row 44 | D10: Included superannuation guarantee
B11: Input|Escalations | C11: row 49 | D11: Updated weights for labour escalator
B12: Input|Escalations | C12: row 20 | D12: Updated December 2024 actual inflation index
B13: Input|Escalations | C13: row 21 | D13: Updated RBA forecast rates
B14: Input|Labour Rates | C14: E10, E13, E14 | D14: Updated base labour rate to draft decision labour rate (see 'Calc|Labour Rates')
B15: Cost build up tabs | C15: L36, M36 | D15: Updated EWP hourly hire rate to $53.78/h as per Q4 IR31
B16: Input|Fee Based | C16: rows 24-26, 39-41 | D16: Replaced input values with approved ANS prices. See section 16.1.4.2 - connection services.
B17: Calc|Labour Rates | C17: Column L | D17: Values for Wage Stickiness have been updated to reflect the Labour Rates model, formula updated to match Labour Rates model.
B18: Input|Labour Rates | C18: Tables 6.3 & 6.4 | D18: Included into ACS model to match for calculations used in Labour Rates model
B21: JEN Revised Proposal change log
B23: changes in the spreadsheet are highlighted in blue or green
B25: Tab | C25: Cells | D25: Description of change
B26: Input|Escalations | C26: row 42 | D26: Included the most recent labour escalator (JEN - Oxford Economics – RP – Att 05-07 Real cost escalation report. )
B27: Input|Labour Rates | C27: E10, E12 | D27: Used our updated calculated labour rate for Admin Officer and Technical Specialist
B28: Input|Labour Rates | C28: E11, E13, E14, E16 | D28: Used the AER's maximum thresholds for Engineer, Senior Engineer, Field Worker (BH) and Field Worker (AH) given they are lower than our updated calculated labour rates.

Sheet Index
B1: Jemena Electricity Networks – Alternative Control Services Forecast model
B2: =IFERROR(MID(CELL("filename",A1),FIND("]",CELL("filename",A1))+1,255),"") -> Index | C2: Overall Check: | D2: ='Model Validation'!C4 -> 1
B5: Worksheet summary
B7: Worksheet name | C7: Check: | F7: Input required? | H7: Description
B8: ='Output|Fee Based'!B2 -> Output|Fee Based | C8: ='Model Validation'!C8 -> 0 | F8: N | H8: Contains caclulated price and X factors for fee based services.
B9: ='Output|Quoted'!B2 -> Output|Quoted | C9: ='Model Validation'!C9 -> 0 | F9: N | H9: Contains caclulated labour rates and X factors for quoted services.
B10: ='Input|Setup'!B2 -> Input|Setup | C10: ='Model Validation'!C10 -> 0 | F10: Y | H10: Sets up model with relevant years and output categories.
B11: ='Input|Escalations'!B2 -> Input|Escalations | C11: ='Model Validation'!C11 -> 0 | F11: Y | H11: Sets up the inflation and labour escalations.
B12: ='Input|Indirect Cost Rates'!B2 -> Input|Indirect Cost Rates | C12: ='Model Validation'!C12 -> NA | F12: Y | H12: Input for indirect cost rates.
B13: ='Input|Labour Rates'!B2 -> Input|Labour Rates | C13: ='Model Validation'!C13 -> 0 | F13: Y | H13: Input for labour cost components.
B14: ='Input|Fee Based'!B2 -> Input|Fee Based | C14: ='Model Validation'!C14 -> 1 | F14: Y | H14: Input for fee based costs and service information.
B15: ='Input|Fee Based Mapping'!B2 -> Input|Fee Based Mapping | C15: ='Model Validation'!C15 -> 0 | F15: Y | H15: Aligns historical and proposed fee based services information.
B16: Calc|Tax Recovery | C16: ='Input|Tax Recovery'!J1 -> 0 | F16: Y | H16: Input for tax recovery components.
B17: ='Calc|Labour Rates'!B2 -> Calc|Labour Rates | C17: ='Model Validation'!C16 -> NA | F17: N | H17: Calculation tables for labour rates.
B18: ='Calc|Fee Based'!B2 -> Calc|Fee Based | C18: ='Model Validation'!C17 -> 0 | F18: N | H18: Calculation tables for fee based services prices.
B19: ='Model Validation'!B2 -> Model Validation | C19: ='Model Validation'!C18 -> NA | F19: N | H19: Checks and traces possible input errors.
B20: ='Input|Labour Rates'!B100 -> ND1P | C20: ='Model Validation'!C19 -> 0 | F20: Y | H20: Cost Build Up
B21: ='Input|Labour Rates'!B101 -> ND3P | C21: ='Model Validation'!C20 -> 0 | F21: Y | H21: Cost Build Up
B22: ='Input|Labour Rates'!B102 -> BTSO | C22: ='Model Validation'!C21 -> 0 | F22: Y | H22: Cost Build Up
B23: ='Input|Labour Rates'!B103 -> BTSP | C23: ='Model Validation'!C22 -> 0 | F23: Y | H23: Cost Build Up
B24: ='Input|Labour Rates'!B104 -> SUTK | C24: ='Model Validation'!C23 -> 0 | F24: Y | H24: Cost Build Up
B25: ='Input|Labour Rates'!B105 -> RTK1 | C25: ='Model Validation'!C24 -> 0 | F25: Y | H25: Cost Build Up
B26: ='Input|Labour Rates'!B106 -> REEN | C26: ='Model Validation'!C25 -> 0 | F26: Y | H26: Cost Build Up
B27: ='Input|Labour Rates'!B107 -> DEEN | C27: ='Model Validation'!C26 -> 0 | F27: Y | H27: Cost Build Up
B28: ='Input|Labour Rates'!B108 -> DCTK | C28: ='Model Validation'!C27 -> 0 | F28: Y | H28: Cost Build Up
B29: ='Input|Labour Rates'!B109 -> RCTK | C29: ='Model Validation'!C28 -> 0 | F29: Y | H29: Cost Build Up
B30: ='Input|Labour Rates'!B110 -> SLOM | C30: ='Model Validation'!C29 -> 0 | F30: Y | H30: Cost Build Up
B31: ='Input|Labour Rates'!B112 -> RFOM | C31: ='Model Validation'!C30 -> 0 | F31: Y | H31: Cost Build Up
B32: ='Input|Labour Rates'!B113 -> REENRM | C32: ='Model Validation'!C31 -> 0 | F32: Y | H32: Cost Build Up
B33: ='Input|Labour Rates'!B114 -> DEENRM | C33: ='Model Validation'!C32 -> 0 | F33: Y | H33: Cost Build Up
B34: ='Input|Labour Rates'!B115 -> MCTK | C34: ='Model Validation'!C33 -> 0 | F34: Y | H34: Cost Build Up
B35: ='Input|Labour Rates'!B116 -> SPRDRM | C35: ='Model Validation'!C34 -> 0 | F35: Y | H35: Cost Build Up
B36: ='Input|Labour Rates'!B117 -> MECFRM | C36: ='Model Validation'!C35 -> 0 | F36: Y | H36: Cost Build Up
B37: ='Input|Labour Rates'!B118 -> SPRD | C37: ='Model Validation'!C36 -> 0 | F37: Y | H37: Cost Build Up
B38: ='Input|Labour Rates'!B119 -> MTAL | C38: ='Model Validation'!C37 -> 0 | F38: Y | H38: Cost Build Up
B39: ='Input|Labour Rates'!B120 -> MDCH | C39: ='Model Validation'!C38 -> 0 | F39: Y | H39: Cost Build Up
B40: ='Input|Labour Rates'!B121 -> NCUM | C40: ='Model Validation'!C39 -> 0 | F40: Y | H40: Cost Build Up
B41: ='Input|Labour Rates'!B122 -> WSVR | C41: ='Model Validation'!C40 -> 0 | F41: Y | H41: Cost Build Up
B42: ='Input|Labour Rates'!B123 -> RTK3 | C42: ='Model Validation'!C41 -> 0 | F42: Y | H42: Cost Build Up
B43: Template | C43: ='Model Validation'!C42 -> 0 | F43: N | H43: Cost Build Up
B45: Table summary
B47: Name | C47: Tab | F47: Input required? | H47: Description
B48: ='Output|Fee Based'!B5 -> 1.1 X-factors for each year of 2026-27 to 2030-31 regulatory period, (per cent) | C48: =B8 -> Output|Fee Based | F48: N | H48: Contains X-factors to apply to fee-based services for years 2-5 of the forthcoming regulatory control period.
B49: ='Output|Fee Based'!B10 -> 1.2 Fee based services for 2026-27 | C49: =$C$48 -> Output|Fee Based | F49: N | H49: Contains the calculated price for each fee based servce, in nominal terms, for year 1 of the forthcoming regulatory control period.
B50: ='Output|Quoted'!B5 -> 2.1 X-factors for each year of 2026-27 to 2030-31 regulatory period, (per cent) | C50: =B9 -> Output|Quoted | F50: N | H50: Contains X-factors to apply to the labour rates used to provide quoted services for years 2-5 of the forthcoming regulatory control period.
B51: ='Output|Quoted'!B10 -> 2.2 Labour rates for 2026-27, ($2026-27) | C51: =$C$50 -> Output|Quoted | F51: N | H51: Contains the calculated labour rate for each labour type used to provide quoted servces, in nominal terms, for year 1 of the forthcoming regulatory control period.
B52: ='Output|Quoted'!B34 -> 2.3 List of quoted services for 2026-27 to 2030-31 regulatory period | C52: =$C$50 -> Output|Quoted | F52: N | H52: Lists the quoted services the distributor proposes to provide in the forthcoming regulatory control period.
B53: ='Input|Setup'!A5 & " " & 'Input|Setup'!B5 -> 3.1 Years setup | C53: ='Input|Setup'!B2 -> Input|Setup | F53: Y | H53: Please choose the first year of the forthcoming regulatory period and the base year for inputs.
B54: ='Input|Setup'!A10 & " " & 'Input|Setup'!B10 -> 3.2 Current regulatory period | C54: =$C$53 -> Input|Setup | F54: N | H54: Contains the regulatory years of the current regulatory control period.
B55: ='Input|Setup'!D10 & " " & 'Input|Setup'!E10 -> 3.3 Forecast regulatory period | C55: =$C$53 -> Input|Setup | F55: N | H55: Contains the regulatory years of the forthcoming regulatory control period.
B56: ='Input|Setup'!A18 & " " & 'Input|Setup'!B18 -> 3.4 Used for quoted service? | C56: =$C$53 -> Input|Setup | F56: N | H56: Contains reference to drop down lists for use in 'Input|Labour rates' to denote whether the labour category is to be used in the provision of quoted services.
B57: ='Input|Setup'!D18 & " " & 'Input|Setup'!E18 -> 3.5 Conversions | C57: =$C$53 -> Input|Setup | F57: Optional | H57: Lists figures used for conversions in formulas.
B58: ='Input|Setup'!A24 & " " & 'Input|Setup'!B24 -> 3.6 Hours | C58: Input|Setup | F58: Y | H58: Please enter time periods that would result in different rates applied for the same service or labour type (e.g. business hours, after hours).
B59: ='Input|Setup'!A30 & " " & 'Input|Setup'!B30 -> 3.7 Labour type | C59: Input|Setup | F59: Y | H59: Please enter the specific labour types used to provide fee based and quoted services.
B60: ='Input|Setup'!D30 & " " & 'Input|Setup'!E30 -> 3.8 Service category | C60: Input|Setup | F60: Y | H60: Please enter the major service categories for fee based services (e.g. basic connection services, network safety services, auxiliary metering services).
B61: ='Input|Setup'!G30 & " " & 'Input|Setup'!H30 -> 3.9 Expense Type | C61: Input|Setup | F61: Optional | H61: Please enter distributor-specific categories for fee-based services, if required.
B62: ='Input|Setup'!G40 & " " & 'Input|Setup'!H40 -> 3.10 Control Mechanism | C62: Input|Setup | F62: Optional | H62: Please enter distributor-specific categories for fee-based services, if required.
B63: ='Input|Escalations'!A5 & " " & 'Input|Escalations'!B5 -> 4.1 Escalation setup | C63: ='Input|Escalations'!B2 -> Input|Escalations | F63: N | H63: Contains the first year of the forthcoming regulatory control period and the nominated base year. These are used in calculations in the 'Input|Escalation' sheet.
B64: ='Input|Escalations'!A13 & " " & 'Input|Escalations'!B13 -> 4.2 Inflation | C64: =$C$63 -> Input|Escalations | F64: Y | H64: Please enter ABS index, all groups CPI inflation series A2325846C, up to latest available December. Please enter forecast CPI, including source, for other years.
B65: ='Input|Escalations'!A24 & " " & 'Input|Escalations'!B24 -> 4.3 Real price escalation | C65: =$C$63 -> Input|Escalations | F65: Optional | H65: Calculates X factor (real wage price escalation). Other real escalators are set to equal X factor by default, but can be amended by distributors.
B66: ='Input|Escalations'!A34 & " " & 'Input|Escalations'!B34 -> 4.3.1 Real wage price escalation | C66: =$C$63 -> Input|Escalations | F66: Y | H66: Please enter sources and forecasts for real wage price escalation, including weightings for each source, in the green input cells. Grey cells will calculate the forecast real wage price escalation.
B67: ='Input|Escalations'!A54& " " & 'Input|Escalations'!B54 -> 4.3.2 Real price escalation (non-wage) | C67: =$C$63 -> Input|Escalations | F67: N | H67: Contains the calculated forecast real escalation for non-wage inputs.
B68: ='Input|Indirect Cost Rates'!A5 & " " & 'Input|Indirect Cost Rates'!B5 -> 5.1 On costs | C68: ='Input|Indirect Cost Rates'!B2 -> Input|Indirect Cost Rates | F68: Y | H68: Please enter relevant on-cost rates. Distributors may enter a total on-cost rate only. Alternatively, disaggregated on-cost rates may be provided with the total on-cost rate calculated in row 19, as required.
B69: ='Input|Indirect Cost Rates'!A22 & " " & 'Input|Indirect Cost Rates'!B22 -> 5.2 Overhead | C69: =$C$68 -> Input|Indirect Cost Rates | F69: Y | H69: Please enter rates for network overhead and corporate overhead. Where relevant, distributors may enter other overhead rates (e.g. a total overhead rate).
B70: ='Input|Indirect Cost Rates'!A32 & " " & 'Input|Indirect Cost Rates'!B32 -> 5.3 Margins | C70: =$C$68 -> Input|Indirect Cost Rates | F70: Y | H70: Please enter margin rates as required.
B71: ='Input|Indirect Cost Rates'!A41 & " " & 'Input|Indirect Cost Rates'!B41 -> 5.4 Tax recovery rate | C71: =$C$68 -> Input|Indirect Cost Rates | F71: Y | H71: Please enter tax recovery rates as required.
B72: ='Input|Labour Rates'!B7 -> 6.1 Labour rates | C72: ='Input|Labour Rates'!B2 -> Input|Labour Rates | F72: Y | H72: Please enter required information regarding labour rates (in base year dollar terms) used to provide ANS. For on-cost and overhead rates, please use formulas to reference tables 5.1 and 5.2, respectively.
B73: ='Input|Labour Rates'!K7 -> 6.2 Notes and sources for "Other costs" | C73: =$C$72 -> Input|Labour Rates | F73: Y | H73: Please describe "Other costs" used to derive total labour rates, where appropriate, and provide sources.
B74: ='Input|Labour Rates'!B44 -> 6.5 List of quoted services for 2026-27 to 2030-31 regulatory period | C74: =$C$72 -> Input|Labour Rates | F74: Y | H74: Please list the quoted services the distributor proposes to provide in the forthcoming regulatory control period.
B75: ='Input|Fee Based'!B6 -> 7.1 Fee based services | C75: ='Input|Fee Based'!B2 -> Input|Fee Based | F75: Y | H75: Please list the name and service code of the fee-based services, including hours provided and general service category.
B76: ='Input|Fee Based'!I6 -> 7.2 Service cost build up - DIRECT COSTS, $'s ($2024-25) | C76: =$C$75 -> Input|Fee Based | F76: Y | H76: Please input the direct costs in base year dollar terms incurred for providinng each fee based service, and other requested information such as the total time in minutes each labour type is required to provide the service.
B77: ='Input|Fee Based'!X6 -> 7.3 Service cost build - INDIRECT COSTS (per cent) | C77: =$C$75 -> Input|Fee Based | F77: Y | H77: Please use formulas to reference in the 'Input|Indirect Cost Rates' sheet as appropriate.
B78: ='Input|Fee Based'!AF6 -> 7.4 Notes and sources for "Other costs" | C78: =$C$75 -> Input|Fee Based | F78: Y | H78: Please describe "Other costs" used to derive the year 1 price for fee based services, where appropriate, and provide sources.
B79: ='Input|Fee Based Mapping'!B9 -> 8.1 Current regulatory period - Fee based services | C79: ='Input|Fee Based Mapping'!B2 -> Input|Fee Based Mapping | F79: Y | H79: Please enter approved fee based services and prices (in nominal dollar terms) for the current regulatory control perod (including the final decision prices in column K). Please align with the fee based services for the forthcoming regulatoru control period in table 8.2.
B80: ='Input|Fee Based Mapping'!U9 -> 8.2 Forecast regulatory period - Fee based services | C80: =$C$79 -> Input|Fee Based Mapping | F80: N | H80: Includes the year 1 price for fee based services (from 'Calc|Fee Based' sheet), then calculates prices for years 2 to 5 of the forthcoming regulatory control period using forecast inflation and X factors.
B81: ='Calc|Labour Rates'!B7 -> 9.1 Year 1 labour rates | C81: ='Calc|Labour Rates'!B2 -> Calc|Labour Rates | F81: N | H81: Calculates labour rate for each labour type used to provide quoted servces, in nominal terms, for year 1 of the forthcoming regulatory control period.
B82: ='Calc|Labour Rates'!H7 -> 9.2 Year 1 labour rates build up, $'s ($2026-27) | C82: =$C$81 -> Calc|Labour Rates | F82: N | H82: Calculates labour rate for each labour type used to provide quoted servces for year 1 of the forthcoming regulatory control period.
B83: ='Calc|Fee Based'!B6 -> 10.1 Fee based services | C83: ='Calc|Fee Based'!$B$2 -> Calc|Fee Based | F83: N | H83: Calculates price for each fee based servce, in nominal terms, for year 1 of the forthcoming regulatory control period.
B84: ='Calc|Fee Based'!J6 -> 10.2 Year 1 service cost build up - DIRECT COSTS, $'s ($2026-27) | C84: =$C$83 -> Calc|Fee Based | F84: N | H84: Calculates the direct costs for each fee based service, in base year dollar terms, for year 1 of the forthcoming regulatory control period.
B85: ='Calc|Fee Based'!AB6 -> 10.3 Year 1 Service cost build up - INDIRECT COSTS, $'s ($2026-27) | C85: =$C$83 -> Calc|Fee Based | F85: N | H85: Calculates the indirect costs for each fee based service, in base year dollar terms, for year 1 of the forthcoming regulatory control period.

Sheet Output|Fee Based
B1: =Index!B1 -> Jemena Electricity Networks – Alternative Control Services Forecast model | E1: Key: | F1: Input | H1: Sheet Validation | I1: ='Model Validation'!C8 -> 0
B2: =MID(CELL("filename",A1),FIND("]",CELL("filename",A1))+1,255) -> Output|Fee Based | F2: Formula
D4: =IF(D7='Input|Escalations'!J27,0,1) -> 0 | E4: =IF(E7='Input|Escalations'!K27,0,1) -> 0 | F4: =IF(F7='Input|Escalations'!L27,0,1) -> 0 | G4: =IF(G7='Input|Escalations'!M27,0,1) -> 0
B5: =IFERROR("1.1 X-factors for each year of "&'Input|Setup'!$E$11&" to "&'Input|Setup'!$E$15&" regulatory period, (per cent)","") -> 1.1 X-factors for each year of 2026-27 to 2030-31 regulatory period, (per cent) | H5: =IF(SUM(D4:G4)=0,0,1) -> 0
C6: ='Input|Setup'!$E$11 -> 2026-27 | D6: ='Input|Setup'!$E$12 -> 2027-28 | E6: ='Input|Setup'!$E$13 -> 2028-29 | F6: ='Input|Setup'!$E$14 -> 2029-30 | G6: ='Input|Setup'!$E$15 -> 2030-31
D7: ='Input|Escalations'!J27 -> -0.009550582168 | E7: ='Input|Escalations'!K27 -> -0.0111993349 | F7: ='Input|Escalations'!L27 -> -0.01227436192 | G7: ='Input|Escalations'!M27 -> -0.01202541615
B10: =IFERROR("1.2 Fee based services for "&'Input|Setup'!$E$11,"") -> 1.2 Fee based services for 2026-27 | I10: =IF(SUM(I12:I61)=0,0,1) -> 0
B11: ='Calc|Fee Based'!B11 -> Service code | C11: ='Calc|Fee Based'!C11 -> Service | D11: ='Input|Setup'!B24 -> Hours | E11: ='Input|Setup'!E30 -> Service category | F11: ='Input|Setup'!H30 -> Expense Type | G11: ='Input|Setup'!H40 -> Control Mechanism | H11: ="Price ($" & 'Input|Setup'!$E$8 & ")" -> Price ($2026-27)
A12: 1 | B12: ='Calc|Fee Based'!B12 -> ND1P | C12: ='Calc|Fee Based'!C12 -> Basic connection, single-phase BH | D12: ='Calc|Fee Based'!E12 -> Business Hours | E12: ='Calc|Fee Based'!D12 -> Basic connection services | F12: ='Calc|Fee Based'!F12 -> Capex | G12: ='Calc|Fee Based'!G12 -> Fee Based | H12: ='Calc|Fee Based'!H12 -> 813.8869436 | I12: =IF(AND(B12='Calc|Fee Based'!B12,C12='Calc|Fee Based'!C12,D12='Calc|Fee Based'!E12,E12='Calc|Fee Based'!D12, F12='Calc|Fee Based'!F12,G12='Calc|Fee Based'!G12, H12='Calc|Fee Based'!H12),0,1) -> 0
A13: 2 | B13: ='Calc|Fee Based'!B13 -> ND1P | C13: ='Calc|Fee Based'!C13 -> Basic connection, single-phase AH | D13: ='Calc|Fee Based'!E13 -> After Hours | E13: ='Calc|Fee Based'!D13 -> Basic connection services | F13: ='Calc|Fee Based'!F13 -> Capex | G13: ='Calc|Fee Based'!G13 -> Fee Based | H13: ='Calc|Fee Based'!H13 -> 1162.506937 | I13: =IF(AND(B13='Calc|Fee Based'!B13,C13='Calc|Fee Based'!C13,D13='Calc|Fee Based'!E13,E13='Calc|Fee Based'!D13, F13='Calc|Fee Based'!F13,G13='Calc|Fee Based'!G13, H13='Calc|Fee Based'!H13),0,1) -> 0
A14: 3 | B14: ='Calc|Fee Based'!B14 -> ND3P | C14: ='Calc|Fee Based'!C14 -> Basic connection, three-phase BH | D14: ='Calc|Fee Based'!E14 -> Business Hours | E14: ='Calc|Fee Based'!D14 -> Basic connection services | F14: ='Calc|Fee Based'!F14 -> Capex | G14: ='Calc|Fee Based'!G14 -> Fee Based | H14: ='Calc|Fee Based'!H14 -> 1074.095465 | I14: =IF(AND(B14='Calc|Fee Based'!B14,C14='Calc|Fee Based'!C14,D14='Calc|Fee Based'!E14,E14='Calc|Fee Based'!D14, F14='Calc|Fee Based'!F14,G14='Calc|Fee Based'!G14, H14='Calc|Fee Based'!H14),0,1) -> 0
A15: 4 | B15: ='Calc|Fee Based'!B15 -> ND3P | C15: ='Calc|Fee Based'!C15 -> Basic connection, three-phase AH | D15: ='Calc|Fee Based'!E15 -> After Hours | E15: ='Calc|Fee Based'!D15 -> Basic connection services | F15: ='Calc|Fee Based'!F15 -> Capex | G15: ='Calc|Fee Based'!G15 -> Fee Based | H15: ='Calc|Fee Based'!H15 -> 1422.715459 | I15: =IF(AND(B15='Calc|Fee Based'!B15,C15='Calc|Fee Based'!C15,D15='Calc|Fee Based'!E15,E15='Calc|Fee Based'!D15, F15='Calc|Fee Based'!F15,G15='Calc|Fee Based'!G15, H15='Calc|Fee Based'!H15),0,1) -> 0
A16: 5 | B16: ='Calc|Fee Based'!B16 -> BTSO | C16: ='Calc|Fee Based'!C16 -> Temporary connection, single-phase BH | D16: ='Calc|Fee Based'!E16 -> Business Hours | E16: ='Calc|Fee Based'!D16 -> Connection service | F16: ='Calc|Fee Based'!F16 -> Capex | G16: ='Calc|Fee Based'!G16 -> Fee Based | H16: ='Calc|Fee Based'!H16 -> 773.4149435 | I16: =IF(AND(B16='Calc|Fee Based'!B16,C16='Calc|Fee Based'!C16,D16='Calc|Fee Based'!E16,E16='Calc|Fee Based'!D16, F16='Calc|Fee Based'!F16,G16='Calc|Fee Based'!G16, H16='Calc|Fee Based'!H16),0,1) -> 0
A17: 6 | B17: ='Calc|Fee Based'!B17 -> BTSO | C17: ='Calc|Fee Based'!C17 -> Temporary connection, single-phase AH | D17: ='Calc|Fee Based'!E17 -> After Hours | E17: ='Calc|Fee Based'!D17 -> Connection service | F17: ='Calc|Fee Based'!F17 -> Capex | G17: ='Calc|Fee Based'!G17 -> Fee Based | H17: ='Calc|Fee Based'!H17 -> 1122.034937 | I17: =IF(AND(B17='Calc|Fee Based'!B17,C17='Calc|Fee Based'!C17,D17='Calc|Fee Based'!E17,E17='Calc|Fee Based'!D17, F17='Calc|Fee Based'!F17,G17='Calc|Fee Based'!G17, H17='Calc|Fee Based'!H17),0,1) -> 0
A18: 7 | B18: ='Calc|Fee Based'!B18 -> BTSP | C18: ='Calc|Fee Based'!C18 -> Temporary connection, three-phase BH | D18: ='Calc|Fee Based'!E18 -> Business Hours | E18: ='Calc|Fee Based'!D18 -> Connection service | F18: ='Calc|Fee Based'!F18 -> Capex | G18: ='Calc|Fee Based'!G18 -> Fee Based | H18: ='Calc|Fee Based'!H18 -> 822.973458 | I18: =IF(AND(B18='Calc|Fee Based'!B18,C18='Calc|Fee Based'!C18,D18='Calc|Fee Based'!E18,E18='Calc|Fee Based'!D18, F18='Calc|Fee Based'!F18,G18='Calc|Fee Based'!G18, H18='Calc|Fee Based'!H18),0,1) -> 0
A19: 8 | B19: ='Calc|Fee Based'!B19 -> BTSP | C19: ='Calc|Fee Based'!C19 -> Temporary connection, three-phase AH | D19: ='Calc|Fee Based'!E19 -> After Hours | E19: ='Calc|Fee Based'!D19 -> Connection service | F19: ='Calc|Fee Based'!F19 -> Capex | G19: ='Calc|Fee Based'!G19 -> Fee Based | H19: ='Calc|Fee Based'!H19 -> 1171.593451 | I19: =IF(AND(B19='Calc|Fee Based'!B19,C19='Calc|Fee Based'!C19,D19='Calc|Fee Based'!E19,E19='Calc|Fee Based'!D19, F19='Calc|Fee Based'!F19,G19='Calc|Fee Based'!G19, H19='Calc|Fee Based'!H19),0,1) -> 0
A20: 9 | B20: ='Calc|Fee Based'!B20 -> SUTK | C20: ='Calc|Fee Based'!C20 -> Supply upgrade/enhancement (1ph to 3ph) BH | D20: ='Calc|Fee Based'!E20 -> Business Hours | E20: ='Calc|Fee Based'!D20 -> Connection service | F20: ='Calc|Fee Based'!F20 -> Capex | G20: ='Calc|Fee Based'!G20 -> Fee Based | H20: ='Calc|Fee Based'!H20 -> 1045.321069 | I20: =IF(AND(B20='Calc|Fee Based'!B20,C20='Calc|Fee Based'!C20,D20='Calc|Fee Based'!E20,E20='Calc|Fee Based'!D20, F20='Calc|Fee Based'!F20,G20='Calc|Fee Based'!G20, H20='Calc|Fee Based'!H20),0,1) -> 0
A21: 10 | B21: ='Calc|Fee Based'!B21 -> SUTK | C21: ='Calc|Fee Based'!C21 -> Supply upgrade/enhancement (1ph to 3ph) AH | D21: ='Calc|Fee Based'!E21 -> After Hours | E21: ='Calc|Fee Based'!D21 -> Connection service | F21: ='Calc|Fee Based'!F21 -> Capex | G21: ='Calc|Fee Based'!G21 -> Fee Based | H21: ='Calc|Fee Based'!H21 -> 1393.941062 | I21: =IF(AND(B21='Calc|Fee Based'!B21,C21='Calc|Fee Based'!C21,D21='Calc|Fee Based'!E21,E21='Calc|Fee Based'!D21, F21='Calc|Fee Based'!F21,G21='Calc|Fee Based'!G21, H21='Calc|Fee Based'!H21),0,1) -> 0
A22: 11 | B22: ='Calc|Fee Based'!B22 -> RTK1 | C22: ='Calc|Fee Based'!C22 -> Replacement of 1-phase overhead service line BH | D22: ='Calc|Fee Based'!E22 -> Business Hours | E22: ='Calc|Fee Based'!D22 -> Connection service | F22: ='Calc|Fee Based'!F22 -> Capex | G22: ='Calc|Fee Based'!G22 -> Fee Based | H22: ='Calc|Fee Based'!H22 -> 773.4149435 | I22: =IF(AND(B22='Calc|Fee Based'!B22,C22='Calc|Fee Based'!C22,D22='Calc|Fee Based'!E22,E22='Calc|Fee Based'!D22, F22='Calc|Fee Based'!F22,G22='Calc|Fee Based'!G22, H22='Calc|Fee Based'!H22),0,1) -> 0
A23: 12 | B23: ='Calc|Fee Based'!B23 -> RTK1 | C23: ='Calc|Fee Based'!C23 -> Replacement of 1-phase overhead service line AH | D23: ='Calc|Fee Based'!E23 -> After Hours | E23: ='Calc|Fee Based'!D23 -> Connection service | F23: ='Calc|Fee Based'!F23 -> Capex | G23: ='Calc|Fee Based'!G23 -> Fee Based | H23: ='Calc|Fee Based'!H23 -> 1122.034937 | I23: =IF(AND(B23='Calc|Fee Based'!B23,C23='Calc|Fee Based'!C23,D23='Calc|Fee Based'!E23,E23='Calc|Fee Based'!D23, F23='Calc|Fee Based'!F23,G23='Calc|Fee Based'!G23, H23='Calc|Fee Based'!H23),0,1) -> 0
A24: 13 | B24: ='Calc|Fee Based'!B24 -> REEN | C24: ='Calc|Fee Based'!C24 -> Field-based energisation BH | D24: ='Calc|Fee Based'!E24 -> Business Hours | E24: ='Calc|Fee Based'!D24 -> Connection service | F24: ='Calc|Fee Based'!F24 -> Opex | G24: ='Calc|Fee Based'!G24 -> Fee Based | H24: ='Calc|Fee Based'!H24 -> 63.71469046 | I24: =IF(AND(B24='Calc|Fee Based'!B24,C24='Calc|Fee Based'!C24,D24='Calc|Fee Based'!E24,E24='Calc|Fee Based'!D24, F24='Calc|Fee Based'!F24,G24='Calc|Fee Based'!G24, H24='Calc|Fee Based'!H24),0,1) -> 0
A25: 14 | B25: ='Calc|Fee Based'!B25 -> REEN | C25: ='Calc|Fee Based'!C25 -> Field-based energisation AH | D25: ='Calc|Fee Based'!E25 -> After Hours | E25: ='Calc|Fee Based'!D25 -> Connection service | F25: ='Calc|Fee Based'!F25 -> Opex | G25: ='Calc|Fee Based'!G25 -> Fee Based | H25: ='Calc|Fee Based'!H25 -> 111.224853 | I25: =IF(AND(B25='Calc|Fee Based'!B25,C25='Calc|Fee Based'!C25,D25='Calc|Fee Based'!E25,E25='Calc|Fee Based'!D25, F25='Calc|Fee Based'!F25,G25='Calc|Fee Based'!G25, H25='Calc|Fee Based'!H25),0,1) -> 0
A26: 15 | B26: ='Calc|Fee Based'!B26 -> DEEN | C26: ='Calc|Fee Based'!C26 -> Field-based de-energisation BH | D26: ='Calc|Fee Based'!E26 -> Business Hours | E26: ='Calc|Fee Based'!D26 -> Connection service | F26: ='Calc|Fee Based'!F26 -> Opex | G26: ='Calc|Fee Based'!G26 -> Fee Based | H26: ='Calc|Fee Based'!H26 -> 91.3737809 | I26: =IF(AND(B26='Calc|Fee Based'!B26,C26='Calc|Fee Based'!C26,D26='Calc|Fee Based'!E26,E26='Calc|Fee Based'!D26, F26='Calc|Fee Based'!F26,G26='Calc|Fee Based'!G26, H26='Calc|Fee Based'!H26),0,1) -> 0
A27: 16 | B27: ='Calc|Fee Based'!B27 -> DCTK | C27: ='Calc|Fee Based'!C27 -> Disconnection (temporary) BH | D27: ='Calc|Fee Based'!E27 -> Business Hours | E27: ='Calc|Fee Based'!D27 -> Customer requested supply outage | F27: ='Calc|Fee Based'!F27 -> Opex | G27: ='Calc|Fee Based'!G27 -> Fee Based | H27: ='Calc|Fee Based'!H27 -> 511.5151111 | I27: =IF(AND(B27='Calc|Fee Based'!B27,C27='Calc|Fee Based'!C27,D27='Calc|Fee Based'!E27,E27='Calc|Fee Based'!D27, F27='Calc|Fee Based'!F27,G27='Calc|Fee Based'!G27, H27='Calc|Fee Based'!H27),0,1) -> 0
A28: 17 | B28: ='Calc|Fee Based'!B28 -> DCTK | C28: ='Calc|Fee Based'!C28 -> Disconnection (temporary) AH | D28: ='Calc|Fee Based'!E28 -> After Hours | E28: ='Calc|Fee Based'!D28 -> Customer requested supply outage | F28: ='Calc|Fee Based'!F28 -> Opex | G28: ='Calc|Fee Based'!G28 -> Fee Based | H28: ='Calc|Fee Based'!H28 -> 793.6245279 | I28: =IF(AND(B28='Calc|Fee Based'!B28,C28='Calc|Fee Based'!C28,D28='Calc|Fee Based'!E28,E28='Calc|Fee Based'!D28, F28='Calc|Fee Based'!F28,G28='Calc|Fee Based'!G28, H28='Calc|Fee Based'!H28),0,1) -> 0
A29: 18 | B29: ='Calc|Fee Based'!B29 -> RCTK | C29: ='Calc|Fee Based'!C29 -> Reconnection after temp discon BH | D29: ='Calc|Fee Based'!E29 -> Business Hours | E29: ='Calc|Fee Based'!D29 -> Customer requested supply outage | F29: ='Calc|Fee Based'!F29 -> Opex | G29: ='Calc|Fee Based'!G29 -> Fee Based | H29: ='Calc|Fee Based'!H29 -> 593.670905 | I29: =IF(AND(B29='Calc|Fee Based'!B29,C29='Calc|Fee Based'!C29,D29='Calc|Fee Based'!E29,E29='Calc|Fee Based'!D29, F29='Calc|Fee Based'!F29,G29='Calc|Fee Based'!G29, H29='Calc|Fee Based'!H29),0,1) -> 0
A30: 19 | B30: ='Calc|Fee Based'!B30 -> RCTK | C30: ='Calc|Fee Based'!C30 -> Reconnection after temp discon AH | D30: ='Calc|Fee Based'!E30 -> After Hours | E30: ='Calc|Fee Based'!D30 -> Customer requested supply outage | F30: ='Calc|Fee Based'!F30 -> Opex | G30: ='Calc|Fee Based'!G30 -> Fee Based | H30: ='Calc|Fee Based'!H30 -> 927.072943 | I30: =IF(AND(B30='Calc|Fee Based'!B30,C30='Calc|Fee Based'!C30,D30='Calc|Fee Based'!E30,E30='Calc|Fee Based'!D30, F30='Calc|Fee Based'!F30,G30='Calc|Fee Based'!G30, H30='Calc|Fee Based'!H30),0,1) -> 0
A31: 20 | B31: ='Calc|Fee Based'!B31 -> SLOM | C31: ='Calc|Fee Based'!C31 -> Security Lighting - O&M | D31: ='Calc|Fee Based'!E31 -> Business Hours | E31: ='Calc|Fee Based'!D31 -> Security lights | F31: ='Calc|Fee Based'!F31 -> Capex | G31: ='Calc|Fee Based'!G31 -> Fee Based | H31: ='Calc|Fee Based'!H31 -> 177.4413325 | I31: =IF(AND(B31='Calc|Fee Based'!B31,C31='Calc|Fee Based'!C31,D31='Calc|Fee Based'!E31,E31='Calc|Fee Based'!D31, F31='Calc|Fee Based'!F31,G31='Calc|Fee Based'!G31, H31='Calc|Fee Based'!H31),0,1) -> 0
A32: 21 | B32: ='Calc|Fee Based'!B32 -> RFOM | C32: ='Calc|Fee Based'!C32 -> Enhanced Connection Operation and Maintenance | D32: ='Calc|Fee Based'!E32 -> Business Hours | E32: ='Calc|Fee Based'!D32 -> Enhanced connection services | F32: ='Calc|Fee Based'!F32 -> Opex | G32: ='Calc|Fee Based'!G32 -> Fee Based | H32: ='Calc|Fee Based'!H32 -> 16.16249281 | I32: =IF(AND(B32='Calc|Fee Based'!B32,C32='Calc|Fee Based'!C32,D32='Calc|Fee Based'!E32,E32='Calc|Fee Based'!D32, F32='Calc|Fee Based'!F32,G32='Calc|Fee Based'!G32, H32='Calc|Fee Based'!H32),0,1) -> 0
A33: 22 | B33: ='Calc|Fee Based'!B33 -> REENRM | C33: ='Calc|Fee Based'!C33 -> Remote energisation | D33: ='Calc|Fee Based'!E33 -> Business Hours | E33: ='Calc|Fee Based'!D33 -> Auxiliary metering services | F33: ='Calc|Fee Based'!F33 -> Opex | G33: ='Calc|Fee Based'!G33 -> Fee Based | H33: ='Calc|Fee Based'!H33 -> 0 | I33: =IF(AND(B33='Calc|Fee Based'!B33,C33='Calc|Fee Based'!C33,D33='Calc|Fee Based'!E33,E33='Calc|Fee Based'!D33, F33='Calc|Fee Based'!F33,G33='Calc|Fee Based'!G33, H33='Calc|Fee Based'!H33),0,1) -> 0
A34: 23 | B34: ='Calc|Fee Based'!B34 -> DEENRM | C34: ='Calc|Fee Based'!C34 -> Remote de-energisation | D34: ='Calc|Fee Based'!E34 -> Business Hours | E34: ='Calc|Fee Based'!D34 -> Auxiliary metering services | F34: ='Calc|Fee Based'!F34 -> Opex | G34: ='Calc|Fee Based'!G34 -> Fee Based | H34: ='Calc|Fee Based'!H34 -> 0 | I34: =IF(AND(B34='Calc|Fee Based'!B34,C34='Calc|Fee Based'!C34,D34='Calc|Fee Based'!E34,E34='Calc|Fee Based'!D34, F34='Calc|Fee Based'!F34,G34='Calc|Fee Based'!G34, H34='Calc|Fee Based'!H34),0,1) -> 0
A35: 24 | B35: ='Calc|Fee Based'!B35 -> MCTK | C35: ='Calc|Fee Based'!C35 -> Meter Alteration BH | D35: ='Calc|Fee Based'!E35 -> Business Hours | E35: ='Calc|Fee Based'!D35 -> Auxiliary metering services | F35: ='Calc|Fee Based'!F35 -> Opex | G35: ='Calc|Fee Based'!G35 -> Fee Based | H35: ='Calc|Fee Based'!H35 -> 653.3291497 | I35: =IF(AND(B35='Calc|Fee Based'!B35,C35='Calc|Fee Based'!C35,D35='Calc|Fee Based'!E35,E35='Calc|Fee Based'!D35, F35='Calc|Fee Based'!F35,G35='Calc|Fee Based'!G35, H35='Calc|Fee Based'!H35),0,1) -> 0
A36: 25 | B36: ='Calc|Fee Based'!B36 -> MCTK | C36: ='Calc|Fee Based'!C36 -> Meter Alteration AH | D36: ='Calc|Fee Based'!E36 -> After Hours | E36: ='Calc|Fee Based'!D36 -> Auxiliary metering services | F36: ='Calc|Fee Based'!F36 -> Opex | G36: ='Calc|Fee Based'!G36 -> Fee Based | H36: ='Calc|Fee Based'!H36 -> 986.7311877 | I36: =IF(AND(B36='Calc|Fee Based'!B36,C36='Calc|Fee Based'!C36,D36='Calc|Fee Based'!E36,E36='Calc|Fee Based'!D36, F36='Calc|Fee Based'!F36,G36='Calc|Fee Based'!G36, H36='Calc|Fee Based'!H36),0,1) -> 0
A37: 26 | B37: ='Calc|Fee Based'!B37 -> SPRDRM | C37: ='Calc|Fee Based'!C37 -> Remote special meter read | D37: ='Calc|Fee Based'!E37 -> Business Hours | E37: ='Calc|Fee Based'!D37 -> Auxiliary metering services | F37: ='Calc|Fee Based'!F37 -> Opex | G37: ='Calc|Fee Based'!G37 -> Fee Based | H37: ='Calc|Fee Based'!H37 -> 0 | I37: =IF(AND(B37='Calc|Fee Based'!B37,C37='Calc|Fee Based'!C37,D37='Calc|Fee Based'!E37,E37='Calc|Fee Based'!D37, F37='Calc|Fee Based'!F37,G37='Calc|Fee Based'!G37, H37='Calc|Fee Based'!H37),0,1) -> 0
A38: 27 | B38: ='Calc|Fee Based'!B38 -> MECFRM | C38: ='Calc|Fee Based'!C38 -> Remote meter reconfiguration | D38: ='Calc|Fee Based'!E38 -> Business Hours | E38: ='Calc|Fee Based'!D38 -> Auxiliary metering services | F38: ='Calc|Fee Based'!F38 -> Opex | G38: ='Calc|Fee Based'!G38 -> Fee Based | H38: ='Calc|Fee Based'!H38 -> 63.63546102 | I38: =IF(AND(B38='Calc|Fee Based'!B38,C38='Calc|Fee Based'!C38,D38='Calc|Fee Based'!E38,E38='Calc|Fee Based'!D38, F38='Calc|Fee Based'!F38,G38='Calc|Fee Based'!G38, H38='Calc|Fee Based'!H38),0,1) -> 0
A39: 28 | B39: ='Calc|Fee Based'!B39 -> SPRD | C39: ='Calc|Fee Based'!C39 -> Field-based special meter reads | D39: ='Calc|Fee Based'!E39 -> Business Hours | E39: ='Calc|Fee Based'!D39 -> Auxiliary metering services | F39: ='Calc|Fee Based'!F39 -> Opex | G39: ='Calc|Fee Based'!G39 -> Fee Based | H39: ='Calc|Fee Based'!H39 -> 61.40276041 | I39: =IF(AND(B39='Calc|Fee Based'!B39,C39='Calc|Fee Based'!C39,D39='Calc|Fee Based'!E39,E39='Calc|Fee Based'!D39, F39='Calc|Fee Based'!F39,G39='Calc|Fee Based'!G39, H39='Calc|Fee Based'!H39),0,1) -> 0
A40: 29 | B40: ='Calc|Fee Based'!B40 -> MTAL | C40: ='Calc|Fee Based'!C40 -> Meter test of types 5, 6 and AMI smart metering installations BH | D40: ='Calc|Fee Based'!E40 -> Business Hours | E40: ='Calc|Fee Based'!D40 -> Auxiliary metering services | F40: ='Calc|Fee Based'!F40 -> Opex | G40: ='Calc|Fee Based'!G40 -> Fee Based | H40: ='Calc|Fee Based'!H40 -> 661.8740474 | I40: =IF(AND(B40='Calc|Fee Based'!B40,C40='Calc|Fee Based'!C40,D40='Calc|Fee Based'!E40,E40='Calc|Fee Based'!D40, F40='Calc|Fee Based'!F40,G40='Calc|Fee Based'!G40, H40='Calc|Fee Based'!H40),0,1) -> 0
A41: 30 | B41: ='Calc|Fee Based'!B41 -> MTAL | C41: ='Calc|Fee Based'!C41 -> Meter test of types 5, 6 and AMI smart metering installations AH | D41: ='Calc|Fee Based'!E41 -> After Hours | E41: ='Calc|Fee Based'!D41 -> Auxiliary metering services | F41: ='Calc|Fee Based'!F41 -> Opex | G41: ='Calc|Fee Based'!G41 -> Fee Based | H41: ='Calc|Fee Based'!H41 -> 898.5841584 | I41: =IF(AND(B41='Calc|Fee Based'!B41,C41='Calc|Fee Based'!C41,D41='Calc|Fee Based'!E41,E41='Calc|Fee Based'!D41, F41='Calc|Fee Based'!F41,G41='Calc|Fee Based'!G41, H41='Calc|Fee Based'!H41),0,1) -> 0
A42: 31 | B42: ='Calc|Fee Based'!B42 -> MDCH | C42: ='Calc|Fee Based'!C42 -> Type 7 metering | D42: ='Calc|Fee Based'!E42 -> Business Hours | E42: ='Calc|Fee Based'!D42 -> Type 7 metering services | F42: ='Calc|Fee Based'!F42 -> Opex | G42: ='Calc|Fee Based'!G42 -> Fee Based | H42: ='Calc|Fee Based'!H42 -> 0 | I42: =IF(AND(B42='Calc|Fee Based'!B42,C42='Calc|Fee Based'!C42,D42='Calc|Fee Based'!E42,E42='Calc|Fee Based'!D42, F42='Calc|Fee Based'!F42,G42='Calc|Fee Based'!G42, H42='Calc|Fee Based'!H42),0,1) -> 0
A43: 32 | B43: ='Calc|Fee Based'!B43 -> NCUM | C43: ='Calc|Fee Based'!C43 -> Non-contestable unmetered loads | D43: ='Calc|Fee Based'!E43 -> Business Hours | E43: ='Calc|Fee Based'!D43 -> Auxiliary metering services | F43: ='Calc|Fee Based'!F43 -> Capex | G43: ='Calc|Fee Based'!G43 -> Fee Based | H43: ='Calc|Fee Based'!H43 -> 0 | I43: =IF(AND(B43='Calc|Fee Based'!B43,C43='Calc|Fee Based'!C43,D43='Calc|Fee Based'!E43,E43='Calc|Fee Based'!D43, F43='Calc|Fee Based'!F43,G43='Calc|Fee Based'!G43, H43='Calc|Fee Based'!H43),0,1) -> 0
A44: 33 | B44: ='Calc|Fee Based'!B44 -> WSVR | C44: ='Calc|Fee Based'!C44 -> Wasted site attendance BH | D44: ='Calc|Fee Based'!E44 -> Business Hours | E44: ='Calc|Fee Based'!D44 -> Connection service | F44: ='Calc|Fee Based'!F44 -> Opex | G44: ='Calc|Fee Based'!G44 -> Fee Based | H44: ='Calc|Fee Based'!H44 -> 653.3291497 | I44: =IF(AND(B44='Calc|Fee Based'!B44,C44='Calc|Fee Based'!C44,D44='Calc|Fee Based'!E44,E44='Calc|Fee Based'!D44, F44='Calc|Fee Based'!F44,G44='Calc|Fee Based'!G44, H44='Calc|Fee Based'!H44),0,1) -> 0
A45: 34 | B45: ='Calc|Fee Based'!B45 -> WSVR | C45: ='Calc|Fee Based'!C45 -> Wasted site attendance AH | D45: ='Calc|Fee Based'!E45 -> After Hours | E45: ='Calc|Fee Based'!D45 -> Connection service | F45: ='Calc|Fee Based'!F45 -> Opex | G45: ='Calc|Fee Based'!G45 -> Fee Based | H45: ='Calc|Fee Based'!H45 -> 986.7311877 | I45: =IF(AND(B45='Calc|Fee Based'!B45,C45='Calc|Fee Based'!C45,D45='Calc|Fee Based'!E45,E45='Calc|Fee Based'!D45, F45='Calc|Fee Based'!F45,G45='Calc|Fee Based'!G45, H45='Calc|Fee Based'!H45),0,1) -> 0
A46: 35 | B46: ='Calc|Fee Based'!B46 -> RTK3 | C46: ='Calc|Fee Based'!C46 -> Replacement of 3-phase overhead service line BH | D46: ='Calc|Fee Based'!E46 -> Business Hours | E46: ='Calc|Fee Based'!D46 -> Connection service | F46: ='Calc|Fee Based'!F46 -> Capex | G46: ='Calc|Fee Based'!G46 -> Fee Based | H46: ='Calc|Fee Based'!H46 -> 827.2603714 | I46: =IF(AND(B46='Calc|Fee Based'!B46,C46='Calc|Fee Based'!C46,D46='Calc|Fee Based'!E46,E46='Calc|Fee Based'!D46, F46='Calc|Fee Based'!F46,G46='Calc|Fee Based'!G46, H46='Calc|Fee Based'!H46),0,1) -> 0
A47: 36 | B47: ='Calc|Fee Based'!B47 -> RTK3 | C47: ='Calc|Fee Based'!C47 -> Replacement of 3-phase overhead service line AH | D47: ='Calc|Fee Based'!E47 -> After Hours | E47: ='Calc|Fee Based'!D47 -> Connection service | F47: ='Calc|Fee Based'!F47 -> Capex | G47: ='Calc|Fee Based'!G47 -> Fee Based | H47: ='Calc|Fee Based'!H47 -> 1175.880365 | I47: =IF(AND(B47='Calc|Fee Based'!B47,C47='Calc|Fee Based'!C47,D47='Calc|Fee Based'!E47,E47='Calc|Fee Based'!D47, F47='Calc|Fee Based'!F47,G47='Calc|Fee Based'!G47, H47='Calc|Fee Based'!H47),0,1) -> 0
A48: 37 | B48: ='Calc|Fee Based'!B48 ->  | C48: ='Calc|Fee Based'!C48 ->  | D48: ='Calc|Fee Based'!E48 ->  | E48: ='Calc|Fee Based'!D48 ->  | F48: ='Calc|Fee Based'!F48 ->  | G48: ='Calc|Fee Based'!G48 ->  | H48: ='Calc|Fee Based'!H48 -> 0 | I48: =IF(AND(B48='Calc|Fee Based'!B48,C48='Calc|Fee Based'!C48,D48='Calc|Fee Based'!E48,E48='Calc|Fee Based'!D48, F48='Calc|Fee Based'!F48,G48='Calc|Fee Based'!G48, H48='Calc|Fee Based'!H48),0,1) -> 0
A49: 38 | B49: ='Calc|Fee Based'!B49 -> 0 | C49: ='Calc|Fee Based'!C49 -> 0 | D49: ='Calc|Fee Based'!E49 -> 0 | E49: ='Calc|Fee Based'!D49 -> 0 | F49: ='Calc|Fee Based'!F49 -> 0 | G49: ='Calc|Fee Based'!G49 -> 0 | H49: ='Calc|Fee Based'!H49 -> 0 | I49: =IF(AND(B49='Calc|Fee Based'!B49,C49='Calc|Fee Based'!C49,D49='Calc|Fee Based'!E49,E49='Calc|Fee Based'!D49, F49='Calc|Fee Based'!F49,G49='Calc|Fee Based'!G49, H49='Calc|Fee Based'!H49),0,1) -> 0
A50: 39 | B50: ='Calc|Fee Based'!B50 -> 0 | C50: ='Calc|Fee Based'!C50 -> 0 | D50: ='Calc|Fee Based'!E50 -> 0 | E50: ='Calc|Fee Based'!D50 -> 0 | F50: ='Calc|Fee Based'!F50 -> 0 | G50: ='Calc|Fee Based'!G50 -> 0 | H50: ='Calc|Fee Based'!H50 -> 0 | I50: =IF(AND(B50='Calc|Fee Based'!B50,C50='Calc|Fee Based'!C50,D50='Calc|Fee Based'!E50,E50='Calc|Fee Based'!D50, F50='Calc|Fee Based'!F50,G50='Calc|Fee Based'!G50, H50='Calc|Fee Based'!H50),0,1) -> 0
A51: 40 | B51: ='Calc|Fee Based'!B51 -> 0 | C51: ='Calc|Fee Based'!C51 -> 0 | D51: ='Calc|Fee Based'!E51 -> 0 | E51: ='Calc|Fee Based'!D51 -> 0 | F51: ='Calc|Fee Based'!F51 -> 0 | G51: ='Calc|Fee Based'!G51 -> 0 | H51: ='Calc|Fee Based'!H51 -> 0 | I51: =IF(AND(B51='Calc|Fee Based'!B51,C51='Calc|Fee Based'!C51,D51='Calc|Fee Based'!E51,E51='Calc|Fee Based'!D51, F51='Calc|Fee Based'!F51,G51='Calc|Fee Based'!G51, H51='Calc|Fee Based'!H51),0,1) -> 0
A52: 41 | B52: ='Calc|Fee Based'!B52 -> 0 | C52: ='Calc|Fee Based'!C52 -> 0 | D52: ='Calc|Fee Based'!E52 -> 0 | E52: ='Calc|Fee Based'!D52 -> 0 | F52: ='Calc|Fee Based'!F52 -> 0 | G52: ='Calc|Fee Based'!G52 -> 0 | H52: ='Calc|Fee Based'!H52 -> 0 | I52: =IF(AND(B52='Calc|Fee Based'!B52,C52='Calc|Fee Based'!C52,D52='Calc|Fee Based'!E52,E52='Calc|Fee Based'!D52, F52='Calc|Fee Based'!F52,G52='Calc|Fee Based'!G52, H52='Calc|Fee Based'!H52),0,1) -> 0
A53: 42 | B53: ='Calc|Fee Based'!B53 -> 0 | C53: ='Calc|Fee Based'!C53 -> 0 | D53: ='Calc|Fee Based'!E53 -> 0 | E53: ='Calc|Fee Based'!D53 -> 0 | F53: ='Calc|Fee Based'!F53 -> 0 | G53: ='Calc|Fee Based'!G53 -> 0 | H53: ='Calc|Fee Based'!H53 -> 0 | I53: =IF(AND(B53='Calc|Fee Based'!B53,C53='Calc|Fee Based'!C53,D53='Calc|Fee Based'!E53,E53='Calc|Fee Based'!D53, F53='Calc|Fee Based'!F53,G53='Calc|Fee Based'!G53, H53='Calc|Fee Based'!H53),0,1) -> 0
A54: 43 | B54: ='Calc|Fee Based'!B54 -> 0 | C54: ='Calc|Fee Based'!C54 -> 0 | D54: ='Calc|Fee Based'!E54 -> 0 | E54: ='Calc|Fee Based'!D54 -> 0 | F54: ='Calc|Fee Based'!F54 -> 0 | G54: ='Calc|Fee Based'!G54 -> 0 | H54: ='Calc|Fee Based'!H54 -> 0 | I54: =IF(AND(B54='Calc|Fee Based'!B54,C54='Calc|Fee Based'!C54,D54='Calc|Fee Based'!E54,E54='Calc|Fee Based'!D54, F54='Calc|Fee Based'!F54,G54='Calc|Fee Based'!G54, H54='Calc|Fee Based'!H54),0,1) -> 0
A55: 44 | B55: ='Calc|Fee Based'!B55 -> 0 | C55: ='Calc|Fee Based'!C55 -> 0 | D55: ='Calc|Fee Based'!E55 -> 0 | E55: ='Calc|Fee Based'!D55 -> 0 | F55: ='Calc|Fee Based'!F55 -> 0 | G55: ='Calc|Fee Based'!G55 -> 0 | H55: ='Calc|Fee Based'!H55 -> 0 | I55: =IF(AND(B55='Calc|Fee Based'!B55,C55='Calc|Fee Based'!C55,D55='Calc|Fee Based'!E55,E55='Calc|Fee Based'!D55, F55='Calc|Fee Based'!F55,G55='Calc|Fee Based'!G55, H55='Calc|Fee Based'!H55),0,1) -> 0
A56: 45 | B56: ='Calc|Fee Based'!B56 -> 0 | C56: ='Calc|Fee Based'!C56 -> 0 | D56: ='Calc|Fee Based'!E56 -> 0 | E56: ='Calc|Fee Based'!D56 -> 0 | F56: ='Calc|Fee Based'!F56 -> 0 | G56: ='Calc|Fee Based'!G56 -> 0 | H56: ='Calc|Fee Based'!H56 -> 0 | I56: =IF(AND(B56='Calc|Fee Based'!B56,C56='Calc|Fee Based'!C56,D56='Calc|Fee Based'!E56,E56='Calc|Fee Based'!D56, F56='Calc|Fee Based'!F56,G56='Calc|Fee Based'!G56, H56='Calc|Fee Based'!H56),0,1) -> 0
A57: 46 | B57: ='Calc|Fee Based'!B57 -> 0 | C57: ='Calc|Fee Based'!C57 -> 0 | D57: ='Calc|Fee Based'!E57 -> 0 | E57: ='Calc|Fee Based'!D57 -> 0 | F57: ='Calc|Fee Based'!F57 -> 0 | G57: ='Calc|Fee Based'!G57 -> 0 | H57: ='Calc|Fee Based'!H57 -> 0 | I57: =IF(AND(B57='Calc|Fee Based'!B57,C57='Calc|Fee Based'!C57,D57='Calc|Fee Based'!E57,E57='Calc|Fee Based'!D57, F57='Calc|Fee Based'!F57,G57='Calc|Fee Based'!G57, H57='Calc|Fee Based'!H57),0,1) -> 0
A58: 47 | B58: ='Calc|Fee Based'!B58 -> 0 | C58: ='Calc|Fee Based'!C58 -> 0 | D58: ='Calc|Fee Based'!E58 -> 0 | E58: ='Calc|Fee Based'!D58 -> 0 | F58: ='Calc|Fee Based'!F58 -> 0 | G58: ='Calc|Fee Based'!G58 -> 0 | H58: ='Calc|Fee Based'!H58 -> 0 | I58: =IF(AND(B58='Calc|Fee Based'!B58,C58='Calc|Fee Based'!C58,D58='Calc|Fee Based'!E58,E58='Calc|Fee Based'!D58, F58='Calc|Fee Based'!F58,G58='Calc|Fee Based'!G58, H58='Calc|Fee Based'!H58),0,1) -> 0
A59: 48 | B59: ='Calc|Fee Based'!B59 -> 0 | C59: ='Calc|Fee Based'!C59 -> 0 | D59: ='Calc|Fee Based'!E59 -> 0 | E59: ='Calc|Fee Based'!D59 -> 0 | F59: ='Calc|Fee Based'!F59 -> 0 | G59: ='Calc|Fee Based'!G59 -> 0 | H59: ='Calc|Fee Based'!H59 -> 0 | I59: =IF(AND(B59='Calc|Fee Based'!B59,C59='Calc|Fee Based'!C59,D59='Calc|Fee Based'!E59,E59='Calc|Fee Based'!D59, F59='Calc|Fee Based'!F59,G59='Calc|Fee Based'!G59, H59='Calc|Fee Based'!H59),0,1) -> 0
A60: 49 | B60: ='Calc|Fee Based'!B60 -> 0 | C60: ='Calc|Fee Based'!C60 -> 0 | D60: ='Calc|Fee Based'!E60 -> 0 | E60: ='Calc|Fee Based'!D60 -> 0 | F60: ='Calc|Fee Based'!F60 -> 0 | G60: ='Calc|Fee Based'!G60 -> 0 | H60: ='Calc|Fee Based'!H60 -> 0 | I60: =IF(AND(B60='Calc|Fee Based'!B60,C60='Calc|Fee Based'!C60,D60='Calc|Fee Based'!E60,E60='Calc|Fee Based'!D60, F60='Calc|Fee Based'!F60,G60='Calc|Fee Based'!G60, H60='Calc|Fee Based'!H60),0,1) -> 0
A61: 50 | B61: ='Calc|Fee Based'!B61 -> 0 | C61: ='Calc|Fee Based'!C61 -> 0 | D61: ='Calc|Fee Based'!E61 -> 0 | E61: ='Calc|Fee Based'!D61 -> 0 | F61: ='Calc|Fee Based'!F61 -> 0 | G61: ='Calc|Fee Based'!G61 -> 0 | H61: ='Calc|Fee Based'!H61 -> 0 | I61: =IF(AND(B61='Calc|Fee Based'!B61,C61='Calc|Fee Based'!C61,D61='Calc|Fee Based'!E61,E61='Calc|Fee Based'!D61, F61='Calc|Fee Based'!F61,G61='Calc|Fee Based'!G61, H61='Calc|Fee Based'!H61),0,1) -> 0
A62: 51 | B62: ='Calc|Fee Based'!B62 -> 0 | C62: ='Calc|Fee Based'!C62 -> 0 | D62: ='Calc|Fee Based'!E62 -> 0 | E62: ='Calc|Fee Based'!D62 -> 0 | F62: ='Calc|Fee Based'!F62 -> 0 | G62: ='Calc|Fee Based'!G62 -> 0 | H62: ='Calc|Fee Based'!H62 -> 0 | I62: =IF(AND(B62='Calc|Fee Based'!B62,C62='Calc|Fee Based'!C62,D62='Calc|Fee Based'!E62,E62='Calc|Fee Based'!D62, F62='Calc|Fee Based'!F62,G62='Calc|Fee Based'!G62, H62='Calc|Fee Based'!H62),0,1) -> 0
A63: 52 | B63: ='Calc|Fee Based'!B63 -> 0 | C63: ='Calc|Fee Based'!C63 -> 0 | D63: ='Calc|Fee Based'!E63 -> 0 | E63: ='Calc|Fee Based'!D63 -> 0 | F63: ='Calc|Fee Based'!F63 -> 0 | G63: ='Calc|Fee Based'!G63 -> 0 | H63: ='Calc|Fee Based'!H63 -> 0 | I63: =IF(AND(B63='Calc|Fee Based'!B63,C63='Calc|Fee Based'!C63,D63='Calc|Fee Based'!E63,E63='Calc|Fee Based'!D63, F63='Calc|Fee Based'!F63,G63='Calc|Fee Based'!G63, H63='Calc|Fee Based'!H63),0,1) -> 0
A64: 53 | B64: ='Calc|Fee Based'!B64 -> 0 | C64: ='Calc|Fee Based'!C64 -> 0 | D64: ='Calc|Fee Based'!E64 -> 0 | E64: ='Calc|Fee Based'!D64 -> 0 | F64: ='Calc|Fee Based'!F64 -> 0 | G64: ='Calc|Fee Based'!G64 -> 0 | H64: ='Calc|Fee Based'!H64 -> 0 | I64: =IF(AND(B64='Calc|Fee Based'!B64,C64='Calc|Fee Based'!C64,D64='Calc|Fee Based'!E64,E64='Calc|Fee Based'!D64, F64='Calc|Fee Based'!F64,G64='Calc|Fee Based'!G64, H64='Calc|Fee Based'!H64),0,1) -> 0
A65: 54 | B65: ='Calc|Fee Based'!B65 -> 0 | C65: ='Calc|Fee Based'!C65 -> 0 | D65: ='Calc|Fee Based'!E65 -> 0 | E65: ='Calc|Fee Based'!D65 -> 0 | F65: ='Calc|Fee Based'!F65 -> 0 | G65: ='Calc|Fee Based'!G65 -> 0 | H65: ='Calc|Fee Based'!H65 -> 0 | I65: =IF(AND(B65='Calc|Fee Based'!B65,C65='Calc|Fee Based'!C65,D65='Calc|Fee Based'!E65,E65='Calc|Fee Based'!D65, F65='Calc|Fee Based'!F65,G65='Calc|Fee Based'!G65, H65='Calc|Fee Based'!H65),0,1) -> 0
A66: 55 | B66: ='Calc|Fee Based'!B66 -> 0 | C66: ='Calc|Fee Based'!C66 -> 0 | D66: ='Calc|Fee Based'!E66 -> 0 | E66: ='Calc|Fee Based'!D66 -> 0 | F66: ='Calc|Fee Based'!F66 -> 0 | G66: ='Calc|Fee Based'!G66 -> 0 | H66: ='Calc|Fee Based'!H66 -> 0 | I66: =IF(AND(B66='Calc|Fee Based'!B66,C66='Calc|Fee Based'!C66,D66='Calc|Fee Based'!E66,E66='Calc|Fee Based'!D66, F66='Calc|Fee Based'!F66,G66='Calc|Fee Based'!G66, H66='Calc|Fee Based'!H66),0,1) -> 0
A67: 56 | B67: ='Calc|Fee Based'!B67 -> 0 | C67: ='Calc|Fee Based'!C67 -> 0 | D67: ='Calc|Fee Based'!E67 -> 0 | E67: ='Calc|Fee Based'!D67 -> 0 | F67: ='Calc|Fee Based'!F67 -> 0 | G67: ='Calc|Fee Based'!G67 -> 0 | H67: ='Calc|Fee Based'!H67 -> 0 | I67: =IF(AND(B67='Calc|Fee Based'!B67,C67='Calc|Fee Based'!C67,D67='Calc|Fee Based'!E67,E67='Calc|Fee Based'!D67, F67='Calc|Fee Based'!F67,G67='Calc|Fee Based'!G67, H67='Calc|Fee Based'!H67),0,1) -> 0
A68: 57 | B68: ='Calc|Fee Based'!B68 -> 0 | C68: ='Calc|Fee Based'!C68 -> 0 | D68: ='Calc|Fee Based'!E68 -> 0 | E68: ='Calc|Fee Based'!D68 -> 0 | F68: ='Calc|Fee Based'!F68 -> 0 | G68: ='Calc|Fee Based'!G68 -> 0 | H68: ='Calc|Fee Based'!H68 -> 0 | I68: =IF(AND(B68='Calc|Fee Based'!B68,C68='Calc|Fee Based'!C68,D68='Calc|Fee Based'!E68,E68='Calc|Fee Based'!D68, F68='Calc|Fee Based'!F68,G68='Calc|Fee Based'!G68, H68='Calc|Fee Based'!H68),0,1) -> 0
A69: 58 | B69: ='Calc|Fee Based'!B69 -> 0 | C69: ='Calc|Fee Based'!C69 -> 0 | D69: ='Calc|Fee Based'!E69 -> 0 | E69: ='Calc|Fee Based'!D69 -> 0 | F69: ='Calc|Fee Based'!F69 -> 0 | G69: ='Calc|Fee Based'!G69 -> 0 | H69: ='Calc|Fee Based'!H69 -> 0 | I69: =IF(AND(B69='Calc|Fee Based'!B69,C69='Calc|Fee Based'!C69,D69='Calc|Fee Based'!E69,E69='Calc|Fee Based'!D69, F69='Calc|Fee Based'!F69,G69='Calc|Fee Based'!G69, H69='Calc|Fee Based'!H69),0,1) -> 0
A70: 59 | B70: ='Calc|Fee Based'!B70 -> 0 | C70: ='Calc|Fee Based'!C70 -> 0 | D70: ='Calc|Fee Based'!E70 -> 0 | E70: ='Calc|Fee Based'!D70 -> 0 | F70: ='Calc|Fee Based'!F70 -> 0 | G70: ='Calc|Fee Based'!G70 -> 0 | H70: ='Calc|Fee Based'!H70 -> 0 | I70: =IF(AND(B70='Calc|Fee Based'!B70,C70='Calc|Fee Based'!C70,D70='Calc|Fee Based'!E70,E70='Calc|Fee Based'!D70, F70='Calc|Fee Based'!F70,G70='Calc|Fee Based'!G70, H70='Calc|Fee Based'!H70),0,1) -> 0
A71: 60 | B71: ='Calc|Fee Based'!B71 -> 0 | C71: ='Calc|Fee Based'!C71 -> 0 | D71: ='Calc|Fee Based'!E71 -> 0 | E71: ='Calc|Fee Based'!D71 -> 0 | F71: ='Calc|Fee Based'!F71 -> 0 | G71: ='Calc|Fee Based'!G71 -> 0 | H71: ='Calc|Fee Based'!H71 -> 0 | I71: =IF(AND(B71='Calc|Fee Based'!B71,C71='Calc|Fee Based'!C71,D71='Calc|Fee Based'!E71,E71='Calc|Fee Based'!D71, F71='Calc|Fee Based'!F71,G71='Calc|Fee Based'!G71, H71='Calc|Fee Based'!H71),0,1) -> 0

Sheet Output|Quoted
B1: =Index!B1 -> Jemena Electricity Networks – Alternative Control Services Forecast model | C1: Key: | D1: Input | F1: Sheet Validation | G1: ='Model Validation'!C9 -> 0
B2: =MID(CELL("filename",A1),FIND("]",CELL("filename",A1))+1,255) -> Output|Quoted | D2: Formula
D4: =IF(D7='Input|Escalations'!J27,0,1) -> 0 | E4: =IF(E7='Input|Escalations'!K27,0,1) -> 0 | F4: =IF(F7='Input|Escalations'!L27,0,1) -> 0 | G4: =IF(G7='Input|Escalations'!M27,0,1) -> 0
B5: =IFERROR("2.1 X-factors for each year of "&'Input|Setup'!$E$11&" to "&'Input|Setup'!$E$15&" regulatory period, (per cent)","") -> 2.1 X-factors for each year of 2026-27 to 2030-31 regulatory period, (per cent) | H5: =IF(SUM(D4:G4)=0,0,1) -> 0
C6: ='Output|Fee Based'!C6 -> 2026-27 | D6: ='Output|Fee Based'!D6 -> 2027-28 | E6: ='Output|Fee Based'!E6 -> 2028-29 | F6: ='Output|Fee Based'!F6 -> 2029-30 | G6: ='Output|Fee Based'!G6 -> 2030-31
D7: ='Output|Fee Based'!D7 -> -0.009550582168 | E7: ='Output|Fee Based'!E7 -> -0.0111993349 | F7: ='Output|Fee Based'!F7 -> -0.01227436192 | G7: ='Output|Fee Based'!G7 -> -0.01202541615
I9: For AER only
B10: =IFERROR("2.2 Labour rates for "&'Input|Setup'!$E$11&", ($"&'Input|Setup'!$E$8&")","") -> 2.2 Labour rates for 2026-27, ($2026-27) | I10: AER maximum rates | J10: AER decision
B11: Quoted service - Labour rates | C11: Hours | D11: Hourly rate ($) | I11: Hourly rate ($) | J11: Hourly rate ($)
A12: 1 | B12: ='Calc|Labour Rates'!B10 -> Administrative Officer | C12: ='Calc|Labour Rates'!C10 -> Business hours | D12: =IF('Calc|Labour Rates'!$D10="No","NA",IFERROR(LOOKUP(2, 1/('Calc|Labour Rates'!$B$10:$B$29='Output|Quoted'!$B12)/('Calc|Labour Rates'!$C$10:$C$29='Output|Quoted'!$C12),'Calc|Labour Rates'!$F$10:$F$29),0)) -> 117.5664679 | G12: =IF(OR($D12="NA",AND(B12='Calc|Labour Rates'!B10,'Output|Quoted'!C12='Calc|Labour Rates'!C10,'Output|Quoted'!D12='Calc|Labour Rates'!F10)),0,1) -> 0 | I12: 72 | J12: =MIN($I12,$D12) -> 72
A13: =IFERROR(A12+1,"") -> 2 | B13: ='Calc|Labour Rates'!B11 -> Field Worker | C13: ='Calc|Labour Rates'!C11 -> Business hours | D13: =IF('Calc|Labour Rates'!$D11="No","NA",IFERROR(LOOKUP(2, 1/('Calc|Labour Rates'!$B$10:$B$29='Output|Quoted'!$B13)/('Calc|Labour Rates'!$C$10:$C$29='Output|Quoted'!$C13),'Calc|Labour Rates'!$F$10:$F$29),0)) -> 222.05 | G13: =IF(OR($D13="NA",AND(B13='Calc|Labour Rates'!B11,'Output|Quoted'!C13='Calc|Labour Rates'!C11,'Output|Quoted'!D13='Calc|Labour Rates'!F11)),0,1) -> 0 | I13: 150 | J13: 150
A14: =IFERROR(A13+1,"") -> 3 | B14: ='Calc|Labour Rates'!B12 -> Technical Specialist | C14: ='Calc|Labour Rates'!C12 -> Business hours | D14: =IF('Calc|Labour Rates'!$D12="No","NA",IFERROR(LOOKUP(2, 1/('Calc|Labour Rates'!$B$10:$B$29='Output|Quoted'!$B14)/('Calc|Labour Rates'!$C$10:$C$29='Output|Quoted'!$C14),'Calc|Labour Rates'!$F$10:$F$29),0)) -> 222.3117791 | G14: =IF(OR($D14="NA",AND(B14='Calc|Labour Rates'!B12,'Output|Quoted'!C14='Calc|Labour Rates'!C12,'Output|Quoted'!D14='Calc|Labour Rates'!F12)),0,1) -> 0 | I14: 150 | J14: 150
A15: 4 | B15: ='Calc|Labour Rates'!B13 -> Engineer | C15: ='Calc|Labour Rates'!C13 -> Business hours | D15: =IF('Calc|Labour Rates'!$D13="No","NA",IFERROR(LOOKUP(2, 1/('Calc|Labour Rates'!$B$10:$B$29='Output|Quoted'!$B15)/('Calc|Labour Rates'!$C$10:$C$29='Output|Quoted'!$C15),'Calc|Labour Rates'!$F$10:$F$29),0)) -> 253.35 | G15: =IF(OR($D15="NA",AND(B15='Calc|Labour Rates'!B13,'Output|Quoted'!C15='Calc|Labour Rates'!C13,'Output|Quoted'!D15='Calc|Labour Rates'!F13)),0,1) -> 0 | I15: 205 | J15: 205
A16: 5 | B16: ='Calc|Labour Rates'!B14 -> Senior Engineer | C16: ='Calc|Labour Rates'!C14 -> Business hours | D16: =IF('Calc|Labour Rates'!$D14="No","NA",IFERROR(LOOKUP(2, 1/('Calc|Labour Rates'!$B$10:$B$29='Output|Quoted'!$B16)/('Calc|Labour Rates'!$C$10:$C$29='Output|Quoted'!$C16),'Calc|Labour Rates'!$F$10:$F$29),0)) -> 304.02 | G16: =IF(OR($D16="NA",AND(B16='Calc|Labour Rates'!B14,'Output|Quoted'!C16='Calc|Labour Rates'!C14,'Output|Quoted'!D16='Calc|Labour Rates'!F14)),0,1) -> 0 | I16: 300 | J16: 300
A17: 6 | B17: ='Calc|Labour Rates'!B15 -> Administrative Officer | C17: ='Calc|Labour Rates'!C15 -> After Hours | D17: =IF('Calc|Labour Rates'!$D15="No","NA",IFERROR(LOOKUP(2, 1/('Calc|Labour Rates'!$B$10:$B$29='Output|Quoted'!$B17)/('Calc|Labour Rates'!$C$10:$C$29='Output|Quoted'!$C17),'Calc|Labour Rates'!$F$10:$F$29),0)) -> NA | G17: =IF(OR($D17="NA",AND(B17='Calc|Labour Rates'!B15,'Output|Quoted'!C17='Calc|Labour Rates'!C15,'Output|Quoted'!D17='Calc|Labour Rates'!F15)),0,1) -> 0 | I17: =I12*1.69 -> 121.68 | J17: 121.68
A18: 7 | B18: ='Calc|Labour Rates'!B16 -> Field Worker | C18: ='Calc|Labour Rates'!C16 -> After Hours | D18: =IF('Calc|Labour Rates'!$D16="No","NA",IFERROR(LOOKUP(2, 1/('Calc|Labour Rates'!$B$10:$B$29='Output|Quoted'!$B18)/('Calc|Labour Rates'!$C$10:$C$29='Output|Quoted'!$C18),'Calc|Labour Rates'!$F$10:$F$29),0)) -> 388.59 | G18: =IF(OR($D18="NA",AND(B18='Calc|Labour Rates'!B16,'Output|Quoted'!C18='Calc|Labour Rates'!C16,'Output|Quoted'!D18='Calc|Labour Rates'!F16)),0,1) -> 0 | I18: =I13*1.69 -> 253.5 | J18: 253.5
A19: 8 | B19: ='Calc|Labour Rates'!B17 -> Technical Specialist | C19: ='Calc|Labour Rates'!C17 -> After Hours | D19: =IF('Calc|Labour Rates'!$D17="No","NA",IFERROR(LOOKUP(2, 1/('Calc|Labour Rates'!$B$10:$B$29='Output|Quoted'!$B19)/('Calc|Labour Rates'!$C$10:$C$29='Output|Quoted'!$C19),'Calc|Labour Rates'!$F$10:$F$29),0)) -> NA | G19: =IF(OR($D19="NA",AND(B19='Calc|Labour Rates'!B17,'Output|Quoted'!C19='Calc|Labour Rates'!C17,'Output|Quoted'!D19='Calc|Labour Rates'!F17)),0,1) -> 0 | I19: =I14*1.69 -> 253.5 | J19: 253.5
A20: 9 | B20: ='Calc|Labour Rates'!B18 -> Engineer | C20: ='Calc|Labour Rates'!C18 -> After Hours | D20: =IF('Calc|Labour Rates'!$D18="No","NA",IFERROR(LOOKUP(2, 1/('Calc|Labour Rates'!$B$10:$B$29='Output|Quoted'!$B20)/('Calc|Labour Rates'!$C$10:$C$29='Output|Quoted'!$C20),'Calc|Labour Rates'!$F$10:$F$29),0)) -> NA | G20: =IF(OR($D20="NA",AND(B20='Calc|Labour Rates'!B18,'Output|Quoted'!C20='Calc|Labour Rates'!C18,'Output|Quoted'!D20='Calc|Labour Rates'!F18)),0,1) -> 0 | I20: =I15*1.69 -> 346.45 | J20: 346.45
A21: 10 | B21: ='Calc|Labour Rates'!B19 -> Senior Engineer | C21: ='Calc|Labour Rates'!C19 -> After Hours | D21: =IF('Calc|Labour Rates'!$D19="No","NA",IFERROR(LOOKUP(2, 1/('Calc|Labour Rates'!$B$10:$B$29='Output|Quoted'!$B21)/('Calc|Labour Rates'!$C$10:$C$29='Output|Quoted'!$C21),'Calc|Labour Rates'!$F$10:$F$29),0)) -> NA | G21: =IF(OR($D21="NA",AND(B21='Calc|Labour Rates'!B19,'Output|Quoted'!C21='Calc|Labour Rates'!C19,'Output|Quoted'!D21='Calc|Labour Rates'!F19)),0,1) -> 0 | I21: =I16*1.69 -> 507 | J21: 507
A22: 11 | B22: ='Calc|Labour Rates'!B20 ->  | C22: ='Calc|Labour Rates'!C20 ->  | D22: =IF('Calc|Labour Rates'!$D20="No","NA",IFERROR(LOOKUP(2, 1/('Calc|Labour Rates'!$B$10:$B$29='Output|Quoted'!$B22)/('Calc|Labour Rates'!$C$10:$C$29='Output|Quoted'!$C22),'Calc|Labour Rates'!$F$10:$F$29),0)) -> 0 | G22: =IF(OR($D22="NA",AND(B22='Calc|Labour Rates'!B20,'Output|Quoted'!C22='Calc|Labour Rates'!C20,'Output|Quoted'!D22='Calc|Labour Rates'!F20)),0,1) -> 0 | J22: 0
A23: 12 | B23: ='Calc|Labour Rates'!B21 ->  | C23: ='Calc|Labour Rates'!C21 ->  | D23: =IF('Calc|Labour Rates'!$D21="No","NA",IFERROR(LOOKUP(2, 1/('Calc|Labour Rates'!$B$10:$B$29='Output|Quoted'!$B23)/('Calc|Labour Rates'!$C$10:$C$29='Output|Quoted'!$C23),'Calc|Labour Rates'!$F$10:$F$29),0)) -> 0 | G23: =IF(OR($D23="NA",AND(B23='Calc|Labour Rates'!B21,'Output|Quoted'!C23='Calc|Labour Rates'!C21,'Output|Quoted'!D23='Calc|Labour Rates'!F21)),0,1) -> 0 | J23: 0
A24: 13 | B24: ='Calc|Labour Rates'!B22 ->  | C24: ='Calc|Labour Rates'!C22 ->  | D24: =IF('Calc|Labour Rates'!$D22="No","NA",IFERROR(LOOKUP(2, 1/('Calc|Labour Rates'!$B$10:$B$29='Output|Quoted'!$B24)/('Calc|Labour Rates'!$C$10:$C$29='Output|Quoted'!$C24),'Calc|Labour Rates'!$F$10:$F$29),0)) -> 0 | G24: =IF(OR($D24="NA",AND(B24='Calc|Labour Rates'!B22,'Output|Quoted'!C24='Calc|Labour Rates'!C22,'Output|Quoted'!D24='Calc|Labour Rates'!F22)),0,1) -> 0 | J24: 0
A25: 14 | B25: ='Calc|Labour Rates'!B23 ->  | C25: ='Calc|Labour Rates'!C23 -> 0 | D25: =IF('Calc|Labour Rates'!$D23="No","NA",IFERROR(LOOKUP(2, 1/('Calc|Labour Rates'!$B$10:$B$29='Output|Quoted'!$B25)/('Calc|Labour Rates'!$C$10:$C$29='Output|Quoted'!$C25),'Calc|Labour Rates'!$F$10:$F$29),0)) -> 0 | G25: =IF(OR($D25="NA",AND(B25='Calc|Labour Rates'!B23,'Output|Quoted'!C25='Calc|Labour Rates'!C23,'Output|Quoted'!D25='Calc|Labour Rates'!F23)),0,1) -> 0 | J25: 0
A26: 15 | B26: ='Calc|Labour Rates'!B24 ->  | C26: ='Calc|Labour Rates'!C24 -> 0 | D26: =IF('Calc|Labour Rates'!$D24="No","NA",IFERROR(LOOKUP(2, 1/('Calc|Labour Rates'!$B$10:$B$29='Output|Quoted'!$B26)/('Calc|Labour Rates'!$C$10:$C$29='Output|Quoted'!$C26),'Calc|Labour Rates'!$F$10:$F$29),0)) -> 0 | G26: =IF(OR($D26="NA",AND(B26='Calc|Labour Rates'!B24,'Output|Quoted'!C26='Calc|Labour Rates'!C24,'Output|Quoted'!D26='Calc|Labour Rates'!F24)),0,1) -> 0 | J26: 0
A27: 16 | B27: ='Calc|Labour Rates'!B25 ->  | C27: ='Calc|Labour Rates'!C25 ->  | D27: =IF('Calc|Labour Rates'!$D25="No","NA",IFERROR(LOOKUP(2, 1/('Calc|Labour Rates'!$B$10:$B$29='Output|Quoted'!$B27)/('Calc|Labour Rates'!$C$10:$C$29='Output|Quoted'!$C27),'Calc|Labour Rates'!$F$10:$F$29),0)) -> 0 | G27: =IF(OR($D27="NA",AND(B27='Calc|Labour Rates'!B25,'Output|Quoted'!C27='Calc|Labour Rates'!C25,'Output|Quoted'!D27='Calc|Labour Rates'!F25)),0,1) -> 0 | J27: 0
A28: 17 | B28: ='Calc|Labour Rates'!B26 ->  | C28: ='Calc|Labour Rates'!C26 ->  | D28: =IF('Calc|Labour Rates'!$D26="No","NA",IFERROR(LOOKUP(2, 1/('Calc|Labour Rates'!$B$10:$B$29='Output|Quoted'!$B28)/('Calc|Labour Rates'!$C$10:$C$29='Output|Quoted'!$C28),'Calc|Labour Rates'!$F$10:$F$29),0)) -> 0 | G28: =IF(OR($D28="NA",AND(B28='Calc|Labour Rates'!B26,'Output|Quoted'!C28='Calc|Labour Rates'!C26,'Output|Quoted'!D28='Calc|Labour Rates'!F26)),0,1) -> 0 | J28: 0
A29: 18 | B29: ='Calc|Labour Rates'!B27 ->  | C29: ='Calc|Labour Rates'!C27 ->  | D29: =IF('Calc|Labour Rates'!$D27="No","NA",IFERROR(LOOKUP(2, 1/('Calc|Labour Rates'!$B$10:$B$29='Output|Quoted'!$B29)/('Calc|Labour Rates'!$C$10:$C$29='Output|Quoted'!$C29),'Calc|Labour Rates'!$F$10:$F$29),0)) -> 0 | G29: =IF(OR($D29="NA",AND(B29='Calc|Labour Rates'!B27,'Output|Quoted'!C29='Calc|Labour Rates'!C27,'Output|Quoted'!D29='Calc|Labour Rates'!F27)),0,1) -> 0 | J29: 0
A30: 19 | B30: ='Calc|Labour Rates'!B28 ->  | C30: ='Calc|Labour Rates'!C28 ->  | D30: =IF('Calc|Labour Rates'!$D28="No","NA",IFERROR(LOOKUP(2, 1/('Calc|Labour Rates'!$B$10:$B$29='Output|Quoted'!$B30)/('Calc|Labour Rates'!$C$10:$C$29='Output|Quoted'!$C30),'Calc|Labour Rates'!$F$10:$F$29),0)) -> 0 | G30: =IF(OR($D30="NA",AND(B30='Calc|Labour Rates'!B28,'Output|Quoted'!C30='Calc|Labour Rates'!C28,'Output|Quoted'!D30='Calc|Labour Rates'!F28)),0,1) -> 0 | J30: 0
A31: 20 | B31: ='Calc|Labour Rates'!B29 ->  | C31: ='Calc|Labour Rates'!C29 ->  | D31: =IF('Calc|Labour Rates'!$D29="No","NA",IFERROR(LOOKUP(2, 1/('Calc|Labour Rates'!$B$10:$B$29='Output|Quoted'!$B31)/('Calc|Labour Rates'!$C$10:$C$29='Output|Quoted'!$C31),'Calc|Labour Rates'!$F$10:$F$29),0)) -> 0 | G31: =IF(OR($D31="NA",AND(B31='Calc|Labour Rates'!B29,'Output|Quoted'!C31='Calc|Labour Rates'!C29,'Output|Quoted'!D31='Calc|Labour Rates'!F29)),0,1) -> 0 | J31: 0
B34: =IFERROR("2.3 List of quoted services for "&'Input|Setup'!$E$11&" to "&'Input|Setup'!$E$15&" regulatory period","") -> 2.3 List of quoted services for 2026-27 to 2030-31 regulatory period
A36: 1 | B36: ='Input|Labour Rates'!B47 -> Supply abolishment (non-basic) | G36: =IF(B36='Input|Labour Rates'!B47,0,1) -> 0
A37: =IFERROR(A36+1,"") -> 2 | B37: ='Input|Labour Rates'!B48 -> Temporary covering of low voltage mains and service lines (fitting of tiger tails) | G37: =IF(B37='Input|Labour Rates'!B48,0,1) -> 0
A38: =IFERROR(A37+1,"") -> 3 | B38: ='Input|Labour Rates'!B49 -> Rearrangement of network assets at customer request, excluding alteration and relocation of public lighting assets | G38: =IF(B38='Input|Labour Rates'!B49,0,1) -> 0
A39: 4 | B39: ='Input|Labour Rates'!B50 -> Elective undergrounding | G39: =IF(B39='Input|Labour Rates'!B50,0,1) -> 0
A40: 5 | B40: ='Input|Labour Rates'!B51 -> Reserve feeder construction | G40: =IF(B40='Input|Labour Rates'!B51,0,1) -> 0
A41: 6 | B41: ='Input|Labour Rates'!B52 -> Access permits, oversight and facilitation | G41: =IF(B41='Input|Labour Rates'!B52,0,1) -> 0
A42: 7 | B42: ='Input|Labour Rates'!B53 -> Sale of approved materials or equipment | G42: =IF(B42='Input|Labour Rates'!B53,0,1) -> 0
A43: 8 | B43: ='Input|Labour Rates'!B54 -> Notices of arrangement and completion notices | G43: =IF(B43='Input|Labour Rates'!B54,0,1) -> 0
A44: 9 | B44: ='Input|Labour Rates'!B55 -> Network related property services | G44: =IF(B44='Input|Labour Rates'!B55,0,1) -> 0
A45: 10 | B45: ='Input|Labour Rates'!B56 -> Network safety services | G45: =IF(B45='Input|Labour Rates'!B56,0,1) -> 0
A46: 11 | B46: ='Input|Labour Rates'!B57 -> High load escorts | G46: =IF(B46='Input|Labour Rates'!B57,0,1) -> 0
A47: 12 | B47: ='Input|Labour Rates'!B58 -> Fitting of possum guards and aerial markers | G47: =IF(B47='Input|Labour Rates'!B58,0,1) -> 0
A48: 13 | B48: ='Input|Labour Rates'!B59 -> Site visit relating to location of underground cables/assets | G48: =IF(B48='Input|Labour Rates'!B59,0,1) -> 0
A49: 14 | B49: ='Input|Labour Rates'!B60 -> Third party request for de-energising wires for safe approach | G49: =IF(B49='Input|Labour Rates'!B60,0,1) -> 0
A50: 15 | B50: ='Input|Labour Rates'!B61 -> Provision of traffic control and safety observer services by the distributor where required | G50: =IF(B50='Input|Labour Rates'!B61,0,1) -> 0
A51: 16 | B51: ='Input|Labour Rates'!B62 -> Planned interruption – customer requested | G51: =IF(B51='Input|Labour Rates'!B62,0,1) -> 0
A52: 17 | B52: ='Input|Labour Rates'!B63 -> Customer requested supply interruption | G52: =IF(B52='Input|Labour Rates'!B63,0,1) -> 0
A53: 18 | B53: ='Input|Labour Rates'!B64 -> Inspection and auditing services | G53: =IF(B53='Input|Labour Rates'!B64,0,1) -> 0
A54: 19 | B54: ='Input|Labour Rates'!B65 -> Provision of training to third parties for network related access | G54: =IF(B54='Input|Labour Rates'!B65,0,1) -> 0
A55: 20 | B55: ='Input|Labour Rates'!B66 -> Authorisation and approval of third party service providers | G55: =IF(B55='Input|Labour Rates'!B66,0,1) -> 0
A56: 21 | B56: ='Input|Labour Rates'!B67 -> Replacement of security lights that are beyond repair | G56: =IF(B56='Input|Labour Rates'!B67,0,1) -> 0
A57: 22 | B57: ='Input|Labour Rates'!B68 -> Provision of electricity network data to customers or third parties outside of legislative obligations | G57: =IF(B57='Input|Labour Rates'!B68,0,1) -> 0
A58: 23 | B58: ='Input|Labour Rates'!B69 -> Third party requested network alterations or other improvements | G58: =IF(B58='Input|Labour Rates'!B69,0,1) -> 0
A59: 24 | B59: ='Input|Labour Rates'!B70 -> Community network upgrades | G59: =IF(B59='Input|Labour Rates'!B70,0,1) -> 0
A60: 25 | B60: ='Input|Labour Rates'!B71 -> Non-standard metering services (eg. initial setup of load and inventory table of non-contestable unmetered devices) | G60: =IF(B60='Input|Labour Rates'!B71,0,1) -> 0
A61: 26 | B61: ='Input|Labour Rates'!B72 -> Connection management services | G61: =IF(B61='Input|Labour Rates'!B72,0,1) -> 0
A62: 27 | B62: ='Input|Labour Rates'!B73 -> Temporary non-basic connections | G62: =IF(B62='Input|Labour Rates'!B73,0,1) -> 0
A63: 28 | B63: ='Input|Labour Rates'!B74 -> Temporary disconnection of non-basic connections | G63: =IF(B63='Input|Labour Rates'!B74,0,1) -> 0
A64: 29 | B64: ='Input|Labour Rates'!B75 -> Reconnection of non-basic connection after temporary disconnection | G64: =IF(B64='Input|Labour Rates'!B75,0,1) -> 0
A65: 30 | B65: ='Input|Labour Rates'!B76 -> Protection and power quality assessment | G65: =IF(B65='Input|Labour Rates'!B76,0,1) -> 0
A66: 31 | B66: ='Input|Labour Rates'!B77 -> Customer requested change requiring secondary and primary plant studies | G66: =IF(B66='Input|Labour Rates'!B77,0,1) -> 0 | H66: `
A67: 32 | B67: ='Input|Labour Rates'!B78 -> Calculation of a site-specific distribution loss factor on request | G67: =IF(B67='Input|Labour Rates'!B78,0,1) -> 0
A68: 33 | B68: ='Input|Labour Rates'!B79 -> Embedded network management | G68: =IF(B68='Input|Labour Rates'!B79,0,1) -> 0
A69: 34 | B69: ='Input|Labour Rates'!B80 -> Connection application related services | G69: =IF(B69='Input|Labour Rates'!B80,0,1) -> 0
A70: 35 | B70: ='Input|Labour Rates'!B81 -> Alteration and relocation of public lighting assets | G70: =IF(B70='Input|Labour Rates'!B81,0,1) -> 0
A71: 36 | B71: ='Input|Labour Rates'!B82 -> New public lighting services including greenfield sites and new light types (distributor provided) | G71: =IF(B71='Input|Labour Rates'!B82,0,1) -> 0
A72: 37 | B72: ='Input|Labour Rates'!B83 -> Provision, construction and maintenance of emerging public lighting technology | G72: =IF(B72='Input|Labour Rates'!B83,0,1) -> 0
A73: 38 | B73: ='Input|Labour Rates'!B84 -> 0 | G73: =IF(B73='Input|Labour Rates'!B84,0,1) -> 0
A74: 39 | B74: ='Input|Labour Rates'!B85 -> 0 | G74: =IF(B74='Input|Labour Rates'!B85,0,1) -> 0
A75: 40 | B75: ='Input|Labour Rates'!B86 -> 0 | G75: =IF(B75='Input|Labour Rates'!B86,0,1) -> 0
A76: 41 | B76: ='Input|Labour Rates'!B87 -> 0 | G76: =IF(B76='Input|Labour Rates'!B87,0,1) -> 0
A77: 42 | B77: ='Input|Labour Rates'!B88 -> 0 | G77: =IF(B77='Input|Labour Rates'!B88,0,1) -> 0
A78: 43 | B78: ='Input|Labour Rates'!B89 -> 0 | G78: =IF(B78='Input|Labour Rates'!B89,0,1) -> 0
A79: 44 | B79: ='Input|Labour Rates'!B90 -> 0 | G79: =IF(B79='Input|Labour Rates'!B90,0,1) -> 0
A80: 45 | B80: ='Input|Labour Rates'!B91 -> 0 | G80: =IF(B80='Input|Labour Rates'!B91,0,1) -> 0
A81: 46 | B81: ='Input|Labour Rates'!B92 -> 0 | G81: =IF(B81='Input|Labour Rates'!B92,0,1) -> 0
A82: 47 | B82: ='Input|Labour Rates'!B93 -> 0 | G82: =IF(B82='Input|Labour Rates'!B93,0,1) -> 0
A83: 48 | B83: ='Input|Labour Rates'!B94 -> 0 | G83: =IF(B83='Input|Labour Rates'!B94,0,1) -> 0
A84: 49 | B84: ='Input|Labour Rates'!B95 -> 0 | G84: =IF(B84='Input|Labour Rates'!B95,0,1) -> 0
A85: 50 | B85: ='Input|Labour Rates'!B96 -> 0 | G85: =IF(B85='Input|Labour Rates'!B96,0,1) -> 0

Sheet Output|RIN Expense
B2: 2.1.3 - ALTERNATIVE CONTROL SERVICES CAPEX
C3: EXPENDITURE
C4: ($, real June 2026)
C5: 2024-25 | D5: 2025-26 | E5: 2026-27 | F5: 2027-28 | G5: 2028-29 | H5: 2029-30 | I5: 2030-31
B6: Connections
B7: Metering
B8: Public lighting | C8: - | D8: - | E8: - | F8: - | G8: - | H8: - | I8: -
B9: Fee and quoted | C9: =SUM('Input|Volume, Revenue, Cost'!BC74) -> 901914.0255 | D9: =SUM('Input|Volume, Revenue, Cost'!BD74) -> 926028.3788 | E9: =SUM('Input|Volume, Revenue, Cost'!BE74) -> 1116506.458 | F9: =SUM('Input|Volume, Revenue, Cost'!BF74) -> 1147502.559 | G9: =SUM('Input|Volume, Revenue, Cost'!BG74) -> 1180838.247 | H9: =SUM('Input|Volume, Revenue, Cost'!BH74) -> 1216040.674 | I9: =SUM('Input|Volume, Revenue, Cost'!BI74) -> 1251632.722
B10: Network overheads | C10: =D10/(D9/C9) -> 112125.3042 | D10: =E10/(E9/D9) -> 115123.1833 | E10: ='Input|Volume, Revenue, Cost'!BU74 -> 138803.2813 | F10: ='Input|Volume, Revenue, Cost'!BV74 -> 142656.6944 | G10: ='Input|Volume, Revenue, Cost'!BW74 -> 146800.9631 | H10: ='Input|Volume, Revenue, Cost'!BX74 -> 151177.3036 | I10: ='Input|Volume, Revenue, Cost'!BY74 -> 155602.0815
B11: Corporate overheads | C11: 0 | D11: 0 | E11: 0 | F11: 0 | G11: 0 | H11: 0 | I11: 0
B12: capital contributions (included in the above)
B13: Total | C13: - | D13: - | E13: - | F13: - | G13: - | H13: - | I13: -
B16: 2.1.4 - ALTERNATIVE CONTROL SERVICES OPEX
C17: EXPENDITURE
C18: ($, real June 2026)
C19: 2024-25 | D19: 2025-26 | E19: 2026-27 | F19: 2027-28 | G19: 2028-29 | H19: 2029-30 | I19: 2030-31
B20: Connections
B21: Metering
B22: Public lighting
B23: Fee and quoted | C23: ='Input|Volume, Revenue, Cost'!AU74 -> 9626025.291 | D23: ='Input|Volume, Revenue, Cost'!AV74 -> 9883395.027 | E23: ='Input|Volume, Revenue, Cost'!AW74 -> 11282804.32 | F23: ='Input|Volume, Revenue, Cost'!AX74 -> 11596033.99 | G23: ='Input|Volume, Revenue, Cost'!AY74 -> 11932906.23 | H23: ='Input|Volume, Revenue, Cost'!AZ74 -> 12288642.73 | I23: ='Input|Volume, Revenue, Cost'!BA74 -> 12648316.53
B24: Network overheads | C24: =D24/(D23/C23) -> 1179225.575 | D24: =E24/(E23/D23) -> 1210754.37 | E24: ='Input|Volume, Revenue, Cost'!CC74 -> 1382187.456 | F24: ='Input|Volume, Revenue, Cost'!CD74 -> 1420559.31 | G24: ='Input|Volume, Revenue, Cost'!CE74 -> 1461827.472 | H24: ='Input|Volume, Revenue, Cost'!CF74 -> 1505406.578 | I24: ='Input|Volume, Revenue, Cost'!CG74 -> 1549468.018
B25: Corporate overheads | C25: =D25/(D23/C23) -> 2485653.426 | D25: =E25/(E23/D23) -> 2552112.006 | E25: ='Input|Volume, Revenue, Cost'!CS74 -> 2913470.551 | F25: ='Input|Volume, Revenue, Cost'!CT74 -> 2994353.406 | G25: ='Input|Volume, Revenue, Cost'!CU74 -> 3081341.298 | H25: ='Input|Volume, Revenue, Cost'!CV74 -> 3173200.36 | I25: ='Input|Volume, Revenue, Cost'!CW74 -> 3266076.119
B26: Total | C26: - | D26: - | E26: - | F26: - | G26: - | H26: - | I26: -

Sheet Output|RIN Revenue
B1: REGULATORY REPORTING STATEMENT
B2: Australian Distribution Co. (Victoria)
B3: REGULATORY PERIOD FROM 2026-27 TO 2030-31
B4: 3.1 REVENUE
B5: TEMPLATE DATE - SEPTEMBER 2024 - FINAL RIN
B7: There are THREE tables on this worksheet. Each table has been 'grouped' (and 'sub-grouped') for easy navigation. See the Instructions sheet on how to group or ungroup data.
B9: 3.1.1 - REVENUE GROUPING BY CHARGEABLE QUANTITY
C10: Standard control services | K10: Alternative control services
C11: REVENUE FORECAST ($, real June 2026) | K11: REVENUE FORECAST ($, real June 2026)
C12: 2024-25 | D12: 2025-26 | E12: 2026-27 | F12: 2027-28 | G12: 2028-29 | H12: 2029-30 | I12: 2030-31 | K12: 2024-25 | L12: 2025-26 | M12: 2026-27 | N12: 2027-28 | O12: 2028-29 | P12: 2029-30 | Q12: 2030-31
A13: DREV0101 | B13: Revenue from Fixed Customer Charges
A14: DREV0102 | B14: Revenue from Energy Delivery charges where time of use is not a determinant
A15: DREV0103 | B15: Revenue from On–Peak Energy Delivery charges
A16: DREV0104 | B16: Revenue from Shoulder period Energy Delivery Charges
A17: DREV0105 | B17: Revenue from Off–Peak Energy Delivery charges
A18: DREV0106 | B18: Revenue from controlled load customer charges
A19: DREV0107 | B19: Revenue from unmetered supplies
A20: DREV0108 | B20: Revenue from Contracted Maximum Demand charges
A21: DREV0109 | B21: Revenue from Measured Maximum Demand charges
A22: DREV0110 | B22: Revenue from metering charges | K22: =SUM('Input|Volume, Revenue, Cost'!AG36:AG37,'Input|Volume, Revenue, Cost'!AG38:AG39,'Input|Volume, Revenue, Cost'!AG40:AG43) -> 1004316.781 | L22: =SUM('Input|Volume, Revenue, Cost'!AH36:AH37,'Input|Volume, Revenue, Cost'!AH38:AH39,'Input|Volume, Revenue, Cost'!AH40:AH43) -> 1031169.063 | M22: =SUM('Input|Volume, Revenue, Cost'!AI36:AI37,'Input|Volume, Revenue, Cost'!AI38:AI39,'Input|Volume, Revenue, Cost'!AI40:AI43) -> 1113579.677 | N22: =SUM('Input|Volume, Revenue, Cost'!AJ36:AJ37,'Input|Volume, Revenue, Cost'!AJ38:AJ39,'Input|Volume, Revenue, Cost'!AJ40:AJ43) -> 1144494.526 | O22: =SUM('Input|Volume, Revenue, Cost'!AK36:AK37,'Input|Volume, Revenue, Cost'!AK38:AK39,'Input|Volume, Revenue, Cost'!AK40:AK43) -> 1177742.828 | P22: =SUM('Input|Volume, Revenue, Cost'!AL36:AL37,'Input|Volume, Revenue, Cost'!AL38:AL39,'Input|Volume, Revenue, Cost'!AL40:AL43) -> 1212852.977 | Q22: =SUM('Input|Volume, Revenue, Cost'!AM36:AM37,'Input|Volume, Revenue, Cost'!AM38:AM39,'Input|Volume, Revenue, Cost'!AM40:AM43) -> 1248351.725
A23: DREV0111 | B23: Revenue from connection charges | K23: =SUM('Input|Volume, Revenue, Cost'!AG13:AG20) -> 5694416.674 | L23: =SUM('Input|Volume, Revenue, Cost'!AH13:AH20) -> 5846667.522 | M23: =SUM('Input|Volume, Revenue, Cost'!AI13:AI20) -> 6955947.493 | N23: =SUM('Input|Volume, Revenue, Cost'!AJ13:AJ20) -> 7149056.323 | O23: =SUM('Input|Volume, Revenue, Cost'!AK13:AK20) -> 7356741.007 | P23: =SUM('Input|Volume, Revenue, Cost'!AL13:AL20) -> 7576055.67 | Q23: =SUM('Input|Volume, Revenue, Cost'!AM13:AM20) -> 7797797.708
A24: DREV0112 | B24: Revenue from public lighting charges
A25: DREV0113 | B25: Revenue from other Sources | K25: ='Input|Volume, Revenue, Cost'!AG74-SUM('Output|RIN Revenue'!K22:K23) -> 3829205.861 | L25: ='Input|Volume, Revenue, Cost'!AH74-SUM('Output|RIN Revenue'!L22:L23) -> 3931586.82 | M25: ='Input|Volume, Revenue, Cost'!AI74-SUM('Output|RIN Revenue'!M22:M23) -> 4329783.605 | N25: ='Input|Volume, Revenue, Cost'!AJ74-SUM('Output|RIN Revenue'!N22:N23) -> 4449985.699 | O25: ='Input|Volume, Revenue, Cost'!AK74-SUM('Output|RIN Revenue'!O22:O23) -> 4579260.645 | P25: ='Input|Volume, Revenue, Cost'!AL74-SUM('Output|RIN Revenue'!P22:P23) -> 4715774.762 | Q25: ='Input|Volume, Revenue, Cost'!AM74-SUM('Output|RIN Revenue'!Q22:Q23) -> 4853799.818
A26: DREV01 | B26: Total revenue by chargeable quantity | C26: 0 | D26: 0 | E26: 0 | F26: 0 | G26: 0 | H26: 0 | I26: 0 | K26: =SUM(K22:K25) -> 10527939.32 | L26: =SUM(L22:L25) -> 10809423.41 | M26: 12399310.77 | N26: 12743536.55 | O26: 13113744.48 | P26: 13504683.41 | Q26: 13899949.25
K27: =IF(ROUND(K26-'Input|Volume, Revenue, Cost'!AG74,10)=0,"Ok","Error") -> Ok | L27: =IF(ROUND(L26-'Input|Volume, Revenue, Cost'!AH74,10)=0,"Ok","Error") -> Ok | M27: =IF(ROUND(M26-'Input|Volume, Revenue, Cost'!AI74,10)=0,"Ok","Error") -> Ok | N27: =IF(ROUND(N26-'Input|Volume, Revenue, Cost'!AJ74,10)=0,"Ok","Error") -> Ok | O27: =IF(ROUND(O26-'Input|Volume, Revenue, Cost'!AK74,10)=0,"Ok","Error") -> Ok | P27: =IF(ROUND(P26-'Input|Volume, Revenue, Cost'!AL74,10)=0,"Ok","Error") -> Ok | Q27: =IF(ROUND(Q26-'Input|Volume, Revenue, Cost'!AM74,10)=0,"Ok","Error") -> Ok
B29: 3.1.2 - REVENUE GROUPING BY CUSTOMER TYPE OR CLASS
C30: Standard control services | K30: Alternative control services
C31: REVENUE FORECAST ($, real June 2026) | K31: REVENUE FORECAST ($, real June 2026)
C32: 2024-25 | D32: 2025-26 | E32: 2026-27 | F32: 2027-28 | G32: 2028-29 | H32: 2029-30 | I32: 2030-31 | K32: 2024-25 | L32: 2025-26 | M32: 2026-27 | N32: 2027-28 | O32: 2028-29 | P32: 2029-30 | Q32: 2030-31
A33: DREV0201 | B33: Revenue from residential Customers
A34: DREV0202 | B34: Revenue from Non residential customers not on demand tariffs
A35: DREV0203 | B35: Revenue from Non-residential low voltage demand tariff customers
A36: DREV0204 | B36: Revenue from Non-residential high voltage demand tariff customers
A37: DREV0205 | B37: Revenue from unmetered supplies
A38: DREV0206 | B38: Revenue from Other Customers
A39: DREV02 | B39: Total revenue by customer class | C39: 0 | D39: 0 | E39: 0 | F39: 0 | G39: 0 | H39: 0 | I39: 0 | K39: 0 | L39: 0 | M39: 0 | N39: 0 | O39: 0 | P39: 0 | Q39: 0
B42: 3.1.3 - REVENUE (penalties) ALLOWED (deducted) THROUGH INCENTIVE SCHEMES
C43: Standard control services | K43: Alternative control services
C44: REVENUE FORECAST ($, real June 2026) | K44: REVENUE FORECAST ($, real June 2026)
C45: 2024-25 | D45: 2025-26 | E45: 2026-27 | F45: 2027-28 | G45: 2028-29 | H45: 2029-30 | I45: 2030-31 | K45: 2024-25 | L45: 2025-26 | M45: 2026-27 | N45: 2027-28 | O45: 2028-29 | P45: 2029-30 | Q45: 2030-31
A46: DREV0301 | B46: EBSS
A47: DREV0306 | B47: CESS
A48: DREV0302 | B48: STPIS
A49: DREV0307 | B49: CSIS
A50: DREV0308 | B50: ESIS
A51: DREV0309 | B51: DMIS/DMIA/DMIAM
A52: DREV0303 | B52: F-Factor
A53: DREV0305 | B53: Other
A54: DREV03 | B54: Total revenue rewards and penalties - incentive schemes | C54: 0 | D54: 0 | E54: 0 | F54: 0 | G54: 0 | H54: 0 | I54: 0 | K54: 0 | L54: 0 | M54: 0 | N54: 0 | O54: 0 | P54: 0 | Q54: 0

Sheet Input|Setup
B1: =IFERROR(Index!B1,"") -> Jemena Electricity Networks – Alternative Control Services Forecast model | E1: Key: | F1: Input | H1: Sheet Validation | I1: ='Model Validation'!C10 -> 0
B2: =IFERROR(MID(CELL("filename",A1),FIND("]",CELL("filename",A1))+1,255),"") -> Input|Setup | F2: Formula
Q4: For AER only
A5: 3.1 | B5: Years setup | E5: Year | F5: =IF(COUNTA(E6:E7)=0,1,0) -> 0 | Q5: Years
B6: First year of forecast regulatory control period | E6: 2026-27 | Q6: 2016-17
B7: Base year for inputs | E7: 2024-25 | Q7: =LEFT(Q6,4)+1&"-"&RIGHT(Q6,2)+1 -> 2017-18
B8: Base year for outputs | E8: =E6 -> 2026-27 | Q8: 2018-19
Q9: 2019-20
A10: 3.2 | B10: Current regulatory period | D10: 3.3 | E10: Forecast regulatory period | Q10: 2020-21
A11: 1 | B11: =LEFT(B12,4)-1&"-"&RIGHT(B12,2)-1 -> 2021-22 | D11: 1 | E11: =E6 -> 2026-27 | Q11: 2021-22
A12: =A11+1 -> 2 | B12: =LEFT(B13,4)-1&"-"&RIGHT(B13,2)-1 -> 2022-23 | D12: =D11+1 -> 2 | E12: =LEFT(E11,4)+1&"-"&RIGHT(E11,2)+1 -> 2027-28 | Q12: 2022-23
A13: =A12+1 -> 3 | B13: =LEFT(B14,4)-1&"-"&RIGHT(B14,2)-1 -> 2023-24 | D13: =D12+1 -> 3 | E13: =LEFT(E12,4)+1&"-"&RIGHT(E12,2)+1 -> 2028-29 | Q13: 2023-24
A14: =A13+1 -> 4 | B14: =LEFT(B15,4)-1&"-"&RIGHT(B15,2)-1 -> 2024-25 | D14: =D13+1 -> 4 | E14: =LEFT(E13,4)+1&"-"&RIGHT(E13,2)+1 -> 2029-30 | Q14: 2024-25
A15: =A14+1 -> 5 | B15: =LEFT(E11,4)-1&"-"&RIGHT(E11,2)-1 -> 2025-26 | D15: =D14+1 -> 5 | E15: =LEFT(E14,4)+1&"-"&RIGHT(E14,2)+1 -> 2030-31 | Q15: 2025-26
Q16: 2026-27
Q17: 2027-28
A18: 3.4 | B18: Used for quoted service? | D18: 3.5 | E18: Conversions | Q18: 2028-29
A19: 1 | B19: Yes | E19: 60 | F19: mins | Q19: 2029-30
A20: =A19+1 -> 2 | B20: No | Q20: 2030-31
Q21: 2031-32
Q22: 2032-33
Q23: 2033-34
A24: 3.6 | B24: Hours | C24: =IF(COUNTA(B25:B27)=0,1,0) -> 0 | Q24: 2034-35
B25: Business Hours
B26: After Hours
B27: Not Applicable
A30: 3.7 | B30: Labour type | C30: =IF(COUNTA(B31:B49)=0,1,0) -> 0 | D30: 3.8 | E30: Service category | F30: =IF(COUNTA(E31:E49)=0,1,0) -> 0 | G30: ="3.9" -> 3.9 | H30: Expense Type | I30: =IF(COUNTA(H31:H38)=0,1,0) -> 0
A31: 1 | B31: Administrative Officer | E31: Network safety services | H31: Capex
A32: =A31+1 -> 2 | B32: Field Worker | E32: Customer requested supply outage | H32: Opex
A33: =A32+1 -> 3 | B33: Technical Specialist | E33: Security lights
A34: =A33+1 -> 4 | B34: Engineer | E34: Customer requested electricity data
A35: 5 | B35: Senior Engineer | E35: Auxiliary metering services
A36: 6 | E36: Type 7 metering services
A37: 7 | E37: Basic connection services
A38: 8 | E38: Enhanced connection services
A39: 9 | E39: Connection service
A40: 10 | E40: Wasted Site Attendance | G40: ="3.10" -> 3.10 | H40: Control Mechanism | I40: =IF(COUNTA(H41:H48)=0,1,0) -> 0
A41: 11 | E41: AMI Meter Charges (<160 MWh p.a.) | H41: Fee Based
A42: 12 | E42: Type 5 and 6 (incl. smart metering)
A43: 13
A44: 14
A45: 15
A46: 16
A47: 17
A48: 18
A49: 19

Sheet Input|Escalations
B1: =IFERROR(Index!B1,"") -> Jemena Electricity Networks – Alternative Control Services Forecast model | C1: Key: | D1: Input | F1: Sheet Validation | G1: ='Model Validation'!C11 -> 0
B2: =IFERROR(MID(CELL("filename",A1),FIND("]",CELL("filename",A1))+1,255),"") -> Input|Escalations | D2: Formula
A5: 4.1 | B5: Escalation setup
C7: Year
B8: First year of forecast regulatory control period | C8: ='Input|Setup'!E6 -> 2026-27
B9: Base year for inputs | C9: ='Input|Setup'!E7 -> 2024-25
B10: Base year for outputs | C10: ='Input|Setup'!E8 -> 2026-27
A13: 4.2 | B13: Inflation | D13: Current regulatory period | I13: Forecast regulatory period
D15: =IFERROR((LEFT(E15,4)-1&IF(MID(E15,5,1)="","","-"&TEXT(MOD(MID(E15,6,2)-1,100),"00"))),"") -> 2021-22 | E15: =IFERROR((LEFT(F15,4)-1&IF(MID(F15,5,1)="","","-"&TEXT(MOD(MID(F15,6,2)-1,100),"00"))),"") -> 2022-23 | F15: =IFERROR((LEFT(G15,4)-1&IF(MID(G15,5,1)="","","-"&TEXT(MOD(MID(G15,6,2)-1,100),"00"))),"") -> 2023-24 | G15: =IFERROR((LEFT(H15,4)-1&IF(MID(H15,5,1)="","","-"&TEXT(MOD(MID(H15,6,2)-1,100),"00"))),"") -> 2024-25 | H15: =IFERROR((LEFT(I15,4)-1&IF(MID(I15,5,1)="","","-"&TEXT(MOD(MID(I15,6,2)-1,100),"00"))),"") -> 2025-26 | I15: =$C$8 -> 2026-27 | J15: =IFERROR((LEFT(I15,4)+1&IF(MID(I15,5,1)="","","-"&TEXT(MOD(MID(I15,6,2)+1,100),"00"))),"") -> 2027-28 | K15: =IFERROR((LEFT(J15,4)+1&IF(MID(J15,5,1)="","","-"&TEXT(MOD(MID(J15,6,2)+1,100),"00"))),"") -> 2028-29 | L15: =IFERROR((LEFT(K15,4)+1&IF(MID(K15,5,1)="","","-"&TEXT(MOD(MID(K15,6,2)+1,100),"00"))),"") -> 2029-30 | M15: =IFERROR((LEFT(L15,4)+1&IF(MID(L15,5,1)="","","-"&TEXT(MOD(MID(L15,6,2)+1,100),"00"))),"") -> 2030-31
B16: CPI year on year change (%) - lagged one year (actual/estimate) | D16: ='[2]Input|Escalations'!D16 -> 0.008605851979 | E16: ='[2]Input|Escalations'!E16 -> 0.03498293515 | F16: ='[2]Input|Escalations'!F16 -> 0.07831821929 | G16: ='[2]Input|Escalations'!G16 -> 0.04051987768 | H16: ='[2]Input|Escalations'!H16 -> 0.0242468773 | I16: ='[2]Input|Escalations'!I16 -> 0.026 | J16: ='[2]Input|Escalations'!J16 -> 0.0258 | K16: ='[2]Input|Escalations'!K16 -> 0.0255 | L16: ='[2]Input|Escalations'!L16 -> 0.0253 | M16: ='[2]Input|Escalations'!M16 -> 0.025
B17: Cumulative Inflation Index | D17: ='[2]Input|Escalations'!D17 -> 1 | E17: ='[2]Input|Escalations'!E17 -> 1.034982935 | F17: ='[2]Input|Escalations'!F17 -> 1.116040956 | G17: ='[2]Input|Escalations'!G17 -> 1.161262799 | H17: ='[2]Input|Escalations'!H17 -> 1.189419795 | I17: ='[2]Input|Escalations'!I17 -> 1.22034471 | J17: ='[2]Input|Escalations'!J17 -> 1.251829603 | K17: ='[2]Input|Escalations'!K17 -> 1.283751258 | L17: ='[2]Input|Escalations'!L17 -> 1.316230165 | M17: ='[2]Input|Escalations'!M17 -> 1.349135919
B18: =IFERROR("Real "&C9 &" "&LEFT(D9,9)&" to "& "Real "&C10 &" "&LEFT(D10,9),"") -> Real 2024-25 to Real 2026-27 | I18: =I$17/INDEX($D$15:$M$17,3, MATCH($C$9,$D$15:$M$15,0)) -> 1.050877296
B19: ABS index, all groups CPI inflation series A2325846C, weighted average for the eight capital cities | D19: Dec-20 | E19: Dec-21 | F19: Dec-22 | G19: Dec-23 | H19: Dec-24 | I19: Dec-25 | J19: Dec-26 | K19: Dec-27 | L19: Dec-28 | M19: Dec-29
D20: ='[2]Input|Escalations'!D20 -> 117.2 | E20: ='[2]Input|Escalations'!E20 -> 121.3 | F20: ='[2]Input|Escalations'!F20 -> 130.8 | G20: ='[2]Input|Escalations'!G20 -> 136.1 | H20: ='[2]Input|Escalations'!H20 -> 139.4 | I20: ='[2]Input|Escalations'!I20 -> 143.0244 | J20: ='[2]Input|Escalations'!J20 -> 146.7144295 | K20: ='[2]Input|Escalations'!K20 -> 150.4556475 | L20: ='[2]Input|Escalations'!L20 -> 154.2621754 | M20: ='[2]Input|Escalations'!M20 -> 158.1187297 | N20: =IF(COUNTA(D20:M20)=0,1,0) -> 0
B21: Source (forecasts): RBA, Statement on Monetary Policy, Economic Outlook, Nov 2024 | D21: ='[2]Input|Escalations'!D21 -> 0 | E21: ='[2]Input|Escalations'!E21 -> 0 | F21: ='[2]Input|Escalations'!F21 -> 0 | G21: ='[2]Input|Escalations'!G21 -> 0 | H21: ='[2]Input|Escalations'!H21 -> 0 | I21: ='[2]Input|Escalations'!I21 -> 0.026 | J21: ='[2]Input|Escalations'!J21 -> 0.0258 | K21: ='[2]Input|Escalations'!K21 -> 0.0255 | L21: ='[2]Input|Escalations'!L21 -> 0.0253 | M21: ='[2]Input|Escalations'!M21 -> 0.025 | N21: =IF(COUNTA(G21:M21)=0,1,0) -> 0
A24: 4.3 | B24: Real price escalation | D24: Current regulatory period | I24: Forecast regulatory period
D26: =IFERROR((LEFT(E26,4)-1&IF(MID(E26,5,1)="","","-"&TEXT(MOD(MID(E26,6,2)-1,100),"00"))),"") -> 2021-22 | E26: =IFERROR((LEFT(F26,4)-1&IF(MID(F26,5,1)="","","-"&TEXT(MOD(MID(F26,6,2)-1,100),"00"))),"") -> 2022-23 | F26: =IFERROR((LEFT(G26,4)-1&IF(MID(G26,5,1)="","","-"&TEXT(MOD(MID(G26,6,2)-1,100),"00"))),"") -> 2023-24 | G26: =IFERROR((LEFT(H26,4)-1&IF(MID(H26,5,1)="","","-"&TEXT(MOD(MID(H26,6,2)-1,100),"00"))),"") -> 2024-25 | H26: =IFERROR((LEFT(I26,4)-1&IF(MID(I26,5,1)="","","-"&TEXT(MOD(MID(I26,6,2)-1,100),"00"))),"") -> 2025-26 | I26: =$C$8 -> 2026-27 | J26: =IFERROR((LEFT(I26,4)+1&IF(MID(I26,5,1)="","","-"&TEXT(MOD(MID(I26,6,2)+1,100),"00"))),"") -> 2027-28 | K26: =IFERROR((LEFT(J26,4)+1&IF(MID(J26,5,1)="","","-"&TEXT(MOD(MID(J26,6,2)+1,100),"00"))),"") -> 2028-29 | L26: =IFERROR((LEFT(K26,4)+1&IF(MID(K26,5,1)="","","-"&TEXT(MOD(MID(K26,6,2)+1,100),"00"))),"") -> 2029-30 | M26: =IFERROR((LEFT(L26,4)+1&IF(MID(L26,5,1)="","","-"&TEXT(MOD(MID(L26,6,2)+1,100),"00"))),"") -> 2030-31
B27: X-factor (real wage price escalation) | D27: =-D37 -> 0.02812040787 | E27: 0.03874835876 | F27: 0.008804329072 | G27: -0.01825166827 | H27: -0.01276076614 | I27: -0.008120818073 | J27: -0.009550582168 | K27: -0.0111993349 | L27: -0.01227436192 | M27: -0.01202541615
B28: Materials | D28: 0 | E28: 0 | F28: 0 | G28: 0 | H28: 0 | I28: 0 | J28: 0 | K28: 0 | L28: 0 | M28: 0
B29: Contracts | D29: 0 | E29: 0 | F29: 0 | G29: 0 | H29: 0 | I29: 0 | J29: 0 | K29: 0 | L29: 0 | M29: 0
B30: Vehicles | D30: 0 | E30: 0 | F30: 0 | G30: 0 | H30: 0 | I30: 0 | J30: 0 | K30: 0 | L30: 0 | M30: 0
B31: Other | D31: 0 | E31: 0 | F31: 0 | G31: 0 | H31: 0 | I31: 0 | J31: 0 | K31: 0 | L31: 0 | M31: 0
A34: 4.3.1 | B34: Real wage price escalation | D34: Current regulatory period | I34: Forecast regulatory period
D36: =IFERROR((LEFT(E36,4)-1&IF(MID(E36,5,1)="","","-"&TEXT(MOD(MID(E36,6,2)-1,100),"00"))),"") -> 2021-22 | E36: =IFERROR((LEFT(F36,4)-1&IF(MID(F36,5,1)="","","-"&TEXT(MOD(MID(F36,6,2)-1,100),"00"))),"") -> 2022-23 | F36: =IFERROR((LEFT(G36,4)-1&IF(MID(G36,5,1)="","","-"&TEXT(MOD(MID(G36,6,2)-1,100),"00"))),"") -> 2023-24 | G36: =IFERROR((LEFT(H36,4)-1&IF(MID(H36,5,1)="","","-"&TEXT(MOD(MID(H36,6,2)-1,100),"00"))),"") -> 2024-25 | H36: =IFERROR((LEFT(I36,4)-1&IF(MID(I36,5,1)="","","-"&TEXT(MOD(MID(I36,6,2)-1,100),"00"))),"") -> 2025-26 | I36: =$C$8 -> 2026-27 | J36: =IFERROR((LEFT(I36,4)+1&IF(MID(I36,5,1)="","","-"&TEXT(MOD(MID(I36,6,2)+1,100),"00"))),"") -> 2027-28 | K36: =IFERROR((LEFT(J36,4)+1&IF(MID(J36,5,1)="","","-"&TEXT(MOD(MID(J36,6,2)+1,100),"00"))),"") -> 2028-29 | L36: =IFERROR((LEFT(K36,4)+1&IF(MID(K36,5,1)="","","-"&TEXT(MOD(MID(K36,6,2)+1,100),"00"))),"") -> 2029-30 | M36: =IFERROR((LEFT(L36,4)+1&IF(MID(L36,5,1)="","","-"&TEXT(MOD(MID(L36,6,2)+1,100),"00"))),"") -> 2030-31
B37: Labour - Real wage price growth | D37: =SUM((D42*D48),(D43*D49)+D44) -> -0.02812040787 | E37: -0.03874835876 | F37: =SUM((F42*F48),(F43*F49)+F44) -> -0.008804329072 | G37: 0.01825166827 | H37: 0.01276076614 | I37: 0.008120818073 | J37: 0.009550582168 | K37: 0.0111993349 | L37: 0.01227436192 | M37: 0.01202541615
B38: Cumulative Labour - Wage price growth index | D38: =1+D37 -> 0.9718795921 | E38: =IFERROR(D38*(1+E37),"") -> 0.934220853 | F38: 0.9259956652 | G38: 0.9428966309 | H38: 0.9549287143 | I38: 0.9626835167 | J38: 0.9718777047 | K38: 0.9827620886 | L38: 0.9948248662 | M38: 1.006788049
B39: ="Escalate from base year to " & C8 -> Escalate from base year to 2026-27 | I39: =I38/INDEX($D$36:$M$38,3,MATCH($C$9,$D$36:$M$36,0)) -> 1.020985212
B41: Forecast/Source | D41: =IFERROR((LEFT(E41,4)-1&IF(MID(E41,5,1)="","","-"&TEXT(MOD(MID(E41,6,2)-1,100),"00"))),"") -> 2021-22 | E41: =IFERROR((LEFT(F41,4)-1&IF(MID(F41,5,1)="","","-"&TEXT(MOD(MID(F41,6,2)-1,100),"00"))),"") -> 2022-23 | F41: =IFERROR((LEFT(G41,4)-1&IF(MID(G41,5,1)="","","-"&TEXT(MOD(MID(G41,6,2)-1,100),"00"))),"") -> 2023-24 | G41: =IFERROR((LEFT(H41,4)-1&IF(MID(H41,5,1)="","","-"&TEXT(MOD(MID(H41,6,2)-1,100),"00"))),"") -> 2024-25 | H41: =IFERROR((LEFT(I41,4)-1&IF(MID(I41,5,1)="","","-"&TEXT(MOD(MID(I41,6,2)-1,100),"00"))),"") -> 2025-26 | I41: =$C$8 -> 2026-27 | J41: =IFERROR((LEFT(I41,4)+1&IF(MID(I41,5,1)="","","-"&TEXT(MOD(MID(I41,6,2)+1,100),"00"))),"") -> 2027-28 | K41: =IFERROR((LEFT(J41,4)+1&IF(MID(J41,5,1)="","","-"&TEXT(MOD(MID(J41,6,2)+1,100),"00"))),"") -> 2028-29 | L41: =IFERROR((LEFT(K41,4)+1&IF(MID(K41,5,1)="","","-"&TEXT(MOD(MID(K41,6,2)+1,100),"00"))),"") -> 2029-30 | M41: =IFERROR((LEFT(L41,4)+1&IF(MID(L41,5,1)="","","-"&TEXT(MOD(MID(L41,6,2)+1,100),"00"))),"") -> 2030-31 | N41: =IF(COUNTA(B42:M45)=0,1,0) -> 0
B42: WPI - Real labour price growth - Deloitte WPI | D42: ='[2]Input|Escalations'!D42 -> 0 | E42: ='[2]Input|Escalations'!E42 -> 0 | F42: ='[2]Input|Escalations'!F42 -> -0.01251504832 | G42: ='[2]Input|Escalations'!G42 -> 0.01196076527 | H42: ='[2]Input|Escalations'!H42 -> 0.00677494316 | I42: ='[2]Input|Escalations'!I42 -> 0.006674253438 | J42: ='[2]Input|Escalations'!J42 -> 0.009189869369 | K42: ='[2]Input|Escalations'!K42 -> 0.010844237 | L42: ='[2]Input|Escalations'!L42 -> 0.01067756718 | M42: ='[2]Input|Escalations'!M42 -> 0.01022033755
B43: WPI - Oxford Economics actual and forecast October 2024 | D43: ='[2]Input|Escalations'!D43 -> -0.02812040787 | E43: ='[2]Input|Escalations'!E43 -> -0.04374835876 | F43: ='[2]Input|Escalations'!F43 -> -0.01509360982 | G43: ='[2]Input|Escalations'!G43 -> 0.01454257127 | H43: ='[2]Input|Escalations'!H43 -> 0.008746589122 | I43: ='[2]Input|Escalations'!I43 -> 0.009567382707 | J43: ='[2]Input|Escalations'!J43 -> 0.009911294966 | K43: ='[2]Input|Escalations'!K43 -> 0.01155443281 | L43: ='[2]Input|Escalations'!L43 -> 0.01387115665 | M43: ='[2]Input|Escalations'!M43 -> 0.01383049475
B44: Real Labour Price Growth - Super Guarantee | D44: ='[2]Input|Escalations'!D44 -> 0 | E44: ='[2]Input|Escalations'!E44 -> 0.005 | F44: ='[2]Input|Escalations'!F44 -> 0.005 | G44: ='[2]Input|Escalations'!G44 -> 0.005 | H44: ='[2]Input|Escalations'!H44 -> 0.005 | I44: ='[2]Input|Escalations'!I44 -> 0 | J44: ='[2]Input|Escalations'!J44 -> 0 | K44: ='[2]Input|Escalations'!K44 -> 0 | L44: ='[2]Input|Escalations'!L44 -> 0 | M44: ='[2]Input|Escalations'!M44 -> 0
B47: Weights (per cent) | D47: =IFERROR((LEFT(E47,4)-1&IF(MID(E47,5,1)="","","-"&TEXT(MOD(MID(E47,6,2)-1,100),"00"))),"") -> 2021-22 | E47: =IFERROR((LEFT(F47,4)-1&IF(MID(F47,5,1)="","","-"&TEXT(MOD(MID(F47,6,2)-1,100),"00"))),"") -> 2022-23 | F47: =IFERROR((LEFT(G47,4)-1&IF(MID(G47,5,1)="","","-"&TEXT(MOD(MID(G47,6,2)-1,100),"00"))),"") -> 2023-24 | G47: =IFERROR((LEFT(H47,4)-1&IF(MID(H47,5,1)="","","-"&TEXT(MOD(MID(H47,6,2)-1,100),"00"))),"") -> 2024-25 | H47: =IFERROR((LEFT(I47,4)-1&IF(MID(I47,5,1)="","","-"&TEXT(MOD(MID(I47,6,2)-1,100),"00"))),"") -> 2025-26 | I47: =$C$8 -> 2026-27 | J47: =IFERROR((LEFT(I47,4)+1&IF(MID(I47,5,1)="","","-"&TEXT(MOD(MID(I47,6,2)+1,100),"00"))),"") -> 2027-28 | K47: =IFERROR((LEFT(J47,4)+1&IF(MID(J47,5,1)="","","-"&TEXT(MOD(MID(J47,6,2)+1,100),"00"))),"") -> 2028-29 | L47: =IFERROR((LEFT(K47,4)+1&IF(MID(K47,5,1)="","","-"&TEXT(MOD(MID(K47,6,2)+1,100),"00"))),"") -> 2029-30 | M47: =IFERROR((LEFT(L47,4)+1&IF(MID(L47,5,1)="","","-"&TEXT(MOD(MID(L47,6,2)+1,100),"00"))),"") -> 2030-31 | N47: =IF(COUNTA(D48:M51)=0,1,0) -> 0
B48: =B42 -> WPI - Real labour price growth - Deloitte WPI | D48: ='[2]Input|Escalations'!D48 -> 0 | E48: ='[2]Input|Escalations'!E48 -> 0 | F48: ='[2]Input|Escalations'!F48 -> 0.5 | G48: ='[2]Input|Escalations'!G48 -> 0.5 | H48: ='[2]Input|Escalations'!H48 -> 0.5 | I48: ='[2]Input|Escalations'!I48 -> 0.5 | J48: ='[2]Input|Escalations'!J48 -> 0.5 | K48: ='[2]Input|Escalations'!K48 -> 0.5 | L48: ='[2]Input|Escalations'!L48 -> 0.5 | M48: ='[2]Input|Escalations'!M48 -> 0.5
B49: =B43 -> WPI - Oxford Economics actual and forecast October 2024 | D49: ='[2]Input|Escalations'!D49 -> 1 | E49: ='[2]Input|Escalations'!E49 -> 1 | F49: ='[2]Input|Escalations'!F49 -> 0.5 | G49: ='[2]Input|Escalations'!G49 -> 0.5 | H49: ='[2]Input|Escalations'!H49 -> 0.5 | I49: ='[2]Input|Escalations'!I49 -> 0.5 | J49: ='[2]Input|Escalations'!J49 -> 0.5 | K49: ='[2]Input|Escalations'!K49 -> 0.5 | L49: ='[2]Input|Escalations'!L49 -> 0.5 | M49: ='[2]Input|Escalations'!M49 -> 0.5
B50: =B44 -> Real Labour Price Growth - Super Guarantee
B51: =B45 -> 0
D52: =IF(OR(SUM(D48:D51)=0,SUM(D48:D51)=1),0,1) -> 0 | E52: 0 | F52: 0 | G52: 0 | H52: 0 | I52: =IF(OR(SUM(I48:I51)=0,SUM(I48:I51)=1),0,1) -> 0 | J52: 0 | K52: 0 | L52: 0 | M52: 0 | N52: =IF(SUM(D52:M52)=0,0,1) -> 0
A54: 4.3.2 | B54: Real price escalation (non-wage) | D54: Current regulatory period | I54: Forecast regulatory period
D56: =IFERROR((LEFT(E56,4)-1&IF(MID(E56,5,1)="","","-"&TEXT(MOD(MID(E56,6,2)-1,100),"00"))),"") -> 2021-22 | E56: =IFERROR((LEFT(F56,4)-1&IF(MID(F56,5,1)="","","-"&TEXT(MOD(MID(F56,6,2)-1,100),"00"))),"") -> 2022-23 | F56: =IFERROR((LEFT(G56,4)-1&IF(MID(G56,5,1)="","","-"&TEXT(MOD(MID(G56,6,2)-1,100),"00"))),"") -> 2023-24 | G56: =IFERROR((LEFT(H56,4)-1&IF(MID(H56,5,1)="","","-"&TEXT(MOD(MID(H56,6,2)-1,100),"00"))),"") -> 2024-25 | H56: =IFERROR((LEFT(I56,4)-1&IF(MID(I56,5,1)="","","-"&TEXT(MOD(MID(I56,6,2)-1,100),"00"))),"") -> 2025-26 | I56: =$C$8 -> 2026-27 | J56: =IFERROR((LEFT(I56,4)+1&IF(MID(I56,5,1)="","","-"&TEXT(MOD(MID(I56,6,2)+1,100),"00"))),"") -> 2027-28 | K56: =IFERROR((LEFT(J56,4)+1&IF(MID(J56,5,1)="","","-"&TEXT(MOD(MID(J56,6,2)+1,100),"00"))),"") -> 2028-29 | L56: =IFERROR((LEFT(K56,4)+1&IF(MID(K56,5,1)="","","-"&TEXT(MOD(MID(K56,6,2)+1,100),"00"))),"") -> 2029-30 | M56: =IFERROR((LEFT(L56,4)+1&IF(MID(L56,5,1)="","","-"&TEXT(MOD(MID(L56,6,2)+1,100),"00"))),"") -> 2030-31
B57: Materials - Real price growth | D57: =-D$28 -> 0 | E57: 0 | F57: 0 | G57: 0 | H57: 0 | I57: 0 | J57: 0 | K57: 0 | L57: 0 | M57: 0
B58: Cumulative Labour - Wage price growth index | D58: =1+D57 -> 1 | E58: =IFERROR(D58*(1+E57),"") -> 1 | F58: 1 | G58: 1 | H58: 1 | I58: 1 | J58: 1 | K58: 1 | L58: 1 | M58: 1
B59: ="Escalate from base year to " & C28 -> Escalate from base year to | I59: =I58/INDEX($D$56:$M$58,3,MATCH($C$9,$D$56:$M$56,0)) -> 1
D61: =IFERROR((LEFT(E61,4)-1&IF(MID(E61,5,1)="","","-"&TEXT(MOD(MID(E61,6,2)-1,100),"00"))),"") -> 2021-22 | E61: =IFERROR((LEFT(F61,4)-1&IF(MID(F61,5,1)="","","-"&TEXT(MOD(MID(F61,6,2)-1,100),"00"))),"") -> 2022-23 | F61: =IFERROR((LEFT(G61,4)-1&IF(MID(G61,5,1)="","","-"&TEXT(MOD(MID(G61,6,2)-1,100),"00"))),"") -> 2023-24 | G61: =IFERROR((LEFT(H61,4)-1&IF(MID(H61,5,1)="","","-"&TEXT(MOD(MID(H61,6,2)-1,100),"00"))),"") -> 2024-25 | H61: =IFERROR((LEFT(I61,4)-1&IF(MID(I61,5,1)="","","-"&TEXT(MOD(MID(I61,6,2)-1,100),"00"))),"") -> 2025-26 | I61: =$C$8 -> 2026-27 | J61: =IFERROR((LEFT(I61,4)+1&IF(MID(I61,5,1)="","","-"&TEXT(MOD(MID(I61,6,2)+1,100),"00"))),"") -> 2027-28 | K61: =IFERROR((LEFT(J61,4)+1&IF(MID(J61,5,1)="","","-"&TEXT(MOD(MID(J61,6,2)+1,100),"00"))),"") -> 2028-29 | L61: =IFERROR((LEFT(K61,4)+1&IF(MID(K61,5,1)="","","-"&TEXT(MOD(MID(K61,6,2)+1,100),"00"))),"") -> 2029-30 | M61: =IFERROR((LEFT(L61,4)+1&IF(MID(L61,5,1)="","","-"&TEXT(MOD(MID(L61,6,2)+1,100),"00"))),"") -> 2030-31
B62: Contracts - Real price growth | D62: =-D$29 -> 0 | E62: 0 | F62: 0 | G62: 0 | H62: 0 | I62: 0 | J62: 0 | K62: 0 | L62: 0 | M62: 0
B63: Cumulative Labour - Wage price growth index | D63: =1+D62 -> 1 | E63: =IFERROR(D63*(1+E62),"") -> 1 | F63: 1 | G63: 1 | H63: 1 | I63: 1 | J63: 1 | K63: 1 | L63: 1 | M63: 1
B64: ="Escalate from base year to " & C33 -> Escalate from base year to | I64: =I63/INDEX($D$61:$M$63,3,MATCH($C$9,$D$61:$M$61,0)) -> 1
D66: =IFERROR((LEFT(E66,4)-1&IF(MID(E66,5,1)="","","-"&TEXT(MOD(MID(E66,6,2)-1,100),"00"))),"") -> 2021-22 | E66: =IFERROR((LEFT(F66,4)-1&IF(MID(F66,5,1)="","","-"&TEXT(MOD(MID(F66,6,2)-1,100),"00"))),"") -> 2022-23 | F66: =IFERROR((LEFT(G66,4)-1&IF(MID(G66,5,1)="","","-"&TEXT(MOD(MID(G66,6,2)-1,100),"00"))),"") -> 2023-24 | G66: =IFERROR((LEFT(H66,4)-1&IF(MID(H66,5,1)="","","-"&TEXT(MOD(MID(H66,6,2)-1,100),"00"))),"") -> 2024-25 | H66: =IFERROR((LEFT(I66,4)-1&IF(MID(I66,5,1)="","","-"&TEXT(MOD(MID(I66,6,2)-1,100),"00"))),"") -> 2025-26 | I66: =$C$8 -> 2026-27 | J66: =IFERROR((LEFT(I66,4)+1&IF(MID(I66,5,1)="","","-"&TEXT(MOD(MID(I66,6,2)+1,100),"00"))),"") -> 2027-28 | K66: =IFERROR((LEFT(J66,4)+1&IF(MID(J66,5,1)="","","-"&TEXT(MOD(MID(J66,6,2)+1,100),"00"))),"") -> 2028-29 | L66: =IFERROR((LEFT(K66,4)+1&IF(MID(K66,5,1)="","","-"&TEXT(MOD(MID(K66,6,2)+1,100),"00"))),"") -> 2029-30 | M66: =IFERROR((LEFT(L66,4)+1&IF(MID(L66,5,1)="","","-"&TEXT(MOD(MID(L66,6,2)+1,100),"00"))),"") -> 2030-31
B67: Vehicles - Real price growth | D67: =-D$30 -> 0 | E67: 0 | F67: 0 | G67: 0 | H67: 0 | I67: 0 | J67: 0 | K67: 0 | L67: 0 | M67: 0
B68: Cumulative Labour - Wage price growth index | D68: =1+D67 -> 1 | E68: =IFERROR(D68*(1+E67),"") -> 1 | F68: 1 | G68: 1 | H68: 1 | I68: 1 | J68: 1 | K68: 1 | L68: 1 | M68: 1
B69: ="Escalate from base year to " & C38 -> Escalate from base year to | I69: =I68/INDEX($D$66:$M$68,3,MATCH($C$9,$D$66:$M$66,0)) -> 1
D71: =IFERROR((LEFT(E71,4)-1&IF(MID(E71,5,1)="","","-"&TEXT(MOD(MID(E71,6,2)-1,100),"00"))),"") -> 2021-22 | E71: =IFERROR((LEFT(F71,4)-1&IF(MID(F71,5,1)="","","-"&TEXT(MOD(MID(F71,6,2)-1,100),"00"))),"") -> 2022-23 | F71: =IFERROR((LEFT(G71,4)-1&IF(MID(G71,5,1)="","","-"&TEXT(MOD(MID(G71,6,2)-1,100),"00"))),"") -> 2023-24 | G71: =IFERROR((LEFT(H71,4)-1&IF(MID(H71,5,1)="","","-"&TEXT(MOD(MID(H71,6,2)-1,100),"00"))),"") -> 2024-25 | H71: =IFERROR((LEFT(I71,4)-1&IF(MID(I71,5,1)="","","-"&TEXT(MOD(MID(I71,6,2)-1,100),"00"))),"") -> 2025-26 | I71: =$C$8 -> 2026-27 | J71: =IFERROR((LEFT(I71,4)+1&IF(MID(I71,5,1)="","","-"&TEXT(MOD(MID(I71,6,2)+1,100),"00"))),"") -> 2027-28 | K71: =IFERROR((LEFT(J71,4)+1&IF(MID(J71,5,1)="","","-"&TEXT(MOD(MID(J71,6,2)+1,100),"00"))),"") -> 2028-29 | L71: =IFERROR((LEFT(K71,4)+1&IF(MID(K71,5,1)="","","-"&TEXT(MOD(MID(K71,6,2)+1,100),"00"))),"") -> 2029-30 | M71: =IFERROR((LEFT(L71,4)+1&IF(MID(L71,5,1)="","","-"&TEXT(MOD(MID(L71,6,2)+1,100),"00"))),"") -> 2030-31
B72: Other - Real price growth | D72: =-D$31 -> 0 | E72: 0 | F72: 0 | G72: 0 | H72: 0 | I72: 0 | J72: 0 | K72: 0 | L72: 0 | M72: 0
B73: Cumulative Labour - Wage price growth index | D73: =1+D72 -> 1 | E73: =IFERROR(D73*(1+E72),"") -> 1 | F73: 1 | G73: 1 | H73: 1 | I73: 1 | J73: 1 | K73: 1 | L73: 1 | M73: 1
B74: ="Escalate from base year to " & C43 -> Escalate from base year to | I74: =I73/INDEX($D$71:$M$73,3,MATCH($C$9,$D$71:$M$71,0)) -> 1

Sheet Input|Indirect Cost Rates
B1: =IFERROR(Index!B1,"") -> Jemena Electricity Networks – Alternative Control Services Forecast model | C1: Key: | D1: Input | F1: Sheet Validation | G1: NA
B2: =IFERROR(MID(CELL("filename",A1),FIND("]",CELL("filename",A1))+1,255),"") -> Input|Indirect Cost Rates | D2: Formula
A5: 5.1 | B5: On costs
B7: On cost drivers | C7: Unit | D7: Administrative Officer (BH) | E7: Field Worker (BH) | F7: Technical Specialist (BH) | G7: Senior Engineer (BH) | H7: Engineer (BH) | I7: Field Worker (AH)
B8: Standard leave (annual leave, sick leave, public holidays) | C8: Per cent | D8: ='[2]Input|Indirect Cost Rates'!D8 -> 0.1715 | E8: ='[2]Input|Indirect Cost Rates'!E8 -> 0.1878 | F8: ='[2]Input|Indirect Cost Rates'!F8 -> 0.1715 | G8: ='[2]Input|Indirect Cost Rates'!G8 -> 0.1715 | H8: ='[2]Input|Indirect Cost Rates'!H8 -> 0.1715 | I8: ='[2]Input|Indirect Cost Rates'!I8 -> 0 | J8: Att 11-03M ACS Labour rate model
B9: Superannuation | C9: Per cent | D9: ='[2]Input|Indirect Cost Rates'!D9 -> 0.12 | E9: ='[2]Input|Indirect Cost Rates'!E9 -> 0.12 | F9: ='[2]Input|Indirect Cost Rates'!F9 -> 0.12 | G9: ='[2]Input|Indirect Cost Rates'!G9 -> 0.12 | H9: ='[2]Input|Indirect Cost Rates'!H9 -> 0.12 | I9: ='[2]Input|Indirect Cost Rates'!I9 -> 0.12 | J9: Att 11-03M ACS Labour rate model
B10: Workcover Insurance | C10: Per cent | D10: ='[2]Input|Indirect Cost Rates'!D10 -> 0.00651 | E10: ='[2]Input|Indirect Cost Rates'!E10 -> 0.00651 | F10: ='[2]Input|Indirect Cost Rates'!F10 -> 0.00651 | G10: ='[2]Input|Indirect Cost Rates'!G10 -> 0.00651 | H10: ='[2]Input|Indirect Cost Rates'!H10 -> 0.00651 | I10: ='[2]Input|Indirect Cost Rates'!I10 -> 0.00651 | J10: Att 11-03M ACS Labour rate model
B11: Payroll tax | C11: Per cent | D11: ='[2]Input|Indirect Cost Rates'!D11 -> 0.0585 | E11: ='[2]Input|Indirect Cost Rates'!E11 -> 0.0585 | F11: ='[2]Input|Indirect Cost Rates'!F11 -> 0.0585 | G11: ='[2]Input|Indirect Cost Rates'!G11 -> 0.0585 | H11: ='[2]Input|Indirect Cost Rates'!H11 -> 0.0585 | I11: ='[2]Input|Indirect Cost Rates'!I11 -> 0.0585 | J11: Att 11-03M ACS Labour rate model
B12: Annual leave loading | C12: Per cent | D12: ='[2]Input|Indirect Cost Rates'!D12 -> 0.02 | E12: ='[2]Input|Indirect Cost Rates'!E12 -> 0.02 | F12: ='[2]Input|Indirect Cost Rates'!F12 -> 0.02 | G12: ='[2]Input|Indirect Cost Rates'!G12 -> 0.02 | H12: ='[2]Input|Indirect Cost Rates'!H12 -> 0.02 | I12: ='[2]Input|Indirect Cost Rates'!I12 -> 0 | J12: Att 11-03M ACS Labour rate model
B13: Long Service leave allowance | C13: Per cent | D13: ='[2]Input|Indirect Cost Rates'!D13 -> 0.025 | E13: ='[2]Input|Indirect Cost Rates'!E13 -> 0.025 | F13: ='[2]Input|Indirect Cost Rates'!F13 -> 0.025 | G13: ='[2]Input|Indirect Cost Rates'!G13 -> 0.025 | H13: ='[2]Input|Indirect Cost Rates'!H13 -> 0.025 | I13: ='[2]Input|Indirect Cost Rates'!I13 -> 0 | J13: Att 11-03M ACS Labour rate model
B14: Non-chargeable time | C14: Per cent | D14: ='[2]Input|Indirect Cost Rates'!D14 -> 0 | E14: ='[2]Input|Indirect Cost Rates'!E14 -> 0 | F14: ='[2]Input|Indirect Cost Rates'!F14 -> 0 | G14: ='[2]Input|Indirect Cost Rates'!G14 -> 0 | H14: ='[2]Input|Indirect Cost Rates'!H14 -> 0 | I14: ='[2]Input|Indirect Cost Rates'!I14 -> 0 | J14: Att 11-03M ACS Labour rate model
B15: Other | C15: Per cent | D15: ='[2]Input|Indirect Cost Rates'!D15 -> 0 | E15: ='[2]Input|Indirect Cost Rates'!E15 -> 0 | F15: ='[2]Input|Indirect Cost Rates'!F15 -> 0 | G15: ='[2]Input|Indirect Cost Rates'!G15 -> 0 | H15: ='[2]Input|Indirect Cost Rates'!H15 -> 0 | I15: ='[2]Input|Indirect Cost Rates'!I15 -> 0 | J15: Att 11-03M ACS Labour rate model
B16: Allowances | C16: Per cent | D16: ='[2]Input|Indirect Cost Rates'!D16 -> 0 | E16: ='[2]Input|Indirect Cost Rates'!E16 -> 0.007 | F16: ='[2]Input|Indirect Cost Rates'!F16 -> 0 | G16: ='[2]Input|Indirect Cost Rates'!G16 -> 0 | H16: ='[2]Input|Indirect Cost Rates'!H16 -> 0 | I16: ='[2]Input|Indirect Cost Rates'!I16 -> 0 | J16: Att 11-03M ACS Labour rate model
B17: Training & Development | C17: Per cent | D17: ='[2]Input|Indirect Cost Rates'!D17 -> 0 | E17: ='[2]Input|Indirect Cost Rates'!E17 -> 0 | F17: ='[2]Input|Indirect Cost Rates'!F17 -> 0.007571406072 | G17: ='[2]Input|Indirect Cost Rates'!G17 -> 0.007571406072 | H17: ='[2]Input|Indirect Cost Rates'!H17 -> 0.007571406072 | I17: ='[2]Input|Indirect Cost Rates'!I17 -> 0 | J17: Att 11-03M ACS Labour rate model
B18: Safety Meetings/Toolbox Talks | C18: Per cent | D18: 0 | E18: 0 | F18: 0 | G18: 0 | H18: 0 | I18: 0
B19: Compounded on cost factor | C19: Per cent | D19: =PRODUCT(1+D8:D17)-1 -> 0.4614814561 | E19: =PRODUCT(1+E8:E17)-1 -> 0.4921889093 | F19: =PRODUCT(1+F8:F17)-1 -> 0.4725469257 | G19: =PRODUCT(1+G8:G17)-1 -> 0.4725469257 | H19: =PRODUCT(1+H8:H17)-1 -> 0.4725469257 | I19: =PRODUCT(1+I8:I17)-1 -> 0.1932377352
A22: 5.2 | B22: Overhead
B24: Type of Overhead | C24: Unit | D24: Input | E24: Type | F24: Notes
B25: Network Overhead | C25: Per cent | D25: ='[2]Input|Indirect Cost Rates'!D25 -> 0.2093290404 | E25: ='[2]Input|Indirect Cost Rates'!E25 -> Capex | F25: Att 11-03M ACS Labour rate model
B26: Network Overhead | C26: Per cent | D26: ='[2]Input|Indirect Cost Rates'!D26 -> 0.2093290404 | E26: ='[2]Input|Indirect Cost Rates'!E26 -> Opex | F26: Att 11-03M ACS Labour rate model
B27: Corporate Overhead | C27: Per cent | D27: ='[2]Input|Indirect Cost Rates'!D27 -> 0.4009715377 | E27: ='[2]Input|Indirect Cost Rates'!E27 -> Capex | F27: Att 11-03M ACS Labour rate model
B28: Corporate Overhead | C28: Per cent | D28: ='[2]Input|Indirect Cost Rates'!D28 -> 0.4009715377 | E28: ='[2]Input|Indirect Cost Rates'!E28 -> Opex | F28: Att 11-03M ACS Labour rate model
C29: Per cent
A32: 5.3 | B32: Margins
C34: Unit | D34: Input | F34: Notes
B35: Margin 1 | C35: Per cent
C36: Per cent
C37: Per cent
C38: Per cent
A41: 5.4 | B41: Tax recovery rate
C43: Unit | D43: Input | F43: Notes
B44: Tax rate 1 | C44: Per cent | D44: ='Input|Tax Recovery'!G28 -> 0.04564445826 | F44: Do we need to explore more than one tax rate, eg. One for metering, etc.
B45: Tax rate 2 | C45: Per cent | D45: ='Input|Tax Recovery'!G54 -> 0.01640495454
C46: Per cent
C47: Per cent

Sheet Input|Labour Rates
B1: =IFERROR(Index!B1,"") -> Jemena Electricity Networks – Alternative Control Services Forecast model | D1: Key: | E1: Input | G1: Sheet Validation | H1: ='Model Validation'!C13 -> 0
B2: =IFERROR(MID(CELL("filename",A1),FIND("]",CELL("filename",A1))+1,255),"") -> Input|Labour Rates | E2: Formula
B7: 6.1 Labour rates | E7: =IFERROR("Inputs, $'s ($"&Input_base_year&")","") ->  | F7: =IFERROR("Inputs, $'s ($"&Input_base_year&")","") ->  | G7: =IFERROR("Inputs, $'s ($"&Input_base_year&")","") ->  | H7: =IFERROR("Inputs, $'s ($"&Input_base_year&")","") ->  | K7: 6.2 Notes and sources for "Other costs"
F8: Adopted JEN revised labour rates | G8: Adopted AER max threshold
B9: Labour type | C9: Hours | D9: Used for quoted service? | E9: Base labour rate ($2024-25) | F9: On costs (%) | G9: Overhead (%) | H9: Vehicle ($2024-25) | I9: Other costs ($2024-25)
A10: 1 | B10: Administrative Officer | C10: Business hours | D10: Yes | E10: ='[2]Input|Labour Rates'!$D$8 -> 45.42426261 | F10: ='Input|Indirect Cost Rates'!D19 -> 0.4614814561 | G10: =SUM('Input|Indirect Cost Rates'!$D$25,'Input|Indirect Cost Rates'!$D$27) -> 0.610300578 | H10: 0 | I10: 2.672564238 | J10: =IF(AND(ISTEXT(B10),OR(ISBLANK(C10),ISBLANK(D10),COUNTA(E10:I10)=0)),1,0) -> 0 | K10: Att 11-03M ACS Labour rate model | L10: =IF(AND(ISNUMBER(I10),ISBLANK(K10)),1,0) -> 0
A11: =A10+1 -> 2 | B11: Field Worker | C11: Business hours | D11: Yes | E11: 74.8894975 | F11: ='Input|Indirect Cost Rates'!E19 -> 0.4921889093 | G11: =SUM('Input|Indirect Cost Rates'!$D$25,'Input|Indirect Cost Rates'!$D$27) -> 0.610300578 | H11: ='[2]Input|Indirect Cost Rates'!$H$35 -> 22.44023083 | I11: 4.114316521 | J11: 0 | K11: Att 11-03M ACS Labour rate model | L11: 0
A12: 3 | B12: Technical Specialist | C12: Business hours | D12: Yes | E12: ='[2]Input|Labour Rates'!$D$10 -> 76.01667487 | F12: ='Input|Indirect Cost Rates'!F19 -> 0.4725469257 | G12: =SUM('Input|Indirect Cost Rates'!$D$25,'Input|Indirect Cost Rates'!$D$27) -> 0.610300578 | H12: ='[2]Input|Indirect Cost Rates'!$H$35 -> 22.44023083 | I12: 4.426238847 | J12: 0 | K12: Att 11-03M ACS Labour rate model | L12: 0
A13: 4 | B13: Engineer | C13: Business hours | D13: Yes | E13: 97.05671265 | F13: ='Input|Indirect Cost Rates'!H19 -> 0.4725469257 | G13: =SUM('Input|Indirect Cost Rates'!$D$25,'Input|Indirect Cost Rates'!$D$27) -> 0.610300578 | H13: 0 | I13: 5.98399846 | J13: 0 | K13: Att 11-03M ACS Labour rate model | L13: 0
A14: 5 | B14: Senior Engineer | C14: Business hours | D14: Yes | E14: 116.4680552 | F14: ='Input|Indirect Cost Rates'!G19 -> 0.4725469257 | G14: =SUM('Input|Indirect Cost Rates'!$D$25,'Input|Indirect Cost Rates'!$D$27) -> 0.610300578 | H14: 0 | I14: 7.180798151 | J14: 0 | K14: Att 11-03M ACS Labour rate model | L14: 0
A15: 6 | B15: Administrative Officer | C15: After Hours | D15: No | E15: ='[2]Input|Labour Rates'!D13 -> 0 | F15: 0 | G15: =SUM('Input|Indirect Cost Rates'!$D$25,'Input|Indirect Cost Rates'!$D$27) -> 0.610300578 | H15: 0 | I15: 0 | J15: 0 | K15: Att 11-03M ACS Labour rate model | L15: 0
A16: 7 | B16: Field Worker | C16: After Hours | D16: Yes | E16: 172.1189476 | F16: ='Input|Indirect Cost Rates'!I19 -> 0.1932377352 | G16: =SUM('Input|Indirect Cost Rates'!$D$25,'Input|Indirect Cost Rates'!$D$27) -> 0.610300578 | H16: ='[2]Input|Indirect Cost Rates'!$H$35 -> 22.44023083 | I16: 7.628562371 | J16: 0 | K16: Att 11-03M ACS Labour rate model | L16: 0
A17: 8 | B17: Technical Specialist | C17: After Hours | D17: No | E17: 0 | F17: 0 | G17: =SUM('Input|Indirect Cost Rates'!$D$25,'Input|Indirect Cost Rates'!$D$27) -> 0.610300578 | H17: 0 | I17: 0 | J17: 0 | K17: Att 11-03M ACS Labour rate model | L17: 0
A18: 9 | B18: Engineer | C18: After Hours | D18: No | E18: 0 | F18: 0 | G18: =SUM('Input|Indirect Cost Rates'!$D$25,'Input|Indirect Cost Rates'!$D$27) -> 0.610300578 | H18: 0 | I18: 0 | J18: 0 | K18: Att 11-03M ACS Labour rate model | L18: 0
A19: 10 | B19: Senior Engineer | C19: After Hours | D19: No | E19: 0 | F19: 0 | G19: =SUM('Input|Indirect Cost Rates'!$D$25,'Input|Indirect Cost Rates'!$D$27) -> 0.610300578 | H19: 0 | I19: 0 | J19: 0 | K19: Att 11-03M ACS Labour rate model | L19: 0
A20: 11 | J20: 0 | L20: 0
A21: 12 | J21: 0 | L21: 0
A22: 13 | J22: 0 | L22: 0
A23: 14 | J23: 0 | L23: 0
A24: 15 | J24: 0 | L24: 0
A25: 16 | J25: 0 | L25: 0
A26: 17 | J26: 0 | L26: 0
A27: 18 | J27: 0 | L27: 0
A28: 19 | J28: 0 | L28: 0
A29: 20 | J29: 0 | L29: 0
B32: 6.3 Assumptions | K32: 6.4 Notes and sources
C34: Administrative officer,Technical Specialist,Engineer, Senior Engineer | D34: Field Worker (BH) | E34: Field Worker (AH)
B35: Overhead rate | C35: ='[2]Input|Labour Rates'!C24 -> 0.610300578 | D35: ='[2]Input|Labour Rates'!D24 -> 0.610300578 | E35: ='[2]Input|Labour Rates'!E24 -> 0.610300578 | K35: Based on Network and Corporate overhead percentages in the Input|Indirect Cost Rates tab
B36: On-costs | C36: ='[2]Input|Labour Rates'!C25 -> 0.4614814561 | D36: ='[2]Input|Labour Rates'!D25 -> 0.4921889093 | E36: ='[2]Input|Labour Rates'!E25 -> 0.1932377352 | K36: Based on cost percentages in the Input|Indirect Cost Rates tab
B39: Weeks | C39: ='[2]Input|Labour Rates'!C28 -> 52.14 | K39: Review of ancillary network service: CitiPower, Poweror, Imoted Energy, Jemen and Ausnet - Advice to AER 30 Jun 2020. A Mardson Jacob Report
B40: Hours per week | C40: ='[2]Input|Labour Rates'!C29 -> 38 | K40: Review of ancillary network service: CitiPower, Poweror, Imoted Energy, Jemen and Ausnet - Advice to AER 30 Jun 2020. A Mardson Jacob Report
B41: Wage Measure Stickiness | C41: ='[2]Input|Labour Rates'!C30 -> 0.025 | K41: Review of ancillary network service: CitiPower, Poweror, Imoted Energy, Jemen and Ausnet - Advice to AER 30 Jun 2020. A Mardson Jacob Report
B44: =IFERROR("6.5 List of quoted services for "&'Input|Setup'!$E$11&" to "&'Input|Setup'!$E$15&" regulatory period","") -> 6.5 List of quoted services for 2026-27 to 2030-31 regulatory period
A47: 1 | B47: Supply abolishment (non-basic)
A48: =IFERROR(A47+1,"") -> 2 | B48: Temporary covering of low voltage mains and service lines (fitting of tiger tails)
A49: =IFERROR(A48+1,"") -> 3 | B49: Rearrangement of network assets at customer request, excluding alteration and relocation of public lighting assets
A50: 4 | B50: Elective undergrounding
A51: 5 | B51: Reserve feeder construction
A52: 6 | B52: Access permits, oversight and facilitation
A53: 7 | B53: Sale of approved materials or equipment
A54: 8 | B54: Notices of arrangement and completion notices
A55: 9 | B55: Network related property services
A56: 10 | B56: Network safety services
A57: 11 | B57: High load escorts
A58: 12 | B58: Fitting of possum guards and aerial markers
A59: 13 | B59: Site visit relating to location of underground cables/assets
A60: 14 | B60: Third party request for de-energising wires for safe approach
A61: 15 | B61: Provision of traffic control and safety observer services by the distributor where required
A62: 16 | B62: Planned interruption – customer requested
A63: 17 | B63: Customer requested supply interruption
A64: 18 | B64: Inspection and auditing services
A65: 19 | B65: Provision of training to third parties for network related access
A66: 20 | B66: Authorisation and approval of third party service providers
A67: 21 | B67: Replacement of security lights that are beyond repair
A68: 22 | B68: Provision of electricity network data to customers or third parties outside of legislative obligations
A69: 23 | B69: Third party requested network alterations or other improvements
A70: 24 | B70: Community network upgrades
A71: 25 | B71: Non-standard metering services (eg. initial setup of load and inventory table of non-contestable unmetered devices)
A72: 26 | B72: Connection management services
A73: 27 | B73: Temporary non-basic connections
A74: 28 | B74: Temporary disconnection of non-basic connections
A75: 29 | B75: Reconnection of non-basic connection after temporary disconnection
A76: 30 | B76: Protection and power quality assessment
A77: 31 | B77: Customer requested change requiring secondary and primary plant studies
A78: 32 | B78: Calculation of a site-specific distribution loss factor on request
A79: 33 | B79: Embedded network management
A80: 34 | B80: Connection application related services
A81: 35 | B81: Alteration and relocation of public lighting assets
A82: 36 | B82: New public lighting services including greenfield sites and new light types (distributor provided)
A83: 37 | B83: Provision, construction and maintenance of emerging public lighting technology
A84: 38
A85: 39
A86: 40
A87: 41
A88: 42
A89: 43
A90: 44
A91: 45
A92: 46
A93: 47
A94: 48
A95: 49
A96: 50
B98: =IFERROR("6.4 List of Service Codes for "&'Input|Setup'!$E$11&" to "&'Input|Setup'!$E$15&" regulatory period","") -> 6.4 List of Service Codes for 2026-27 to 2030-31 regulatory period
A100: 1 | B100: ND1P
A101: =IFERROR(A100+1,"") -> 2 | B101: ND3P
A102: =IFERROR(A101+1,"") -> 3 | B102: BTSO
A103: 4 | B103: BTSP
A104: 5 | B104: SUTK
A105: 6 | B105: RTK1
A106: 7 | B106: REEN
A107: 8 | B107: DEEN
A108: 9 | B108: DCTK
A109: 10 | B109: RCTK
A110: 11 | B110: SLOM
A111: 12 | B111: CUAC
A112: 13 | B112: RFOM
A113: 14 | B113: REENRM
A114: 15 | B114: DEENRM
A115: 16 | B115: MCTK
A116: 17 | B116: SPRDRM
A117: 18 | B117: MECFRM
A118: 19 | B118: SPRD
A119: 20 | B119: MTAL
A120: 21 | B120: MDCH
A121: 22 | B121: NCUM
A122: 23 | B122: WSVR
A123: 24 | B123: RTK3
A124: 25 | B124: 1PNOP
A125: 26 | B125: 1POP
A126: 27 | B126: 3DCL
A127: 28 | B127: 3CTL
A128: 29 | B128: AEXTSP
A129: 30 | B129: AEXTS2
A130: 31 | B130: AEXTTP
A131: 32 | B131: AEXTCT
A132: 33 | B132: NCI1
A133: 34 | B133: NCII
A134: 35
A135: 36
A136: 37
A137: 38
A138: 39
A139: 40
A140: 41
A141: 42
A142: 43
A143: 44
A144: 45
A145: 46
A146: 47
A147: 48
A148: 49
A149: 50

Sheet Input|Fee Based
B1: =IFERROR(Index!B1,"") -> Jemena Electricity Networks – Alternative Control Services Forecast model | D1: Key: | E1: Input | I1: Sheet Validation | J1: ='Model Validation'!C14 -> 1
B2: =IFERROR(MID(CELL("filename",A1),FIND("]",CELL("filename",A1))+1,255),"") -> Input|Fee Based | E2: Formula
B6: 7.1 Fee based services | F6: Mapping categories | I6: =IFERROR("7.2 Service cost build up - DIRECT COSTS, $'s ($"&'Input|Escalations'!$C$9&")","") -> 7.2 Service cost build up - DIRECT COSTS, $'s ($2024-25) | X6: 7.3 Service cost build - INDIRECT COSTS (per cent) | AF6: 7.4 Notes and sources for "Other costs"
I10: 7.2.1 Non-field based labour | M10: =IF(SUM(M12:M61)=0,0,1) -> 0 | N10: 7.2.2 Field based labour | S10: =IF(SUM(S12:S61)=0,0,1) -> 0 | T10: 7.2.3 Direct non-labour | X10: Indirect Costs
B11: Service code | C11: Service | D11: ='Input|Setup'!$B$24 -> Hours | E11: ='Input|Setup'!$H$30 -> Expense Type | F11: ='Input|Setup'!$E$30 -> Service category | G11: ='Input|Setup'!$H$40 -> Control Mechanism | I11: Labour category | J11: ='Input|Setup'!$B$24 -> Hours | K11: FTE | L11: Time on task (Minutes) | N11: Labour category | O11: ='Input|Setup'!$B$24 -> Hours | P11: FTE | Q11: Travel time (Minutes) | R11: Time on task (Minutes) | T11: ="Materials ($" & 'Input|Setup'!$E$7 & ")" -> Materials ($2024-25) | U11: ="Vehicles ($" & 'Input|Setup'!$E$7 & ")" -> Vehicles ($2024-25) | V11: ="Other ($" & 'Input|Setup'!$E$7 & ")" -> Other ($2024-25) | X11: Network Overhead (%) | Y11: Corporate Overhead (%) | Z11: Margin (%) | AA11: Tax recovery (%) | AF11: Notes and sources for "Other costs"
A12: 1 | B12: ND1P | C12: Basic connection, single-phase BH | D12: Business Hours | E12: Capex | F12: Basic connection services | G12: Fee Based | H12: =IF(AND(ISTEXT(C12),OR(ISBLANK(D12),ISBLANK(F12))),1,0) -> 0 | I12: =IF(INDIRECT("'"&$B12&"'!B10",TRUE)="","",INDIRECT("'"&$B12&"'!B10",TRUE)) -> Administrative Officer | J12: =IF(I12="","",$D$12) -> Business Hours | K12: =IF(I12="","",INDIRECT("'"&$B12&"'!D10",TRUE)) -> 1 | L12: =IF(I12="","",INDIRECT("'"&$B12&"'!F30",TRUE)) -> 60 | M12: =IF(OR( AND(ISTEXT(I12),ISBLANK(J12)), AND(ISTEXT(#REF!),ISBLANK(#REF!)), AND(ISTEXT(#REF!),ISBLANK(#REF!))),1,0) -> 0 | N12: =IF(INDIRECT("'"&$B12&"'!H10",TRUE)="","",INDIRECT("'"&$B12&"'!H10",TRUE)) -> Field Worker | O12: =IF(N12="","",D12) -> Business Hours | P12: =IF(N12="","",INDIRECT("'"&$B12&"'!J10",TRUE)) -> 2 | Q12: =IF(N12="","",INDIRECT("'"&$B12&"'!L10",TRUE)/P12) -> 30 | R12: =IF(N12="","",(INDIRECT("'"&$B12&"'!L30",TRUE)-($Q12*P12))/P12) -> 35 | S12: =IF(OR( AND(ISTEXT(N12),ISBLANK(O12)), AND(ISTEXT(#REF!),ISBLANK(#REF!)), AND(ISTEXT(#REF!),ISBLANK(#REF!)), AND(ISTEXT(#REF!),ISBLANK(#REF!)),),1,0) -> 0 | T12: 73.88483596 | U12: =INDIRECT("'"&$B12&"'!N56",TRUE) -> 58.26166667 | V12: =INDIRECT("'"&$B12&"'!R56",TRUE) -> 0 | X12: =SUMIF('Input|Indirect Cost Rates'!$E$25:$E$26,'Input|Fee Based'!$E12,'Input|Indirect Cost Rates'!$D$25:$D$26) -> 0.2093290404 | Y12: =SUMIF('Input|Indirect Cost Rates'!$E$27:$E$28,'Input|Fee Based'!$E12,'Input|Indirect Cost Rates'!$D$27:$D$28) -> 0.4009715377 | Z12: ='Input|Indirect Cost Rates'!$D$35 -> 0 | AA12: =IF(E12='Input|Setup'!$H$31,'Input|Indirect Cost Rates'!$D$44,0) -> 0.04564445826 | AB12: =IF(OR(ISBLANK(X12),_xlfn.ISFORMULA(X12)),0,1) -> 0 | AC12: =IF(OR(ISBLANK(Y12),_xlfn.ISFORMULA(Y12)),0,1) -> 0 | AD12: =IF(OR(ISBLANK(Z12),_xlfn.ISFORMULA(Z12)),0,1) -> 0 | AE12: =IF(OR(ISBLANK(AA12),_xlfn.ISFORMULA(AA12)),0,1) -> 0 | AG12: =IF(AND(OR(V12="",V12=0),AF12=""),0,IF(AND(V12<>"",V12<>0,AF12=""),1,0)) -> 0
A13: =IFERROR(A12+1,"") -> 2 | B13: ND1P | C13: Basic connection, single-phase AH | D13: After Hours | E13: Capex | F13: Basic connection services | G13: Fee Based | H13: 0 | I13: =IF(INDIRECT("'"&$B13&"'!B10",TRUE)="","",INDIRECT("'"&$B13&"'!B10",TRUE)) -> Administrative Officer | J13: =IF(I13="","",$D$12) -> Business Hours | K13: =IF(I13="","",INDIRECT("'"&$B13&"'!D10",TRUE)) -> 1 | L13: =IF(I13="","",INDIRECT("'"&$B13&"'!F30",TRUE)) -> 60 | M13: =IF(OR( AND(ISTEXT(I13),ISBLANK(J13)), AND(ISTEXT(#REF!),ISBLANK(#REF!)), AND(ISTEXT(#REF!),ISBLANK(#REF!))),1,0) -> 0 | N13: =IF(INDIRECT("'"&$B13&"'!H10",TRUE)="","",INDIRECT("'"&$B13&"'!H10",TRUE)) -> Field Worker | O13: After Hours | P13: =IF(N13="","",INDIRECT("'"&$B13&"'!J10",TRUE)) -> 2 | Q13: =IF(N13="","",INDIRECT("'"&$B13&"'!L10",TRUE)/P13) -> 30 | R13: =IF(N13="","",(INDIRECT("'"&$B13&"'!L30",TRUE)-($Q13*P13))/P13) -> 35 | S13: =IF(OR( AND(ISTEXT(N13),ISBLANK(O13)), AND(ISTEXT(#REF!),ISBLANK(#REF!)), AND(ISTEXT(#REF!),ISBLANK(#REF!)), AND(ISTEXT(#REF!),ISBLANK(#REF!)),),1,0) -> 0 | T13: 73.88483596 | U13: =INDIRECT("'"&$B13&"'!N56",TRUE) -> 58.26166667 | V13: =INDIRECT("'"&$B13&"'!R56",TRUE) -> 0 | X13: =SUMIF('Input|Indirect Cost Rates'!$E$25:$E$26,'Input|Fee Based'!$E13,'Input|Indirect Cost Rates'!$D$25:$D$26) -> 0.2093290404 | Y13: =SUMIF('Input|Indirect Cost Rates'!$E$27:$E$28,'Input|Fee Based'!$E13,'Input|Indirect Cost Rates'!$D$27:$D$28) -> 0.4009715377 | Z13: =Z12 -> 0 | AA13: =IF(E13='Input|Setup'!$H$31,'Input|Indirect Cost Rates'!$D$44,0) -> 0.04564445826 | AB13: 0 | AC13: 0 | AD13: 0 | AE13: 0 | AG13: 0
A14: =IFERROR(A13+1,"") -> 3 | B14: ND3P | C14: Basic connection, three-phase BH | D14: Business Hours | E14: Capex | F14: Basic connection services | G14: Fee Based | H14: 0 | I14: =IF(INDIRECT("'"&$B14&"'!B10",TRUE)="","",INDIRECT("'"&$B14&"'!B10",TRUE)) -> Administrative Officer | J14: Business Hours | K14: =IF(I14="","",INDIRECT("'"&$B14&"'!D10",TRUE)) -> 1 | L14: =IF(I14="","",INDIRECT("'"&$B14&"'!F30",TRUE)) -> 60 | M14: =IF(OR( AND(ISTEXT(I14),ISBLANK(J14)), AND(ISTEXT(#REF!),ISBLANK(#REF!)), AND(ISTEXT(#REF!),ISBLANK(#REF!))),1,0) -> 0 | N14: =IF(INDIRECT("'"&$B14&"'!H10",TRUE)="","",INDIRECT("'"&$B14&"'!H10",TRUE)) -> Field Worker | O14: Business Hours | P14: =IF(N14="","",INDIRECT("'"&$B14&"'!J10",TRUE)) -> 2 | Q14: =IF(N14="","",INDIRECT("'"&$B14&"'!L10",TRUE)/P14) -> 30 | R14: =IF(N14="","",(INDIRECT("'"&$B14&"'!L30",TRUE)-($Q14*P14))/P14) -> 35 | S14: =IF(OR( AND(ISTEXT(N14),ISBLANK(O14)), AND(ISTEXT(#REF!),ISBLANK(#REF!)), AND(ISTEXT(#REF!),ISBLANK(#REF!)), AND(ISTEXT(#REF!),ISBLANK(#REF!)),),1,0) -> 0 | T14: 220.9394031 | U14: =INDIRECT("'"&$B14&"'!n56",TRUE) -> 58.26166667 | V14: =INDIRECT("'"&$B14&"'!R56",TRUE) -> 0 | X14: =SUMIF('Input|Indirect Cost Rates'!$E$25:$E$26,'Input|Fee Based'!$E14,'Input|Indirect Cost Rates'!$D$25:$D$26) -> 0.2093290404 | Y14: =SUMIF('Input|Indirect Cost Rates'!$E$27:$E$28,'Input|Fee Based'!$E14,'Input|Indirect Cost Rates'!$D$27:$D$28) -> 0.4009715377 | Z14: =Z13 -> 0 | AA14: =IF(E14='Input|Setup'!$H$31,'Input|Indirect Cost Rates'!$D$44,0) -> 0.04564445826 | AB14: 0 | AC14: 0 | AD14: 0 | AE14: 0 | AG14: 0
A15: 4 | B15: ND3P | C15: Basic connection, three-phase AH | D15: After Hours | E15: Capex | F15: Basic connection services | G15: Fee Based | H15: 0 | I15: =IF(INDIRECT("'"&$B15&"'!B10",TRUE)="","",INDIRECT("'"&$B15&"'!B10",TRUE)) -> Administrative Officer | J15: Business Hours | K15: =IF(I15="","",INDIRECT("'"&$B15&"'!D10",TRUE)) -> 1 | L15: =IF(I15="","",INDIRECT("'"&$B15&"'!F30",TRUE)) -> 60 | M15: =IF(OR( AND(ISTEXT(I15),ISBLANK(J15)), AND(ISTEXT(#REF!),ISBLANK(#REF!)), AND(ISTEXT(#REF!),ISBLANK(#REF!))),1,0) -> 0 | N15: =IF(INDIRECT("'"&$B15&"'!H10",TRUE)="","",INDIRECT("'"&$B15&"'!H10",TRUE)) -> Field Worker | O15: After Hours | P15: =IF(N15="","",INDIRECT("'"&$B15&"'!J10",TRUE)) -> 2 | Q15: =IF(N15="","",INDIRECT("'"&$B15&"'!L10",TRUE)/P15) -> 30 | R15: =IF(N15="","",(INDIRECT("'"&$B15&"'!L30",TRUE)-($Q15*P15))/P15) -> 35 | S15: =IF(OR( AND(ISTEXT(N15),ISBLANK(O15)), AND(ISTEXT(#REF!),ISBLANK(#REF!)), AND(ISTEXT(#REF!),ISBLANK(#REF!)), AND(ISTEXT(#REF!),ISBLANK(#REF!)),),1,0) -> 0 | T15: 220.9394031 | U15: =INDIRECT("'"&$B15&"'!n56",TRUE) -> 58.26166667 | V15: =INDIRECT("'"&$B15&"'!R56",TRUE) -> 0 | X15: =SUMIF('Input|Indirect Cost Rates'!$E$25:$E$26,'Input|Fee Based'!$E15,'Input|Indirect Cost Rates'!$D$25:$D$26) -> 0.2093290404 | Y15: =SUMIF('Input|Indirect Cost Rates'!$E$27:$E$28,'Input|Fee Based'!$E15,'Input|Indirect Cost Rates'!$D$27:$D$28) -> 0.4009715377 | Z15: 0 | AA15: =IF(E15='Input|Setup'!$H$31,'Input|Indirect Cost Rates'!$D$44,0) -> 0.04564445826 | AB15: 0 | AC15: 0 | AD15: 0 | AE15: 0 | AG15: 0
A16: 5 | B16: BTSO | C16: Temporary connection, single-phase BH | D16: Business Hours | E16: Capex | F16: Connection service | G16: Fee Based | H16: 0 | I16: =IF(INDIRECT("'"&$B16&"'!B10",TRUE)="","",INDIRECT("'"&$B16&"'!B10",TRUE)) -> Administrative Officer | J16: Business Hours | K16: =IF(I16="","",INDIRECT("'"&$B16&"'!D10",TRUE)) -> 1 | L16: =IF(I16="","",INDIRECT("'"&$B16&"'!F30",TRUE)) -> 60 | M16: =IF(OR( AND(ISTEXT(I16),ISBLANK(J16)), AND(ISTEXT(#REF!),ISBLANK(#REF!)), AND(ISTEXT(#REF!),ISBLANK(#REF!))),1,0) -> 0 | N16: =IF(INDIRECT("'"&$B16&"'!H10",TRUE)="","",INDIRECT("'"&$B16&"'!H10",TRUE)) -> Field Worker | O16: Business Hours | P16: =IF(N16="","",INDIRECT("'"&$B16&"'!J10",TRUE)) -> 2 | Q16: =IF(N16="","",INDIRECT("'"&$B16&"'!L10",TRUE)/P16) -> 30 | R16: =IF(N16="","",(INDIRECT("'"&$B16&"'!L30",TRUE)-($Q16*P16))/P16) -> 35 | S16: =IF(OR( AND(ISTEXT(N16),ISBLANK(O16)), AND(ISTEXT(#REF!),ISBLANK(#REF!)), AND(ISTEXT(#REF!),ISBLANK(#REF!)), AND(ISTEXT(#REF!),ISBLANK(#REF!)),),1,0) -> 0 | T16: 51.01243956 | U16: =INDIRECT("'"&$B16&"'!n56",TRUE) -> 58.26166667 | V16: =INDIRECT("'"&$B16&"'!R56",TRUE) -> 0 | X16: =SUMIF('Input|Indirect Cost Rates'!$E$25:$E$26,'Input|Fee Based'!$E16,'Input|Indirect Cost Rates'!$D$25:$D$26) -> 0.2093290404 | Y16: =SUMIF('Input|Indirect Cost Rates'!$E$27:$E$28,'Input|Fee Based'!$E16,'Input|Indirect Cost Rates'!$D$27:$D$28) -> 0.4009715377 | Z16: 0 | AA16: =IF(E16='Input|Setup'!$H$31,'Input|Indirect Cost Rates'!$D$44,0) -> 0.04564445826 | AB16: 0 | AC16: 0 | AD16: 0 | AE16: 0 | AG16: 0
A17: 6 | B17: BTSO | C17: Temporary connection, single-phase AH | D17: After Hours | E17: Capex | F17: Connection service | G17: Fee Based | H17: 0 | I17: =IF(INDIRECT("'"&$B17&"'!B10",TRUE)="","",INDIRECT("'"&$B17&"'!B10",TRUE)) -> Administrative Officer | J17: Business Hours | K17: =IF(I17="","",INDIRECT("'"&$B17&"'!D10",TRUE)) -> 1 | L17: =IF(I17="","",INDIRECT("'"&$B17&"'!F30",TRUE)) -> 60 | M17: =IF(OR( AND(ISTEXT(I17),ISBLANK(J17)), AND(ISTEXT(#REF!),ISBLANK(#REF!)), AND(ISTEXT(#REF!),ISBLANK(#REF!))),1,0) -> 0 | N17: =IF(INDIRECT("'"&$B17&"'!H10",TRUE)="","",INDIRECT("'"&$B17&"'!H10",TRUE)) -> Field Worker | O17: After Hours | P17: =IF(N17="","",INDIRECT("'"&$B17&"'!J10",TRUE)) -> 2 | Q17: =IF(N17="","",INDIRECT("'"&$B17&"'!L10",TRUE)/P17) -> 30 | R17: =IF(N17="","",(INDIRECT("'"&$B17&"'!L30",TRUE)-($Q17*P17))/P17) -> 35 | S17: =IF(OR( AND(ISTEXT(N17),ISBLANK(O17)), AND(ISTEXT(#REF!),ISBLANK(#REF!)), AND(ISTEXT(#REF!),ISBLANK(#REF!)), AND(ISTEXT(#REF!),ISBLANK(#REF!)),),1,0) -> 0 | T17: 51.01243956 | U17: =INDIRECT("'"&$B17&"'!n56",TRUE) -> 58.26166667 | V17: =INDIRECT("'"&$B17&"'!R56",TRUE) -> 0 | X17: =SUMIF('Input|Indirect Cost Rates'!$E$25:$E$26,'Input|Fee Based'!$E17,'Input|Indirect Cost Rates'!$D$25:$D$26) -> 0.2093290404 | Y17: =SUMIF('Input|Indirect Cost Rates'!$E$27:$E$28,'Input|Fee Based'!$E17,'Input|Indirect Cost Rates'!$D$27:$D$28) -> 0.4009715377 | Z17: 0 | AA17: =IF(E17='Input|Setup'!$H$31,'Input|Indirect Cost Rates'!$D$44,0) -> 0.04564445826 | AB17: 0 | AC17: 0 | AD17: 0 | AE17: 0 | AG17: 0
A18: 7 | B18: BTSP | C18: Temporary connection, three-phase BH | D18: Business Hours | E18: Capex | F18: Connection service | G18: Fee Based | H18: 0 | I18: =IF(INDIRECT("'"&$B18&"'!B10",TRUE)="","",INDIRECT("'"&$B18&"'!B10",TRUE)) -> Administrative Officer | J18: Business Hours | K18: =IF(I18="","",INDIRECT("'"&$B18&"'!D10",TRUE)) -> 1 | L18: =IF(I18="","",INDIRECT("'"&$B18&"'!F30",TRUE)) -> 60 | M18: =IF(OR( AND(ISTEXT(I18),ISBLANK(J18)), AND(ISTEXT(#REF!),ISBLANK(#REF!)), AND(ISTEXT(#REF!),ISBLANK(#REF!))),1,0) -> 0 | N18: =IF(INDIRECT("'"&$B18&"'!H10",TRUE)="","",INDIRECT("'"&$B18&"'!H10",TRUE)) -> Field Worker | O18: Business Hours | P18: =IF(N18="","",INDIRECT("'"&$B18&"'!J10",TRUE)) -> 2 | Q18: =IF(N18="","",INDIRECT("'"&$B18&"'!L10",TRUE)/P18) -> 30 | R18: =IF(N18="","",(INDIRECT("'"&$B18&"'!L30",TRUE)-($Q18*P18))/P18) -> 35 | S18: =IF(OR( AND(ISTEXT(N18),ISBLANK(O18)), AND(ISTEXT(#REF!),ISBLANK(#REF!)), AND(ISTEXT(#REF!),ISBLANK(#REF!)), AND(ISTEXT(#REF!),ISBLANK(#REF!)),),1,0) -> 0 | T18: 79.02 | U18: =INDIRECT("'"&$B18&"'!n56",TRUE) -> 58.26166667 | V18: =INDIRECT("'"&$B18&"'!R56",TRUE) -> 0 | X18: =SUMIF('Input|Indirect Cost Rates'!$E$25:$E$26,'Input|Fee Based'!$E18,'Input|Indirect Cost Rates'!$D$25:$D$26) -> 0.2093290404 | Y18: =SUMIF('Input|Indirect Cost Rates'!$E$27:$E$28,'Input|Fee Based'!$E18,'Input|Indirect Cost Rates'!$D$27:$D$28) -> 0.4009715377 | Z18: 0 | AA18: =IF(E18='Input|Setup'!$H$31,'Input|Indirect Cost Rates'!$D$44,0) -> 0.04564445826 | AB18: 0 | AC18: 0 | AD18: 0 | AE18: 0 | AG18: 0
A19: 8 | B19: BTSP | C19: Temporary connection, three-phase AH | D19: After Hours | E19: Capex | F19: Connection service | G19: Fee Based | H19: 0 | I19: =IF(INDIRECT("'"&$B19&"'!B10",TRUE)="","",INDIRECT("'"&$B19&"'!B10",TRUE)) -> Administrative Officer | J19: Business Hours | K19: =IF(I19="","",INDIRECT("'"&$B19&"'!D10",TRUE)) -> 1 | L19: =IF(I19="","",INDIRECT("'"&$B19&"'!F30",TRUE)) -> 60 | M19: =IF(OR( AND(ISTEXT(I19),ISBLANK(J19)), AND(ISTEXT(#REF!),ISBLANK(#REF!)), AND(ISTEXT(#REF!),ISBLANK(#REF!))),1,0) -> 0 | N19: =IF(INDIRECT("'"&$B19&"'!H10",TRUE)="","",INDIRECT("'"&$B19&"'!H10",TRUE)) -> Field Worker | O19: After Hours | P19: =IF(N19="","",INDIRECT("'"&$B19&"'!J10",TRUE)) -> 2 | Q19: =IF(N19="","",INDIRECT("'"&$B19&"'!L10",TRUE)/P19) -> 30 | R19: =IF(N19="","",(INDIRECT("'"&$B19&"'!L30",TRUE)-($Q19*P19))/P19) -> 35 | S19: =IF(OR( AND(ISTEXT(N19),ISBLANK(O19)), AND(ISTEXT(#REF!),ISBLANK(#REF!)), AND(ISTEXT(#REF!),ISBLANK(#REF!)), AND(ISTEXT(#REF!),ISBLANK(#REF!)),),1,0) -> 0 | T19: 79.02 | U19: =INDIRECT("'"&$B19&"'!n56",TRUE) -> 58.26166667 | V19: =INDIRECT("'"&$B19&"'!R56",TRUE) -> 0 | X19: =SUMIF('Input|Indirect Cost Rates'!$E$25:$E$26,'Input|Fee Based'!$E19,'Input|Indirect Cost Rates'!$D$25:$D$26) -> 0.2093290404 | Y19: =SUMIF('Input|Indirect Cost Rates'!$E$27:$E$28,'Input|Fee Based'!$E19,'Input|Indirect Cost Rates'!$D$27:$D$28) -> 0.4009715377 | Z19: 0 | AA19: =IF(E19='Input|Setup'!$H$31,'Input|Indirect Cost Rates'!$D$44,0) -> 0.04564445826 | AB19: 0 | AC19: 0 | AD19: 0 | AE19: 0 | AG19: 0
A20: 9 | B20: SUTK | C20: Supply upgrade/enhancement (1ph to 3ph) BH | D20: Business Hours | E20: Capex | F20: Connection service | G20: Fee Based | H20: 0 | I20: =IF(INDIRECT("'"&$B20&"'!B10",TRUE)="","",INDIRECT("'"&$B20&"'!B10",TRUE)) -> Administrative Officer | J20: Business Hours | K20: =IF(I20="","",INDIRECT("'"&$B20&"'!D10",TRUE)) -> 1 | L20: =IF(I20="","",INDIRECT("'"&$B20&"'!F30",TRUE)) -> 60 | M20: =IF(OR( AND(ISTEXT(I20),ISBLANK(J20)), AND(ISTEXT(#REF!),ISBLANK(#REF!)), AND(ISTEXT(#REF!),ISBLANK(#REF!))),1,0) -> 0 | N20: =IF(INDIRECT("'"&$B20&"'!H10",TRUE)="","",INDIRECT("'"&$B20&"'!H10",TRUE)) -> Field Worker | O20: Business Hours | P20: =IF(N20="","",INDIRECT("'"&$B20&"'!J10",TRUE)) -> 2 | Q20: =IF(N20="","",INDIRECT("'"&$B20&"'!L10",TRUE)/P20) -> 30 | R20: =IF(N20="","",(INDIRECT("'"&$B20&"'!L30",TRUE)-($Q20*P20))/P20) -> 35 | S20: =IF(OR( AND(ISTEXT(N20),ISBLANK(O20)), AND(ISTEXT(#REF!),ISBLANK(#REF!)), AND(ISTEXT(#REF!),ISBLANK(#REF!)), AND(ISTEXT(#REF!),ISBLANK(#REF!)),),1,0) -> 0 | T20: 204.6778048 | U20: =INDIRECT("'"&$B20&"'!n56",TRUE) -> 58.26166667 | V20: =INDIRECT("'"&$B20&"'!R56",TRUE) -> 0 | X20: =SUMIF('Input|Indirect Cost Rates'!$E$25:$E$26,'Input|Fee Based'!$E20,'Input|Indirect Cost Rates'!$D$25:$D$26) -> 0.2093290404 | Y20: =SUMIF('Input|Indirect Cost Rates'!$E$27:$E$28,'Input|Fee Based'!$E20,'Input|Indirect Cost Rates'!$D$27:$D$28) -> 0.4009715377 | Z20: 0 | AA20: =IF(E20='Input|Setup'!$H$31,'Input|Indirect Cost Rates'!$D$44,0) -> 0.04564445826 | AB20: 0 | AC20: 0 | AD20: 0 | AE20: 0 | AG20: 0
A21: 10 | B21: SUTK | C21: Supply upgrade/enhancement (1ph to 3ph) AH | D21: After Hours | E21: Capex | F21: Connection service | G21: Fee Based | H21: 0 | I21: =IF(INDIRECT("'"&$B21&"'!B10",TRUE)="","",INDIRECT("'"&$B21&"'!B10",TRUE)) -> Administrative Officer | J21: Business Hours | K21: =IF(I21="","",INDIRECT("'"&$B21&"'!D10",TRUE)) -> 1 | L21: =IF(I21="","",INDIRECT("'"&$B21&"'!F30",TRUE)) -> 60 | M21: =IF(OR( AND(ISTEXT(I21),ISBLANK(J21)), AND(ISTEXT(#REF!),ISBLANK(#REF!)), AND(ISTEXT(#REF!),ISBLANK(#REF!))),1,0) -> 0 | N21: =IF(INDIRECT("'"&$B21&"'!H10",TRUE)="","",INDIRECT("'"&$B21&"'!H10",TRUE)) -> Field Worker | O21: After Hours | P21: =IF(N21="","",INDIRECT("'"&$B21&"'!J10",TRUE)) -> 2 | Q21: =IF(N21="","",INDIRECT("'"&$B21&"'!L10",TRUE)/P21) -> 30 | R21: =IF(N21="","",(INDIRECT("'"&$B21&"'!L30",TRUE)-($Q21*P21))/P21) -> 35 | S21: =IF(OR( AND(ISTEXT(N21),ISBLANK(O21)), AND(ISTEXT(#REF!),ISBLANK(#REF!)), AND(ISTEXT(#REF!),ISBLANK(#REF!)), AND(ISTEXT(#REF!),ISBLANK(#REF!)),),1,0) -> 0 | T21: 204.6778048 | U21: =INDIRECT("'"&$B21&"'!n56",TRUE) -> 58.26166667 | V21: =INDIRECT("'"&$B21&"'!R56",TRUE) -> 0 | X21: =SUMIF('Input|Indirect Cost Rates'!$E$25:$E$26,'Input|Fee Based'!$E21,'Input|Indirect Cost Rates'!$D$25:$D$26) -> 0.2093290404 | Y21: =SUMIF('Input|Indirect Cost Rates'!$E$27:$E$28,'Input|Fee Based'!$E21,'Input|Indirect Cost Rates'!$D$27:$D$28) -> 0.4009715377 | Z21: 0 | AA21: =IF(E21='Input|Setup'!$H$31,'Input|Indirect Cost Rates'!$D$44,0) -> 0.04564445826 | AB21: 0 | AC21: 0 | AD21: 0 | AE21: 0 | AG21: 0
A22: 11 | B22: RTK1 | C22: Replacement of 1-phase overhead service line BH | D22: Business Hours | E22: Capex | F22: Connection service | G22: Fee Based | H22: 0 | I22: =IF(INDIRECT("'"&$B22&"'!B10",TRUE)="","",INDIRECT("'"&$B22&"'!B10",TRUE)) -> Administrative Officer | J22: Business Hours | K22: =IF(I22="","",INDIRECT("'"&$B22&"'!D10",TRUE)) -> 1 | L22: =IF(I22="","",INDIRECT("'"&$B22&"'!F30",TRUE)) -> 60 | M22: =IF(OR( AND(ISTEXT(I22),ISBLANK(J22)), AND(ISTEXT(#REF!),ISBLANK(#REF!)), AND(ISTEXT(#REF!),ISBLANK(#REF!))),1,0) -> 0 | N22: =IF(INDIRECT("'"&$B22&"'!H10",TRUE)="","",INDIRECT("'"&$B22&"'!H10",TRUE)) -> Field Worker | O22: Business Hours | P22: =IF(N22="","",INDIRECT("'"&$B22&"'!J10",TRUE)) -> 2 | Q22: =IF(N22="","",INDIRECT("'"&$B22&"'!L10",TRUE)/P22) -> 30 | R22: =IF(N22="","",(INDIRECT("'"&$B22&"'!L30",TRUE)-($Q22*P22))/P22) -> 35 | S22: =IF(OR( AND(ISTEXT(N22),ISBLANK(O22)), AND(ISTEXT(#REF!),ISBLANK(#REF!)), AND(ISTEXT(#REF!),ISBLANK(#REF!)), AND(ISTEXT(#REF!),ISBLANK(#REF!)),),1,0) -> 0 | T22: 51.01243956 | U22: =INDIRECT("'"&$B22&"'!M56",TRUE) -> 58.26166667 | V22: =INDIRECT("'"&$B22&"'!q56",TRUE) -> 0 | X22: =SUMIF('Input|Indirect Cost Rates'!$E$25:$E$26,'Input|Fee Based'!$E22,'Input|Indirect Cost Rates'!$D$25:$D$26) -> 0.2093290404 | Y22: =SUMIF('Input|Indirect Cost Rates'!$E$27:$E$28,'Input|Fee Based'!$E22,'Input|Indirect Cost Rates'!$D$27:$D$28) -> 0.4009715377 | Z22: 0 | AA22: =IF(E22='Input|Setup'!$H$31,'Input|Indirect Cost Rates'!$D$44,0) -> 0.04564445826 | AB22: 0 | AC22: 0 | AD22: 0 | AE22: 0 | AG22: 0
A23: 12 | B23: RTK1 | C23: Replacement of 1-phase overhead service line AH | D23: After Hours | E23: Capex | F23: Connection service | G23: Fee Based | H23: 0 | I23: =IF(INDIRECT("'"&$B23&"'!B10",TRUE)="","",INDIRECT("'"&$B23&"'!B10",TRUE)) -> Administrative Officer | J23: Business Hours | K23: =IF(I23="","",INDIRECT("'"&$B23&"'!D10",TRUE)) -> 1 | L23: =IF(I23="","",INDIRECT("'"&$B23&"'!F30",TRUE)) -> 60 | M23: =IF(OR( AND(ISTEXT(I23),ISBLANK(J23)), AND(ISTEXT(#REF!),ISBLANK(#REF!)), AND(ISTEXT(#REF!),ISBLANK(#REF!))),1,0) -> 0 | N23: =IF(INDIRECT("'"&$B23&"'!H10",TRUE)="","",INDIRECT("'"&$B23&"'!H10",TRUE)) -> Field Worker | O23: After Hours | P23: =IF(N23="","",INDIRECT("'"&$B23&"'!J10",TRUE)) -> 2 | Q23: =IF(N23="","",INDIRECT("'"&$B23&"'!L10",TRUE)/P23) -> 30 | R23: =IF(N23="","",(INDIRECT("'"&$B23&"'!L30",TRUE)-($Q23*P23))/P23) -> 35 | S23: =IF(OR( AND(ISTEXT(N23),ISBLANK(O23)), AND(ISTEXT(#REF!),ISBLANK(#REF!)), AND(ISTEXT(#REF!),ISBLANK(#REF!)), AND(ISTEXT(#REF!),ISBLANK(#REF!)),),1,0) -> 0 | T23: 51.01243956 | U23: =INDIRECT("'"&$B23&"'!M56",TRUE) -> 58.26166667 | V23: =INDIRECT("'"&$B23&"'!q56",TRUE) -> 0 | X23: =SUMIF('Input|Indirect Cost Rates'!$E$25:$E$26,'Input|Fee Based'!$E23,'Input|Indirect Cost Rates'!$D$25:$D$26) -> 0.2093290404 | Y23: =SUMIF('Input|Indirect Cost Rates'!$E$27:$E$28,'Input|Fee Based'!$E23,'Input|Indirect Cost Rates'!$D$27:$D$28) -> 0.4009715377 | Z23: 0 | AA23: =IF(E23='Input|Setup'!$H$31,'Input|Indirect Cost Rates'!$D$44,0) -> 0.04564445826 | AB23: 0 | AC23: 0 | AD23: 0 | AE23: 0 | AG23: 0
A24: 13 | B24: REEN | C24: Field-based energisation BH | D24: Business Hours | E24: Opex | F24: Connection service | G24: Fee Based | H24: 0 | M24: =IF(OR( AND(ISTEXT(I24),ISBLANK(J24)), AND(ISTEXT(#REF!),ISBLANK(#REF!)), AND(ISTEXT(#REF!),ISBLANK(#REF!))),1,0) -> 0 | S24: =IF(OR( AND(ISTEXT(N24),ISBLANK(O24)), AND(ISTEXT(#REF!),ISBLANK(#REF!)), AND(ISTEXT(#REF!),ISBLANK(#REF!)), AND(ISTEXT(#REF!),ISBLANK(#REF!)),),1,0) -> 0 | V24: 60.63 | X24: =SUMIF('Input|Indirect Cost Rates'!$E$25:$E$26,'Input|Fee Based'!$E24,'Input|Indirect Cost Rates'!$D$25:$D$26) -> 0.2093290404 | Y24: =SUMIF('Input|Indirect Cost Rates'!$E$27:$E$28,'Input|Fee Based'!$E24,'Input|Indirect Cost Rates'!$D$27:$D$28) -> 0.4009715377 | Z24: 0 | AA24: =IF(E24='Input|Setup'!$H$31,'Input|Indirect Cost Rates'!$D$44,0) -> 0 | AB24: 0 | AC24: 0 | AD24: 0 | AE24: 0 | AF24: =REEN!$O$36 -> 0 | AG24: 0
A25: 14 | B25: REEN | C25: Field-based energisation AH | D25: After Hours | E25: Opex | F25: Connection service | G25: Fee Based | H25: 0 | M25: =IF(OR( AND(ISTEXT(I25),ISBLANK(J25)), AND(ISTEXT(#REF!),ISBLANK(#REF!)), AND(ISTEXT(#REF!),ISBLANK(#REF!))),1,0) -> 0 | S25: =IF(OR( AND(ISTEXT(N25),ISBLANK(O25)), AND(ISTEXT(#REF!),ISBLANK(#REF!)), AND(ISTEXT(#REF!),ISBLANK(#REF!)), AND(ISTEXT(#REF!),ISBLANK(#REF!)),),1,0) -> 0 | V25: 105.84 | X25: =SUMIF('Input|Indirect Cost Rates'!$E$25:$E$26,'Input|Fee Based'!$E25,'Input|Indirect Cost Rates'!$D$25:$D$26) -> 0.2093290404 | Y25: =SUMIF('Input|Indirect Cost Rates'!$E$27:$E$28,'Input|Fee Based'!$E25,'Input|Indirect Cost Rates'!$D$27:$D$28) -> 0.4009715377 | Z25: 0 | AA25: =IF(E25='Input|Setup'!$H$31,'Input|Indirect Cost Rates'!$D$44,0) -> 0 | AB25: 0 | AC25: 0 | AD25: 0 | AE25: 0 | AF25: =REEN!$O$37 -> 0 | AG25: 0
A26: 15 | B26: DEEN | C26: Field-based de-energisation BH | D26: Business Hours | E26: Opex | F26: Connection service | G26: Fee Based | H26: 0 | M26: =IF(OR( AND(ISTEXT(I26),ISBLANK(J26)), AND(ISTEXT(#REF!),ISBLANK(#REF!)), AND(ISTEXT(#REF!),ISBLANK(#REF!))),1,0) -> 0 | S26: =IF(OR( AND(ISTEXT(N26),ISBLANK(O26)), AND(ISTEXT(#REF!),ISBLANK(#REF!)), AND(ISTEXT(#REF!),ISBLANK(#REF!)), AND(ISTEXT(#REF!),ISBLANK(#REF!)),),1,0) -> 0 | V26: 86.95 | X26: =SUMIF('Input|Indirect Cost Rates'!$E$25:$E$26,'Input|Fee Based'!$E26,'Input|Indirect Cost Rates'!$D$25:$D$26) -> 0.2093290404 | Y26: =SUMIF('Input|Indirect Cost Rates'!$E$27:$E$28,'Input|Fee Based'!$E26,'Input|Indirect Cost Rates'!$D$27:$D$28) -> 0.4009715377 | Z26: 0 | AA26: =IF(E26='Input|Setup'!$H$31,'Input|Indirect Cost Rates'!$D$44,0) -> 0 | AB26: 0 | AC26: 0 | AD26: 0 | AE26: 0 | AF26: =DEEN!$O$36 -> 0 | AG26: 0
A27: 16 | B27: DCTK | C27: Disconnection (temporary) BH | D27: Business Hours | E27: Opex | F27: Customer requested supply outage | G27: Fee Based | H27: 0 | I27: =IF(INDIRECT("'"&$B27&"'!B10",TRUE)="","",INDIRECT("'"&$B27&"'!B10",TRUE)) -> Administrative Officer | J27: Business Hours | K27: =IF(I27="","",INDIRECT("'"&$B27&"'!D10",TRUE)) -> 1 | L27: =IF(I27="","",INDIRECT("'"&$B27&"'!F30",TRUE)) -> 30 | M27: =IF(OR( AND(ISTEXT(I27),ISBLANK(J27)), AND(ISTEXT(#REF!),ISBLANK(#REF!)), AND(ISTEXT(#REF!),ISBLANK(#REF!))),1,0) -> 0 | N27: =IF(INDIRECT("'"&$B27&"'!H10",TRUE)="","",INDIRECT("'"&$B27&"'!H10",TRUE)) -> Field Worker | O27: Business Hours | P27: =IF(N27="","",INDIRECT("'"&$B27&"'!J10",TRUE)) -> 2 | Q27: =IF(N27="","",INDIRECT("'"&$B27&"'!L10",TRUE)/P27) -> 30 | R27: =IF(N27="","",(INDIRECT("'"&$B27&"'!L30",TRUE)-($Q27*P27))/P27) -> 25 | S27: =IF(OR( AND(ISTEXT(N27),ISBLANK(O27)), AND(ISTEXT(#REF!),ISBLANK(#REF!)), AND(ISTEXT(#REF!),ISBLANK(#REF!)), AND(ISTEXT(#REF!),ISBLANK(#REF!)),),1,0) -> 0 | T27: =INDIRECT("'"&$B27&"'!F56",TRUE) -> 0 | U27: =INDIRECT("'"&$B27&"'!M56",TRUE) -> 49.29833333 | V27: =INDIRECT("'"&$B27&"'!q56",TRUE) -> 0 | X27: =SUMIF('Input|Indirect Cost Rates'!$E$25:$E$26,'Input|Fee Based'!$E27,'Input|Indirect Cost Rates'!$D$25:$D$26) -> 0.2093290404 | Y27: =SUMIF('Input|Indirect Cost Rates'!$E$27:$E$28,'Input|Fee Based'!$E27,'Input|Indirect Cost Rates'!$D$27:$D$28) -> 0.4009715377 | Z27: 0 | AA27: =IF(E27='Input|Setup'!$H$31,'Input|Indirect Cost Rates'!$D$44,0) -> 0 | AB27: 0 | AC27: 0 | AD27: 0 | AE27: 0 | AG27: 0
A28: 17 | B28: DCTK | C28: Disconnection (temporary) AH | D28: After Hours | E28: Opex | F28: Customer requested supply outage | G28: Fee Based | H28: 0 | I28: =IF(INDIRECT("'"&$B28&"'!B10",TRUE)="","",INDIRECT("'"&$B28&"'!B10",TRUE)) -> Administrative Officer | J28: Business Hours | K28: =IF(I28="","",INDIRECT("'"&$B28&"'!D10",TRUE)) -> 1 | L28: =IF(I28="","",INDIRECT("'"&$B28&"'!F30",TRUE)) -> 30 | M28: =IF(OR( AND(ISTEXT(I28),ISBLANK(J28)), AND(ISTEXT(#REF!),ISBLANK(#REF!)), AND(ISTEXT(#REF!),ISBLANK(#REF!))),1,0) -> 0 | N28: =IF(INDIRECT("'"&$B28&"'!H10",TRUE)="","",INDIRECT("'"&$B28&"'!H10",TRUE)) -> Field Worker | O28: After Hours | P28: =IF(N28="","",INDIRECT("'"&$B28&"'!J10",TRUE)) -> 2 | Q28: =IF(N28="","",INDIRECT("'"&$B28&"'!L10",TRUE)/P28) -> 30 | R28: =IF(N28="","",(INDIRECT("'"&$B28&"'!L30",TRUE)-($Q28*P28))/P28) -> 25 | S28: =IF(OR( AND(ISTEXT(N28),ISBLANK(O28)), AND(ISTEXT(#REF!),ISBLANK(#REF!)), AND(ISTEXT(#REF!),ISBLANK(#REF!)), AND(ISTEXT(#REF!),ISBLANK(#REF!)),),1,0) -> 0 | T28: =INDIRECT("'"&$B28&"'!F56",TRUE) -> 0 | U28: =INDIRECT("'"&$B28&"'!M56",TRUE) -> 49.29833333 | V28: =INDIRECT("'"&$B28&"'!q56",TRUE) -> 0 | X28: =SUMIF('Input|Indirect Cost Rates'!$E$25:$E$26,'Input|Fee Based'!$E28,'Input|Indirect Cost Rates'!$D$25:$D$26) -> 0.2093290404 | Y28: =SUMIF('Input|Indirect Cost Rates'!$E$27:$E$28,'Input|Fee Based'!$E28,'Input|Indirect Cost Rates'!$D$27:$D$28) -> 0.4009715377 | Z28: 0 | AA28: =IF(E28='Input|Setup'!$H$31,'Input|Indirect Cost Rates'!$D$44,0) -> 0 | AB28: 0 | AC28: 0 | AD28: 0 | AE28: 0 | AG28: 0
A29: 18 | B29: RCTK | C29: Reconnection after temp discon BH | D29: Business Hours | E29: Opex | F29: Customer requested supply outage | G29: Fee Based | H29: 0 | I29: =IF(INDIRECT("'"&$B29&"'!B10",TRUE)="","",INDIRECT("'"&$B29&"'!B10",TRUE)) -> Administrative Officer | J29: Business Hours | K29: =IF(I29="","",INDIRECT("'"&$B29&"'!D10",TRUE)) -> 1 | L29: =IF(I29="","",INDIRECT("'"&$B29&"'!F30",TRUE)) -> 30 | M29: =IF(OR( AND(ISTEXT(I29),ISBLANK(J29)), AND(ISTEXT(#REF!),ISBLANK(#REF!)), AND(ISTEXT(#REF!),ISBLANK(#REF!))),1,0) -> 0 | N29: =IF(INDIRECT("'"&$B29&"'!H10",TRUE)="","",INDIRECT("'"&$B29&"'!H10",TRUE)) -> Field Worker | O29: Business Hours | P29: =IF(N29="","",INDIRECT("'"&$B29&"'!J10",TRUE)) -> 2 | Q29: =IF(N29="","",INDIRECT("'"&$B29&"'!L10",TRUE)/P29) -> 30 | R29: =IF(N29="","",(INDIRECT("'"&$B29&"'!L30",TRUE)-($Q29*P29))/P29) -> 35 | S29: =IF(OR( AND(ISTEXT(N29),ISBLANK(O29)), AND(ISTEXT(#REF!),ISBLANK(#REF!)), AND(ISTEXT(#REF!),ISBLANK(#REF!)), AND(ISTEXT(#REF!),ISBLANK(#REF!)),),1,0) -> 0 | T29: =INDIRECT("'"&$B29&"'!F56",TRUE) -> 0 | U29: =INDIRECT("'"&$B29&"'!M56",TRUE) -> 58.26166667 | V29: =INDIRECT("'"&$B29&"'!q56",TRUE) -> 0 | X29: =SUMIF('Input|Indirect Cost Rates'!$E$25:$E$26,'Input|Fee Based'!$E29,'Input|Indirect Cost Rates'!$D$25:$D$26) -> 0.2093290404 | Y29: =SUMIF('Input|Indirect Cost Rates'!$E$27:$E$28,'Input|Fee Based'!$E29,'Input|Indirect Cost Rates'!$D$27:$D$28) -> 0.4009715377 | Z29: 0 | AA29: =IF(E29='Input|Setup'!$H$31,'Input|Indirect Cost Rates'!$D$44,0) -> 0 | AB29: 0 | AC29: 0 | AD29: 0 | AE29: 0 | AG29: 0
A30: 19 | B30: RCTK | C30: Reconnection after temp discon AH | D30: After Hours | E30: Opex | F30: Customer requested supply outage | G30: Fee Based | H30: 0 | I30: =IF(INDIRECT("'"&$B30&"'!B10",TRUE)="","",INDIRECT("'"&$B30&"'!B10",TRUE)) -> Administrative Officer | J30: Business Hours | K30: =IF(I30="","",INDIRECT("'"&$B30&"'!D10",TRUE)) -> 1 | L30: =IF(I30="","",INDIRECT("'"&$B30&"'!F30",TRUE)) -> 30 | M30: =IF(OR( AND(ISTEXT(I30),ISBLANK(J30)), AND(ISTEXT(#REF!),ISBLANK(#REF!)), AND(ISTEXT(#REF!),ISBLANK(#REF!))),1,0) -> 0 | N30: =IF(INDIRECT("'"&$B30&"'!H10",TRUE)="","",INDIRECT("'"&$B30&"'!H10",TRUE)) -> Field Worker | O30: After Hours | P30: =IF(N30="","",INDIRECT("'"&$B30&"'!J10",TRUE)) -> 2 | Q30: =IF(N30="","",INDIRECT("'"&$B30&"'!L10",TRUE)/P30) -> 30 | R30: =IF(N30="","",(INDIRECT("'"&$B30&"'!L30",TRUE)-($Q30*P30))/P30) -> 35 | S30: =IF(OR( AND(ISTEXT(N30),ISBLANK(O30)), AND(ISTEXT(#REF!),ISBLANK(#REF!)), AND(ISTEXT(#REF!),ISBLANK(#REF!)), AND(ISTEXT(#REF!),ISBLANK(#REF!)),),1,0) -> 0 | T30: =INDIRECT("'"&$B30&"'!F56",TRUE) -> 0 | U30: =INDIRECT("'"&$B30&"'!M56",TRUE) -> 58.26166667 | V30: =INDIRECT("'"&$B30&"'!q56",TRUE) -> 0 | X30: =SUMIF('Input|Indirect Cost Rates'!$E$25:$E$26,'Input|Fee Based'!$E30,'Input|Indirect Cost Rates'!$D$25:$D$26) -> 0.2093290404 | Y30: =SUMIF('Input|Indirect Cost Rates'!$E$27:$E$28,'Input|Fee Based'!$E30,'Input|Indirect Cost Rates'!$D$27:$D$28) -> 0.4009715377 | Z30: 0 | AA30: =IF(E30='Input|Setup'!$H$31,'Input|Indirect Cost Rates'!$D$44,0) -> 0 | AB30: 0 | AC30: 0 | AD30: 0 | AE30: 0 | AG30: 0
A31: 20 | B31: SLOM | C31: Security Lighting - O&M | D31: Business Hours | E31: Capex | F31: Security lights | G31: Fee Based | H31: 0 | I31: =IF(INDIRECT("'"&$B31&"'!B10",TRUE)="","",INDIRECT("'"&$B31&"'!B10",TRUE)) ->  | J31: =IF(I31="","",$D$12) ->  | K31: =IF(I31="","",INDIRECT("'"&$B31&"'!D10",TRUE)) ->  | L31: =IF(I31="","",INDIRECT("'"&$B31&"'!F30",TRUE)) ->  | M31: =IF(OR( AND(ISTEXT(I31),ISBLANK(J31)), AND(ISTEXT(#REF!),ISBLANK(#REF!)), AND(ISTEXT(#REF!),ISBLANK(#REF!))),1,0) -> 0 | N31: =IF(INDIRECT("'"&$B31&"'!H10",TRUE)="","",INDIRECT("'"&$B31&"'!H10",TRUE)) ->  | P31: =IF(N31="","",INDIRECT("'"&$B31&"'!J10",TRUE)) ->  | Q31: =IF(N31="","",INDIRECT("'"&$B31&"'!L10",TRUE)/P31) ->  | R31: =IF(N31="","",(INDIRECT("'"&$B31&"'!L30",TRUE)-($Q31*P31))/P31) ->  | S31: =IF(OR( AND(ISTEXT(N31),ISBLANK(O31)), AND(ISTEXT(#REF!),ISBLANK(#REF!)), AND(ISTEXT(#REF!),ISBLANK(#REF!)), AND(ISTEXT(#REF!),ISBLANK(#REF!)),),1,0) -> 0 | T31: =INDIRECT("'"&$B31&"'!F56",TRUE) -> 0 | U31: =INDIRECT("'"&$B31&"'!M56",TRUE) -> 0 | V31: =INDIRECT("'"&$B31&"'!q56",TRUE) -> 100.279415 | X31: =SUMIF('Input|Indirect Cost Rates'!$E$25:$E$26,'Input|Fee Based'!$E31,'Input|Indirect Cost Rates'!$D$25:$D$26) -> 0.2093290404 | Y31: =SUMIF('Input|Indirect Cost Rates'!$E$27:$E$28,'Input|Fee Based'!$E31,'Input|Indirect Cost Rates'!$D$27:$D$28) -> 0.4009715377 | Z31: 0 | AA31: =IF(E31='Input|Setup'!$H$31,'Input|Indirect Cost Rates'!$D$44,0) -> 0.04564445826 | AB31: 0 | AC31: 0 | AD31: 0 | AE31: 0 | AF31: Refer to "Other Costs" table in 'SLOM' tab. | AG31: 0
A32: 21 | B32: RFOM | C32: Enhanced Connection Operation and Maintenance | D32: Business Hours | E32: Opex | F32: Enhanced connection services | G32: Fee Based | H32: =IF(AND(ISTEXT(C32),OR(ISBLANK(D32),ISBLANK(F32))),1,0) -> 0 | I32: =IF(INDIRECT("'"&$B32&"'!B10",TRUE)="","",INDIRECT("'"&$B32&"'!B10",TRUE)) ->  | J32: =IF(I32="","",$D$12) ->  | K32: =IF(I32="","",INDIRECT("'"&$B32&"'!D10",TRUE)) ->  | L32: =IF(I32="","",INDIRECT("'"&$B32&"'!F30",TRUE)) ->  | M32: =IF(OR( AND(ISTEXT(I32),ISBLANK(J32)), AND(ISTEXT(#REF!),ISBLANK(#REF!)), AND(ISTEXT(#REF!),ISBLANK(#REF!))),1,0) -> 0 | N32: =IF(INDIRECT("'"&$B32&"'!H10",TRUE)="","",INDIRECT("'"&$B32&"'!H10",TRUE)) ->  | O32: =IF(N32="","",D32) ->  | P32: =IF(N32="","",INDIRECT("'"&$B32&"'!J10",TRUE)) ->  | Q32: =IF(N32="","",INDIRECT("'"&$B32&"'!L10",TRUE)/P32) ->  | R32: =IF(N32="","",(INDIRECT("'"&$B32&"'!L30",TRUE)-($Q32*P32))/P32) ->  | S32: =IF(OR( AND(ISTEXT(N32),ISBLANK(O32)), AND(ISTEXT(#REF!),ISBLANK(#REF!)), AND(ISTEXT(#REF!),ISBLANK(#REF!)), AND(ISTEXT(#REF!),ISBLANK(#REF!)),),1,0) -> 0 | T32: =INDIRECT("'"&$B32&"'!F56",TRUE) -> 0 | U32: =INDIRECT("'"&$B32&"'!M56",TRUE) -> 0 | V32: =INDIRECT("'"&$B32&"'!q56",TRUE) -> 9.55101191 | X32: =SUMIF('Input|Indirect Cost Rates'!$E$25:$E$26,'Input|Fee Based'!$E32,'Input|Indirect Cost Rates'!$D$25:$D$26) -> 0.2093290404 | Y32: =SUMIF('Input|Indirect Cost Rates'!$E$27:$E$28,'Input|Fee Based'!$E32,'Input|Indirect Cost Rates'!$D$27:$D$28) -> 0.4009715377 | Z32: 0 | AA32: =IF(E32='Input|Setup'!$H$31,'Input|Indirect Cost Rates'!$D$44,0) -> 0 | AB32: 0 | AC32: 0 | AD32: 0 | AE32: 0 | AF32: Estimation of operating and maintenance expenditure attributed to the high voltage network for deriving reserve feeder rate ($/kW) | AG32: 0
A33: 22 | B33: REENRM | C33: Remote energisation | D33: Business Hours | E33: Opex | F33: Auxiliary metering services | G33: Fee Based | H33: 0 | I33: =IF(INDIRECT("'"&$B33&"'!B10",TRUE)="","",INDIRECT("'"&$B33&"'!B10",TRUE)) ->  | K33: =IF(I33="","",INDIRECT("'"&$B33&"'!D10",TRUE)) ->  | L33: =IF(I33="","",INDIRECT("'"&$B33&"'!F30",TRUE)) ->  | M33: =IF(OR( AND(ISTEXT(I33),ISBLANK(J33)), AND(ISTEXT(#REF!),ISBLANK(#REF!)), AND(ISTEXT(#REF!),ISBLANK(#REF!))),1,0) -> 0 | N33: =IF(INDIRECT("'"&$B33&"'!H10",TRUE)="","",INDIRECT("'"&$B33&"'!H10",TRUE)) ->  | P33: =IF(N33="","",INDIRECT("'"&$B33&"'!J10",TRUE)) ->  | Q33: =IF(N33="","",INDIRECT("'"&$B33&"'!L10",TRUE)/P33) ->  | R33: =IF(N33="","",(INDIRECT("'"&$B33&"'!L30",TRUE)-($Q33*P33))/P33) ->  | S33: =IF(OR( AND(ISTEXT(N33),ISBLANK(O33)), AND(ISTEXT(#REF!),ISBLANK(#REF!)), AND(ISTEXT(#REF!),ISBLANK(#REF!)), AND(ISTEXT(#REF!),ISBLANK(#REF!)),),1,0) -> 0 | T33: =INDIRECT("'"&$B33&"'!F56",TRUE) -> 0 | U33: =INDIRECT("'"&$B33&"'!M56",TRUE) -> 0 | V33: =INDIRECT("'"&$B33&"'!q56",TRUE) -> 0 | X33: =SUMIF('Input|Indirect Cost Rates'!$E$25:$E$26,'Input|Fee Based'!$E33,'Input|Indirect Cost Rates'!$D$25:$D$26) -> 0.2093290404 | Y33: =SUMIF('Input|Indirect Cost Rates'!$E$27:$E$28,'Input|Fee Based'!$E33,'Input|Indirect Cost Rates'!$D$27:$D$28) -> 0.4009715377 | Z33: 0 | AA33: =IF(E33='Input|Setup'!$H$31,'Input|Indirect Cost Rates'!$D$44,0) -> 0 | AB33: 0 | AC33: 0 | AD33: 0 | AE33: 0 | AG33: 0
A34: 23 | B34: DEENRM | C34: Remote de-energisation | D34: Business Hours | E34: Opex | F34: Auxiliary metering services | G34: Fee Based | H34: 0 | I34: =IF(INDIRECT("'"&$B34&"'!B10",TRUE)="","",INDIRECT("'"&$B34&"'!B10",TRUE)) ->  | K34: =IF(I34="","",INDIRECT("'"&$B34&"'!D10",TRUE)) ->  | L34: =IF(I34="","",INDIRECT("'"&$B34&"'!F30",TRUE)) ->  | M34: =IF(OR( AND(ISTEXT(I34),ISBLANK(J34)), AND(ISTEXT(#REF!),ISBLANK(#REF!)), AND(ISTEXT(#REF!),ISBLANK(#REF!))),1,0) -> 0 | N34: =IF(INDIRECT("'"&$B34&"'!H10",TRUE)="","",INDIRECT("'"&$B34&"'!H10",TRUE)) ->  | P34: =IF(N34="","",INDIRECT("'"&$B34&"'!J10",TRUE)) ->  | Q34: =IF(N34="","",INDIRECT("'"&$B34&"'!L10",TRUE)/P34) ->  | R34: =IF(N34="","",(INDIRECT("'"&$B34&"'!L30",TRUE)-($Q34*P34))/P34) ->  | S34: =IF(OR( AND(ISTEXT(N34),ISBLANK(O34)), AND(ISTEXT(#REF!),ISBLANK(#REF!)), AND(ISTEXT(#REF!),ISBLANK(#REF!)), AND(ISTEXT(#REF!),ISBLANK(#REF!)),),1,0) -> 0 | T34: =INDIRECT("'"&$B34&"'!F56",TRUE) -> 0 | U34: =INDIRECT("'"&$B34&"'!M56",TRUE) -> 0 | V34: =INDIRECT("'"&$B34&"'!q56",TRUE) -> 0 | X34: =SUMIF('Input|Indirect Cost Rates'!$E$25:$E$26,'Input|Fee Based'!$E34,'Input|Indirect Cost Rates'!$D$25:$D$26) -> 0.2093290404 | Y34: =SUMIF('Input|Indirect Cost Rates'!$E$27:$E$28,'Input|Fee Based'!$E34,'Input|Indirect Cost Rates'!$D$27:$D$28) -> 0.4009715377 | Z34: 0 | AA34: =IF(E34='Input|Setup'!$H$31,'Input|Indirect Cost Rates'!$D$44,0) -> 0 | AB34: 0 | AC34: 0 | AD34: 0 | AE34: 0 | AG34: 0
A35: 24 | B35: MCTK | C35: Meter Alteration BH | D35: Business Hours | E35: Opex | F35: Auxiliary metering services | G35: Fee Based | H35: 0 | I35: =IF(INDIRECT("'"&$B35&"'!B10",TRUE)="","",INDIRECT("'"&$B35&"'!B10",TRUE)) -> Administrative Officer | J35: Business Hours | K35: =IF(I35="","",INDIRECT("'"&$B35&"'!D10",TRUE)) -> 1 | L35: =IF(I35="","",INDIRECT("'"&$B35&"'!F30",TRUE)) -> 60 | M35: =IF(OR( AND(ISTEXT(I35),ISBLANK(J35)), AND(ISTEXT(#REF!),ISBLANK(#REF!)), AND(ISTEXT(#REF!),ISBLANK(#REF!))),1,0) -> 0 | N35: =IF(INDIRECT("'"&$B35&"'!H10",TRUE)="","",INDIRECT("'"&$B35&"'!H10",TRUE)) -> Field Worker | O35: Business Hours | P35: =IF(N35="","",INDIRECT("'"&$B35&"'!J10",TRUE)) -> 2 | Q35: =IF(N35="","",INDIRECT("'"&$B35&"'!L10",TRUE)/P35) -> 30 | R35: =IF(N35="","",(INDIRECT("'"&$B35&"'!L30",TRUE)-($Q35*P35))/P35) -> 35 | S35: =IF(OR( AND(ISTEXT(N35),ISBLANK(O35)), AND(ISTEXT(#REF!),ISBLANK(#REF!)), AND(ISTEXT(#REF!),ISBLANK(#REF!)), AND(ISTEXT(#REF!),ISBLANK(#REF!)),),1,0) -> 0 | T35: =INDIRECT("'"&$B35&"'!F56",TRUE) -> 0 | U35: =INDIRECT("'"&$B35&"'!M56",TRUE) -> 58.26166667 | V35: =INDIRECT("'"&$B35&"'!q56",TRUE) -> 0 | X35: =SUMIF('Input|Indirect Cost Rates'!$E$25:$E$26,'Input|Fee Based'!$E35,'Input|Indirect Cost Rates'!$D$25:$D$26) -> 0.2093290404 | Y35: =SUMIF('Input|Indirect Cost Rates'!$E$27:$E$28,'Input|Fee Based'!$E35,'Input|Indirect Cost Rates'!$D$27:$D$28) -> 0.4009715377 | Z35: 0 | AA35: =IF(E35='Input|Setup'!$H$31,'Input|Indirect Cost Rates'!$D$44,0) -> 0 | AB35: 0 | AC35: 0 | AD35: 0 | AE35: 0 | AG35: 0
A36: 25 | B36: MCTK | C36: Meter Alteration AH | D36: After Hours | E36: Opex | F36: Auxiliary metering services | G36: Fee Based | H36: 0 | I36: =IF(INDIRECT("'"&$B36&"'!B10",TRUE)="","",INDIRECT("'"&$B36&"'!B10",TRUE)) -> Administrative Officer | J36: Business Hours | K36: =IF(I36="","",INDIRECT("'"&$B36&"'!D10",TRUE)) -> 1 | L36: =IF(I36="","",INDIRECT("'"&$B36&"'!F30",TRUE)) -> 60 | M36: =IF(OR( AND(ISTEXT(I36),ISBLANK(J36)), AND(ISTEXT(#REF!),ISBLANK(#REF!)), AND(ISTEXT(#REF!),ISBLANK(#REF!))),1,0) -> 0 | N36: =IF(INDIRECT("'"&$B36&"'!H10",TRUE)="","",INDIRECT("'"&$B36&"'!H10",TRUE)) -> Field Worker | O36: After Hours | P36: =IF(N36="","",INDIRECT("'"&$B36&"'!J10",TRUE)) -> 2 | Q36: =IF(N36="","",INDIRECT("'"&$B36&"'!L10",TRUE)/P36) -> 30 | R36: =IF(N36="","",(INDIRECT("'"&$B36&"'!L30",TRUE)-($Q36*P36))/P36) -> 35 | S36: =IF(OR( AND(ISTEXT(N36),ISBLANK(O36)), AND(ISTEXT(#REF!),ISBLANK(#REF!)), AND(ISTEXT(#REF!),ISBLANK(#REF!)), AND(ISTEXT(#REF!),ISBLANK(#REF!)),),1,0) -> 0 | T36: =INDIRECT("'"&$B36&"'!F56",TRUE) -> 0 | U36: =INDIRECT("'"&$B36&"'!M56",TRUE) -> 58.26166667 | V36: =INDIRECT("'"&$B36&"'!q56",TRUE) -> 0 | X36: =SUMIF('Input|Indirect Cost Rates'!$E$25:$E$26,'Input|Fee Based'!$E36,'Input|Indirect Cost Rates'!$D$25:$D$26) -> 0.2093290404 | Y36: =SUMIF('Input|Indirect Cost Rates'!$E$27:$E$28,'Input|Fee Based'!$E36,'Input|Indirect Cost Rates'!$D$27:$D$28) -> 0.4009715377 | Z36: 0 | AA36: =IF(E36='Input|Setup'!$H$31,'Input|Indirect Cost Rates'!$D$44,0) -> 0 | AB36: 0 | AC36: 0 | AD36: 0 | AE36: 0 | AG36: 0
A37: 26 | B37: SPRDRM | C37: Remote special meter read | D37: Business Hours | E37: Opex | F37: Auxiliary metering services | G37: Fee Based | H37: 0 | I37: =IF(INDIRECT("'"&$B37&"'!B10",TRUE)="","",INDIRECT("'"&$B37&"'!B10",TRUE)) ->  | K37: =IF(I37="","",INDIRECT("'"&$B37&"'!D10",TRUE)) ->  | L37: =IF(I37="","",INDIRECT("'"&$B37&"'!F30",TRUE)) ->  | M37: =IF(OR( AND(ISTEXT(I37),ISBLANK(J37)), AND(ISTEXT(#REF!),ISBLANK(#REF!)), AND(ISTEXT(#REF!),ISBLANK(#REF!))),1,0) -> 0 | N37: =IF(INDIRECT("'"&$B37&"'!H10",TRUE)="","",INDIRECT("'"&$B37&"'!H10",TRUE)) ->  | P37: =IF(N37="","",INDIRECT("'"&$B37&"'!J10",TRUE)) ->  | Q37: =IF(N37="","",INDIRECT("'"&$B37&"'!L10",TRUE)/P37) ->  | R37: =IF(N37="","",(INDIRECT("'"&$B37&"'!L30",TRUE)-($Q37*P37))/P37) ->  | S37: =IF(OR( AND(ISTEXT(N37),ISBLANK(O37)), AND(ISTEXT(#REF!),ISBLANK(#REF!)), AND(ISTEXT(#REF!),ISBLANK(#REF!)), AND(ISTEXT(#REF!),ISBLANK(#REF!)),),1,0) -> 0 | T37: =INDIRECT("'"&$B37&"'!F56",TRUE) -> 0 | U37: =INDIRECT("'"&$B37&"'!M56",TRUE) -> 0 | V37: =INDIRECT("'"&$B37&"'!q56",TRUE) -> 0 | X37: =SUMIF('Input|Indirect Cost Rates'!$E$25:$E$26,'Input|Fee Based'!$E37,'Input|Indirect Cost Rates'!$D$25:$D$26) -> 0.2093290404 | Y37: =SUMIF('Input|Indirect Cost Rates'!$E$27:$E$28,'Input|Fee Based'!$E37,'Input|Indirect Cost Rates'!$D$27:$D$28) -> 0.4009715377 | Z37: 0 | AA37: =IF(E37='Input|Setup'!$H$31,'Input|Indirect Cost Rates'!$D$44,0) -> 0 | AB37: 0 | AC37: 0 | AD37: 0 | AE37: 0 | AG37: 0
A38: 27 | B38: MECFRM | C38: Remote meter reconfiguration | D38: Business Hours | E38: Opex | F38: Auxiliary metering services | G38: Fee Based | H38: 0 | I38: =IF(INDIRECT("'"&$B38&"'!B10",TRUE)="","",INDIRECT("'"&$B38&"'!B10",TRUE)) -> Administrative Officer | J38: Business Hours | K38: =IF(I38="","",INDIRECT("'"&$B38&"'!D10",TRUE)) -> 1 | L38: =IF(I38="","",INDIRECT("'"&$B38&"'!F30",TRUE)) -> 32 | M38: =IF(OR( AND(ISTEXT(I38),ISBLANK(J38)), AND(ISTEXT(#REF!),ISBLANK(#REF!)), AND(ISTEXT(#REF!),ISBLANK(#REF!))),1,0) -> 0 | N38: =IF(INDIRECT("'"&$B38&"'!H10",TRUE)="","",INDIRECT("'"&$B38&"'!H10",TRUE)) ->  | P38: =IF(N38="","",INDIRECT("'"&$B38&"'!J10",TRUE)) ->  | Q38: =IF(N38="","",INDIRECT("'"&$B38&"'!L10",TRUE)/P38) ->  | R38: =IF(N38="","",(INDIRECT("'"&$B38&"'!L30",TRUE)-($Q38*P38))/P38) ->  | S38: =IF(OR( AND(ISTEXT(N38),ISBLANK(O38)), AND(ISTEXT(#REF!),ISBLANK(#REF!)), AND(ISTEXT(#REF!),ISBLANK(#REF!)), AND(ISTEXT(#REF!),ISBLANK(#REF!)),),1,0) -> 0 | T38: =INDIRECT("'"&$B38&"'!F56",TRUE) -> 0 | U38: =INDIRECT("'"&$B38&"'!M56",TRUE) -> 0 | V38: =INDIRECT("'"&$B38&"'!q56",TRUE) -> 0 | X38: =SUMIF('Input|Indirect Cost Rates'!$E$25:$E$26,'Input|Fee Based'!$E38,'Input|Indirect Cost Rates'!$D$25:$D$26) -> 0.2093290404 | Y38: =SUMIF('Input|Indirect Cost Rates'!$E$27:$E$28,'Input|Fee Based'!$E38,'Input|Indirect Cost Rates'!$D$27:$D$28) -> 0.4009715377 | Z38: 0 | AA38: =IF(E38='Input|Setup'!$H$31,'Input|Indirect Cost Rates'!$D$44,0) -> 0 | AB38: 0 | AC38: 0 | AD38: 0 | AE38: 0 | AG38: 0
A39: 28 | B39: SPRD | C39: Field-based special meter reads | D39: Business Hours | E39: Opex | F39: Auxiliary metering services | G39: Fee Based | H39: 0 | M39: =IF(OR( AND(ISTEXT(I39),ISBLANK(J39)), AND(ISTEXT(#REF!),ISBLANK(#REF!)), AND(ISTEXT(#REF!),ISBLANK(#REF!))),1,0) -> 0 | S39: =IF(OR( AND(ISTEXT(N39),ISBLANK(O39)), AND(ISTEXT(#REF!),ISBLANK(#REF!)), AND(ISTEXT(#REF!),ISBLANK(#REF!)), AND(ISTEXT(#REF!),ISBLANK(#REF!)),),1,0) -> 0 | V39: 58.43 | X39: =SUMIF('Input|Indirect Cost Rates'!$E$25:$E$26,'Input|Fee Based'!$E39,'Input|Indirect Cost Rates'!$D$25:$D$26) -> 0.2093290404 | Y39: =SUMIF('Input|Indirect Cost Rates'!$E$27:$E$28,'Input|Fee Based'!$E39,'Input|Indirect Cost Rates'!$D$27:$D$28) -> 0.4009715377 | Z39: 0 | AA39: =IF(E39='Input|Setup'!$H$31,'Input|Indirect Cost Rates'!$D$44,0) -> 0 | AB39: 0 | AC39: 0 | AD39: 0 | AE39: 0 | AG39: 1
A40: 29 | B40: MTAL | C40: Meter test of types 5, 6 and AMI smart metering installations BH | D40: Business Hours | E40: Opex | F40: Auxiliary metering services | G40: Fee Based | H40: 0 | M40: =IF(OR( AND(ISTEXT(I40),ISBLANK(J40)), AND(ISTEXT(#REF!),ISBLANK(#REF!)), AND(ISTEXT(#REF!),ISBLANK(#REF!))),1,0) -> 0 | S40: =IF(OR( AND(ISTEXT(N40),ISBLANK(O40)), AND(ISTEXT(#REF!),ISBLANK(#REF!)), AND(ISTEXT(#REF!),ISBLANK(#REF!)), AND(ISTEXT(#REF!),ISBLANK(#REF!)),),1,0) -> 0 | V40: 629.83 | X40: =SUMIF('Input|Indirect Cost Rates'!$E$25:$E$26,'Input|Fee Based'!$E40,'Input|Indirect Cost Rates'!$D$25:$D$26) -> 0.2093290404 | Y40: =SUMIF('Input|Indirect Cost Rates'!$E$27:$E$28,'Input|Fee Based'!$E40,'Input|Indirect Cost Rates'!$D$27:$D$28) -> 0.4009715377 | Z40: 0 | AA40: =IF(E40='Input|Setup'!$H$31,'Input|Indirect Cost Rates'!$D$44,0) -> 0 | AB40: 0 | AC40: 0 | AD40: 0 | AE40: 0 | AG40: 1
A41: 30 | B41: MTAL | C41: Meter test of types 5, 6 and AMI smart metering installations AH | D41: After Hours | E41: Opex | F41: Auxiliary metering services | G41: Fee Based | H41: 0 | M41: =IF(OR( AND(ISTEXT(I41),ISBLANK(J41)), AND(ISTEXT(#REF!),ISBLANK(#REF!)), AND(ISTEXT(#REF!),ISBLANK(#REF!))),1,0) -> 0 | S41: =IF(OR( AND(ISTEXT(N41),ISBLANK(O41)), AND(ISTEXT(#REF!),ISBLANK(#REF!)), AND(ISTEXT(#REF!),ISBLANK(#REF!)), AND(ISTEXT(#REF!),ISBLANK(#REF!)),),1,0) -> 0 | V41: 855.08 | X41: =SUMIF('Input|Indirect Cost Rates'!$E$25:$E$26,'Input|Fee Based'!$E41,'Input|Indirect Cost Rates'!$D$25:$D$26) -> 0.2093290404 | Y41: =SUMIF('Input|Indirect Cost Rates'!$E$27:$E$28,'Input|Fee Based'!$E41,'Input|Indirect Cost Rates'!$D$27:$D$28) -> 0.4009715377 | Z41: 0 | AA41: =IF(E41='Input|Setup'!$H$31,'Input|Indirect Cost Rates'!$D$44,0) -> 0 | AB41: 0 | AC41: 0 | AD41: 0 | AE41: 0 | AG41: 1
A42: 31 | B42: MDCH | C42: Type 7 metering | D42: Business Hours | E42: Opex | F42: Type 7 metering services | G42: Fee Based | H42: 0 | I42: =IF(INDIRECT("'"&$B42&"'!B10",TRUE)="","",INDIRECT("'"&$B42&"'!B10",TRUE)) ->  | K42: =IF(I42="","",INDIRECT("'"&$B42&"'!D10",TRUE)) ->  | L42: =IF(I42="","",INDIRECT("'"&$B42&"'!F30",TRUE)) ->  | M42: =IF(OR( AND(ISTEXT(I42),ISBLANK(J42)), AND(ISTEXT(#REF!),ISBLANK(#REF!)), AND(ISTEXT(#REF!),ISBLANK(#REF!))),1,0) -> 0 | N42: =IF(INDIRECT("'"&$B42&"'!H10",TRUE)="","",INDIRECT("'"&$B42&"'!H10",TRUE)) ->  | P42: =IF(N42="","",INDIRECT("'"&$B42&"'!J10",TRUE)) ->  | Q42: =IF(N42="","",INDIRECT("'"&$B42&"'!L10",TRUE)/P42) ->  | R42: =IF(N42="","",(INDIRECT("'"&$B42&"'!L30",TRUE)-($Q42*P42))/P42) ->  | S42: =IF(OR( AND(ISTEXT(N42),ISBLANK(O42)), AND(ISTEXT(#REF!),ISBLANK(#REF!)), AND(ISTEXT(#REF!),ISBLANK(#REF!)), AND(ISTEXT(#REF!),ISBLANK(#REF!)),),1,0) -> 0 | T42: =INDIRECT("'"&$B42&"'!F56",TRUE) -> 0 | U42: =INDIRECT("'"&$B42&"'!M56",TRUE) -> 0 | V42: =INDIRECT("'"&$B42&"'!q56",TRUE) -> 0 | X42: =SUMIF('Input|Indirect Cost Rates'!$E$25:$E$26,'Input|Fee Based'!$E42,'Input|Indirect Cost Rates'!$D$25:$D$26) -> 0.2093290404 | Y42: =SUMIF('Input|Indirect Cost Rates'!$E$27:$E$28,'Input|Fee Based'!$E42,'Input|Indirect Cost Rates'!$D$27:$D$28) -> 0.4009715377 | Z42: 0 | AA42: =IF(E42='Input|Setup'!$H$31,'Input|Indirect Cost Rates'!$D$44,0) -> 0 | AB42: 0 | AC42: 0 | AD42: 0 | AE42: 0 | AG42: 0
A43: 32 | B43: NCUM | C43: Non-contestable unmetered loads | D43: Business Hours | E43: Capex | F43: Auxiliary metering services | G43: Fee Based | H43: 0 | I43: =IF(INDIRECT("'"&$B43&"'!B10",TRUE)="","",INDIRECT("'"&$B43&"'!B10",TRUE)) ->  | K43: =IF(I43="","",INDIRECT("'"&$B43&"'!D10",TRUE)) ->  | L43: =IF(I43="","",INDIRECT("'"&$B43&"'!F30",TRUE)) ->  | M43: =IF(OR( AND(ISTEXT(I43),ISBLANK(J43)), AND(ISTEXT(#REF!),ISBLANK(#REF!)), AND(ISTEXT(#REF!),ISBLANK(#REF!))),1,0) -> 0 | N43: =IF(INDIRECT("'"&$B43&"'!H10",TRUE)="","",INDIRECT("'"&$B43&"'!H10",TRUE)) ->  | P43: =IF(N43="","",INDIRECT("'"&$B43&"'!J10",TRUE)) ->  | Q43: =IF(N43="","",INDIRECT("'"&$B43&"'!L10",TRUE)/P43) ->  | R43: =IF(N43="","",(INDIRECT("'"&$B43&"'!L30",TRUE)-($Q43*P43))/P43) ->  | S43: =IF(OR( AND(ISTEXT(N43),ISBLANK(O43)), AND(ISTEXT(#REF!),ISBLANK(#REF!)), AND(ISTEXT(#REF!),ISBLANK(#REF!)), AND(ISTEXT(#REF!),ISBLANK(#REF!)),),1,0) -> 0 | T43: =INDIRECT("'"&$B43&"'!F56",TRUE) -> 0 | U43: =INDIRECT("'"&$B43&"'!M56",TRUE) -> 0 | V43: =INDIRECT("'"&$B43&"'!q56",TRUE) -> 0 | X43: =SUMIF('Input|Indirect Cost Rates'!$E$25:$E$26,'Input|Fee Based'!$E43,'Input|Indirect Cost Rates'!$D$25:$D$26) -> 0.2093290404 | Y43: =SUMIF('Input|Indirect Cost Rates'!$E$27:$E$28,'Input|Fee Based'!$E43,'Input|Indirect Cost Rates'!$D$27:$D$28) -> 0.4009715377 | Z43: 0 | AA43: =IF(E43='Input|Setup'!$H$31,'Input|Indirect Cost Rates'!$D$44,0) -> 0.04564445826 | AB43: 0 | AC43: 0 | AD43: 0 | AE43: 0 | AG43: 0
A44: 33 | B44: WSVR | C44: Wasted site attendance BH | D44: Business Hours | E44: Opex | F44: Connection service | G44: Fee Based | H44: 0 | I44: =IF(INDIRECT("'"&$B44&"'!B10",TRUE)="","",INDIRECT("'"&$B44&"'!B10",TRUE)) -> Administrative Officer | J44: Business Hours | K44: =IF(I44="","",INDIRECT("'"&$B44&"'!D10",TRUE)) -> 1 | L44: =IF(I44="","",INDIRECT("'"&$B44&"'!F30",TRUE)) -> 60 | M44: =IF(OR( AND(ISTEXT(I44),ISBLANK(J44)), AND(ISTEXT(#REF!),ISBLANK(#REF!)), AND(ISTEXT(#REF!),ISBLANK(#REF!))),1,0) -> 0 | N44: =IF(INDIRECT("'"&$B44&"'!H10",TRUE)="","",INDIRECT("'"&$B44&"'!H10",TRUE)) -> Field Worker | O44: Business Hours | P44: =IF(N44="","",INDIRECT("'"&$B44&"'!J10",TRUE)) -> 2 | Q44: =IF(N44="","",INDIRECT("'"&$B44&"'!L10",TRUE)/P44) -> 30 | R44: =IF(N44="","",(INDIRECT("'"&$B44&"'!L30",TRUE)-($Q44*P44))/P44) -> 35 | S44: =IF(OR( AND(ISTEXT(N44),ISBLANK(O44)), AND(ISTEXT(#REF!),ISBLANK(#REF!)), AND(ISTEXT(#REF!),ISBLANK(#REF!)), AND(ISTEXT(#REF!),ISBLANK(#REF!)),),1,0) -> 0 | T44: =INDIRECT("'"&$B44&"'!F56",TRUE) -> 0 | U44: =INDIRECT("'"&$B44&"'!M56",TRUE) -> 58.26166667 | V44: =INDIRECT("'"&$B44&"'!q56",TRUE) -> 0 | X44: =SUMIF('Input|Indirect Cost Rates'!$E$25:$E$26,'Input|Fee Based'!$E44,'Input|Indirect Cost Rates'!$D$25:$D$26) -> 0.2093290404 | Y44: =SUMIF('Input|Indirect Cost Rates'!$E$27:$E$28,'Input|Fee Based'!$E44,'Input|Indirect Cost Rates'!$D$27:$D$28) -> 0.4009715377 | Z44: 0 | AA44: =IF(E44='Input|Setup'!$H$31,'Input|Indirect Cost Rates'!$D$44,0) -> 0 | AB44: 0 | AC44: 0 | AD44: 0 | AE44: 0 | AG44: 0
A45: 34 | B45: WSVR | C45: Wasted site attendance AH | D45: After Hours | E45: Opex | F45: Connection service | G45: Fee Based | H45: 0 | I45: =IF(INDIRECT("'"&$B45&"'!B10",TRUE)="","",INDIRECT("'"&$B45&"'!B10",TRUE)) -> Administrative Officer | J45: Business Hours | K45: =IF(I45="","",INDIRECT("'"&$B45&"'!D10",TRUE)) -> 1 | L45: =IF(I45="","",INDIRECT("'"&$B45&"'!F30",TRUE)) -> 60 | M45: =IF(OR( AND(ISTEXT(I45),ISBLANK(J45)), AND(ISTEXT(#REF!),ISBLANK(#REF!)), AND(ISTEXT(#REF!),ISBLANK(#REF!))),1,0) -> 0 | N45: =IF(INDIRECT("'"&$B45&"'!H10",TRUE)="","",INDIRECT("'"&$B45&"'!H10",TRUE)) -> Field Worker | O45: After Hours | P45: =IF(N45="","",INDIRECT("'"&$B45&"'!J10",TRUE)) -> 2 | Q45: =IF(N45="","",INDIRECT("'"&$B45&"'!L10",TRUE)/P45) -> 30 | R45: =IF(N45="","",(INDIRECT("'"&$B45&"'!L30",TRUE)-($Q45*P45))/P45) -> 35 | S45: =IF(OR( AND(ISTEXT(N45),ISBLANK(O45)), AND(ISTEXT(#REF!),ISBLANK(#REF!)), AND(ISTEXT(#REF!),ISBLANK(#REF!)), AND(ISTEXT(#REF!),ISBLANK(#REF!)),),1,0) -> 0 | T45: =INDIRECT("'"&$B45&"'!F56",TRUE) -> 0 | U45: =INDIRECT("'"&$B45&"'!M56",TRUE) -> 58.26166667 | V45: =INDIRECT("'"&$B45&"'!q56",TRUE) -> 0 | X45: =SUMIF('Input|Indirect Cost Rates'!$E$25:$E$26,'Input|Fee Based'!$E45,'Input|Indirect Cost Rates'!$D$25:$D$26) -> 0.2093290404 | Y45: =SUMIF('Input|Indirect Cost Rates'!$E$27:$E$28,'Input|Fee Based'!$E45,'Input|Indirect Cost Rates'!$D$27:$D$28) -> 0.4009715377 | Z45: 0 | AA45: =IF(E45='Input|Setup'!$H$31,'Input|Indirect Cost Rates'!$D$44,0) -> 0 | AB45: 0 | AC45: 0 | AD45: 0 | AE45: 0 | AG45: 0
A46: 35 | B46: RTK3 | C46: Replacement of 3-phase overhead service line BH | D46: Business Hours | E46: Capex | F46: Connection service | G46: Fee Based | H46: 0 | I46: =IF(INDIRECT("'"&$B46&"'!B10",TRUE)="","",INDIRECT("'"&$B46&"'!B10",TRUE)) -> Administrative Officer | J46: Business Hours | K46: =IF(I46="","",INDIRECT("'"&$B46&"'!D10",TRUE)) -> 1 | L46: =IF(I46="","",INDIRECT("'"&$B46&"'!F30",TRUE)) -> 60 | M46: =IF(OR( AND(ISTEXT(I46),ISBLANK(J46)), AND(ISTEXT(#REF!),ISBLANK(#REF!)), AND(ISTEXT(#REF!),ISBLANK(#REF!))),1,0) -> 0 | N46: =IF(INDIRECT("'"&$B46&"'!H10",TRUE)="","",INDIRECT("'"&$B46&"'!H10",TRUE)) -> Field Worker | O46: Business Hours | P46: =IF(N46="","",INDIRECT("'"&$B46&"'!J10",TRUE)) -> 2 | Q46: =IF(N46="","",INDIRECT("'"&$B46&"'!L10",TRUE)/P46) -> 30 | R46: =IF(N46="","",(INDIRECT("'"&$B46&"'!L30",TRUE)-($Q46*P46))/P46) -> 35 | S46: =IF(OR( AND(ISTEXT(N46),ISBLANK(O46)), AND(ISTEXT(#REF!),ISBLANK(#REF!)), AND(ISTEXT(#REF!),ISBLANK(#REF!)), AND(ISTEXT(#REF!),ISBLANK(#REF!)),),1,0) -> 0 | T46: =INDIRECT("'"&$B46&"'!F56",TRUE) -> 0 | U46: =INDIRECT("'"&$B46&"'!M56",TRUE) -> 58.26166667 | V46: =INDIRECT("'"&$B46&"'!q56",TRUE) -> 0 | X46: =SUMIF('Input|Indirect Cost Rates'!$E$25:$E$26,'Input|Fee Based'!$E46,'Input|Indirect Cost Rates'!$D$25:$D$26) -> 0.2093290404 | Y46: =SUMIF('Input|Indirect Cost Rates'!$E$27:$E$28,'Input|Fee Based'!$E46,'Input|Indirect Cost Rates'!$D$27:$D$28) -> 0.4009715377 | Z46: 0 | AA46: =IF(E46='Input|Setup'!$H$31,'Input|Indirect Cost Rates'!$D$44,0) -> 0.04564445826 | AB46: 0 | AC46: 0 | AD46: 0 | AE46: 0 | AG46: 0
A47: 36 | B47: RTK3 | C47: Replacement of 3-phase overhead service line AH | D47: After Hours | E47: Capex | F47: Connection service | G47: Fee Based | H47: 0 | I47: =IF(INDIRECT("'"&$B47&"'!B10",TRUE)="","",INDIRECT("'"&$B47&"'!B10",TRUE)) -> Administrative Officer | J47: Business Hours | K47: =IF(I47="","",INDIRECT("'"&$B47&"'!D10",TRUE)) -> 1 | L47: =IF(I47="","",INDIRECT("'"&$B47&"'!F30",TRUE)) -> 60 | M47: =IF(OR( AND(ISTEXT(I47),ISBLANK(J47)), AND(ISTEXT(#REF!),ISBLANK(#REF!)), AND(ISTEXT(#REF!),ISBLANK(#REF!))),1,0) -> 0 | N47: =IF(INDIRECT("'"&$B47&"'!H10",TRUE)="","",INDIRECT("'"&$B47&"'!H10",TRUE)) -> Field Worker | O47: After Hours | P47: =IF(N47="","",INDIRECT("'"&$B47&"'!J10",TRUE)) -> 2 | Q47: =IF(N47="","",INDIRECT("'"&$B47&"'!L10",TRUE)/P47) -> 30 | R47: =IF(N47="","",(INDIRECT("'"&$B47&"'!L30",TRUE)-($Q47*P47))/P47) -> 35 | S47: =IF(OR( AND(ISTEXT(N47),ISBLANK(O47)), AND(ISTEXT(#REF!),ISBLANK(#REF!)), AND(ISTEXT(#REF!),ISBLANK(#REF!)), AND(ISTEXT(#REF!),ISBLANK(#REF!)),),1,0) -> 0 | T47: =INDIRECT("'"&$B47&"'!F56",TRUE) -> 0 | U47: =INDIRECT("'"&$B47&"'!M56",TRUE) -> 58.26166667 | V47: =INDIRECT("'"&$B47&"'!q56",TRUE) -> 0 | X47: =SUMIF('Input|Indirect Cost Rates'!$E$25:$E$26,'Input|Fee Based'!$E47,'Input|Indirect Cost Rates'!$D$25:$D$26) -> 0.2093290404 | Y47: =SUMIF('Input|Indirect Cost Rates'!$E$27:$E$28,'Input|Fee Based'!$E47,'Input|Indirect Cost Rates'!$D$27:$D$28) -> 0.4009715377 | Z47: 0 | AA47: =IF(E47='Input|Setup'!$H$31,'Input|Indirect Cost Rates'!$D$44,0) -> 0.04564445826 | AB47: 0 | AC47: 0 | AD47: 0 | AE47: 0 | AG47: 0
A48: 37 | H48: 0 | M48: =IF(OR( AND(ISTEXT(I48),ISBLANK(J48)), AND(ISTEXT(#REF!),ISBLANK(#REF!)), AND(ISTEXT(#REF!),ISBLANK(#REF!))),1,0) -> 0 | S48: =IF(OR( AND(ISTEXT(N48),ISBLANK(O48)), AND(ISTEXT(#REF!),ISBLANK(#REF!)), AND(ISTEXT(#REF!),ISBLANK(#REF!)), AND(ISTEXT(#REF!),ISBLANK(#REF!)),),1,0) -> 0 | AB48: 0 | AC48: 0 | AD48: 0 | AE48: 0 | AG48: 0
A49: 38 | H49: =IF(AND(ISTEXT(C49),OR(ISBLANK(D49),ISBLANK(F49))),1,0) -> 0 | M49: =IF(OR( AND(ISTEXT(I49),ISBLANK(J49)), AND(ISTEXT(#REF!),ISBLANK(#REF!)), AND(ISTEXT(#REF!),ISBLANK(#REF!))),1,0) -> 0 | S49: =IF(OR( AND(ISTEXT(N49),ISBLANK(O49)), AND(ISTEXT(#REF!),ISBLANK(#REF!)), AND(ISTEXT(#REF!),ISBLANK(#REF!)), AND(ISTEXT(#REF!),ISBLANK(#REF!)),),1,0) -> 0 | AB49: 0 | AC49: 0 | AD49: 0 | AE49: 0 | AG49: 0
A50: 39 | H50: 0 | M50: =IF(OR( AND(ISTEXT(I50),ISBLANK(J50)), AND(ISTEXT(#REF!),ISBLANK(#REF!)), AND(ISTEXT(#REF!),ISBLANK(#REF!))),1,0) -> 0 | S50: =IF(OR( AND(ISTEXT(N50),ISBLANK(O50)), AND(ISTEXT(#REF!),ISBLANK(#REF!)), AND(ISTEXT(#REF!),ISBLANK(#REF!)), AND(ISTEXT(#REF!),ISBLANK(#REF!)),),1,0) -> 0 | AB50: 0 | AC50: 0 | AD50: 0 | AE50: 0 | AG50: 0
A51: 40 | H51: 0 | M51: =IF(OR( AND(ISTEXT(I51),ISBLANK(J51)), AND(ISTEXT(#REF!),ISBLANK(#REF!)), AND(ISTEXT(#REF!),ISBLANK(#REF!))),1,0) -> 0 | S51: =IF(OR( AND(ISTEXT(N51),ISBLANK(O51)), AND(ISTEXT(#REF!),ISBLANK(#REF!)), AND(ISTEXT(#REF!),ISBLANK(#REF!)), AND(ISTEXT(#REF!),ISBLANK(#REF!)),),1,0) -> 0 | AB51: =IF(OR(ISBLANK(X51),_xlfn.ISFORMULA(X51)),0,1) -> 0 | AC51: 0 | AD51: 0 | AE51: 0 | AG51: 0
A52: 41 | H52: 0 | M52: =IF(OR( AND(ISTEXT(I52),ISBLANK(J52)), AND(ISTEXT(#REF!),ISBLANK(#REF!)), AND(ISTEXT(#REF!),ISBLANK(#REF!))),1,0) -> 0 | S52: =IF(OR( AND(ISTEXT(N52),ISBLANK(O52)), AND(ISTEXT(#REF!),ISBLANK(#REF!)), AND(ISTEXT(#REF!),ISBLANK(#REF!)), AND(ISTEXT(#REF!),ISBLANK(#REF!)),),1,0) -> 0 | AB52: 0 | AC52: 0 | AD52: 0 | AE52: 0 | AG52: 0
A53: 42 | H53: 0 | M53: =IF(OR( AND(ISTEXT(I53),ISBLANK(J53)), AND(ISTEXT(#REF!),ISBLANK(#REF!)), AND(ISTEXT(#REF!),ISBLANK(#REF!))),1,0) -> 0 | S53: =IF(OR( AND(ISTEXT(N53),ISBLANK(O53)), AND(ISTEXT(#REF!),ISBLANK(#REF!)), AND(ISTEXT(#REF!),ISBLANK(#REF!)), AND(ISTEXT(#REF!),ISBLANK(#REF!)),),1,0) -> 0 | AB53: 0 | AC53: 0 | AD53: 0 | AE53: 0 | AG53: 0
A54: 43 | H54: 0 | M54: =IF(OR( AND(ISTEXT(I54),ISBLANK(J54)), AND(ISTEXT(#REF!),ISBLANK(#REF!)), AND(ISTEXT(#REF!),ISBLANK(#REF!))),1,0) -> 0 | S54: =IF(OR( AND(ISTEXT(N54),ISBLANK(O54)), AND(ISTEXT(#REF!),ISBLANK(#REF!)), AND(ISTEXT(#REF!),ISBLANK(#REF!)), AND(ISTEXT(#REF!),ISBLANK(#REF!)),),1,0) -> 0 | AB54: 0 | AC54: 0 | AD54: 0 | AE54: 0 | AG54: 0
A55: 44 | H55: 0 | M55: =IF(OR( AND(ISTEXT(I55),ISBLANK(J55)), AND(ISTEXT(#REF!),ISBLANK(#REF!)), AND(ISTEXT(#REF!),ISBLANK(#REF!))),1,0) -> 0 | S55: =IF(OR( AND(ISTEXT(N55),ISBLANK(O55)), AND(ISTEXT(#REF!),ISBLANK(#REF!)), AND(ISTEXT(#REF!),ISBLANK(#REF!)), AND(ISTEXT(#REF!),ISBLANK(#REF!)),),1,0) -> 0 | AB55: 0 | AC55: 0 | AD55: 0 | AE55: 0 | AG55: 0
A56: 45 | H56: 0 | M56: =IF(OR( AND(ISTEXT(I56),ISBLANK(J56)), AND(ISTEXT(#REF!),ISBLANK(#REF!)), AND(ISTEXT(#REF!),ISBLANK(#REF!))),1,0) -> 0 | S56: =IF(OR( AND(ISTEXT(N56),ISBLANK(O56)), AND(ISTEXT(#REF!),ISBLANK(#REF!)), AND(ISTEXT(#REF!),ISBLANK(#REF!)), AND(ISTEXT(#REF!),ISBLANK(#REF!)),),1,0) -> 0 | AB56: 0 | AC56: 0 | AD56: 0 | AE56: 0 | AG56: 0
A57: 46 | H57: 0 | M57: =IF(OR( AND(ISTEXT(I57),ISBLANK(J57)), AND(ISTEXT(#REF!),ISBLANK(#REF!)), AND(ISTEXT(#REF!),ISBLANK(#REF!))),1,0) -> 0 | S57: =IF(OR( AND(ISTEXT(N57),ISBLANK(O57)), AND(ISTEXT(#REF!),ISBLANK(#REF!)), AND(ISTEXT(#REF!),ISBLANK(#REF!)), AND(ISTEXT(#REF!),ISBLANK(#REF!)),),1,0) -> 0 | AB57: 0 | AC57: 0 | AD57: 0 | AE57: 0 | AG57: 0
A58: 47 | H58: 0 | M58: =IF(OR( AND(ISTEXT(I58),ISBLANK(J58)), AND(ISTEXT(#REF!),ISBLANK(#REF!)), AND(ISTEXT(#REF!),ISBLANK(#REF!))),1,0) -> 0 | S58: =IF(OR( AND(ISTEXT(N58),ISBLANK(O58)), AND(ISTEXT(#REF!),ISBLANK(#REF!)), AND(ISTEXT(#REF!),ISBLANK(#REF!)), AND(ISTEXT(#REF!),ISBLANK(#REF!)),),1,0) -> 0 | AB58: 0 | AC58: 0 | AD58: 0 | AE58: 0 | AG58: 0
A59: 48 | H59: 0 | M59: =IF(OR( AND(ISTEXT(I59),ISBLANK(J59)), AND(ISTEXT(#REF!),ISBLANK(#REF!)), AND(ISTEXT(#REF!),ISBLANK(#REF!))),1,0) -> 0 | S59: =IF(OR( AND(ISTEXT(N59),ISBLANK(O59)), AND(ISTEXT(#REF!),ISBLANK(#REF!)), AND(ISTEXT(#REF!),ISBLANK(#REF!)), AND(ISTEXT(#REF!),ISBLANK(#REF!)),),1,0) -> 0 | AB59: 0 | AC59: 0 | AD59: 0 | AE59: 0 | AG59: 0
A60: 49 | H60: 0 | M60: =IF(OR( AND(ISTEXT(I60),ISBLANK(J60)), AND(ISTEXT(#REF!),ISBLANK(#REF!)), AND(ISTEXT(#REF!),ISBLANK(#REF!))),1,0) -> 0 | S60: =IF(OR( AND(ISTEXT(N60),ISBLANK(O60)), AND(ISTEXT(#REF!),ISBLANK(#REF!)), AND(ISTEXT(#REF!),ISBLANK(#REF!)), AND(ISTEXT(#REF!),ISBLANK(#REF!)),),1,0) -> 0 | AB60: 0 | AC60: 0 | AD60: 0 | AE60: 0 | AG60: 0
A61: 50 | H61: 0 | M61: =IF(OR( AND(ISTEXT(I61),ISBLANK(J61)), AND(ISTEXT(#REF!),ISBLANK(#REF!)), AND(ISTEXT(#REF!),ISBLANK(#REF!))),1,0) -> 0 | S61: =IF(OR( AND(ISTEXT(N61),ISBLANK(O61)), AND(ISTEXT(#REF!),ISBLANK(#REF!)), AND(ISTEXT(#REF!),ISBLANK(#REF!)), AND(ISTEXT(#REF!),ISBLANK(#REF!)),),1,0) -> 0 | AB61: 0 | AC61: 0 | AD61: 0 | AE61: 0 | AG61: 0
A62: 51 | H62: =IF(AND(ISTEXT(C62),OR(ISBLANK(D62),ISBLANK(F62))),1,0) -> 0 | M62: =IF(OR( AND(ISTEXT(I62),ISBLANK(J62)), AND(ISTEXT(#REF!),ISBLANK(#REF!)), AND(ISTEXT(#REF!),ISBLANK(#REF!))),1,0) -> 0 | S62: =IF(OR( AND(ISTEXT(N62),ISBLANK(O62)), AND(ISTEXT(#REF!),ISBLANK(#REF!)), AND(ISTEXT(#REF!),ISBLANK(#REF!)), AND(ISTEXT(#REF!),ISBLANK(#REF!)),),1,0) -> 0 | AB62: 0 | AC62: =IF(OR(ISBLANK(Y62),_xlfn.ISFORMULA(Y62)),0,1) -> 0 | AD62: =IF(OR(ISBLANK(Z62),_xlfn.ISFORMULA(Z62)),0,1) -> 0 | AE62: =IF(OR(ISBLANK(AA62),_xlfn.ISFORMULA(AA62)),0,1) -> 0 | AG62: 0
A63: 52 | H63: 0 | M63: =IF(OR( AND(ISTEXT(I63),ISBLANK(J63)), AND(ISTEXT(#REF!),ISBLANK(#REF!)), AND(ISTEXT(#REF!),ISBLANK(#REF!))),1,0) -> 0 | S63: =IF(OR( AND(ISTEXT(N63),ISBLANK(O63)), AND(ISTEXT(#REF!),ISBLANK(#REF!)), AND(ISTEXT(#REF!),ISBLANK(#REF!)), AND(ISTEXT(#REF!),ISBLANK(#REF!)),),1,0) -> 0 | AB63: =IF(OR(ISBLANK(X63),_xlfn.ISFORMULA(X63)),0,1) -> 0 | AC63: 0 | AD63: 0 | AE63: 0 | AG63: =IF(AND(OR(V63="",V63=0),AF63=""),0,IF(AND(V63<>"",V63<>0,AF63=""),1,0)) -> 0
A64: 53 | H64: 0 | M64: =IF(OR( AND(ISTEXT(I64),ISBLANK(J64)), AND(ISTEXT(#REF!),ISBLANK(#REF!)), AND(ISTEXT(#REF!),ISBLANK(#REF!))),1,0) -> 0 | S64: =IF(OR( AND(ISTEXT(N64),ISBLANK(O64)), AND(ISTEXT(#REF!),ISBLANK(#REF!)), AND(ISTEXT(#REF!),ISBLANK(#REF!)), AND(ISTEXT(#REF!),ISBLANK(#REF!)),),1,0) -> 0 | AB64: 0 | AC64: 0 | AD64: 0 | AE64: 0 | AG64: 0
A65: 54 | H65: 0 | M65: =IF(OR( AND(ISTEXT(I65),ISBLANK(J65)), AND(ISTEXT(#REF!),ISBLANK(#REF!)), AND(ISTEXT(#REF!),ISBLANK(#REF!))),1,0) -> 0 | S65: =IF(OR( AND(ISTEXT(N65),ISBLANK(O65)), AND(ISTEXT(#REF!),ISBLANK(#REF!)), AND(ISTEXT(#REF!),ISBLANK(#REF!)), AND(ISTEXT(#REF!),ISBLANK(#REF!)),),1,0) -> 0 | AB65: 0 | AC65: 0 | AD65: 0 | AE65: 0 | AG65: 0
A66: 55 | H66: 0 | M66: =IF(OR( AND(ISTEXT(I66),ISBLANK(J66)), AND(ISTEXT(#REF!),ISBLANK(#REF!)), AND(ISTEXT(#REF!),ISBLANK(#REF!))),1,0) -> 0 | S66: =IF(OR( AND(ISTEXT(N66),ISBLANK(O66)), AND(ISTEXT(#REF!),ISBLANK(#REF!)), AND(ISTEXT(#REF!),ISBLANK(#REF!)), AND(ISTEXT(#REF!),ISBLANK(#REF!)),),1,0) -> 0 | AB66: 0 | AC66: 0 | AD66: 0 | AE66: 0 | AG66: 0
A67: 56 | H67: 0 | M67: =IF(OR( AND(ISTEXT(I67),ISBLANK(J67)), AND(ISTEXT(#REF!),ISBLANK(#REF!)), AND(ISTEXT(#REF!),ISBLANK(#REF!))),1,0) -> 0 | S67: =IF(OR( AND(ISTEXT(N67),ISBLANK(O67)), AND(ISTEXT(#REF!),ISBLANK(#REF!)), AND(ISTEXT(#REF!),ISBLANK(#REF!)), AND(ISTEXT(#REF!),ISBLANK(#REF!)),),1,0) -> 0 | AB67: 0 | AC67: 0 | AD67: 0 | AE67: 0 | AG67: 0
A68: 57 | H68: 0 | M68: =IF(OR( AND(ISTEXT(I68),ISBLANK(J68)), AND(ISTEXT(#REF!),ISBLANK(#REF!)), AND(ISTEXT(#REF!),ISBLANK(#REF!))),1,0) -> 0 | S68: =IF(OR( AND(ISTEXT(N68),ISBLANK(O68)), AND(ISTEXT(#REF!),ISBLANK(#REF!)), AND(ISTEXT(#REF!),ISBLANK(#REF!)), AND(ISTEXT(#REF!),ISBLANK(#REF!)),),1,0) -> 0 | AB68: 0 | AC68: 0 | AD68: 0 | AE68: 0 | AG68: 0
A69: 58 | H69: 0 | M69: =IF(OR( AND(ISTEXT(I69),ISBLANK(J69)), AND(ISTEXT(#REF!),ISBLANK(#REF!)), AND(ISTEXT(#REF!),ISBLANK(#REF!))),1,0) -> 0 | S69: =IF(OR( AND(ISTEXT(N69),ISBLANK(O69)), AND(ISTEXT(#REF!),ISBLANK(#REF!)), AND(ISTEXT(#REF!),ISBLANK(#REF!)), AND(ISTEXT(#REF!),ISBLANK(#REF!)),),1,0) -> 0 | AB69: 0 | AC69: 0 | AD69: 0 | AE69: 0 | AG69: 0
A70: 59 | H70: 0 | M70: =IF(OR( AND(ISTEXT(I70),ISBLANK(J70)), AND(ISTEXT(#REF!),ISBLANK(#REF!)), AND(ISTEXT(#REF!),ISBLANK(#REF!))),1,0) -> 0 | S70: =IF(OR( AND(ISTEXT(N70),ISBLANK(O70)), AND(ISTEXT(#REF!),ISBLANK(#REF!)), AND(ISTEXT(#REF!),ISBLANK(#REF!)), AND(ISTEXT(#REF!),ISBLANK(#REF!)),),1,0) -> 0 | AB70: 0 | AC70: 0 | AD70: 0 | AE70: 0 | AG70: 0
A71: 60 | H71: 0 | M71: =IF(OR( AND(ISTEXT(I71),ISBLANK(J71)), AND(ISTEXT(#REF!),ISBLANK(#REF!)), AND(ISTEXT(#REF!),ISBLANK(#REF!))),1,0) -> 0 | S71: =IF(OR( AND(ISTEXT(N71),ISBLANK(O71)), AND(ISTEXT(#REF!),ISBLANK(#REF!)), AND(ISTEXT(#REF!),ISBLANK(#REF!)), AND(ISTEXT(#REF!),ISBLANK(#REF!)),),1,0) -> 0 | AB71: 0 | AC71: 0 | AD71: 0 | AE71: 0 | AG71: 0

Sheet Input|Fee Based Mapping
B1: =IFERROR(Index!B1,"") -> Jemena Electricity Networks – Alternative Control Services Forecast model | D1: Key: | E1: Input | G1: Sheet Validation | H1: ='Model Validation'!C15 -> 0
B2: =IFERROR(MID(CELL("filename",A1),FIND("]",CELL("filename",A1))+1,255),"") -> Input|Fee Based Mapping | E2: Formula
O3: For AER input
B4: (1) Jemena will apply a Wasted Site Attendance fee in circumstances where on arrival at the site, it is found the customer’s premises are not ready for | N4: =G11 -> 2021-22 | O4: =H11 -> 2022-23 | P4: =I11 -> 2023-24 | Q4: =J11 -> 2024-25 | R4: =K11 -> 2025-26 | X4: * Estimate | Y4: =IFERROR('Input|Setup'!$E$6,"") -> 2026-27 | Z4: =IFERROR((LEFT(Y4,4)+1&IF(MID(Y4,5,1)="","","-"&TEXT(MOD(MID(Y4,6,2)+1,100),"00"))),"") -> 2027-28 | AA4: =IFERROR((LEFT(Z4,4)+1&IF(MID(Z4,5,1)="","","-"&TEXT(MOD(MID(Z4,6,2)+1,100),"00"))),"") -> 2028-29 | AB4: =IFERROR((LEFT(AA4,4)+1&IF(MID(AA4,5,1)="","","-"&TEXT(MOD(MID(AA4,6,2)+1,100),"00"))),"") -> 2029-30 | AC4: =IFERROR((LEFT(AB4,4)+1&IF(MID(AB4,5,1)="","","-"&TEXT(MOD(MID(AB4,6,2)+1,100),"00"))),"") -> 2030-31
B5: the scheduled work, or if the site is not safe to undertake the work or access to the site is limited. | N5: CPI | O5: ='Input|Escalations'!E16 -> 0.03498293515 | P5: ='Input|Escalations'!F16 -> 0.07831821929 | Q5: ='Input|Escalations'!G16 -> 0.04051987768 | R5: ='Input|Escalations'!H16 -> 0.0242468773 | Y5: CPI | Z5: ='Input|Escalations'!J16 -> 0.0258 | AA5: ='Input|Escalations'!K16 -> 0.0255 | AB5: ='Input|Escalations'!L16 -> 0.0253 | AC5: ='Input|Escalations'!M16 -> 0.025
B6: (2) For services marked (*), the Wasted Site Attendance fee applies. For all other services, the Wasted Site Attendance fee is the service fee shown | N6: X factors | O6: ='Input|Escalations'!E27 -> 0.03874835876 | P6: ='Input|Escalations'!F27 -> 0.008804329072 | Q6: ='Input|Escalations'!G27 -> -0.01825166827 | R6: ='Input|Escalations'!H27 -> -0.01276076614 | Y6: X factors | Z6: ='Input|Escalations'!J27 -> -0.009550582168 | AA6: ='Input|Escalations'!K27 -> -0.0111993349 | AB6: ='Input|Escalations'!L27 -> -0.01227436192 | AC6: ='Input|Escalations'!M27 -> -0.01202541615
B7: applicable to the service
B9: 8.1 Current regulatory period - Fee based services | D9: Mapping categories | G9: =IFERROR("Approved price, $ ($nominal)","") -> Approved price, $ ($nominal) | M9: AER final decision ($ nominal) | U9: 8.2 Forecast regulatory period - Fee based services | Y9: =IFERROR("Price of service, $ ($,nominal)","") -> Price of service, $ ($,nominal)
N10: =IF(SUM(N12:N61)=0,0,1) -> 0 | O10: =IF(SUM(O12:O61)=0,0,1) -> 0 | P10: =IF(SUM(P12:P61)=0,0,1) -> 0 | Q10: =IF(SUM(Q12:Q61)=0,0,1) -> 0 | R10: =IF(SUM(R12:R61)=0,0,1) -> 0
B11: Service code | C11: Fee based service | D11: Hours (List) | E11: Product Code (List) | F11: Unit Cost | G11: ='Input|Setup'!B11 -> 2021-22 | H11: ='Input|Setup'!B12 -> 2022-23 | I11: ='Input|Setup'!B13 -> 2023-24 | J11: ='Input|Setup'!B14 -> 2024-25 | K11: ='Input|Setup'!B15 -> 2025-26 | M11: =G11 -> 2021-22 | N11: =G11 -> 2021-22 | O11: =H11 -> 2022-23 | P11: =I11 -> 2023-24 | Q11: =J11 -> 2024-25 | R11: =K11 -> 2025-26 | V11: Fee based service | W11: ='Input|Setup'!$B$24 -> Hours | X11: ='Input|Setup'!E30 -> Service category | Y11: ='Input|Setup'!E11 -> 2026-27 | Z11: =LEFT(Y11,4)+1&"-"&RIGHT(Y11,2)+1 -> 2027-28 | AA11: =LEFT(Z11,4)+1&"-"&RIGHT(Z11,2)+1 -> 2028-29 | AB11: =LEFT(AA11,4)+1&"-"&RIGHT(AA11,2)+1 -> 2029-30 | AC11: =LEFT(AB11,4)+1&"-"&RIGHT(AB11,2)+1 -> 2030-31
A12: 1 | B12: ND1P | C12: Basic connection, single-phase BH * | D12: Business Hours | E12: ND1PBH | F12: Per connection | G12: 563.99 | H12: 587.59 | I12: 637.47 | J12: 668.16 | K12: =J12*(1+$R$5)*(1-$R$6) -> 693.0937616 | M12: =G12 -> 563.99 | N12: =IF(G12<=M12,0,1) -> 0 | O12: =IF(M12=0,(IF(G12<=M12,0,1)),IF(H12<=$M12*(1+O$5)*(1-O$6),1,0)) -> 0 | P12: =IF(M12=0,(IF(G12<=M12,0,1)),IF(I12<=$M12*(1+P$5)*(1-P$6),1,0)) -> 0 | Q12: =IF(M12=0,(IF(G12<=M12,0,1)),IF(J12<=$M12*(1+Q$5)*(1-Q$6),1,0)) -> 0 | R12: =IF(M12=0,(IF(G12<=M12,0,1)),IF(K12<=$M12*(1+R$5)*(1-R$6),1,0)) -> 0 | T12: 1 | U12: ='Calc|Fee Based'!B12 -> ND1P | V12: ='Calc|Fee Based'!C12 -> Basic connection, single-phase BH | W12: ='Calc|Fee Based'!E12 -> Business Hours | X12: ='Calc|Fee Based'!F12 -> Capex | Y12: ='Calc|Fee Based'!H12 -> 813.8869436 | Z12: =Y12*(1+Z$5)*(1-Z$6) -> 842.8588667 | AA12: =Z12*(1+AA$5)*(1-AA$6) -> 874.0319327 | AB12: 907.1445479 | AC12: 941.0046721
A13: =IFERROR(A12+1,"") -> 2 | B13: ND1P | C13: Basic connection, single-phase AH * | D13: After Hours | E13: ND1PAH | F13: Per connection | G13: 746.97 | H13: 778.22 | I13: 844.28 | J13: 884.93 | K13: =J13*(1+$R$5)*(1-$R$6) -> 917.952979 | M13: =G13 -> 746.97 | N13: =IF(G13<=M13,0,1) -> 0 | O13: =IF(M13=0,(IF(G13<=M13,0,1)),IF(H13<=$M13*(1+O$5)*(1-O$6),1,0)) -> 0 | P13: =IF(M13=0,(IF(G13<=M13,0,1)),IF(I13<=$M13*(1+P$5)*(1-P$6),1,0)) -> 0 | Q13: =IF(M13=0,(IF(G13<=M13,0,1)),IF(J13<=$M13*(1+Q$5)*(1-Q$6),1,0)) -> 0 | R13: =IF(M13=0,(IF(G13<=M13,0,1)),IF(K13<=$M13*(1+R$5)*(1-R$6),1,0)) -> 0 | T13: =IFERROR(T12+1,"") -> 2 | U13: ='Calc|Fee Based'!B13 -> ND1P | V13: ='Calc|Fee Based'!C13 -> Basic connection, single-phase AH | W13: ='Calc|Fee Based'!E13 -> After Hours | X13: ='Calc|Fee Based'!F13 -> Capex | Y13: ='Calc|Fee Based'!H13 -> 1162.506937 | Z13: 1203.888682 | AA13: 1248.414406 | AB13: 1295.710465 | AC13: 1344.07422
A14: =IFERROR(A13+1,"") -> 3 | B14: ND3P | C14: Basic connection, three-phase BH * | D14: Business Hours | E14: ND3PBH | F14: Per connection | G14: 693.87 | H14: 722.9 | I14: 784.26 | J14: 822.02 | K14: 852.6953632 | M14: 693.87 | N14: 0 | O14: 0 | P14: 0 | Q14: 0 | R14: 0 | T14: =IFERROR(T13+1,"") -> 3 | U14: ='Calc|Fee Based'!B14 -> ND3P | V14: ='Calc|Fee Based'!C14 -> Basic connection, three-phase BH | W14: ='Calc|Fee Based'!E14 -> Business Hours | X14: ='Calc|Fee Based'!F14 -> Capex | Y14: ='Calc|Fee Based'!H14 -> 1074.095465 | Z14: 1112.330028 | AA14: 1153.469463 | AB14: 1197.168542 | AC14: 1241.854116
A15: 4 | B15: ND3P | C15: Basic connection, three-phase AH * | D15: After Hours | E15: ND3PAH | F15: Per connection | G15: 876.85 | H15: 913.54 | I15: 991.09 | J15: 1038.81 | K15: 1077.575327 | M15: 876.85 | N15: 0 | O15: 0 | P15: 0 | Q15: 0 | R15: 0 | T15: =IFERROR(T14+1,"") -> 4 | U15: ='Calc|Fee Based'!B15 -> ND3P | V15: ='Calc|Fee Based'!C15 -> Basic connection, three-phase AH | W15: ='Calc|Fee Based'!E15 -> After Hours | X15: ='Calc|Fee Based'!F15 -> Capex | Y15: ='Calc|Fee Based'!H15 -> 1422.715459 | Z15: 1473.359843 | AA15: 1527.851936 | AB15: 1585.734458 | AC15: 1644.923664
A16: 5 | B16: BTSO | C16: Temporary connection, single-phase BH * | D16: Business Hours | E16: BTSOBH | F16: Per connection | G16: 563.99 | H16: 587.59 | I16: 637.47 | J16: 668.16 | K16: 693.0937616 | M16: 563.99 | N16: 0 | O16: 0 | P16: 0 | Q16: 0 | R16: 0 | T16: 5 | U16: ='Calc|Fee Based'!B16 -> BTSO | V16: ='Calc|Fee Based'!C16 -> Temporary connection, single-phase BH | W16: ='Calc|Fee Based'!E16 -> Business Hours | X16: ='Calc|Fee Based'!F16 -> Capex | Y16: ='Calc|Fee Based'!H16 -> 773.4149435 | Z16: 800.9461853 | AA16: 830.5691142 | AB16: 862.0351448 | AC16: 894.2115131
A17: 6 | B17: BTSO | C17: Temporary connection, single-phase AH * | D17: After Hours | E17: BTSOAH | F17: Per connection | G17: 746.97 | H17: 778.22 | I17: 844.28 | J17: 884.93 | K17: 917.952979 | M17: 746.97 | N17: 0 | O17: 0 | P17: 0 | Q17: 0 | R17: 0 | T17: 6 | U17: ='Calc|Fee Based'!B17 -> BTSO | V17: ='Calc|Fee Based'!C17 -> Temporary connection, single-phase AH | W17: ='Calc|Fee Based'!E17 -> After Hours | X17: ='Calc|Fee Based'!F17 -> Capex | Y17: ='Calc|Fee Based'!H17 -> 1122.034937 | Z17: 1161.976 | AA17: 1204.951587 | AB17: 1250.601061 | AC17: 1297.281061
A18: 7 | B18: BTSP | C18: Temporary connection, three-phase BH * | D18: Business Hours | E18: BTSPBH | F18: Per connection | G18: 693.87 | H18: 722.9 | I18: 784.26 | J18: 822.02 | K18: 852.6953632 | M18: 693.87 | N18: 0 | O18: 0 | P18: 0 | Q18: 0 | R18: 0 | T18: 7 | U18: ='Calc|Fee Based'!B18 -> BTSP | V18: ='Calc|Fee Based'!C18 -> Temporary connection, three-phase BH | W18: ='Calc|Fee Based'!E18 -> Business Hours | X18: ='Calc|Fee Based'!F18 -> Capex | Y18: ='Calc|Fee Based'!H18 -> 822.973458 | Z18: 852.2688336 | AA18: 883.7899265 | AB18: 917.2722224 | AC18: 951.5103726
A19: 8 | B19: BTSP | C19: Temporary connection, three-phase AH * | D19: After Hours | E19: BTSPAH | F19: Per connection | G19: 876.85 | H19: 913.54 | I19: 991.09 | J19: 1038.81 | K19: 1077.575327 | M19: 876.85 | N19: 0 | O19: 0 | P19: 0 | Q19: 0 | R19: 0 | T19: 8 | U19: ='Calc|Fee Based'!B19 -> BTSP | V19: ='Calc|Fee Based'!C19 -> Temporary connection, three-phase AH | W19: ='Calc|Fee Based'!E19 -> After Hours | X19: ='Calc|Fee Based'!F19 -> Capex | Y19: ='Calc|Fee Based'!H19 -> 1171.593451 | Z19: 1213.298648 | AA19: 1258.172399 | AB19: 1305.838139 | AC19: 1354.579921
A20: 9 | B20: SUTK | C20: Supply upgrade/enhancement (1ph to 3ph) BH * | D20: Business Hours | E20: SUTKBH | F20: Per connection | G20: 693.87 | H20: 722.9 | I20: 784.26 | J20: 822.02 | K20: 852.6953632 | M20: 693.87 | N20: 0 | O20: 0 | P20: 0 | Q20: 0 | R20: 0 | T20: 9 | U20: ='Calc|Fee Based'!B20 -> SUTK | V20: ='Calc|Fee Based'!C20 -> Supply upgrade/enhancement (1ph to 3ph) BH | W20: ='Calc|Fee Based'!E20 -> Business Hours | X20: ='Calc|Fee Based'!F20 -> Capex | Y20: ='Calc|Fee Based'!H20 -> 1045.321069 | Z20: 1082.531349 | AA20: 1122.568682 | AB20: 1165.097088 | AC20: 1208.585562
A21: 10 | B21: SUTK | C21: Supply upgrade/enhancement (1ph to 3ph) AH * | D21: After Hours | E21: SUTKAH | F21: Per connection | G21: 876.85 | H21: 913.54 | I21: 991.09 | J21: 1038.81 | K21: 1077.575327 | M21: 876.85 | N21: 0 | O21: 0 | P21: 0 | Q21: 0 | R21: 0 | T21: 10 | U21: ='Calc|Fee Based'!B21 -> SUTK | V21: ='Calc|Fee Based'!C21 -> Supply upgrade/enhancement (1ph to 3ph) AH | W21: ='Calc|Fee Based'!E21 -> After Hours | X21: ='Calc|Fee Based'!F21 -> Capex | Y21: ='Calc|Fee Based'!H21 -> 1393.941062 | Z21: 1443.561164 | AA21: 1496.951155 | AB21: 1553.663005 | AC21: 1611.65511
A22: 11 | B22: RTK1 | C22: Replacement of 1-phase overhead service line BH * | D22: Business Hours | E22: RTK1BH | F22: Per connection | G22: 676.4 | H22: 704.7 | I22: 764.52 | J22: 801.33 | K22: 831.2332734 | M22: 676.4 | N22: 0 | O22: 0 | P22: 0 | Q22: 0 | R22: 0 | T22: 11 | U22: ='Calc|Fee Based'!B22 -> RTK1 | V22: ='Calc|Fee Based'!C22 -> Replacement of 1-phase overhead service line BH | W22: ='Calc|Fee Based'!E22 -> Business Hours | X22: ='Calc|Fee Based'!F22 -> Capex | Y22: ='Calc|Fee Based'!H22 -> 773.4149435 | Z22: 800.9461853 | AA22: 830.5691142 | AB22: 862.0351448 | AC22: 894.2115131
A23: 12 | B23: RTK1 | C23: Replacement of 1-phase overhead service line AH * | D23: After Hours | E23: RTK1AH | F23: Per connection | G23: 859.38 | H23: 895.34 | I23: 971.34 | J23: 1018.1 | K23: 1056.092491 | M23: 859.38 | N23: 0 | O23: 0 | P23: 0 | Q23: 0 | R23: 0 | T23: 12 | U23: ='Calc|Fee Based'!B23 -> RTK1 | V23: ='Calc|Fee Based'!C23 -> Replacement of 1-phase overhead service line AH | W23: ='Calc|Fee Based'!E23 -> After Hours | X23: ='Calc|Fee Based'!F23 -> Capex | Y23: ='Calc|Fee Based'!H23 -> 1122.034937 | Z23: 1161.976 | AA23: 1204.951587 | AB23: 1250.601061 | AC23: 1297.281061
A24: 13 | B24: REEN | C24: Field-based energisation BH | D24: Business Hours | E24: REENBH | F24: Per connection | G24: 49.5 | H24: 51.57 | I24: 55.95 | J24: 58.64 | K24: 60.82827194 | M24: 49.5 | N24: 0 | O24: 0 | P24: 0 | Q24: 0 | R24: 0 | T24: 13 | U24: ='Calc|Fee Based'!B24 -> REEN | V24: ='Calc|Fee Based'!C24 -> Field-based energisation BH | W24: ='Calc|Fee Based'!E24 -> Business Hours | X24: ='Calc|Fee Based'!F24 -> Opex | Y24: ='Calc|Fee Based'!H24 -> 63.71469046 | Z24: 65.98274148 | AA24: 68.42310776 | AB24: 71.01531058 | AC24: 73.66603173
A25: 14 | B25: REEN | C25: Field-based energisation AH | D25: After Hours | E25: REENAH | F25: Per connection | G25: 86.4 | H25: 90.02 | I25: 97.66 | J25: 102.36 | K25: 106.1797735 | M25: 86.4 | N25: 0 | O25: 0 | P25: 0 | Q25: 0 | R25: 0 | T25: 14 | U25: ='Calc|Fee Based'!B25 -> REEN | V25: ='Calc|Fee Based'!C25 -> Field-based energisation AH | W25: ='Calc|Fee Based'!E25 -> After Hours | X25: ='Calc|Fee Based'!F25 -> Opex | Y25: ='Calc|Fee Based'!H25 -> 111.224853 | Z25: 115.1841227 | AA25: 119.444198 | AB25: 123.9693299 | AC25: 128.5966155
A26: 15 | B26: DEEN | C26: Field-based de-energisation BH | D26: Business Hours | E26: DEENBH | F26: Per connection | G26: 70.98 | H26: 73.95 | I26: 80.23 | J26: 84.09 | K26: 87.22799092 | M26: 70.98 | N26: 0 | O26: 0 | P26: 0 | Q26: 0 | R26: 0 | T26: 15 | U26: ='Calc|Fee Based'!B26 -> DEEN | V26: ='Calc|Fee Based'!C26 -> Field-based de-energisation BH | W26: ='Calc|Fee Based'!E26 -> Business Hours | X26: ='Calc|Fee Based'!F26 -> Opex | Y26: ='Calc|Fee Based'!H26 -> 91.3737809 | Z26: 94.6264122 | AA26: 98.12616229 | AB26: 101.8436625 | AC26: 105.6450843
A27: 16 | B27: DCTK | C27: Disconnection (temporary) BH | D27: Business Hours | E27: DCTKBH | F27: Per connection | G27: 367.05 | H27: 382.41 | I27: 414.87 | J27: 434.84 | K27: 451.066947 | M27: 367.05 | N27: 0 | O27: 0 | P27: 0 | Q27: 0 | R27: 0 | T27: 16 | U27: ='Calc|Fee Based'!B27 -> DCTK | V27: ='Calc|Fee Based'!C27 -> Disconnection (temporary) BH | W27: ='Calc|Fee Based'!E27 -> Business Hours | X27: ='Calc|Fee Based'!F27 -> Opex | Y27: ='Calc|Fee Based'!H27 -> 511.5151111 | Z27: 529.7235079 | AA27: 549.3152884 | AB27: 570.126045 | AC27: 591.4065991
A28: 17 | B28: DCTK | C28: Disconnection (temporary) AH | D28: After Hours | E28: DCTKAH | F28: Per connection | G28: 519.55 | H28: 541.29 | I28: 587.24 | J28: 615.51 | K28: 638.4790188 | M28: 519.55 | N28: 0 | O28: 0 | P28: 0 | Q28: 0 | R28: 0 | T28: 17 | U28: ='Calc|Fee Based'!B28 -> DCTK | V28: ='Calc|Fee Based'!C28 -> Disconnection (temporary) AH | W28: ='Calc|Fee Based'!E28 -> After Hours | X28: ='Calc|Fee Based'!F28 -> Opex | Y28: ='Calc|Fee Based'!H28 -> 793.6245279 | Z28: 821.87517 | AA28: 852.2721557 | AB28: 884.5604039 | AC28: 917.5775511
A29: 18 | B29: RCTK | C29: Reconnection after temp discon BH | D29: Business Hours | E29: RCTKBH | F29: Per connection | G29: 425.28 | H29: 443.07 | I29: 480.68 | J29: 503.82 | K29: 522.6210772 | M29: 425.28 | N29: 0 | O29: 0 | P29: 0 | Q29: 0 | R29: 0 | T29: 18 | U29: ='Calc|Fee Based'!B29 -> RCTK | V29: ='Calc|Fee Based'!C29 -> Reconnection after temp discon BH | W29: ='Calc|Fee Based'!E29 -> Business Hours | X29: ='Calc|Fee Based'!F29 -> Opex | Y29: ='Calc|Fee Based'!H29 -> 593.670905 | Z29: 614.8038006 | AA29: 637.5422687 | AB29: 661.6954959 | AC29: 686.3939761
A30: 19 | B30: RCTK | C30: Reconnection after temp discon AH | D30: After Hours | E30: RCTKAH | F30: Per connection | G30: 605.51 | H30: 630.85 | I30: 684.4 | J30: 717.35 | K30: 744.1193874 | M30: 605.51 | N30: 0 | O30: 0 | P30: 0 | Q30: 0 | R30: 0 | T30: 19 | U30: ='Calc|Fee Based'!B30 -> RCTK | V30: ='Calc|Fee Based'!C30 -> Reconnection after temp discon AH | W30: ='Calc|Fee Based'!E30 -> After Hours | X30: ='Calc|Fee Based'!F30 -> Opex | Y30: ='Calc|Fee Based'!H30 -> 927.072943 | Z30: 960.0739466 | AA30: 995.5822028 | AB30: 1033.299738 | AC30: 1071.868738
A31: 20 | B31: SLOM | C31: Security Lighting - O&M | D31: Business Hours | E31: SLOM | F31: $/light/annum | G31: 136.31 | H31: 142.01 | I31: 154.06 | J31: 161.48 | K31: 167.5059576 | M31: 136.31 | N31: 0 | O31: 0 | P31: 0 | Q31: 0 | R31: 0 | T31: 20 | U31: ='Calc|Fee Based'!B31 -> SLOM | V31: ='Calc|Fee Based'!C31 -> Security Lighting - O&M | W31: ='Calc|Fee Based'!E31 -> Business Hours | X31: ='Calc|Fee Based'!F31 -> Capex | Y31: ='Calc|Fee Based'!H31 -> 177.4413325 | Z31: 183.7577093 | AA31: 190.5539732 | AB31: 197.773092 | AC31: 205.1551806
A32: 21 | B32: RFOM | C32: Enhanced Connection Operation and Maintenance | D32: Business Hours | E32: RFOM | F32: $/kVA/annum | G32: 12.98 | H32: 13.52 | I32: 14.67 | J32: 15.38 | K32: =J32*(1+$R$5)*(1-$R$6) -> 15.95393626 | M32: =G32 -> 12.98 | N32: 0 | O32: 0 | P32: 0 | Q32: 0 | R32: 0 | T32: 21 | U32: ='Calc|Fee Based'!B32 -> RFOM | V32: ='Calc|Fee Based'!C32 -> Enhanced Connection Operation and Maintenance | W32: ='Calc|Fee Based'!E32 -> Business Hours | X32: ='Calc|Fee Based'!F32 -> Opex | Y32: ='Calc|Fee Based'!H32 -> 16.16249281 | Z32: =Y32*(1+Z$5)*(1-Z$6) -> 16.73782886 | AA32: 17.35687609 | AB32: 18.01443966 | AC32: 18.68684757
A33: 22 | B33: REENRM | C33: Remote energisation | D33: Business Hours | E33: REENRM | F33: Per connection | G33: 0 | H33: 0 | I33: 0 | J33: =I33*(1+$Q$5)*(1-$Q$6) -> 0 | K33: 0 | M33: 0 | N33: 0 | O33: 0 | P33: 0 | Q33: 0 | R33: 0 | T33: 22 | U33: ='Calc|Fee Based'!B33 -> REENRM | V33: ='Calc|Fee Based'!C33 -> Remote energisation | W33: ='Calc|Fee Based'!E33 -> Business Hours | X33: ='Calc|Fee Based'!F33 -> Opex | Y33: ='Calc|Fee Based'!H33 -> 0 | Z33: 0 | AA33: 0 | AB33: 0 | AC33: 0
A34: 23 | B34: DEENRM | C34: Remote de-energisation | D34: Business Hours | E34: DEENRM | F34: Per connection | G34: 0 | H34: 0 | I34: 0 | J34: =I34*(1+$Q$5)*(1-$Q$6) -> 0 | K34: 0 | M34: 0 | N34: 0 | O34: 0 | P34: 0 | Q34: 0 | R34: 0 | T34: 23 | U34: ='Calc|Fee Based'!B34 -> DEENRM | V34: ='Calc|Fee Based'!C34 -> Remote de-energisation | W34: ='Calc|Fee Based'!E34 -> Business Hours | X34: ='Calc|Fee Based'!F34 -> Opex | Y34: ='Calc|Fee Based'!H34 -> 0 | Z34: 0 | AA34: 0 | AB34: 0 | AC34: 0
A35: 24 | B35: MCTK | C35: Meter Alteration BH | D35: Business Hours | E35: MCTKBH | F35: Per connection | G35: 472.07 | H35: 491.82 | I35: 533.57 | J35: 559.26 | K35: 580.1299346 | M35: 472.07 | N35: 0 | O35: 0 | P35: 0 | Q35: 0 | R35: 0 | T35: 24 | U35: ='Calc|Fee Based'!B35 -> MCTK | V35: ='Calc|Fee Based'!C35 -> Meter Alteration BH | W35: ='Calc|Fee Based'!E35 -> Business Hours | X35: ='Calc|Fee Based'!F35 -> Opex | Y35: ='Calc|Fee Based'!H35 -> 653.3291497 | Z35: 676.585699 | AA35: 701.6091656 | AB35: 728.189561 | AC35: 755.3700021
A36: 25 | B36: MCTK | C36: Meter Alteration AH | D36: After Hours | E36: MCTKAH | F36: Per connection | G36: 652.3 | H36: 679.59 | I36: 737.28 | J36: 772.78 | K36: 801.6178716 | M36: 652.3 | N36: 0 | O36: 0 | P36: 0 | Q36: 0 | R36: 0 | T36: 25 | U36: ='Calc|Fee Based'!B36 -> MCTK | V36: ='Calc|Fee Based'!C36 -> Meter Alteration AH | W36: ='Calc|Fee Based'!E36 -> After Hours | X36: ='Calc|Fee Based'!F36 -> Opex | Y36: ='Calc|Fee Based'!H36 -> 986.7311877 | Z36: 1021.855845 | AA36: 1059.6491 | AB36: 1099.793803 | AC36: 1140.844764
A37: 26 | B37: SPRDRM | C37: Remote special meter read | D37: Business Hours | E37: SPRDRM | F37: Per connection | G37: =SUMIF('Calc|Fee Based'!$B$12:$B$71,B37,'Calc|Fee Based'!$H$12:$H$71) -> 0 | H37: 0 | I37: 0 | J37: =I37*(1+$Q$5)*(1-$Q$6) -> 0 | K37: 0 | M37: 0 | N37: 0 | O37: 0 | P37: 0 | Q37: 0 | R37: 0 | T37: 26 | U37: ='Calc|Fee Based'!B37 -> SPRDRM | V37: ='Calc|Fee Based'!C37 -> Remote special meter read | W37: ='Calc|Fee Based'!E37 -> Business Hours | X37: ='Calc|Fee Based'!F37 -> Opex | Y37: ='Calc|Fee Based'!H37 -> 0 | Z37: 0 | AA37: 0 | AB37: 0 | AC37: 0
A38: 27 | B38: MECFRM | C38: Remote meter reconfiguration | D38: Business Hours | E38: MECFRM | F38: Per connection | G38: 49.91 | H38: 52 | I38: 56.41 | J38: 59.13 | K38: 61.33655729 | M38: 49.91 | N38: 0 | O38: 0 | P38: 0 | Q38: 0 | R38: 0 | T38: 27 | U38: ='Calc|Fee Based'!B38 -> MECFRM | V38: ='Calc|Fee Based'!C38 -> Remote meter reconfiguration | W38: ='Calc|Fee Based'!E38 -> Business Hours | X38: ='Calc|Fee Based'!F38 -> Opex | Y38: ='Calc|Fee Based'!H38 -> 63.63546102 | Z38: 65.90069171 | AA38: 68.33802338 | AB38: 70.92700279 | AC38: 73.57442775
A39: 28 | B39: SPRD | C39: Field-based special meter reads | D39: Business Hours | E39: SPRDBH | F39: Per connection | G39: 47.69 | H39: 49.69 | I39: 53.91 | J39: 56.51 | K39: 58.61878662 | M39: 47.69 | N39: 0 | O39: 0 | P39: 0 | Q39: 0 | R39: 0 | T39: 28 | U39: ='Calc|Fee Based'!B39 -> SPRD | V39: ='Calc|Fee Based'!C39 -> Field-based special meter reads | W39: ='Calc|Fee Based'!E39 -> Business Hours | X39: ='Calc|Fee Based'!F39 -> Opex | Y39: ='Calc|Fee Based'!H39 -> 61.40276041 | Z39: 63.58851369 | AA39: 65.94032965 | AB39: 68.43847266 | AC39: 70.99301062
A40: 29 | B40: MTAL | C40: Meter test of types 5, 6 and AMI smart metering installations BH | D40: Business Hours | E40: MTALBH | F40: Per connection | G40: 514.17 | H40: 535.68 | I40: 581.15 | J40: 609.13 | K40: 631.860936 | M40: 514.17 | N40: 0 | O40: 0 | P40: 0 | Q40: 0 | R40: 0 | T40: 29 | U40: ='Calc|Fee Based'!B40 -> MTAL | V40: ='Calc|Fee Based'!C40 -> Meter test of types 5, 6 and AMI smart metering installations BH | W40: ='Calc|Fee Based'!E40 -> Business Hours | X40: ='Calc|Fee Based'!F40 -> Opex | Y40: ='Calc|Fee Based'!H40 -> 661.8740474 | Z40: 685.4347694 | AA40: 710.7855181 | AB40: 737.7135587 | AC40: 765.249493
A41: 30 | B41: MTAL | C41: Meter test of types 5, 6 and AMI smart metering installations AH | D41: After Hours | E41: MTALAH | F41: Per connection | G41: 698.04 | H41: 727.25 | I41: 788.98 | J41: 826.97 | K41: 857.8300826 | M41: 698.04 | N41: 0 | O41: 0 | P41: 0 | Q41: 0 | R41: 0 | T41: 30 | U41: ='Calc|Fee Based'!B41 -> MTAL | V41: ='Calc|Fee Based'!C41 -> Meter test of types 5, 6 and AMI smart metering installations AH | W41: ='Calc|Fee Based'!E41 -> After Hours | X41: ='Calc|Fee Based'!F41 -> Opex | Y41: ='Calc|Fee Based'!H41 -> 898.5841584 | Z41: 930.5710471 | AA41: 964.9881409 | AB41: 1001.546623 | AC41: 1038.930404
A42: 31 | B42: MDCH | C42: Type 7 metering | D42: Business Hours | E42: MDCH | F42: Per connection | G42: 1.44 | H42: 1.5 | I42: 1.63 | J42: 1.71 | K42: 1.773812159 | M42: 1.44 | N42: 0 | O42: 0 | P42: 0 | Q42: 0 | R42: 0 | T42: 31 | U42: ='Calc|Fee Based'!B42 -> MDCH | V42: ='Calc|Fee Based'!C42 -> Type 7 metering | W42: ='Calc|Fee Based'!E42 -> Business Hours | X42: ='Calc|Fee Based'!F42 -> Opex | Y42: ='Calc|Fee Based'!H42 -> 0 | Z42: 0 | AA42: 0 | AB42: 0 | AC42: 0
A43: 32 | B43: NCUM | C43: Non-contestable unmetered loads | D43: Business Hours | E43: NCUM | F43: $/unmetered install/annum | G43: 16.58 | H43: 17.27 | I43: 18.74 | J43: 19.64 | K43: 20.3729069 | M43: 16.58 | N43: 0 | O43: 0 | P43: 0 | Q43: 0 | R43: 0 | T43: 32 | U43: ='Calc|Fee Based'!B43 -> NCUM | V43: ='Calc|Fee Based'!C43 -> Non-contestable unmetered loads | W43: ='Calc|Fee Based'!E43 -> Business Hours | X43: ='Calc|Fee Based'!F43 -> Capex | Y43: ='Calc|Fee Based'!H43 -> 0 | Z43: 0 | AA43: 0 | AB43: 0 | AC43: 0
A44: 33 | B44: WSVR | C44: Wasted site attendance BH (1),(2) | D44: Business Hours | E44: WSVRBH | F44: Per connection | G44: 472.07 | H44: 491.82 | I44: 533.57 | J44: 559.26 | K44: 580.1299346 | M44: =G44 -> 472.07 | N44: 0 | O44: 0 | P44: 0 | Q44: 0 | R44: 0 | T44: 33 | U44: ='Calc|Fee Based'!B44 -> WSVR | V44: ='Calc|Fee Based'!C44 -> Wasted site attendance BH | W44: ='Calc|Fee Based'!E44 -> Business Hours | X44: ='Calc|Fee Based'!F44 -> Opex | Y44: ='Calc|Fee Based'!H44 -> 653.3291497 | Z44: 676.585699 | AA44: 701.6091656 | AB44: 728.189561 | AC44: 755.3700021
A45: 34 | B45: WSVR | C45: Wasted site attendance AH (1),(2) | D45: After Hours | E45: WSVRAH | F45: Per connection | G45: 652.3 | H45: 679.59 | I45: 737.28 | J45: 772.78 | K45: 801.6178716 | M45: =G45 -> 652.3 | N45: 0 | O45: 0 | P45: 0 | Q45: 0 | R45: 0 | T45: 34 | U45: ='Calc|Fee Based'!B45 -> WSVR | V45: ='Calc|Fee Based'!C45 -> Wasted site attendance AH | W45: ='Calc|Fee Based'!E45 -> After Hours | X45: ='Calc|Fee Based'!F45 -> Opex | Y45: ='Calc|Fee Based'!H45 -> 986.7311877 | Z45: 1021.855845 | AA45: 1059.6491 | AB45: 1099.793803 | AC45: 1140.844764
A46: 35 | B46: RTK3 | C46: Replacement of 3-phase overhead service line BH * | D46: Business Hours | E46: RTK3BH | F46: Per connection | G46: 750.72 | H46: 782.13 | I46: 848.52 | J46: 889.37 | K46: 922.5586667 | M46: =G46 -> 750.72 | N46: 0 | O46: 0 | P46: 0 | Q46: 0 | R46: 0 | T46: 35 | U46: ='Calc|Fee Based'!B46 -> RTK3 | V46: ='Calc|Fee Based'!C46 -> Replacement of 3-phase overhead service line BH | W46: ='Calc|Fee Based'!E46 -> Business Hours | X46: ='Calc|Fee Based'!F46 -> Capex | Y46: ='Calc|Fee Based'!H46 -> 827.2603714 | Z46: 856.7083482 | AA46: 888.3936362 | AB46: 922.0503431 | AC46: 956.4668418
A47: 36 | B47: RTK3 | C47: Replacement of 3-phase overhead service line AH * | D47: After Hours | E47: RTK3AH | F47: Per connection | G47: 933.7 | H47: 972.77 | I47: 1055.35 | J47: 1106.16 | K47: 1147.43863 | M47: =G47 -> 933.7 | N47: 0 | O47: 0 | P47: 0 | Q47: 0 | R47: 0 | T47: 36 | U47: ='Calc|Fee Based'!B47 -> RTK3 | V47: ='Calc|Fee Based'!C47 -> Replacement of 3-phase overhead service line AH | W47: ='Calc|Fee Based'!E47 -> After Hours | X47: ='Calc|Fee Based'!F47 -> Capex | Y47: ='Calc|Fee Based'!H47 -> 1175.880365 | Z47: 1217.738163 | AA47: 1262.776109 | AB47: 1310.61626 | AC47: 1359.53639
A48: 37 | N48: 0 | O48: 0 | P48: 0 | Q48: 0 | R48: 0 | T48: 37 | U48: ='Calc|Fee Based'!B48 ->  | V48: ='Calc|Fee Based'!C48 -> 
A49: 38 | N49: 0 | O49: 0 | P49: 0 | Q49: 0 | R49: 0 | T49: 38
A50: 39 | N50: 0 | O50: 0 | P50: 0 | Q50: 0 | R50: 0 | T50: 39
A51: 40 | N51: 0 | O51: 0 | P51: 0 | Q51: 0 | R51: 0 | T51: 40
A52: 41 | N52: 0 | O52: 0 | P52: 0 | Q52: 0 | R52: 0 | T52: 41
A53: 42 | N53: 0 | O53: 0 | P53: 0 | Q53: 0 | R53: 0 | T53: 42
A54: 43 | N54: 0 | O54: 0 | P54: 0 | Q54: 0 | R54: 0 | T54: 43
A55: 44 | N55: 0 | O55: 0 | P55: 0 | Q55: 0 | R55: 0 | T55: 44
A56: 45 | N56: 0 | O56: 0 | P56: 0 | Q56: 0 | R56: 0 | T56: 45
A57: 46 | N57: 0 | O57: 0 | P57: 0 | Q57: 0 | R57: 0 | T57: 46
A58: 47 | N58: 0 | O58: 0 | P58: 0 | Q58: 0 | R58: 0 | T58: 47
A59: 48 | N59: 0 | O59: 0 | P59: 0 | Q59: 0 | R59: 0 | T59: 48
A60: 49 | N60: 0 | O60: 0 | P60: 0 | Q60: 0 | R60: 0 | T60: 49
A61: 50 | N61: 0 | O61: 0 | P61: 0 | Q61: 0 | R61: 0 | T61: 50
A62: 51 | N62: 0 | O62: 0 | P62: 0 | Q62: 0 | R62: 0 | T62: 51
A63: 52 | N63: 0 | O63: 0 | P63: 0 | Q63: 0 | R63: 0 | T63: 52
A64: 53 | N64: 0 | O64: 0 | P64: 0 | Q64: 0 | R64: 0 | T64: 53
A65: 54 | N65: 0 | O65: 0 | P65: 0 | Q65: 0 | R65: 0 | T65: 54
A66: 55 | N66: 0 | O66: 0 | P66: 0 | Q66: 0 | R66: 0 | T66: 55
A67: 56 | N67: 0 | O67: 0 | P67: 0 | Q67: 0 | R67: 0 | T67: 56
A68: 57 | N68: 0 | O68: 0 | P68: 0 | Q68: 0 | R68: 0 | T68: 57
A69: 58 | N69: 0 | O69: 0 | P69: 0 | Q69: 0 | R69: 0 | T69: 58
A70: 59 | N70: 0 | O70: 0 | P70: 0 | Q70: 0 | R70: 0 | T70: 59
A71: 60 | N71: 0 | O71: 0 | P71: 0 | Q71: 0 | R71: 0 | T71: 60

Sheet Input|Volume, Revenue, Cost
B1: =IFERROR(Index!B1,"") -> Jemena Electricity Networks – Alternative Control Services Forecast model | D1: Key: | E1: Input | H1: Sheet Validation | I1: ='Model Validation'!C15 -> 0
B2: =IFERROR(MID(CELL("filename",A1),FIND("]",CELL("filename",A1))+1,255),"") -> Input|Volume, Revenue, Cost | E2: Formula
B4: Customer numnber growth
D6: ='Input|Setup'!B14 -> 2024-25 | E6: ='Input|Setup'!B15 -> 2025-26 | F6: ='Input|Setup'!E11 -> 2026-27 | G6: ='Input|Setup'!E12 -> 2027-28 | H6: ='Input|Setup'!E13 -> 2028-29 | I6: ='Input|Setup'!E14 -> 2029-30 | J6: ='Input|Setup'!E15 -> 2030-31
B7: Customer number growth | D7: 0.0139 | E7: 0.0138 | F7: 0.01724246434 | G7: 0.01803882268 | H7: 0.01765359963 | I7: 0.01732438065 | J7: 0.01703848633
B10: Fee-Based Alternative Control Services - Forecast volumes and revenue | H10: Volumes Forecast | Q10: =IFERROR("Price Forecast, $ ($nominal)","") -> Price Forecast, $ ($nominal) | Y10: =IFERROR("Revenue Forecast, $ ($nominal)","") -> Revenue Forecast, $ ($nominal) | AG10: =IFERROR("Revenue Forecast, $ ($" & 'Input|Setup'!$B$15 & ")","") -> Revenue Forecast, $ ($2025-26) | AO10: Cost Breakdown | AU10: Operating Expenditure, $ ($2025-26) | BC10: Capital Expenditure, $ ($2025-26) | BK10: Network Overheads rate, $ ($2025-26) | BS10: Network Overheads Capex, $ ($2025-26) | CA10: Network Overheads Opex, $ ($2025-26) | CI10: Corproate Overheads rate, $ ($2025-26) | CQ10: Corproate Overheads Opex, $ ($2025-26)
B12: Service code | C12: Fee based service | D12: Hours (List) | E12: Product Code (List) | F12: Unit Cost | H12: ='Input|Setup'!B13 -> 2023-24 | I12: =D6 -> 2024-25 | J12: =E6 -> 2025-26 | K12: 2026-27 | L12: 2027-28 | M12: 2028-29 | N12: 2029-30 | O12: 2030-31 | Q12: =I12 -> 2024-25 | R12: =J12 -> 2025-26 | S12: 2026-27 | T12: 2027-28 | U12: 2028-29 | V12: 2029-30 | W12: 2030-31 | Y12: =I12 -> 2024-25 | Z12: 2025-26 | AA12: 2026-27 | AB12: 2027-28 | AC12: 2028-29 | AD12: 2029-30 | AE12: 2030-31 | AG12: =Y12 -> 2024-25 | AH12: 2025-26 | AI12: 2026-27 | AJ12: 2027-28 | AK12: 2028-29 | AL12: 2029-30 | AM12: 2030-31 | AO12: Operating | AP12: Capital | AR12: Operating | AS12: Capital | AU12: =AG12 -> 2024-25 | AV12: =AH12 -> 2025-26 | AW12: 2026-27 | AX12: 2027-28 | AY12: 2028-29 | AZ12: 2029-30 | BA12: 2030-31 | BC12: =AU12 -> 2024-25 | BD12: =AV12 -> 2025-26 | BE12: 2026-27 | BF12: 2027-28 | BG12: 2028-29 | BH12: 2029-30 | BI12: 2030-31 | BK12: =BC12 -> 2024-25 | BL12: 2025-26 | BM12: 2026-27 | BN12: 2027-28 | BO12: 2028-29 | BP12: 2029-30 | BQ12: 2030-31 | BS12: =BK12 -> 2024-25 | BT12: 2025-26 | BU12: 2026-27 | BV12: 2027-28 | BW12: 2028-29 | BX12: 2029-30 | BY12: 2030-31 | CA12: =BS12 -> 2024-25 | CB12: 2025-26 | CC12: 2026-27 | CD12: 2027-28 | CE12: 2028-29 | CF12: 2029-30 | CG12: 2030-31 | CI12: =CA12 -> 2024-25 | CJ12: 2025-26 | CK12: 2026-27 | CL12: 2027-28 | CM12: 2028-29 | CN12: 2029-30 | CO12: 2030-31 | CQ12: =CI12 -> 2024-25 | CR12: =CJ12 -> 2025-26 | CS12: 2026-27 | CT12: 2027-28 | CU12: 2028-29 | CV12: 2029-30 | CW12: 2030-31
A13: 1 | B13: ND1P | C13: Basic connection, single-phase BH * | D13: Business Hours | E13: ND1PBH | F13: Per connection | H13: 4764 | I13: =H13*(1+D$7) -> 4830.2196 | J13: 4896.87663 | K13: 4981.310851 | L13: 5071.167834 | M13: 5160.692201 | N13: 5250.097997 | O13: 5339.55172 | Q13: ='Input|Fee Based Mapping'!J12 -> 668.16 | R13: ='Input|Fee Based Mapping'!K12 -> 693.0937616 | S13: ='Input|Fee Based Mapping'!Y12 -> 813.8869436 | T13: ='Input|Fee Based Mapping'!Z12 -> 842.8588667 | U13: ='Input|Fee Based Mapping'!AA12 -> 874.0319327 | V13: ='Input|Fee Based Mapping'!AB12 -> 907.1445479 | W13: ='Input|Fee Based Mapping'!AC12 -> 941.0046721 | Y13: =I13*Q13 -> 3227359.528 | Z13: =J13*R13 -> 3393994.644 | AA13: =K13*S13 -> 4054223.864 | AB13: =L13*T13 -> 4274278.774 | AC13: =M13*U13 -> 4510609.778 | AD13: =N13*V13 -> 4762597.774 | AE13: =O13*W13 -> 5024543.115 | AG13: =Y13/('Input|Escalations'!G$17/'Input|Escalations'!$H$17) -> 3305612.918 | AH13: =Z13/('Input|Escalations'!H$17/'Input|Escalations'!$H$17) -> 3393994.644 | AI13: =AA13/('Input|Escalations'!I$17/'Input|Escalations'!$H$17) -> 3951485.247 | AJ13: =AB13/('Input|Escalations'!J$17/'Input|Escalations'!$H$17) -> 4061185.14 | AK13: =AC13/('Input|Escalations'!K$17/'Input|Escalations'!$H$17) -> 4179165.18 | AL13: =AD13/('Input|Escalations'!L$17/'Input|Escalations'!$H$17) -> 4303751.896 | AM13: =AE13/('Input|Escalations'!M$17/'Input|Escalations'!$H$17) -> 4429717.538 | AO13: =SUM('Calc|Fee Based'!Z12-'Calc|Fee Based'!V12,'Calc|Fee Based'!AB12:AE12) -> 736.2430469 | AP13: ='Calc|Fee Based'!V12 -> 77.64389664 | AQ13: =SUM(AO13:AP13)-S13 -> 0 | AR13: =IFERROR(AO13/SUM($AO13:$AP13),0) -> 0.9046011276 | AS13: =IFERROR(AP13/SUM($AO13:$AP13),0) -> 0.09539887235 | AU13: =AG13*$AR13 -> 2990261.174 | AV13: =AH13*$AR13 -> 3070211.382 | AW13: 3574518.01 | AX13: 3673752.657 | AY13: 3780477.535 | AZ13: 3893178.818 | BA13: 4007127.48 | BC13: =AG13*$AS13 -> 315351.7448 | BD13: =AH13*$AS13 -> 323783.2618 | BE13: =AI13*$AS13 -> 376967.2367 | BF13: =AJ13*$AS13 -> 387432.4828 | BG13: =AK13*$AS13 -> 398687.6456 | BH13: =AL13*$AS13 -> 410573.0778 | BI13: =AM13*$AS13 -> 422590.058 | BJ13: =SUM(AG13:AM13)-SUM(AU13:BA13,BC13:BI13) -> 0 | BM13: ='Calc|Fee Based'!AB12*'Input|Escalations'!$H$20/'Input|Escalations'!$I$20 -> 98.6177783 | BN13: =BM13*(1-'Input|Fee Based Mapping'!Z$6) -> 99.5596355 | BO13: =BN13*(1-'Input|Fee Based Mapping'!AA$6) -> 100.6746372 | BP13: =BO13*(1-'Input|Fee Based Mapping'!AB$6) -> 101.9103541 | BQ13: =BP13*(1-'Input|Fee Based Mapping'!AC$6) -> 103.1358685 | BU13: =BM13*K13*$AS13 -> 46864.29624 | BV13: =BN13*L13*$AS13 -> 48165.32812 | BW13: =BO13*M13*$AS13 -> 49564.56188 | BX13: =BP13*N13*$AS13 -> 51042.15028 | BY13: =BQ13*O13*$AS13 -> 52536.09264 | CC13: =BM13*K13*$AR13 -> 444381.5129 | CD13: =BN13*L13*$AR13 -> 456718.293 | CE13: =BO13*M13*$AR13 -> 469986.2531 | CF13: =BP13*N13*$AR13 -> 483997.1958 | CG13: =BQ13*O13*$AR13 -> 498163.2117 | CK13: ='Calc|Fee Based'!AC12*'Input|Escalations'!$H$20/'Input|Escalations'!$I$20 -> 188.9031839 | CL13: =CK13*(1-'Input|Fee Based Mapping'!Z$6) -> 190.7073193 | CM13: =CL13*(1-'Input|Fee Based Mapping'!AA$6) -> 192.8431144 | CN13: =CM13*(1-'Input|Fee Based Mapping'!AB$6) -> 195.2101406 | CO13: =CN13*(1-'Input|Fee Based Mapping'!AC$6) -> 197.5576238 | CS13: =CK13*K13 -> 940985.4797 | CT13: =CL13*L13 -> 967108.8232 | CU13: =CM13*M13 -> 995203.9565 | CV13: =CN13*N13 -> 1024872.368 | CW13: =CO13*O13 -> 1054869.15
A14: =IFERROR(A13+1,"") -> 2 | B14: ND1P | C14: Basic connection, single-phase AH * | D14: After Hours | E14: ND1PAH | F14: Per connection | H14: 4 | I14: =H14*(1+D$7) -> 4.0556 | J14: 4.11156728 | K14: 4.182460832 | L14: 4.257907502 | M14: =L14*(1+H$7) -> 4.333074896 | N14: 4.408142735 | O14: 4.483250814 | Q14: ='Input|Fee Based Mapping'!J13 -> 884.93 | R14: ='Input|Fee Based Mapping'!K13 -> 917.952979 | S14: ='Input|Fee Based Mapping'!Y13 -> 1162.506937 | T14: ='Input|Fee Based Mapping'!Z13 -> 1203.888682 | U14: ='Input|Fee Based Mapping'!AA13 -> 1248.414406 | V14: ='Input|Fee Based Mapping'!AB13 -> 1295.710465 | W14: ='Input|Fee Based Mapping'!AC13 -> 1344.07422 | Y14: =I14*Q14 -> 3588.922108 | Z14: 3774.225433 | AA14: 4862.139731 | AB14: 5126.046648 | AC14: 5409.473121 | AD14: 5711.676671 | AE14: 6025.821842 | AG14: =Y14/('Input|Escalations'!G$17/'Input|Escalations'!$H$17) -> 3675.942262 | AH14: =Z14/('Input|Escalations'!H$17/'Input|Escalations'!$H$17) -> 3774.225433 | AI14: =AA14/('Input|Escalations'!I$17/'Input|Escalations'!$H$17) -> 4738.927613 | AJ14: =AB14/('Input|Escalations'!J$17/'Input|Escalations'!$H$17) -> 4870.488234 | AK14: =AC14/('Input|Escalations'!K$17/'Input|Escalations'!$H$17) -> 5011.979049 | AL14: =AD14/('Input|Escalations'!L$17/'Input|Escalations'!$H$17) -> 5161.393103 | AM14: =AE14/('Input|Escalations'!M$17/'Input|Escalations'!$H$17) -> 5312.460872 | AO14: =SUM('Calc|Fee Based'!Z13-'Calc|Fee Based'!V13,'Calc|Fee Based'!AB13:AE13) -> 1084.86304 | AP14: ='Calc|Fee Based'!V13 -> 77.64389664 | AQ14: =SUM(AO14:AP14)-S14 -> 0 | AR14: =IFERROR(AO14/SUM($AO14:$AP14),0) -> 0.9332099498 | AS14: 0.06679005016 | AU14: =AG14*$AR14 -> 3430.425894 | AV14: 3522.144727 | AW14: 4422.4144 | AX14: 4545.188081 | AY14: 4677.228717 | AZ14: 4816.663399 | BA14: 4957.641344 | BC14: =AG14*$AS14 -> 245.5163681 | BD14: 252.080706 | BE14: 316.513213 | BF14: 325.3001535 | BG14: 334.7503321 | BH14: 344.7297043 | BI14: 354.8195281 | BJ14: =SUM(AG14:AM14)-SUM(AU14:BA14,BC14:BI14) -> 0 | BM14: ='Calc|Fee Based'!AB13*'Input|Escalations'!$H$20/'Input|Escalations'!$I$20 -> 140.8596763 | BN14: =BM14*(1-'Input|Fee Based Mapping'!Z$6) -> 142.2049682 | BO14: =BN14*(1-'Input|Fee Based Mapping'!AA$6) -> 143.7975692 | BP14: =BO14*(1-'Input|Fee Based Mapping'!AB$6) -> 145.5625926 | BQ14: =BP14*(1-'Input|Fee Based Mapping'!AC$6) -> 147.3130434 | BU14: =BM14*K14*$AS14 -> 39.34869542 | BV14: 40.44108155 | BW14: 41.61592098 | BX14: 42.85654935 | BY14: 44.11090901 | CC14: =BM14*K14*$AR14 -> 549.7913834 | CD14: 565.0545192 | CE14: 581.4697164 | CF14: 598.8041359 | CG14: 616.3304128 | CK14: ='Calc|Fee Based'!AC13*'Input|Escalations'!$H$20/'Input|Escalations'!$I$20 -> 269.8178948 | CL14: =CK14*(1-'Input|Fee Based Mapping'!Z$6) -> 272.3948127 | CM14: =CL14*(1-'Input|Fee Based Mapping'!AA$6) -> 275.4454535 | CN14: =CM14*(1-'Input|Fee Based Mapping'!AB$6) -> 278.8263706 | CO14: =CN14*(1-'Input|Fee Based Mapping'!AC$6) -> 282.1793738 | CS14: =CK14*K14 -> 1128.502777 | CT14: 1159.831916 | CU14: 1193.52578 | CV14: 1229.10644 | CW14: 1265.080907
A15: =IFERROR(A14+1,"") -> 3 | B15: ND3P | C15: Basic connection, three-phase BH * | D15: Business Hours | E15: ND3PBH | F15: Per connection | H15: 2318 | I15: 2350.2202 | J15: 2382.653239 | K15: 2423.736052 | L15: 2467.457397 | M15: 2511.016902 | N15: 2554.518715 | O15: 2598.043847 | Q15: ='Input|Fee Based Mapping'!J14 -> 822.02 | R15: ='Input|Fee Based Mapping'!K14 -> 852.6953632 | S15: ='Input|Fee Based Mapping'!Y14 -> 1074.095465 | T15: ='Input|Fee Based Mapping'!Z14 -> 1112.330028 | U15: ='Input|Fee Based Mapping'!AA14 -> 1153.469463 | V15: ='Input|Fee Based Mapping'!AB14 -> 1197.168542 | W15: ='Input|Fee Based Mapping'!AC14 -> 1241.854116 | Y15: 1931928.009 | Z15: 2031677.369 | AA15: 2603323.903 | AB15: 2744626.955 | AC15: 2896381.317 | AD15: 3058189.444 | AE15: 3226391.446 | AG15: =Y15/('Input|Escalations'!G$17/'Input|Escalations'!$H$17) -> 1978771.23 | AH15: =Z15/('Input|Escalations'!H$17/'Input|Escalations'!$H$17) -> 2031677.369 | AI15: =AA15/('Input|Escalations'!I$17/'Input|Escalations'!$H$17) -> 2537352.732 | AJ15: =AB15/('Input|Escalations'!J$17/'Input|Escalations'!$H$17) -> 2607793.922 | AK15: =AC15/('Input|Escalations'!K$17/'Input|Escalations'!$H$17) -> 2683552.012 | AL15: =AD15/('Input|Escalations'!L$17/'Input|Escalations'!$H$17) -> 2763552.423 | AM15: =AE15/('Input|Escalations'!M$17/'Input|Escalations'!$H$17) -> 2844438.279 | AO15: =SUM('Calc|Fee Based'!Z14-'Calc|Fee Based'!V14,'Calc|Fee Based'!AB14:AE14) -> 841.9152627 | AP15: ='Calc|Fee Based'!V14 -> 232.1802025 | AQ15: 0 | AR15: 0.7838365303 | AS15: 0.2161634697 | AU15: 1551033.175 | AV15: 1592502.94 | AW15: 1988869.761 | AX15: 2044084.139 | AY15: 2103466.098 | AZ15: 2166173.343 | BA15: 2229574.632 | BC15: 427738.0548 | BD15: 439174.4293 | BE15: 548482.9703 | BF15: 563709.7823 | BG15: 580085.914 | BH15: 597379.0805 | BI15: 614863.6477 | BJ15: 0 | BM15: ='Calc|Fee Based'!AB14*'Input|Escalations'!$H$20/'Input|Escalations'!$I$20 -> 130.1469563 | BN15: =BM15*(1-'Input|Fee Based Mapping'!Z$6) -> 131.3899355 | BO15: =BN15*(1-'Input|Fee Based Mapping'!AA$6) -> 132.8614154 | BP15: =BO15*(1-'Input|Fee Based Mapping'!AB$6) -> 134.4922045 | BQ15: =BP15*(1-'Input|Fee Based Mapping'!AC$6) -> 136.1095292 | BU15: 68187.00911 | BV15: 70079.99545 | BW15: 72115.86439 | BX15: 74265.73843 | BY15: 76439.40728 | CC15: 247254.8609 | CD15: 254119.0728 | CE15: 261501.3953 | CF15: 269297.1149 | CG15: 277179.1176 | CK15: ='Calc|Fee Based'!AC14*'Input|Escalations'!$H$20/'Input|Escalations'!$I$20 -> 249.2975895 | CL15: =CK15*(1-'Input|Fee Based Mapping'!Z$6) -> 251.6785266 | CM15: =CL15*(1-'Input|Fee Based Mapping'!AA$6) -> 254.4971588 | CN15: =CM15*(1-'Input|Fee Based Mapping'!AB$6) -> 257.620949 | CO15: =CN15*(1-'Input|Fee Based Mapping'!AC$6) -> 260.7189481 | CS15: 604231.5555 | CT15: 621006.0423 | CU15: 639046.6672 | CV15: 658097.5355 | CW15: 677359.2589
A16: 4 | B16: ND3P | C16: Basic connection, three-phase AH * | D16: After Hours | E16: ND3PAH | F16: Per connection | H16: 10 | I16: 10.139 | J16: 10.2789182 | K16: 10.45615208 | L16: 10.64476875 | M16: 10.83268724 | N16: 11.02035684 | O16: 11.20812704 | Q16: ='Input|Fee Based Mapping'!J15 -> 1038.81 | R16: ='Input|Fee Based Mapping'!K15 -> 1077.575327 | S16: ='Input|Fee Based Mapping'!Y15 -> 1422.715459 | T16: ='Input|Fee Based Mapping'!Z15 -> 1473.359843 | U16: ='Input|Fee Based Mapping'!AA15 -> 1527.851936 | V16: ='Input|Fee Based Mapping'!AB15 -> 1585.734458 | W16: ='Input|Fee Based Mapping'!AC15 -> 1644.923664 | Y16: 10532.49459 | Z16: 11076.30864 | AA16: 14876.1292 | AB16: 15683.57482 | AC16: 16550.74217 | AD16: 17475.35958 | AE16: 18436.5134 | AG16: =Y16/('Input|Escalations'!G$17/'Input|Escalations'!$H$17) -> 10787.87469 | AH16: =Z16/('Input|Escalations'!H$17/'Input|Escalations'!$H$17) -> 11076.30864 | AI16: =AA16/('Input|Escalations'!I$17/'Input|Escalations'!$H$17) -> 14499.15127 | AJ16: =AB16/('Input|Escalations'!J$17/'Input|Escalations'!$H$17) -> 14901.67216 | AK16: =AC16/('Input|Escalations'!K$17/'Input|Escalations'!$H$17) -> 15334.57532 | AL16: =AD16/('Input|Escalations'!L$17/'Input|Escalations'!$H$17) -> 15791.7203 | AM16: =AE16/('Input|Escalations'!M$17/'Input|Escalations'!$H$17) -> 16253.92496 | AO16: =SUM('Calc|Fee Based'!Z15-'Calc|Fee Based'!V15,'Calc|Fee Based'!AB15:AE15) -> 1190.535256 | AP16: ='Calc|Fee Based'!V15 -> 232.1802025 | AQ16: 0 | AR16: 0.8368048923 | AS16: 0.1631951077 | AU16: 9027.346321 | AV16: 9268.709259 | AW16: 12132.96072 | AX16: 12469.79216 | AY16: 12832.04765 | AZ16: 13214.5888 | BA16: 13601.36392 | BC16: 1760.528373 | BD16: 1807.599382 | BE16: 2366.190553 | BF16: 2431.879993 | BG16: 2502.527671 | BH16: 2577.131495 | BI16: 2652.561034 | BJ16: 0 | BM16: ='Calc|Fee Based'!AB15*'Input|Escalations'!$H$20/'Input|Escalations'!$I$20 -> 172.3888543 | BN16: =BM16*(1-'Input|Fee Based Mapping'!Z$6) -> 174.0352682 | BO16: =BN16*(1-'Input|Fee Based Mapping'!AA$6) -> 175.9843474 | BP16: =BO16*(1-'Input|Fee Based Mapping'!AB$6) -> 178.144443 | BQ16: =BP16*(1-'Input|Fee Based Mapping'!AC$6) -> 180.2867041 | BU16: 294.1631109 | BV16: 302.3295749 | BW16: 311.1124434 | BX16: 320.3871373 | BY16: 329.7644835 | CC16: 1508.360966 | CD16: 1550.23561 | CE16: 1595.270951 | CF16: 1642.828193 | CG16: 1690.911798 | CK16: ='Calc|Fee Based'!AC15*'Input|Escalations'!$H$20/'Input|Escalations'!$I$20 -> 330.2123004 | CL16: =CK16*(1-'Input|Fee Based Mapping'!Z$6) -> 333.3660201 | CM16: =CL16*(1-'Input|Fee Based Mapping'!AA$6) -> 337.0994978 | CN16: =CM16*(1-'Input|Fee Based Mapping'!AB$6) -> 341.2371791 | CO16: =CN16*(1-'Input|Fee Based Mapping'!AC$6) -> 345.3406981 | CS16: 3452.750032 | CT16: 3548.604194 | CU16: 3651.693428 | CV16: 3760.555479 | CW16: 3870.622415
A17: 5 | B17: BTSO | C17: Temporary connection, single-phase BH * | D17: Business Hours | E17: BTSOBH | F17: Per connection | H17: 554 | I17: 561.7006 | J17: 569.4520683 | K17: 579.2708253 | L17: 589.720189 | M17: 600.1308731 | N17: 610.5277688 | O17: 620.9302378 | Q17: ='Input|Fee Based Mapping'!J16 -> 668.16 | R17: ='Input|Fee Based Mapping'!K16 -> 693.0937616 | S17: ='Input|Fee Based Mapping'!Y16 -> 773.4149435 | T17: ='Input|Fee Based Mapping'!Z16 -> 800.9461853 | U17: ='Input|Fee Based Mapping'!AA16 -> 830.5691142 | V17: ='Input|Fee Based Mapping'!AB16 -> 862.0351448 | W17: ='Input|Fee Based Mapping'!AC16 -> 894.2115131 | Y17: 375305.8729 | Z17: 394683.676 | AA17: 448016.7126 | AB17: 472334.1357 | AC17: 498450.1677 | AD17: 526296.3935 | AE17: 555242.9674 | AG17: =Y17/('Input|Escalations'!G$17/'Input|Escalations'!$H$17) -> 384405.8683 | AH17: =Z17/('Input|Escalations'!H$17/'Input|Escalations'!$H$17) -> 394683.676 | AI17: =AA17/('Input|Escalations'!I$17/'Input|Escalations'!$H$17) -> 436663.4625 | AJ17: =AB17/('Input|Escalations'!J$17/'Input|Escalations'!$H$17) -> 448785.9765 | AK17: =AC17/('Input|Escalations'!K$17/'Input|Escalations'!$H$17) -> 461823.4978 | AL17: =AD17/('Input|Escalations'!L$17/'Input|Escalations'!$H$17) -> 475591.0974 | AM17: =AE17/('Input|Escalations'!M$17/'Input|Escalations'!$H$17) -> 489511.0768 | AO17: =SUM('Calc|Fee Based'!Z16-'Calc|Fee Based'!V16,'Calc|Fee Based'!AB16:AE16) -> 719.8071289 | AP17: ='Calc|Fee Based'!V16 -> 53.60781455 | AQ17: 0 | AR17: 0.9306868648 | AS17: 0.06931313521 | AU17: 357761.4924 | AV17: 367326.913 | AW17: 406396.9489 | AX17: 417679.2135 | AY17: 429813.0632 | AZ17: 442626.3873 | BA17: 455581.5294 | BC17: 26644.37593 | BD17: 27356.763 | BE17: 30266.51362 | BF17: 31106.76307 | BG17: 32010.43455 | BH17: 32964.71004 | BI17: 33929.54746 | BJ17: 0 | BM17: ='Calc|Fee Based'!AB16*'Input|Escalations'!$H$20/'Input|Escalations'!$I$20 -> 93.71383094 | BN17: =BM17*(1-'Input|Fee Based Mapping'!Z$6) -> 94.60885258 | BO17: =BN17*(1-'Input|Fee Based Mapping'!AA$6) -> 95.6684088 | BP17: =BO17*(1-'Input|Fee Based Mapping'!AB$6) -> 96.84267748 | BQ17: =BP17*(1-'Input|Fee Based Mapping'!AC$6) -> 98.00725098 | BU17: 3762.711245 | BV17: 3867.170454 | BW17: 3979.514243 | BX17: 4098.149087 | BY17: 4218.096982 | CC17: 50522.97694 | CD17: 51925.57997 | CE17: 53434.05146 | CF17: 55026.99471 | CG17: 56637.56867 | CK17: ='Calc|Fee Based'!AC16*'Input|Escalations'!$H$20/'Input|Escalations'!$I$20 -> 179.5096315 | CL17: =CK17*(1-'Input|Fee Based Mapping'!Z$6) -> 181.2240529 | CM17: =CL17*(1-'Input|Fee Based Mapping'!AA$6) -> 183.2536418 | CN17: =CM17*(1-'Input|Fee Based Mapping'!AB$6) -> 185.5029633 | CO17: =CN17*(1-'Input|Fee Based Mapping'!AC$6) -> 187.7337137 | CS17: 103984.6924 | CT17: 106871.4827 | CU17: 109976.168 | CV17: 113254.7103 | CW17: 116569.5395
A18: 6 | B18: BTSO | C18: Temporary connection, single-phase AH * | D18: After Hours | E18: BTSOAH | F18: Per connection | H18: 1 | I18: 1.0139 | J18: 1.02789182 | K18: 1.045615208 | L18: 1.064476875 | M18: 1.083268724 | N18: 1.102035684 | O18: 1.120812704 | Q18: ='Input|Fee Based Mapping'!J17 -> 884.93 | R18: ='Input|Fee Based Mapping'!K17 -> 917.952979 | S18: ='Input|Fee Based Mapping'!Y17 -> 1122.034937 | T18: ='Input|Fee Based Mapping'!Z17 -> 1161.976 | U18: ='Input|Fee Based Mapping'!AA17 -> 1204.951587 | V18: ='Input|Fee Based Mapping'!AB17 -> 1250.601061 | W18: ='Input|Fee Based Mapping'!AC17 -> 1297.281061 | Y18: 897.230527 | Z18: 943.5563582 | AA18: 1173.216794 | AB18: 1236.896582 | AC18: 1305.286368 | AD18: 1378.206996 | AE18: 1454.009094 | AG18: =Y18/('Input|Escalations'!G$17/'Input|Escalations'!$H$17) -> 918.9855655 | AH18: =Z18/('Input|Escalations'!H$17/'Input|Escalations'!$H$17) -> 943.5563582 | AI18: =AA18/('Input|Escalations'!I$17/'Input|Escalations'!$H$17) -> 1143.486154 | AJ18: =AB18/('Input|Escalations'!J$17/'Input|Escalations'!$H$17) -> 1175.231258 | AK18: =AC18/('Input|Escalations'!K$17/'Input|Escalations'!$H$17) -> 1209.372481 | AL18: =AD18/('Input|Escalations'!L$17/'Input|Escalations'!$H$17) -> 1245.425554 | AM18: =AE18/('Input|Escalations'!M$17/'Input|Escalations'!$H$17) -> 1281.877662 | AO18: =SUM('Calc|Fee Based'!Z17-'Calc|Fee Based'!V17,'Calc|Fee Based'!AB17:AE17) -> 1068.427122 | AP18: ='Calc|Fee Based'!V17 -> 53.60781455 | AQ18: 0 | AR18: 0.9522226868 | AS18: 0.04777731316 | AU18: 875.0789043 | AV18: 898.4757706 | AW18: 1088.853458 | AX18: 1119.081866 | AY18: 1151.591914 | AZ18: 1185.922467 | BA18: 1220.632992 | BC18: 43.90666115 | BD18: 45.08058761 | BE18: 54.63269607 | BF18: 56.14939183 | BG18: 57.78056777 | BH18: 59.50308671 | BI18: 61.2446705 | BJ18: 0 | BM18: ='Calc|Fee Based'!AB17*'Input|Escalations'!$H$20/'Input|Escalations'!$I$20 -> 135.9557289 | BN18: =BM18*(1-'Input|Fee Based Mapping'!Z$6) -> 137.2541853 | BO18: =BN18*(1-'Input|Fee Based Mapping'!AA$6) -> 138.7913408 | BP18: =BO18*(1-'Input|Fee Based Mapping'!AB$6) -> 140.494916 | BQ18: =BP18*(1-'Input|Fee Based Mapping'!AC$6) -> 142.1844258 | BU18: 6.791897555 | BV18: 6.980452083 | BW18: 7.183238705 | BX18: 7.397381023 | BY18: 7.613893469 | CC18: 135.3654802 | CD18: 139.1234542 | CE18: 143.16508 | CF18: 147.4330298 | CG18: 151.7482173 | CK18: ='Calc|Fee Based'!AC17*'Input|Escalations'!$H$20/'Input|Escalations'!$I$20 -> 260.4243423 | CL18: =CK18*(1-'Input|Fee Based Mapping'!Z$6) -> 262.9115464 | CM18: =CL18*(1-'Input|Fee Based Mapping'!AA$6) -> 265.8559809 | CN18: =CM18*(1-'Input|Fee Based Mapping'!AB$6) -> 269.1191934 | CO18: =CN18*(1-'Input|Fee Based Mapping'!AC$6) -> 272.3554637 | CS18: 272.3036529 | CT18: 279.8632614 | CU18: 287.9934691 | CV18: 296.5789543 | CW18: 305.2594636
A19: 7 | B19: BTSP | C19: Temporary connection, three-phase BH * | D19: Business Hours | E19: BTSPBH | F19: Per connection | H19: 12 | I19: 12.1668 | J19: 12.33470184 | K19: 12.5473825 | L19: 12.7737225 | M19: 12.99922469 | N19: 13.2244282 | O19: 13.44975244 | Q19: ='Input|Fee Based Mapping'!J18 -> 822.02 | R19: ='Input|Fee Based Mapping'!K18 -> 852.6953632 | S19: ='Input|Fee Based Mapping'!Y18 -> 822.973458 | T19: ='Input|Fee Based Mapping'!Z18 -> 852.2688336 | U19: ='Input|Fee Based Mapping'!AA18 -> 883.7899265 | V19: ='Input|Fee Based Mapping'!AB18 -> 917.2722224 | W19: ='Input|Fee Based Mapping'!AC18 -> 951.5103726 | Y19: 10001.35294 | Z19: 10517.74307 | AA19: 10326.16276 | AB19: 10886.64558 | AC19: 11488.58383 | AD19: 12130.40065 | AE19: 12797.57896 | AG19: =Y19/('Input|Escalations'!G$17/'Input|Escalations'!$H$17) -> 10243.85451 | AH19: =Z19/('Input|Escalations'!H$17/'Input|Escalations'!$H$17) -> 10517.74307 | AI19: =AA19/('Input|Escalations'!I$17/'Input|Escalations'!$H$17) -> 10064.48612 | AJ19: =AB19/('Input|Escalations'!J$17/'Input|Escalations'!$H$17) -> 10343.89323 | AK19: =AC19/('Input|Escalations'!K$17/'Input|Escalations'!$H$17) -> 10644.38998 | AL19: =AD19/('Input|Escalations'!L$17/'Input|Escalations'!$H$17) -> 10961.71402 | AM19: =AE19/('Input|Escalations'!M$17/'Input|Escalations'!$H$17) -> 11282.55021 | AO19: =SUM('Calc|Fee Based'!Z18-'Calc|Fee Based'!V18,'Calc|Fee Based'!AB18:AE18) -> 739.933134 | AP19: ='Calc|Fee Based'!V18 -> 83.04032394 | AQ19: 0 | AR19: 0.8990972028 | AS19: 0.1009027972 | AU19: 9210.220939 | AV19: 9456.47337 | AW19: 9048.95132 | AX19: 9300.165466 | AY19: 9570.341254 | AZ19: 9855.646413 | BA19: 10144.10933 | BC19: 1033.633575 | BD19: 1061.269696 | BE19: 1015.534802 | BF19: 1043.727761 | BG19: 1074.048723 | BH19: 1106.067607 | BI19: 1138.440876 | BJ19: 0 | BM19: ='Calc|Fee Based'!AB18*'Input|Escalations'!$H$20/'Input|Escalations'!$I$20 -> 99.71878118 | BN19: =BM19*(1-'Input|Fee Based Mapping'!Z$6) -> 100.6711536 | BO19: =BN19*(1-'Input|Fee Based Mapping'!AA$6) -> 101.7986036 | BP19: =BO19*(1-'Input|Fee Based Mapping'!AB$6) -> 103.0481165 | BQ19: =BP19*(1-'Input|Fee Based Mapping'!AC$6) -> 104.2873129 | BU19: 126.2505576 | BV19: 129.7554859 | BW19: 133.5249662 | BX19: 137.5055308 | BY19: 141.5301524 | CC19: 1124.959132 | CD19: 1156.189894 | CE19: 1189.777954 | CF19: 1225.246887 | CG19: 1261.10839 | CK19: ='Calc|Fee Based'!AC18*'Input|Escalations'!$H$20/'Input|Escalations'!$I$20 -> 191.0121641 | CL19: =CK19*(1-'Input|Fee Based Mapping'!Z$6) -> 192.8364415 | CM19: =CL19*(1-'Input|Fee Based Mapping'!AA$6) -> 194.9960814 | CN19: =CM19*(1-'Input|Fee Based Mapping'!AB$6) -> 197.3895339 | CO19: =CN19*(1-'Input|Fee Based Mapping'!AC$6) -> 199.7632252 | CS19: 2396.702685 | CT19: 2463.239193 | CU19: 2534.797875 | CV19: 2610.363719 | CW19: 2686.765926
A20: 8 | B20: BTSP | C20: Temporary connection, three-phase AH * | D20: After Hours | E20: BTSPAH | F20: Per connection | H20: 0 | I20: 0 | J20: 0 | K20: 0 | L20: 0 | M20: 0 | N20: 0 | O20: 0 | Q20: ='Input|Fee Based Mapping'!J19 -> 1038.81 | R20: ='Input|Fee Based Mapping'!K19 -> 1077.575327 | S20: ='Input|Fee Based Mapping'!Y19 -> 1171.593451 | T20: ='Input|Fee Based Mapping'!Z19 -> 1213.298648 | U20: ='Input|Fee Based Mapping'!AA19 -> 1258.172399 | V20: ='Input|Fee Based Mapping'!AB19 -> 1305.838139 | W20: ='Input|Fee Based Mapping'!AC19 -> 1354.579921 | Y20: 0 | Z20: 0 | AA20: 0 | AB20: 0 | AC20: 0 | AD20: 0 | AE20: 0 | AG20: =Y20/('Input|Escalations'!G$17/'Input|Escalations'!$H$17) -> 0 | AH20: =Z20/('Input|Escalations'!H$17/'Input|Escalations'!$H$17) -> 0 | AI20: =AA20/('Input|Escalations'!I$17/'Input|Escalations'!$H$17) -> 0 | AJ20: =AB20/('Input|Escalations'!J$17/'Input|Escalations'!$H$17) -> 0 | AK20: =AC20/('Input|Escalations'!K$17/'Input|Escalations'!$H$17) -> 0 | AL20: =AD20/('Input|Escalations'!L$17/'Input|Escalations'!$H$17) -> 0 | AM20: =AE20/('Input|Escalations'!M$17/'Input|Escalations'!$H$17) -> 0 | AO20: =SUM('Calc|Fee Based'!Z19-'Calc|Fee Based'!V19,'Calc|Fee Based'!AB19:AE19) -> 1088.553127 | AP20: ='Calc|Fee Based'!V19 -> 83.04032394 | AQ20: 0 | AR20: 0.9291218948 | AS20: 0.07087810523 | AU20: 0 | AV20: 0 | AW20: 0 | AX20: 0 | AY20: 0 | AZ20: 0 | BA20: 0 | BC20: 0 | BD20: 0 | BE20: 0 | BF20: 0 | BG20: 0 | BH20: 0 | BI20: 0 | BJ20: 0 | BM20: ='Calc|Fee Based'!AB19*'Input|Escalations'!$H$20/'Input|Escalations'!$I$20 -> 141.9606791 | BN20: =BM20*(1-'Input|Fee Based Mapping'!Z$6) -> 143.3164863 | BO20: =BN20*(1-'Input|Fee Based Mapping'!AA$6) -> 144.9215356 | BP20: =BO20*(1-'Input|Fee Based Mapping'!AB$6) -> 146.700355 | BQ20: =BP20*(1-'Input|Fee Based Mapping'!AC$6) -> 148.4644878 | BU20: 0 | BV20: 0 | BW20: 0 | BX20: 0 | BY20: 0 | CC20: 0 | CD20: 0 | CE20: 0 | CF20: 0 | CG20: 0 | CK20: ='Calc|Fee Based'!AC19*'Input|Escalations'!$H$20/'Input|Escalations'!$I$20 -> 271.926875 | CL20: =CK20*(1-'Input|Fee Based Mapping'!Z$6) -> 274.523935 | CM20: =CL20*(1-'Input|Fee Based Mapping'!AA$6) -> 277.5984205 | CN20: =CM20*(1-'Input|Fee Based Mapping'!AB$6) -> 281.0057639 | CO20: =CN20*(1-'Input|Fee Based Mapping'!AC$6) -> 284.3849752 | CS20: 0 | CT20: 0 | CU20: 0 | CV20: 0 | CW20: 0
A21: 9 | B21: SUTK | C21: Supply upgrade/enhancement (1ph to 3ph) BH * | D21: Business Hours | E21: SUTKBH | F21: Per connection | H21: 657 | I21: 666.1323 | J21: 675.3249257 | K21: 686.9691917 | L21: 699.3613071 | M21: 711.7075516 | N21: 724.0374442 | O21: 736.3739463 | Q21: ='Input|Fee Based Mapping'!J20 -> 822.02 | R21: ='Input|Fee Based Mapping'!K20 -> 852.6953632 | S21: ='Input|Fee Based Mapping'!Y20 -> 1045.321069 | T21: ='Input|Fee Based Mapping'!Z20 -> 1082.531349 | U21: ='Input|Fee Based Mapping'!AA20 -> 1122.568682 | V21: ='Input|Fee Based Mapping'!AB20 -> 1165.097088 | W21: ='Input|Fee Based Mapping'!AC20 -> 1208.585562 | Y21: 547574.0732 | Z21: 575846.4328 | AA21: 718103.3696 | AB21: 757080.5394 | AC21: 798940.6085 | AD21: 843573.9181 | AE21: 889970.92 | AG21: =Y21/('Input|Escalations'!G$17/'Input|Escalations'!$H$17) -> 560851.0346 | AH21: =Z21/('Input|Escalations'!H$17/'Input|Escalations'!$H$17) -> 575846.4328 | AI21: =AA21/('Input|Escalations'!I$17/'Input|Escalations'!$H$17) -> 699905.8183 | AJ21: =AB21/('Input|Escalations'!J$17/'Input|Escalations'!$H$17) -> 719336.3839 | AK21: =AC21/('Input|Escalations'!K$17/'Input|Escalations'!$H$17) -> 740233.5685 | AL21: =AD21/('Input|Escalations'!L$17/'Input|Escalations'!$H$17) -> 762300.9588 | AM21: =AE21/('Input|Escalations'!M$17/'Input|Escalations'!$H$17) -> 784612.5911 | AO21: =SUM('Calc|Fee Based'!Z20-'Calc|Fee Based'!V20,'Calc|Fee Based'!AB20:AE20) -> 830.2298105 | AP21: ='Calc|Fee Based'!V20 -> 215.0912581 | AQ21: 0 | AR21: 0.7942342649 | AS21: 0.2057657351 | AU21: 445447.1092 | AV21: 457356.9683 | AW21: 555889.1831 | AX21: 571321.6041 | AY21: 587918.8641 | AZ21: 605445.5416 | BA21: 623166.2045 | BC21: 115403.9254 | BD21: 118489.4646 | BE21: 144016.6352 | BF21: 148014.7798 | BG21: 152314.7044 | BH21: 156855.4172 | BI21: 161446.3866 | BJ21: 0 | BM21: ='Calc|Fee Based'!AB20*'Input|Escalations'!$H$20/'Input|Escalations'!$I$20 -> 126.6603946 | BN21: =BM21*(1-'Input|Fee Based Mapping'!Z$6) -> 127.8700751 | BO21: =BN21*(1-'Input|Fee Based Mapping'!AA$6) -> 129.3021349 | BP21: =BO21*(1-'Input|Fee Based Mapping'!AB$6) -> 130.8892361 | BQ21: =BP21*(1-'Input|Fee Based Mapping'!AC$6) -> 132.4632336 | BU21: 17904.0447 | BV21: 18401.09117 | BW21: 18935.6547 | BX21: 19500.15286 | BY21: 20070.89888 | CC21: 69107.74417 | CD21: 71026.29167 | CE21: 73089.65112 | CF21: 75268.55509 | CG21: 77471.57518 | CK21: ='Calc|Fee Based'!AC20*'Input|Escalations'!$H$20/'Input|Escalations'!$I$20 -> 242.6190512 | CL21: =CK21*(1-'Input|Fee Based Mapping'!Z$6) -> 244.9362044 | CM21: =CL21*(1-'Input|Fee Based Mapping'!AA$6) -> 247.679327 | CN21: =CM21*(1-'Input|Fee Based Mapping'!AB$6) -> 250.7194327 | CO21: =CN21*(1-'Input|Fee Based Mapping'!AC$6) -> 253.7344382 | CS21: 166671.8135 | CT21: 171298.9041 | CU21: 176275.2474 | CV21: 181530.2572 | CW21: 186843.4296
A22: 10 | B22: SUTK | C22: Supply upgrade/enhancement (1ph to 3ph) AH * | D22: After Hours | E22: SUTKAH | F22: Per connection | H22: 6 | I22: 6.0834 | J22: 6.16735092 | K22: 6.273691248 | L22: 6.386861252 | M22: 6.499612344 | N22: 6.612214102 | O22: 6.724876222 | Q22: ='Input|Fee Based Mapping'!J21 -> 1038.81 | R22: ='Input|Fee Based Mapping'!K21 -> 1077.575327 | S22: ='Input|Fee Based Mapping'!Y21 -> 1393.941062 | T22: ='Input|Fee Based Mapping'!Z21 -> 1443.561164 | U22: ='Input|Fee Based Mapping'!AA21 -> 1496.951155 | V22: ='Input|Fee Based Mapping'!AB21 -> 1553.663005 | W22: ='Input|Fee Based Mapping'!AC21 -> 1611.65511 | Y22: 6319.496754 | Z22: 6645.785184 | AA22: 8745.155841 | AB22: 9219.824865 | AC22: 9729.602207 | AD22: 10273.15243 | AE22: 10838.18113 | AG22: =Y22/('Input|Escalations'!G$17/'Input|Escalations'!$H$17) -> 6472.724816 | AH22: =Z22/('Input|Escalations'!H$17/'Input|Escalations'!$H$17) -> 6645.785184 | AI22: =AA22/('Input|Escalations'!I$17/'Input|Escalations'!$H$17) -> 8523.543705 | AJ22: =AB22/('Input|Escalations'!J$17/'Input|Escalations'!$H$17) -> 8760.17165 | AK22: =AC22/('Input|Escalations'!K$17/'Input|Escalations'!$H$17) -> 9014.66027 | AL22: =AD22/('Input|Escalations'!L$17/'Input|Escalations'!$H$17) -> 9283.399808 | AM22: =AE22/('Input|Escalations'!M$17/'Input|Escalations'!$H$17) -> 9555.113756 | AO22: =SUM('Calc|Fee Based'!Z21-'Calc|Fee Based'!V21,'Calc|Fee Based'!AB21:AE21) -> 1178.849804 | AP22: ='Calc|Fee Based'!V21 -> 215.0912581 | AQ22: 0 | AR22: 0.8456955864 | AS22: 0.1543044136 | AU22: 5473.954809 | AV22: 5620.311199 | AW22: 7208.323292 | AX22: 7408.438501 | AY22: 7623.658404 | AZ22: 7850.930244 | BA22: 8080.717531 | BC22: 998.7700069 | BD22: 1025.473985 | BE22: 1315.220413 | BF22: 1351.733149 | BG22: 1391.001866 | BH22: 1432.469563 | BI22: 1474.396225 | BJ22: 0 | BM22: ='Calc|Fee Based'!AB21*'Input|Escalations'!$H$20/'Input|Escalations'!$I$20 -> 168.9022925 | BN22: =BM22*(1-'Input|Fee Based Mapping'!Z$6) -> 170.5154077 | BO22: =BN22*(1-'Input|Fee Based Mapping'!AA$6) -> 172.4250669 | BP22: =BO22*(1-'Input|Fee Based Mapping'!AB$6) -> 174.5414746 | BQ22: =BP22*(1-'Input|Fee Based Mapping'!AC$6) -> 176.6404084 | BU22: 163.5072575 | BV22: 168.0464947 | BW22: 172.9283534 | BX22: 178.0835877 | BY22: 183.2958802 | CC22: 896.1335769 | CD22: 921.0117559 | CE22: 947.7677398 | CF22: 976.0220118 | CG22: 1004.589002 | CK22: ='Calc|Fee Based'!AC21*'Input|Escalations'!$H$20/'Input|Escalations'!$I$20 -> 323.5337621 | CL22: =CK22*(1-'Input|Fee Based Mapping'!Z$6) -> 326.6236979 | CM22: =CL22*(1-'Input|Fee Based Mapping'!AA$6) -> 330.281666 | CN22: =CM22*(1-'Input|Fee Based Mapping'!AB$6) -> 334.3356627 | CO22: =CN22*(1-'Input|Fee Based Mapping'!AC$6) -> 338.3561882 | CS22: 2029.750932 | CT22: 2086.10024 | CU22: 2146.702793 | CV22: 2210.698984 | CW22: 2275.403485
A23: 11 | B23: RTK1 | C23: Replacement of 1-phase overhead service line BH * | D23: Business Hours | E23: RTK1BH | F23: Per connection | H23: 51 | I23: 51.7089 | J23: 52.42248282 | K23: 53.32637561 | L23: 54.28832064 | M23: 55.24670492 | N23: 56.20381987 | O23: 57.16144788 | Q23: ='Input|Fee Based Mapping'!J22 -> 801.33 | R23: ='Input|Fee Based Mapping'!K22 -> 831.2332734 | S23: ='Input|Fee Based Mapping'!Y22 -> 773.4149435 | T23: ='Input|Fee Based Mapping'!Z22 -> 800.9461853 | U23: ='Input|Fee Based Mapping'!AA22 -> 830.5691142 | V23: ='Input|Fee Based Mapping'!AB22 -> 862.0351448 | W23: ='Input|Fee Based Mapping'!AC22 -> 894.2115131 | Y23: 41435.89284 | Z23: 43575.31199 | AA23: 41243.41578 | AB23: 43482.02333 | AC23: 45886.20677 | AD23: 48449.668 | AE23: 51114.4248 | AG23: =Y23/('Input|Escalations'!G$17/'Input|Escalations'!$H$17) -> 42440.58385 | AH23: =Z23/('Input|Escalations'!H$17/'Input|Escalations'!$H$17) -> 43575.31199 | AI23: =AA23/('Input|Escalations'!I$17/'Input|Escalations'!$H$17) -> 40198.26099 | AJ23: =AB23/('Input|Escalations'!J$17/'Input|Escalations'!$H$17) -> 41314.2325 | AK23: =AC23/('Input|Escalations'!K$17/'Input|Escalations'!$H$17) -> 42514.43752 | AL23: =AD23/('Input|Escalations'!L$17/'Input|Escalations'!$H$17) -> 43781.85192 | AM23: =AE23/('Input|Escalations'!M$17/'Input|Escalations'!$H$17) -> 45063.29408 | AO23: =SUM('Calc|Fee Based'!Z22-'Calc|Fee Based'!V22,'Calc|Fee Based'!AB22:AE22) -> 719.8071289 | AP23: ='Calc|Fee Based'!V22 -> 53.60781455 | AQ23: 0 | AR23: 0.9306868648 | AS23: 0.06931313521 | AU23: 39498.89392 | AV23: 40554.9705 | AW23: 37411.99349 | AX23: 38450.61351 | AY23: 39567.62856 | AZ23: 40747.1945 | BA23: 41939.81588 | BC23: 2941.689927 | BD23: 3020.341492 | BE23: 2786.2675 | BF23: 2863.618983 | BG23: 2946.808956 | BH23: 3034.657422 | BI23: 3123.478196 | BJ23: 0 | BM23: ='Calc|Fee Based'!AB22*'Input|Escalations'!$H$20/'Input|Escalations'!$I$20 -> 93.71383094 | BN23: =BM23*(1-'Input|Fee Based Mapping'!Z$6) -> 94.60885258 | BO23: =BN23*(1-'Input|Fee Based Mapping'!AA$6) -> 95.6684088 | BP23: =BO23*(1-'Input|Fee Based Mapping'!AB$6) -> 96.84267748 | BQ23: =BP23*(1-'Input|Fee Based Mapping'!AC$6) -> 98.00725098 | BU23: 346.3867753 | BV23: 356.0030562 | BW23: 366.345174 | BX23: 377.2664322 | BY23: 388.3085669 | CC23: 4651.032173 | CD23: 4780.152668 | CE23: 4919.019178 | CF23: 5065.661968 | CG23: 5213.927802 | CK23: ='Calc|Fee Based'!AC22*'Input|Escalations'!$H$20/'Input|Escalations'!$I$20 -> 179.5096315 | CL23: =CK23*(1-'Input|Fee Based Mapping'!Z$6) -> 181.2240529 | CM23: =CL23*(1-'Input|Fee Based Mapping'!AA$6) -> 183.2536418 | CN23: =CM23*(1-'Input|Fee Based Mapping'!AB$6) -> 185.5029633 | CO23: =CN23*(1-'Input|Fee Based Mapping'!AC$6) -> 187.7337137 | CS23: 9572.598033 | CT23: 9838.349494 | CU23: 10124.15987 | CV23: 10425.97514 | CW23: 10731.13089
A24: 12 | B24: RTK1 | C24: Replacement of 1-phase overhead service line AH * | D24: After Hours | E24: RTK1AH | F24: Per connection | H24: 2 | I24: 2.0278 | J24: 2.05578364 | K24: 2.091230416 | L24: 2.128953751 | M24: 2.166537448 | N24: 2.204071367 | O24: 2.241625407 | Q24: ='Input|Fee Based Mapping'!J23 -> 1018.1 | R24: ='Input|Fee Based Mapping'!K23 -> 1056.092491 | S24: ='Input|Fee Based Mapping'!Y23 -> 1122.034937 | T24: ='Input|Fee Based Mapping'!Z23 -> 1161.976 | U24: ='Input|Fee Based Mapping'!AA23 -> 1204.951587 | V24: ='Input|Fee Based Mapping'!AB23 -> 1250.601061 | W24: ='Input|Fee Based Mapping'!AC23 -> 1297.281061 | Y24: 2064.50318 | Z24: 2171.097665 | AA24: 2346.433588 | AB24: 2473.793164 | AC24: 2610.572737 | AD24: 2756.413992 | AE24: 2908.018187 | AG24: =Y24/('Input|Escalations'!G$17/'Input|Escalations'!$H$17) -> 2114.560935 | AH24: =Z24/('Input|Escalations'!H$17/'Input|Escalations'!$H$17) -> 2171.097665 | AI24: =AA24/('Input|Escalations'!I$17/'Input|Escalations'!$H$17) -> 2286.972308 | AJ24: =AB24/('Input|Escalations'!J$17/'Input|Escalations'!$H$17) -> 2350.462515 | AK24: =AC24/('Input|Escalations'!K$17/'Input|Escalations'!$H$17) -> 2418.744963 | AL24: =AD24/('Input|Escalations'!L$17/'Input|Escalations'!$H$17) -> 2490.851108 | AM24: =AE24/('Input|Escalations'!M$17/'Input|Escalations'!$H$17) -> 2563.755325 | AO24: =SUM('Calc|Fee Based'!Z23-'Calc|Fee Based'!V23,'Calc|Fee Based'!AB23:AE23) -> 1068.427122 | AP24: ='Calc|Fee Based'!V23 -> 53.60781455 | AQ24: 0 | AR24: 0.9522226868 | AS24: 0.04777731316 | AU24: 2013.532895 | AV24: 2067.368452 | AW24: 2177.706916 | AX24: 2238.163732 | AY24: 2303.183827 | AZ24: 2371.844935 | BA24: 2441.265984 | BC24: 101.02804 | BD24: 103.729213 | BE24: 109.2653921 | BF24: 112.2987837 | BG24: 115.5611355 | BH24: 119.0061734 | BI24: 122.489341 | BJ24: 0 | BM24: ='Calc|Fee Based'!AB23*'Input|Escalations'!$H$20/'Input|Escalations'!$I$20 -> 135.9557289 | BN24: =BM24*(1-'Input|Fee Based Mapping'!Z$6) -> 137.2541853 | BO24: =BN24*(1-'Input|Fee Based Mapping'!AA$6) -> 138.7913408 | BP24: =BO24*(1-'Input|Fee Based Mapping'!AB$6) -> 140.494916 | BQ24: =BP24*(1-'Input|Fee Based Mapping'!AC$6) -> 142.1844258 | BU24: 13.58379511 | BV24: 13.96090417 | BW24: 14.36647741 | BX24: 14.79476205 | BY24: 15.22778694 | CC24: 270.7309604 | CD24: 278.2469083 | CE24: 286.33016 | CF24: 294.8660596 | CG24: 303.4964345 | CK24: ='Calc|Fee Based'!AC23*'Input|Escalations'!$H$20/'Input|Escalations'!$I$20 -> 260.4243423 | CL24: =CK24*(1-'Input|Fee Based Mapping'!Z$6) -> 262.9115464 | CM24: =CL24*(1-'Input|Fee Based Mapping'!AA$6) -> 265.8559809 | CN24: =CM24*(1-'Input|Fee Based Mapping'!AB$6) -> 269.1191934 | CO24: =CN24*(1-'Input|Fee Based Mapping'!AC$6) -> 272.3554637 | CS24: 544.6073058 | CT24: 559.7265228 | CU24: 575.9869383 | CV24: 593.1579085 | CW24: 610.5189272
A25: 13 | B25: REEN | C25: Field-based energisation BH | D25: Business Hours | E25: REENBH | F25: Per connection | H25: 1775 | I25: 1799.6725 | J25: 1824.507981 | K25: 1855.966994 | L25: 1889.446454 | M25: 1922.801985 | N25: 1956.113339 | O25: 1989.442549 | Q25: ='Input|Fee Based Mapping'!J24 -> 58.64 | R25: ='Input|Fee Based Mapping'!K24 -> 60.82827194 | S25: ='Input|Fee Based Mapping'!Y24 -> 63.71469046 | T25: ='Input|Fee Based Mapping'!Z24 -> 65.98274148 | U25: ='Input|Fee Based Mapping'!AA24 -> 68.42310776 | V25: ='Input|Fee Based Mapping'!AB24 -> 71.01531058 | W25: ='Input|Fee Based Mapping'!AC24 -> 73.66603173 | Y25: 105532.7954 | Z25: 110981.6676 | AA25: 118252.3626 | AB25: 124670.8569 | AC25: 131564.0874 | AD25: 138913.9963 | AE25: 146554.3379 | AG25: =Y25/('Input|Escalations'!G$17/'Input|Escalations'!$H$17) -> 108091.6361 | AH25: =Z25/('Input|Escalations'!H$17/'Input|Escalations'!$H$17) -> 110981.6676 | AI25: =AA25/('Input|Escalations'!I$17/'Input|Escalations'!$H$17) -> 115255.714 | AJ25: =AB25/('Input|Escalations'!J$17/'Input|Escalations'!$H$17) -> 118455.4069 | AK25: =AC25/('Input|Escalations'!K$17/'Input|Escalations'!$H$17) -> 121896.6127 | AL25: =AD25/('Input|Escalations'!L$17/'Input|Escalations'!$H$17) -> 125530.5199 | AM25: =AE25/('Input|Escalations'!M$17/'Input|Escalations'!$H$17) -> 129204.6473 | AO25: =SUM('Calc|Fee Based'!Z24-'Calc|Fee Based'!V24,'Calc|Fee Based'!AB24:AE24) -> 63.71469046 | AP25: ='Calc|Fee Based'!V24 -> 0 | AQ25: 0 | AR25: 1 | AS25: 0 | AU25: 108091.6361 | AV25: 110981.6676 | AW25: 115255.714 | AX25: 118455.4069 | AY25: 121896.6127 | AZ25: 125530.5199 | BA25: 129204.6473 | BC25: 0 | BD25: 0 | BE25: 0 | BF25: 0 | BG25: 0 | BH25: 0 | BI25: 0 | BJ25: 0 | BM25: ='Calc|Fee Based'!AB24*'Input|Escalations'!$H$20/'Input|Escalations'!$I$20 -> 0 | BN25: =BM25*(1-'Input|Fee Based Mapping'!Z$6) -> 0 | BO25: =BN25*(1-'Input|Fee Based Mapping'!AA$6) -> 0 | BP25: =BO25*(1-'Input|Fee Based Mapping'!AB$6) -> 0 | BQ25: =BP25*(1-'Input|Fee Based Mapping'!AC$6) -> 0 | BU25: 0 | BV25: 0 | BW25: 0 | BX25: 0 | BY25: 0 | CC25: 0 | CD25: 0 | CE25: 0 | CF25: 0 | CG25: 0 | CK25: ='Calc|Fee Based'!AC24*'Input|Escalations'!$H$20/'Input|Escalations'!$I$20 -> 0 | CL25: =CK25*(1-'Input|Fee Based Mapping'!Z$6) -> 0 | CM25: =CL25*(1-'Input|Fee Based Mapping'!AA$6) -> 0 | CN25: =CM25*(1-'Input|Fee Based Mapping'!AB$6) -> 0 | CO25: =CN25*(1-'Input|Fee Based Mapping'!AC$6) -> 0 | CS25: 0 | CT25: 0 | CU25: 0 | CV25: 0 | CW25: 0
A26: 14 | B26: REEN | C26: Field-based energisation AH | D26: After Hours | E26: REENAH | F26: Per connection | H26: 926 | I26: 938.8714 | J26: 951.8278253 | K26: 968.2396827 | L26: 985.7055866 | M26: 1003.106838 | N26: 1020.485043 | O26: 1037.872564 | Q26: ='Input|Fee Based Mapping'!J25 -> 102.36 | R26: ='Input|Fee Based Mapping'!K25 -> 106.1797735 | S26: ='Input|Fee Based Mapping'!Y25 -> 111.224853 | T26: ='Input|Fee Based Mapping'!Z25 -> 115.1841227 | U26: ='Input|Fee Based Mapping'!AA25 -> 119.444198 | V26: ='Input|Fee Based Mapping'!AB25 -> 123.9693299 | W26: ='Input|Fee Based Mapping'!AC25 -> 128.5966155 | Y26: 96102.8765 | Z26: 101064.8629 | AA26: 107692.3164 | AB26: 113537.6332 | AC26: 119815.2918 | AD26: 126508.847 | AE26: 133466.899 | AG26: =Y26/('Input|Escalations'!G$17/'Input|Escalations'!$H$17) -> 98433.07116 | AH26: =Z26/('Input|Escalations'!H$17/'Input|Escalations'!$H$17) -> 101064.8629 | AI26: =AA26/('Input|Escalations'!I$17/'Input|Escalations'!$H$17) -> 104963.2713 | AJ26: =AB26/('Input|Escalations'!J$17/'Input|Escalations'!$H$17) -> 107877.2287 | AK26: =AC26/('Input|Escalations'!K$17/'Input|Escalations'!$H$17) -> 111011.1316 | AL26: =AD26/('Input|Escalations'!L$17/'Input|Escalations'!$H$17) -> 114320.5275 | AM26: =AE26/('Input|Escalations'!M$17/'Input|Escalations'!$H$17) -> 117666.5519 | AO26: =SUM('Calc|Fee Based'!Z25-'Calc|Fee Based'!V25,'Calc|Fee Based'!AB25:AE25) -> 111.224853 | AP26: ='Calc|Fee Based'!V25 -> 0 | AQ26: 0 | AR26: 1 | AS26: 0 | AU26: 98433.07116 | AV26: 101064.8629 | AW26: 104963.2713 | AX26: 107877.2287 | AY26: 111011.1316 | AZ26: 114320.5275 | BA26: 117666.5519 | BC26: 0 | BD26: 0 | BE26: 0 | BF26: 0 | BG26: 0 | BH26: 0 | BI26: 0 | BJ26: 0 | BM26: ='Calc|Fee Based'!AB25*'Input|Escalations'!$H$20/'Input|Escalations'!$I$20 -> 0 | BN26: =BM26*(1-'Input|Fee Based Mapping'!Z$6) -> 0 | BO26: =BN26*(1-'Input|Fee Based Mapping'!AA$6) -> 0 | BP26: =BO26*(1-'Input|Fee Based Mapping'!AB$6) -> 0 | BQ26: =BP26*(1-'Input|Fee Based Mapping'!AC$6) -> 0 | BU26: 0 | BV26: 0 | BW26: 0 | BX26: 0 | BY26: 0 | CC26: 0 | CD26: 0 | CE26: 0 | CF26: 0 | CG26: 0 | CK26: ='Calc|Fee Based'!AC25*'Input|Escalations'!$H$20/'Input|Escalations'!$I$20 -> 0 | CL26: =CK26*(1-'Input|Fee Based Mapping'!Z$6) -> 0 | CM26: =CL26*(1-'Input|Fee Based Mapping'!AA$6) -> 0 | CN26: =CM26*(1-'Input|Fee Based Mapping'!AB$6) -> 0 | CO26: =CN26*(1-'Input|Fee Based Mapping'!AC$6) -> 0 | CS26: 0 | CT26: 0 | CU26: 0 | CV26: 0 | CW26: 0
A27: 15 | B27: DEEN | C27: Field-based de-energisation BH | D27: Business Hours | E27: DEENBH | F27: Per connection | H27: 616 | I27: 624.5624 | J27: 633.1813611 | K27: 644.0989682 | L27: 655.7177552 | M27: 667.293534 | N27: 678.8539811 | O27: 690.4206254 | Q27: ='Input|Fee Based Mapping'!J26 -> 84.09 | R27: ='Input|Fee Based Mapping'!K26 -> 87.22799092 | S27: ='Input|Fee Based Mapping'!Y26 -> 91.3737809 | T27: ='Input|Fee Based Mapping'!Z26 -> 94.6264122 | U27: ='Input|Fee Based Mapping'!AA26 -> 98.12616229 | V27: ='Input|Fee Based Mapping'!AB26 -> 101.8436625 | W27: ='Input|Fee Based Mapping'!AC26 -> 105.6450843 | Y27: 52519.45222 | Z27: 55231.13802 | AA27: 58853.75799 | AB27: 62048.2186 | AC27: 65478.95361 | AD27: 69136.97572 | AE27: 72939.54515 | AG27: =Y27/('Input|Escalations'!G$17/'Input|Escalations'!$H$17) -> 53792.88493 | AH27: =Z27/('Input|Escalations'!H$17/'Input|Escalations'!$H$17) -> 55231.13802 | AI27: =AA27/('Input|Escalations'!I$17/'Input|Escalations'!$H$17) -> 57362.33722 | AJ27: =AB27/('Input|Escalations'!J$17/'Input|Escalations'!$H$17) -> 58954.81243 | AK27: =AC27/('Input|Escalations'!K$17/'Input|Escalations'!$H$17) -> 60667.48764 | AL27: =AD27/('Input|Escalations'!L$17/'Input|Escalations'!$H$17) -> 62476.06967 | AM27: =AE27/('Input|Escalations'!M$17/'Input|Escalations'!$H$17) -> 64304.66909 | AO27: =SUM('Calc|Fee Based'!Z26-'Calc|Fee Based'!V26,'Calc|Fee Based'!AB26:AE26) -> 91.3737809 | AP27: ='Calc|Fee Based'!V26 -> 0 | AQ27: 0 | AR27: 1 | AS27: 0 | AU27: 53792.88493 | AV27: 55231.13802 | AW27: 57362.33722 | AX27: 58954.81243 | AY27: 60667.48764 | AZ27: 62476.06967 | BA27: 64304.66909 | BC27: 0 | BD27: 0 | BE27: 0 | BF27: 0 | BG27: 0 | BH27: 0 | BI27: 0 | BJ27: 0 | BM27: ='Calc|Fee Based'!AB26*'Input|Escalations'!$H$20/'Input|Escalations'!$I$20 -> 0 | BN27: =BM27*(1-'Input|Fee Based Mapping'!Z$6) -> 0 | BO27: =BN27*(1-'Input|Fee Based Mapping'!AA$6) -> 0 | BP27: =BO27*(1-'Input|Fee Based Mapping'!AB$6) -> 0 | BQ27: =BP27*(1-'Input|Fee Based Mapping'!AC$6) -> 0 | BU27: 0 | BV27: 0 | BW27: 0 | BX27: 0 | BY27: 0 | CC27: 0 | CD27: 0 | CE27: 0 | CF27: 0 | CG27: 0 | CK27: ='Calc|Fee Based'!AC26*'Input|Escalations'!$H$20/'Input|Escalations'!$I$20 -> 0 | CL27: =CK27*(1-'Input|Fee Based Mapping'!Z$6) -> 0 | CM27: =CL27*(1-'Input|Fee Based Mapping'!AA$6) -> 0 | CN27: =CM27*(1-'Input|Fee Based Mapping'!AB$6) -> 0 | CO27: =CN27*(1-'Input|Fee Based Mapping'!AC$6) -> 0 | CS27: 0 | CT27: 0 | CU27: 0 | CV27: 0 | CW27: 0
A28: 16 | B28: DCTK | C28: Disconnection (temporary) BH | D28: Business Hours | E28: DCTKBH | F28: Per connection | H28: 899 | I28: 911.4961 | J28: 924.0747462 | K28: 940.008072 | L28: 956.964711 | M28: 973.8585828 | N28: 990.7300796 | O28: 1007.610621 | Q28: ='Input|Fee Based Mapping'!J27 -> 434.84 | R28: ='Input|Fee Based Mapping'!K27 -> 451.066947 | S28: ='Input|Fee Based Mapping'!Y27 -> 511.5151111 | T28: ='Input|Fee Based Mapping'!Z27 -> 529.7235079 | U28: ='Input|Fee Based Mapping'!AA27 -> 549.3152884 | V28: ='Input|Fee Based Mapping'!AB27 -> 570.126045 | W28: ='Input|Fee Based Mapping'!AC27 -> 591.4065991 | Y28: 396354.9641 | Z28: 416819.5745 | AA28: 480828.3334 | AB28: 506926.7037 | AC28: 534955.4083 | AD28: 564841.0219 | AE28: 595907.5703 | AG28: =Y28/('Input|Escalations'!G$17/'Input|Escalations'!$H$17) -> 405965.3343 | AH28: =Z28/('Input|Escalations'!H$17/'Input|Escalations'!$H$17) -> 416819.5745 | AI28: =AA28/('Input|Escalations'!I$17/'Input|Escalations'!$H$17) -> 468643.5998 | AJ28: =AB28/('Input|Escalations'!J$17/'Input|Escalations'!$H$17) -> 481653.9363 | AK28: =AC28/('Input|Escalations'!K$17/'Input|Escalations'!$H$17) -> 495646.2929 | AL28: =AD28/('Input|Escalations'!L$17/'Input|Escalations'!$H$17) -> 510422.197 | AM28: =AE28/('Input|Escalations'!M$17/'Input|Escalations'!$H$17) -> 525361.6409 | AO28: =SUM('Calc|Fee Based'!Z27-'Calc|Fee Based'!V27,'Calc|Fee Based'!AB27:AE27) -> 511.5151111 | AP28: ='Calc|Fee Based'!V27 -> 0 | AQ28: 0 | AR28: 1 | AS28: 0 | AU28: 405965.3343 | AV28: 416819.5745 | AW28: 468643.5998 | AX28: 481653.9363 | AY28: 495646.2929 | AZ28: 510422.197 | BA28: 525361.6409 | BC28: 0 | BD28: 0 | BE28: 0 | BF28: 0 | BG28: 0 | BH28: 0 | BI28: 0 | BJ28: 0 | BM28: ='Calc|Fee Based'!AB27*'Input|Escalations'!$H$20/'Input|Escalations'!$I$20 -> 64.80874939 | BN28: =BM28*(1-'Input|Fee Based Mapping'!Z$6) -> 65.42771068 | BO28: =BN28*(1-'Input|Fee Based Mapping'!AA$6) -> 66.16045752 | BP28: =BO28*(1-'Input|Fee Based Mapping'!AB$6) -> 66.97253492 | BQ28: =BP28*(1-'Input|Fee Based Mapping'!AC$6) -> 67.77790753 | BU28: 0 | BV28: 0 | BW28: 0 | BX28: 0 | BY28: 0 | CC28: 60920.74757 | CD28: 62612.01024 | CE28: 64430.9294 | CF28: 66351.70486 | CG28: 68293.73946 | CK28: ='Calc|Fee Based'!AC27*'Input|Escalations'!$H$20/'Input|Escalations'!$I$20 -> 124.1417046 | CL28: =CK28*(1-'Input|Fee Based Mapping'!Z$6) -> 125.3273302 | CM28: =CL28*(1-'Input|Fee Based Mapping'!AA$6) -> 126.7309129 | CN28: =CM28*(1-'Input|Fee Based Mapping'!AB$6) -> 128.286454 | CO28: =CN28*(1-'Input|Fee Based Mapping'!AC$6) -> 129.829152 | CS28: 116694.2044 | CT28: 119933.8323 | CU28: 123417.9872 | CV28: 127097.2488 | CW28: 130817.2324
A29: 17 | B29: DCTK | C29: Disconnection (temporary) AH | D29: After Hours | E29: DCTKAH | F29: Per connection | H29: 49 | I29: 49.6811 | J29: 50.36669918 | K29: 51.23514519 | L29: 52.15936689 | M29: 53.08016747 | N29: 53.9997485 | O29: 54.91982248 | Q29: ='Input|Fee Based Mapping'!J28 -> 615.51 | R29: ='Input|Fee Based Mapping'!K28 -> 638.4790188 | S29: ='Input|Fee Based Mapping'!Y28 -> 793.6245279 | T29: ='Input|Fee Based Mapping'!Z28 -> 821.87517 | U29: ='Input|Fee Based Mapping'!AA28 -> 852.2721557 | V29: ='Input|Fee Based Mapping'!AB28 -> 884.5604039 | W29: ='Input|Fee Based Mapping'!AC28 -> 917.5775511 | Y29: 30579.21386 | Z29: 32158.08067 | AA29: 40661.46791 | AB29: 42868.48853 | AC29: 45238.74876 | AD29: 47766.03934 | AE29: 50393.19622 | AG29: =Y29/('Input|Escalations'!G$17/'Input|Escalations'!$H$17) -> 31320.66431 | AH29: =Z29/('Input|Escalations'!H$17/'Input|Escalations'!$H$17) -> 32158.08067 | AI29: =AA29/('Input|Escalations'!I$17/'Input|Escalations'!$H$17) -> 39631.06035 | AJ29: =AB29/('Input|Escalations'!J$17/'Input|Escalations'!$H$17) -> 40731.2854 | AK29: =AC29/('Input|Escalations'!K$17/'Input|Escalations'!$H$17) -> 41914.55544 | AL29: =AD29/('Input|Escalations'!L$17/'Input|Escalations'!$H$17) -> 43164.08653 | AM29: =AE29/('Input|Escalations'!M$17/'Input|Escalations'!$H$17) -> 44427.44743 | AO29: =SUM('Calc|Fee Based'!Z28-'Calc|Fee Based'!V28,'Calc|Fee Based'!AB28:AE28) -> 793.6245279 | AP29: ='Calc|Fee Based'!V28 -> 0 | AQ29: 0 | AR29: 1 | AS29: 0 | AU29: 31320.66431 | AV29: =AH29*$AR29 -> 32158.08067 | AW29: =AI29*$AR29 -> 39631.06035 | AX29: =AJ29*$AR29 -> 40731.2854 | AY29: =AK29*$AR29 -> 41914.55544 | AZ29: =AL29*$AR29 -> 43164.08653 | BA29: =AM29*$AR29 -> 44427.44743 | BC29: 0 | BD29: 0 | BE29: 0 | BF29: 0 | BG29: 0 | BH29: 0 | BI29: 0 | BJ29: 0 | BM29: ='Calc|Fee Based'!AB28*'Input|Escalations'!$H$20/'Input|Escalations'!$I$20 -> 100.5518938 | BN29: =BM29*(1-'Input|Fee Based Mapping'!Z$6) -> 101.5122229 | BO29: =BN29*(1-'Input|Fee Based Mapping'!AA$6) -> 102.6490923 | BP29: =BO29*(1-'Input|Fee Based Mapping'!AB$6) -> 103.9090444 | BQ29: =BP29*(1-'Input|Fee Based Mapping'!AC$6) -> 105.1585939 | BU29: 0 | BV29: 0 | BW29: 0 | BX29: 0 | BY29: 0 | CC29: 5151.79088 | CD29: 5294.813281 | CE29: 5448.631012 | CF29: 5611.062266 | CG29: 5775.291311 | CK29: ='Calc|Fee Based'!AC28*'Input|Escalations'!$H$20/'Input|Escalations'!$I$20 -> 192.6079984 | CL29: =CK29*(1-'Input|Fee Based Mapping'!Z$6) -> 194.4475169 | CM29: =CL29*(1-'Input|Fee Based Mapping'!AA$6) -> 196.6251998 | CN29: =CM29*(1-'Input|Fee Based Mapping'!AB$6) -> 199.0386487 | CO29: =CN29*(1-'Input|Fee Based Mapping'!AC$6) -> 201.4321713 | CS29: 9868.298765 | CT29: 10142.25938 | CU29: 10436.89854 | CV29: 10748.03697 | CW29: 11062.61909
A30: 18 | B30: RCTK | C30: Reconnection after temp discon BH | D30: Business Hours | E30: RCTKBH | F30: Per connection | H30: 964 | I30: 977.3996 | J30: 990.8877145 | K30: 1007.973061 | L30: 1026.155708 | M30: 1044.27105 | N30: 1062.362399 | O30: 1080.463446 | Q30: ='Input|Fee Based Mapping'!J29 -> 503.82 | R30: ='Input|Fee Based Mapping'!K29 -> 522.6210772 | S30: ='Input|Fee Based Mapping'!Y29 -> 593.670905 | T30: ='Input|Fee Based Mapping'!Z29 -> 614.8038006 | U30: ='Input|Fee Based Mapping'!AA29 -> 637.5422687 | V30: ='Input|Fee Based Mapping'!AB29 -> 661.6954959 | W30: ='Input|Fee Based Mapping'!AC29 -> 686.3939761 | Y30: 492433.4665 | Z30: 517858.8047 | AA30: 598404.279 | AB30: 630884.4292 | AC30: 665766.9343 | AD30: 702960.4144 | AE30: 741623.6009 | AG30: =Y30/('Input|Escalations'!G$17/'Input|Escalations'!$H$17) -> 504373.4403 | AH30: =Z30/('Input|Escalations'!H$17/'Input|Escalations'!$H$17) -> 517858.8047 | AI30: =AA30/('Input|Escalations'!I$17/'Input|Escalations'!$H$17) -> 583240.0381 | AJ30: =AB30/('Input|Escalations'!J$17/'Input|Escalations'!$H$17) -> 599431.7649 | AK30: =AC30/('Input|Escalations'!K$17/'Input|Escalations'!$H$17) -> 616845.6432 | AL30: =AD30/('Input|Escalations'!L$17/'Input|Escalations'!$H$17) -> 635234.6682 | AM30: =AE30/('Input|Escalations'!M$17/'Input|Escalations'!$H$17) -> 653827.223 | AO30: =SUM('Calc|Fee Based'!Z29-'Calc|Fee Based'!V29,'Calc|Fee Based'!AB29:AE29) -> 593.670905 | AP30: ='Calc|Fee Based'!V29 -> 0 | AQ30: 0 | AR30: 1 | AS30: 0 | AU30: 504373.4403 | AV30: 517858.8047 | AW30: 583240.0381 | AX30: 599431.7649 | AY30: 616845.6432 | AZ30: 635234.6682 | BA30: 653827.223 | BC30: 0 | BD30: 0 | BE30: 0 | BF30: 0 | BG30: 0 | BH30: 0 | BI30: 0 | BJ30: 0 | BM30: ='Calc|Fee Based'!AB29*'Input|Escalations'!$H$20/'Input|Escalations'!$I$20 -> 75.21785392 | BN30: =BM30*(1-'Input|Fee Based Mapping'!Z$6) -> 75.93622821 | BO30: =BN30*(1-'Input|Fee Based Mapping'!AA$6) -> 76.78666346 | BP30: =BO30*(1-'Input|Fee Based Mapping'!AB$6) -> 77.72917076 | BQ30: =BP30*(1-'Input|Fee Based Mapping'!AC$6) -> 78.66389639 | BU30: 0 | BV30: 0 | BW30: 0 | BX30: 0 | BY30: 0 | CC30: 75817.57042 | CD30: 77922.39401 | CE30: 80186.08967 | CF30: 82576.54833 | CG30: 84993.46459 | CK30: ='Calc|Fee Based'!AC29*'Input|Escalations'!$H$20/'Input|Escalations'!$I$20 -> 144.0804319 | CL30: =CK30*(1-'Input|Fee Based Mapping'!Z$6) -> 145.4564839 | CM30: =CL30*(1-'Input|Fee Based Mapping'!AA$6) -> 147.0854998 | CN30: =CM30*(1-'Input|Fee Based Mapping'!AB$6) -> 148.8908804 | CO30: =CN30*(1-'Input|Fee Based Mapping'!AC$6) -> 150.6813552 | CS30: 145229.1939 | CT30: 149261.0012 | CU30: 153597.1293 | CV30: 158176.0729 | CW30: 162805.6964
A31: 19 | B31: RCTK | C31: Reconnection after temp discon AH | D31: After Hours | E31: RCTKAH | F31: Per connection | H31: 390 | I31: 395.421 | J31: 400.8778098 | K31: 407.7899311 | L31: 415.1459814 | M31: 422.4748023 | N31: 429.7939166 | O31: 437.1169544 | Q31: ='Input|Fee Based Mapping'!J30 -> 717.35 | R31: ='Input|Fee Based Mapping'!K30 -> 744.1193874 | S31: ='Input|Fee Based Mapping'!Y30 -> 927.072943 | T31: ='Input|Fee Based Mapping'!Z30 -> 960.0739466 | U31: ='Input|Fee Based Mapping'!AA30 -> 995.5822028 | V31: ='Input|Fee Based Mapping'!AB30 -> 1033.299738 | W31: ='Input|Fee Based Mapping'!AC30 -> 1071.868738 | Y31: 283655.2544 | Z31: 298300.9502 | AA31: 378051.0116 | AB31: 398570.8408 | AC31: 420608.3943 | AD31: 444105.9416 | AE31: 468531.9981 | AG31: =Y31/('Input|Escalations'!G$17/'Input|Escalations'!$H$17) -> 290533.0085 | AH31: =Z31/('Input|Escalations'!H$17/'Input|Escalations'!$H$17) -> 298300.9502 | AI31: =AA31/('Input|Escalations'!I$17/'Input|Escalations'!$H$17) -> 368470.7715 | AJ31: =AB31/('Input|Escalations'!J$17/'Input|Escalations'!$H$17) -> 378700.1414 | AK31: =AC31/('Input|Escalations'!K$17/'Input|Escalations'!$H$17) -> 389701.6241 | AL31: =AD31/('Input|Escalations'!L$17/'Input|Escalations'!$H$17) -> 401319.1705 | AM31: =AE31/('Input|Escalations'!M$17/'Input|Escalations'!$H$17) -> 413065.3 | AO31: =SUM('Calc|Fee Based'!Z30-'Calc|Fee Based'!V30,'Calc|Fee Based'!AB30:AE30) -> 927.072943 | AP31: ='Calc|Fee Based'!V30 -> 0 | AQ31: 0 | AR31: 1 | AS31: 0 | AU31: 290533.0085 | AV31: 298300.9502 | AW31: 368470.7715 | AX31: 378700.1414 | AY31: 389701.6241 | AZ31: 401319.1705 | BA31: 413065.3 | BC31: 0 | BD31: 0 | BE31: 0 | BF31: 0 | BG31: 0 | BH31: 0 | BI31: 0 | BJ31: 0 | BM31: ='Calc|Fee Based'!AB30*'Input|Escalations'!$H$20/'Input|Escalations'!$I$20 -> 117.4597519 | BN31: =BM31*(1-'Input|Fee Based Mapping'!Z$6) -> 118.5815609 | BO31: =BN31*(1-'Input|Fee Based Mapping'!AA$6) -> 119.9095955 | BP31: =BO31*(1-'Input|Fee Based Mapping'!AB$6) -> 121.3814093 | BQ31: =BP31*(1-'Input|Fee Based Mapping'!AC$6) -> 122.8410712 | BU31: 0 | BV31: 0 | BW31: 0 | BX31: 0 | BY31: 0 | CC31: 47898.90413 | CD31: 49228.65847 | CE31: 50658.78266 | CF31: 52168.9913 | CG31: 53695.91494 | CK31: ='Calc|Fee Based'!AC30*'Input|Escalations'!$H$20/'Input|Escalations'!$I$20 -> 224.9951428 | CL31: =CK31*(1-'Input|Fee Based Mapping'!Z$6) -> 227.1439774 | CM31: =CL31*(1-'Input|Fee Based Mapping'!AA$6) -> 229.6878388 | CN31: =CM31*(1-'Input|Fee Based Mapping'!AB$6) -> 232.5071105 | CO31: =CN31*(1-'Input|Fee Based Mapping'!AC$6) -> 235.3031053 | CS31: 91750.75377 | CT31: 94297.9094 | CU31: 97037.32431 | CV31: 99930.14166 | CW31: 102854.9767
A32: 20 | B32: SLOM | C32: Security Lighting - O&M | D32: Business Hours | E32: SLOM | F32: $/light/annum | H32: 232 | I32: 235.2248 | J32: 238.4709022 | K32: 242.5827283 | L32: 246.9586351 | M32: 251.318344 | N32: 255.6722786 | O32: 260.0285472 | Q32: ='Input|Fee Based Mapping'!J31 -> 161.48 | R32: ='Input|Fee Based Mapping'!K31 -> 167.5059576 | S32: ='Input|Fee Based Mapping'!Y31 -> 177.4413325 | T32: ='Input|Fee Based Mapping'!Z31 -> 183.7577093 | U32: ='Input|Fee Based Mapping'!AA31 -> 190.5539732 | V32: ='Input|Fee Based Mapping'!AB31 -> 197.773092 | W32: ='Input|Fee Based Mapping'!AC31 -> 205.1551806 | Y32: 37984.1007 | Z32: 39945.29684 | AA32: 43044.20255 | AB32: 45380.55309 | AC32: 47889.70897 | AD32: 50565.09708 | AE32: 53346.20358 | AG32: =Y32/('Input|Escalations'!G$17/'Input|Escalations'!$H$17) -> 38905.09653 | AH32: =Z32/('Input|Escalations'!H$17/'Input|Escalations'!$H$17) -> 39945.29684 | AI32: =AA32/('Input|Escalations'!I$17/'Input|Escalations'!$H$17) -> 41953.41379 | AJ32: =AB32/('Input|Escalations'!J$17/'Input|Escalations'!$H$17) -> 43118.11129 | AK32: =AC32/('Input|Escalations'!K$17/'Input|Escalations'!$H$17) -> 44370.72016 | AL32: =AD32/('Input|Escalations'!L$17/'Input|Escalations'!$H$17) -> 45693.47292 | AM32: =AE32/('Input|Escalations'!M$17/'Input|Escalations'!$H$17) -> 47030.86592 | AO32: =SUM('Calc|Fee Based'!Z31-'Calc|Fee Based'!V31,'Calc|Fee Based'!AB31:AE31) -> 177.4413325 | AP32: ='Calc|Fee Based'!V31 -> 0 | AQ32: 0 | AR32: 1 | AS32: 0 | AU32: 38905.09653 | AV32: 39945.29684 | AW32: 41953.41379 | AX32: 43118.11129 | AY32: 44370.72016 | AZ32: 45693.47292 | BA32: 47030.86592 | BC32: 0 | BD32: 0 | BE32: 0 | BF32: 0 | BG32: 0 | BH32: 0 | BI32: 0 | BJ32: 0 | BM32: ='Calc|Fee Based'!AB31*'Input|Escalations'!$H$20/'Input|Escalations'!$I$20 -> 21.50036947 | BN32: =BM32*(1-'Input|Fee Based Mapping'!Z$6) -> 21.70571051 | BO32: =BN32*(1-'Input|Fee Based Mapping'!AA$6) -> 21.94880003 | BP32: =BO32*(1-'Input|Fee Based Mapping'!AB$6) -> 22.21820755 | BQ32: =BP32*(1-'Input|Fee Based Mapping'!AC$6) -> 22.48539074 | BU32: 0 | BV32: 0 | BW32: 0 | BX32: 0 | BY32: 0 | CC32: 5215.618284 | CD32: 5360.412642 | CE32: 5516.136076 | CF32: 5680.579751 | CG32: 5846.843488 | CK32: ='Calc|Fee Based'!AC31*'Input|Escalations'!$H$20/'Input|Escalations'!$I$20 -> 41.18413857 | CL32: =CK32*(1-'Input|Fee Based Mapping'!Z$6) -> 41.57747107 | CM32: =CL32*(1-'Input|Fee Based Mapping'!AA$6) -> 42.04311109 | CN32: =CM32*(1-'Input|Fee Based Mapping'!AB$6) -> 42.55916345 | CO32: =CN32*(1-'Input|Fee Based Mapping'!AC$6) -> 43.0709551 | CS32: 9990.560695 | CT32: 10267.91551 | CU32: 10566.20505 | CV32: 10881.1983 | CW32: 11199.67788
A33: 21 | B33: RFOM | C33: Enhanced Connection Operation and Maintenance | D33: Business Hours | E33: RFOM | F33: $/kVA/annum | H33: 60697.225 | I33: 61540.91643 | J33: 62390.18107 | K33: 63465.94155 | L33: =K33*(1+G$7) -> 64610.79241 | M33: 65751.40547 | N33: 66890.50785 | O33: 68030.22085 | Q33: ='Input|Fee Based Mapping'!J32 -> 15.38 | R33: ='Input|Fee Based Mapping'!K32 -> 15.95393626 | S33: ='Input|Fee Based Mapping'!Y32 -> 16.16249281 | T33: ='Input|Fee Based Mapping'!Z32 -> 16.73782886 | U33: ='Input|Fee Based Mapping'!AA32 -> 17.35687609 | V33: ='Input|Fee Based Mapping'!AB32 -> 18.01443966 | W33: ='Input|Fee Based Mapping'!AC32 -> 18.68684757 | Y33: 946499.2947 | Z33: 995368.9723 | AA33: 1025767.824 | AB33: 1081444.386 | AC33: 1141238.998 | AD33: 1204995.018 | AE33: 1271270.367 | AG33: =Y33/('Input|Escalations'!G$17/'Input|Escalations'!$H$17) -> 969448.9469 | AH33: =Z33/('Input|Escalations'!H$17/'Input|Escalations'!$H$17) -> 995368.9723 | AI33: =AA33/('Input|Escalations'!I$17/'Input|Escalations'!$H$17) -> 999773.7078 | AJ33: =AB33/('Input|Escalations'!J$17/'Input|Escalations'!$H$17) -> 1027529.112 | AK33: =AC33/('Input|Escalations'!K$17/'Input|Escalations'!$H$17) -> 1057379.493 | AL33: =AD33/('Input|Escalations'!L$17/'Input|Escalations'!$H$17) -> 1088901.444 | AM33: =AE33/('Input|Escalations'!M$17/'Input|Escalations'!$H$17) -> 1120772.28 | AO33: =SUM('Calc|Fee Based'!Z32-'Calc|Fee Based'!V32,'Calc|Fee Based'!AB32:AE32) -> 16.16249281 | AP33: ='Calc|Fee Based'!V32 -> 0 | AQ33: 0 | AR33: 1 | AS33: 0 | AU33: 969448.9469 | AV33: 995368.9723 | AW33: 999773.7078 | AX33: 1027529.112 | AY33: 1057379.493 | AZ33: 1088901.444 | BA33: 1120772.28 | BC33: 0 | BD33: 0 | BE33: 0 | BF33: 0 | BG33: 0 | BH33: 0 | BI33: 0 | BJ33: 0 | BM33: ='Calc|Fee Based'!AB32*'Input|Escalations'!$H$20/'Input|Escalations'!$I$20 -> 2.04778104 | BN33: =BM33*(1-'Input|Fee Based Mapping'!Z$6) -> 2.067338541 | BO33: =BN33*(1-'Input|Fee Based Mapping'!AA$6) -> 2.090491358 | BP33: =BO33*(1-'Input|Fee Based Mapping'!AB$6) -> 2.116150806 | BQ33: =BP33*(1-'Input|Fee Based Mapping'!AC$6) -> 2.1415984 | BU33: 0 | BV33: 0 | BW33: 0 | BX33: 0 | BY33: 0 | CC33: 129964.3518 | CD33: 133572.3814 | CE33: 137452.7449 | CF33: 141550.4021 | CG33: 145693.4121 | CK33: ='Calc|Fee Based'!AC32*'Input|Escalations'!$H$20/'Input|Escalations'!$I$20 -> 3.922541808 | CL33: =CK33*(1-'Input|Fee Based Mapping'!Z$6) -> 3.960004366 | CM33: =CL33*(1-'Input|Fee Based Mapping'!AA$6) -> 4.004353781 | CN33: =CM33*(1-'Input|Fee Based Mapping'!AB$6) -> 4.053504669 | CO33: =CN33*(1-'Input|Fee Based Mapping'!AC$6) -> 4.102249749 | CS33: 248947.8091 | CT33: 255859.02 | CU33: 263291.8891 | CV33: 271140.9859 | CW33: 279076.9564
A34: 22 | B34: REENRM | C34: Remote energisation | D34: Business Hours | E34: REENRM | F34: Per connection | H34: 0 | I34: 0 | J34: 0 | K34: 0 | L34: 0 | M34: 0 | N34: 0 | O34: 0 | Q34: ='Input|Fee Based Mapping'!J33 -> 0 | R34: ='Input|Fee Based Mapping'!K33 -> 0 | S34: ='Input|Fee Based Mapping'!Y33 -> 0 | T34: ='Input|Fee Based Mapping'!Z33 -> 0 | U34: ='Input|Fee Based Mapping'!AA33 -> 0 | V34: ='Input|Fee Based Mapping'!AB33 -> 0 | W34: ='Input|Fee Based Mapping'!AC33 -> 0 | Y34: 0 | Z34: 0 | AA34: 0 | AB34: 0 | AC34: 0 | AD34: 0 | AE34: 0 | AG34: =Y34/('Input|Escalations'!G$17/'Input|Escalations'!$H$17) -> 0 | AH34: =Z34/('Input|Escalations'!H$17/'Input|Escalations'!$H$17) -> 0 | AI34: =AA34/('Input|Escalations'!I$17/'Input|Escalations'!$H$17) -> 0 | AJ34: =AB34/('Input|Escalations'!J$17/'Input|Escalations'!$H$17) -> 0 | AK34: =AC34/('Input|Escalations'!K$17/'Input|Escalations'!$H$17) -> 0 | AL34: =AD34/('Input|Escalations'!L$17/'Input|Escalations'!$H$17) -> 0 | AM34: =AE34/('Input|Escalations'!M$17/'Input|Escalations'!$H$17) -> 0 | AO34: =SUM('Calc|Fee Based'!Z33-'Calc|Fee Based'!V33,'Calc|Fee Based'!AB33:AE33) -> 0 | AP34: ='Calc|Fee Based'!V33 -> 0 | AQ34: 0 | AR34: 0 | AS34: 0 | AU34: 0 | AV34: 0 | AW34: 0 | AX34: 0 | AY34: 0 | AZ34: 0 | BA34: 0 | BC34: 0 | BD34: 0 | BE34: 0 | BF34: 0 | BG34: 0 | BH34: 0 | BI34: 0 | BJ34: 0 | BM34: ='Calc|Fee Based'!AB33*'Input|Escalations'!$H$20/'Input|Escalations'!$I$20 -> 0 | BN34: =BM34*(1-'Input|Fee Based Mapping'!Z$6) -> 0 | BO34: =BN34*(1-'Input|Fee Based Mapping'!AA$6) -> 0 | BP34: =BO34*(1-'Input|Fee Based Mapping'!AB$6) -> 0 | BQ34: =BP34*(1-'Input|Fee Based Mapping'!AC$6) -> 0 | BU34: 0 | BV34: 0 | BW34: 0 | BX34: 0 | BY34: 0 | CC34: 0 | CD34: 0 | CE34: 0 | CF34: 0 | CG34: 0 | CK34: ='Calc|Fee Based'!AC33*'Input|Escalations'!$H$20/'Input|Escalations'!$I$20 -> 0 | CL34: =CK34*(1-'Input|Fee Based Mapping'!Z$6) -> 0 | CM34: =CL34*(1-'Input|Fee Based Mapping'!AA$6) -> 0 | CN34: =CM34*(1-'Input|Fee Based Mapping'!AB$6) -> 0 | CO34: =CN34*(1-'Input|Fee Based Mapping'!AC$6) -> 0 | CS34: 0 | CT34: 0 | CU34: 0 | CV34: 0 | CW34: 0
A35: 23 | B35: DEENRM | C35: Remote de-energisation | D35: Business Hours | E35: DEENRM | F35: Per connection | H35: 0 | I35: 0 | J35: 0 | K35: 0 | L35: 0 | M35: 0 | N35: 0 | O35: 0 | Q35: ='Input|Fee Based Mapping'!J34 -> 0 | R35: ='Input|Fee Based Mapping'!K34 -> 0 | S35: ='Input|Fee Based Mapping'!Y34 -> 0 | T35: ='Input|Fee Based Mapping'!Z34 -> 0 | U35: ='Input|Fee Based Mapping'!AA34 -> 0 | V35: ='Input|Fee Based Mapping'!AB34 -> 0 | W35: ='Input|Fee Based Mapping'!AC34 -> 0 | Y35: 0 | Z35: 0 | AA35: 0 | AB35: 0 | AC35: 0 | AD35: 0 | AE35: 0 | AG35: =Y35/('Input|Escalations'!G$17/'Input|Escalations'!$H$17) -> 0 | AH35: =Z35/('Input|Escalations'!H$17/'Input|Escalations'!$H$17) -> 0 | AI35: =AA35/('Input|Escalations'!I$17/'Input|Escalations'!$H$17) -> 0 | AJ35: =AB35/('Input|Escalations'!J$17/'Input|Escalations'!$H$17) -> 0 | AK35: =AC35/('Input|Escalations'!K$17/'Input|Escalations'!$H$17) -> 0 | AL35: =AD35/('Input|Escalations'!L$17/'Input|Escalations'!$H$17) -> 0 | AM35: =AE35/('Input|Escalations'!M$17/'Input|Escalations'!$H$17) -> 0 | AO35: =SUM('Calc|Fee Based'!Z34-'Calc|Fee Based'!V34,'Calc|Fee Based'!AB34:AE34) -> 0 | AP35: ='Calc|Fee Based'!V34 -> 0 | AQ35: 0 | AR35: 0 | AS35: 0 | AU35: 0 | AV35: 0 | AW35: 0 | AX35: 0 | AY35: 0 | AZ35: 0 | BA35: 0 | BC35: 0 | BD35: 0 | BE35: 0 | BF35: 0 | BG35: 0 | BH35: 0 | BI35: 0 | BJ35: 0 | BM35: ='Calc|Fee Based'!AB34*'Input|Escalations'!$H$20/'Input|Escalations'!$I$20 -> 0 | BN35: =BM35*(1-'Input|Fee Based Mapping'!Z$6) -> 0 | BO35: =BN35*(1-'Input|Fee Based Mapping'!AA$6) -> 0 | BP35: =BO35*(1-'Input|Fee Based Mapping'!AB$6) -> 0 | BQ35: =BP35*(1-'Input|Fee Based Mapping'!AC$6) -> 0 | BU35: 0 | BV35: 0 | BW35: 0 | BX35: 0 | BY35: 0 | CC35: 0 | CD35: 0 | CE35: 0 | CF35: 0 | CG35: 0 | CK35: ='Calc|Fee Based'!AC34*'Input|Escalations'!$H$20/'Input|Escalations'!$I$20 -> 0 | CL35: =CK35*(1-'Input|Fee Based Mapping'!Z$6) -> 0 | CM35: =CL35*(1-'Input|Fee Based Mapping'!AA$6) -> 0 | CN35: =CM35*(1-'Input|Fee Based Mapping'!AB$6) -> 0 | CO35: =CN35*(1-'Input|Fee Based Mapping'!AC$6) -> 0 | CS35: 0 | CT35: 0 | CU35: 0 | CV35: 0 | CW35: 0
A36: 24 | B36: MCTK | C36: Meter Alteration BH | D36: Business Hours | E36: MCTKBH | F36: Per connection | H36: 949 | I36: 962.1911 | J36: 975.4693372 | K36: 992.2888324 | L36: 1010.188555 | M36: 1028.022019 | N36: 1045.831864 | O36: 1063.651256 | Q36: ='Input|Fee Based Mapping'!J35 -> 559.26 | R36: ='Input|Fee Based Mapping'!K35 -> 580.1299346 | S36: ='Input|Fee Based Mapping'!Y35 -> 653.3291497 | T36: ='Input|Fee Based Mapping'!Z35 -> 676.585699 | U36: ='Input|Fee Based Mapping'!AA35 -> 701.6091656 | V36: ='Input|Fee Based Mapping'!AB35 -> 728.189561 | W36: ='Input|Fee Based Mapping'!AC35 -> 755.3700021 | Y36: 538114.9946 | Z36: 565898.9628 | AA36: 648291.2191 | AB36: 683479.1295 | AC36: 721269.671 | AD36: 761563.8458 | AE36: 803450.2512 | AG36: =Y36/('Input|Escalations'!G$17/'Input|Escalations'!$H$17) -> 551162.6028 | AH36: =Z36/('Input|Escalations'!H$17/'Input|Escalations'!$H$17) -> 565898.9628 | AI36: =AA36/('Input|Escalations'!I$17/'Input|Escalations'!$H$17) -> 631862.7867 | AJ36: =AB36/('Input|Escalations'!J$17/'Input|Escalations'!$H$17) -> 649404.363 | AK36: =AC36/('Input|Escalations'!K$17/'Input|Escalations'!$H$17) -> 668269.9774 | AL36: =AD36/('Input|Escalations'!L$17/'Input|Escalations'!$H$17) -> 688192.0332 | AM36: =AE36/('Input|Escalations'!M$17/'Input|Escalations'!$H$17) -> 708334.5864 | AO36: =SUM('Calc|Fee Based'!Z35-'Calc|Fee Based'!V35,'Calc|Fee Based'!AB35:AE35) -> 653.3291497 | AP36: ='Calc|Fee Based'!V35 -> 0 | AQ36: 0 | AR36: 1 | AS36: 0 | AU36: 551162.6028 | AV36: 565898.9628 | AW36: 631862.7867 | AX36: 649404.363 | AY36: 668269.9774 | AZ36: 688192.0332 | BA36: 708334.5864 | BC36: 0 | BD36: 0 | BE36: 0 | BF36: 0 | BG36: 0 | BH36: 0 | BI36: 0 | BJ36: 0 | BM36: ='Calc|Fee Based'!AB35*'Input|Escalations'!$H$20/'Input|Escalations'!$I$20 -> 82.77652842 | BN36: =BM36*(1-'Input|Fee Based Mapping'!Z$6) -> 83.56709246 | BO36: =BN36*(1-'Input|Fee Based Mapping'!AA$6) -> 84.50298832 | BP36: =BO36*(1-'Input|Fee Based Mapping'!AB$6) -> 85.54020858 | BQ36: =BP36*(1-'Input|Fee Based Mapping'!AC$6) -> 86.56886518 | BU36: 0 | BV36: 0 | BW36: 0 | BX36: 0 | BY36: 0 | CC36: 82138.22474 | CD36: 84418.52036 | CE36: 86870.93266 | CF36: 89460.67577 | CG36: 92079.08216 | CK36: ='Calc|Fee Based'!AC35*'Input|Escalations'!$H$20/'Input|Escalations'!$I$20 -> 158.5591365 | CL36: =CK36*(1-'Input|Fee Based Mapping'!Z$6) -> 160.0734685 | CM36: =CL36*(1-'Input|Fee Based Mapping'!AA$6) -> 161.8661849 | CN36: =CM36*(1-'Input|Fee Based Mapping'!AB$6) -> 163.8529891 | CO36: =CN36*(1-'Input|Fee Based Mapping'!AC$6) -> 165.8233895 | CS36: 157336.4604 | CT36: 161704.3858 | CU36: 166402.0022 | CV36: 171362.6769 | CW36: 176378.2564
A37: 25 | B37: MCTK | C37: Meter Alteration AH | D37: After Hours | E37: MCTKAH | F37: Per connection | H37: 15 | I37: 15.2085 | J37: 15.4183773 | K37: 15.68422812 | L37: 15.96715313 | M37: 16.24903086 | N37: 16.53053526 | O37: 16.81219055 | Q37: ='Input|Fee Based Mapping'!J36 -> 772.78 | R37: ='Input|Fee Based Mapping'!K36 -> 801.6178716 | S37: ='Input|Fee Based Mapping'!Y36 -> 986.7311877 | T37: ='Input|Fee Based Mapping'!Z36 -> 1021.855845 | U37: ='Input|Fee Based Mapping'!AA36 -> 1059.6491 | V37: ='Input|Fee Based Mapping'!AB36 -> 1099.793803 | W37: ='Input|Fee Based Mapping'!AC36 -> 1140.844764 | Y37: 11752.82463 | Z37: 12359.64679 | AA37: 15476.11704 | AB37: 16316.12876 | AC37: 17218.27092 | AD37: 18180.18024 | AE37: 19180.09956 | AG37: =Y37/('Input|Escalations'!G$17/'Input|Escalations'!$H$17) -> 12037.79393 | AH37: =Z37/('Input|Escalations'!H$17/'Input|Escalations'!$H$17) -> 12359.64679 | AI37: =AA37/('Input|Escalations'!I$17/'Input|Escalations'!$H$17) -> 15083.93474 | AJ37: =AB37/('Input|Escalations'!J$17/'Input|Escalations'!$H$17) -> 15502.6902 | AK37: =AC37/('Input|Escalations'!K$17/'Input|Escalations'!$H$17) -> 15953.05332 | AL37: =AD37/('Input|Escalations'!L$17/'Input|Escalations'!$H$17) -> 16428.63599 | AM37: =AE37/('Input|Escalations'!M$17/'Input|Escalations'!$H$17) -> 16909.4824 | AO37: =SUM('Calc|Fee Based'!Z36-'Calc|Fee Based'!V36,'Calc|Fee Based'!AB36:AE36) -> 986.7311877 | AP37: ='Calc|Fee Based'!V36 -> 0 | AQ37: 0 | AR37: 1 | AS37: 0 | AU37: 12037.79393 | AV37: 12359.64679 | AW37: 15083.93474 | AX37: 15502.6902 | AY37: 15953.05332 | AZ37: 16428.63599 | BA37: 16909.4824 | BC37: 0 | BD37: 0 | BE37: 0 | BF37: 0 | BG37: 0 | BH37: 0 | BI37: 0 | BJ37: 0 | BM37: ='Calc|Fee Based'!AB36*'Input|Escalations'!$H$20/'Input|Escalations'!$I$20 -> 125.0184264 | BN37: =BM37*(1-'Input|Fee Based Mapping'!Z$6) -> 126.2124251 | BO37: =BN37*(1-'Input|Fee Based Mapping'!AA$6) -> 127.6259204 | BP37: =BO37*(1-'Input|Fee Based Mapping'!AB$6) -> 129.1924471 | BQ37: =BP37*(1-'Input|Fee Based Mapping'!AC$6) -> 130.74604 | BU37: 0 | BV37: 0 | BW37: 0 | BX37: 0 | BY37: 0 | CC37: 1960.817519 | CD37: 2015.253119 | CE37: 2073.797518 | CF37: 2135.620301 | CG37: 2198.127339 | CK37: ='Calc|Fee Based'!AC36*'Input|Escalations'!$H$20/'Input|Escalations'!$I$20 -> 239.4738474 | CL37: =CK37*(1-'Input|Fee Based Mapping'!Z$6) -> 241.760962 | CM37: =CL37*(1-'Input|Fee Based Mapping'!AA$6) -> 244.468524 | CN37: =CM37*(1-'Input|Fee Based Mapping'!AB$6) -> 247.4692191 | CO37: =CN37*(1-'Input|Fee Based Mapping'!AC$6) -> 250.4451395 | CS37: 3755.962451 | CT37: 3860.234302 | CU37: 3972.376591 | CV37: 4090.798652 | CW37: 4210.531408
A38: 26 | B38: SPRDRM | C38: Remote special meter read | D38: Business Hours | E38: SPRDRM | F38: Per connection | H38: 0 | I38: 0 | J38: 0 | K38: 0 | L38: 0 | M38: 0 | N38: 0 | O38: 0 | Q38: ='Input|Fee Based Mapping'!J37 -> 0 | R38: ='Input|Fee Based Mapping'!K37 -> 0 | S38: ='Input|Fee Based Mapping'!Y37 -> 0 | T38: ='Input|Fee Based Mapping'!Z37 -> 0 | U38: ='Input|Fee Based Mapping'!AA37 -> 0 | V38: ='Input|Fee Based Mapping'!AB37 -> 0 | W38: ='Input|Fee Based Mapping'!AC37 -> 0 | Y38: 0 | Z38: 0 | AA38: 0 | AB38: 0 | AC38: 0 | AD38: 0 | AE38: 0 | AG38: =Y38/('Input|Escalations'!G$17/'Input|Escalations'!$H$17) -> 0 | AH38: =Z38/('Input|Escalations'!H$17/'Input|Escalations'!$H$17) -> 0 | AI38: =AA38/('Input|Escalations'!I$17/'Input|Escalations'!$H$17) -> 0 | AJ38: =AB38/('Input|Escalations'!J$17/'Input|Escalations'!$H$17) -> 0 | AK38: =AC38/('Input|Escalations'!K$17/'Input|Escalations'!$H$17) -> 0 | AL38: =AD38/('Input|Escalations'!L$17/'Input|Escalations'!$H$17) -> 0 | AM38: =AE38/('Input|Escalations'!M$17/'Input|Escalations'!$H$17) -> 0 | AO38: =SUM('Calc|Fee Based'!Z37-'Calc|Fee Based'!V37,'Calc|Fee Based'!AB37:AE37) -> 0 | AP38: ='Calc|Fee Based'!V37 -> 0 | AQ38: 0 | AR38: 0 | AS38: 0 | AU38: 0 | AV38: 0 | AW38: 0 | AX38: 0 | AY38: 0 | AZ38: 0 | BA38: 0 | BC38: 0 | BD38: 0 | BE38: 0 | BF38: 0 | BG38: 0 | BH38: 0 | BI38: 0 | BJ38: 0 | BM38: ='Calc|Fee Based'!AB37*'Input|Escalations'!$H$20/'Input|Escalations'!$I$20 -> 0 | BN38: =BM38*(1-'Input|Fee Based Mapping'!Z$6) -> 0 | BO38: =BN38*(1-'Input|Fee Based Mapping'!AA$6) -> 0 | BP38: =BO38*(1-'Input|Fee Based Mapping'!AB$6) -> 0 | BQ38: =BP38*(1-'Input|Fee Based Mapping'!AC$6) -> 0 | BU38: 0 | BV38: 0 | BW38: 0 | BX38: 0 | BY38: 0 | CC38: 0 | CD38: 0 | CE38: 0 | CF38: 0 | CG38: 0 | CK38: ='Calc|Fee Based'!AC37*'Input|Escalations'!$H$20/'Input|Escalations'!$I$20 -> 0 | CL38: =CK38*(1-'Input|Fee Based Mapping'!Z$6) -> 0 | CM38: =CL38*(1-'Input|Fee Based Mapping'!AA$6) -> 0 | CN38: =CM38*(1-'Input|Fee Based Mapping'!AB$6) -> 0 | CO38: =CN38*(1-'Input|Fee Based Mapping'!AC$6) -> 0 | CS38: 0 | CT38: 0 | CU38: 0 | CV38: 0 | CW38: 0
A39: 27 | B39: MECFRM | C39: Remote meter reconfiguration | D39: Business Hours | E39: MECFRM | F39: Per connection | H39: 5973 | I39: 6056.0247 | J39: 6139.597841 | K39: 6245.459638 | L39: 6358.120377 | M39: 6470.364088 | N39: 6582.459139 | O39: 6694.614279 | Q39: ='Input|Fee Based Mapping'!J38 -> 59.13 | R39: ='Input|Fee Based Mapping'!K38 -> 61.33655729 | S39: ='Input|Fee Based Mapping'!Y38 -> 63.63546102 | T39: ='Input|Fee Based Mapping'!Z38 -> 65.90069171 | U39: ='Input|Fee Based Mapping'!AA38 -> 68.33802338 | V39: ='Input|Fee Based Mapping'!AB38 -> 70.92700279 | W39: ='Input|Fee Based Mapping'!AC38 -> 73.57442775 | Y39: 358092.7405 | Z39: 376581.7947 | AA39: 397432.7033 | AB39: 419004.5308 | AC39: 442171.8924 | AD39: 466874.0977 | AE39: 492552.4146 | AG39: =Y39/('Input|Escalations'!G$17/'Input|Escalations'!$H$17) -> 366775.3713 | AH39: =Z39/('Input|Escalations'!H$17/'Input|Escalations'!$H$17) -> 376581.7947 | AI39: =AA39/('Input|Escalations'!I$17/'Input|Escalations'!$H$17) -> 387361.3093 | AJ39: =AB39/('Input|Escalations'!J$17/'Input|Escalations'!$H$17) -> 398115.1124 | AK39: =AC39/('Input|Escalations'!K$17/'Input|Escalations'!$H$17) -> 409680.6124 | AL39: =AD39/('Input|Escalations'!L$17/'Input|Escalations'!$H$17) -> 421893.7602 | AM39: =AE39/('Input|Escalations'!M$17/'Input|Escalations'!$H$17) -> 434242.0832 | AO39: =SUM('Calc|Fee Based'!Z38-'Calc|Fee Based'!V38,'Calc|Fee Based'!AB38:AE38) -> 63.63546102 | AP39: ='Calc|Fee Based'!V38 -> 0 | AQ39: 0 | AR39: 1 | AS39: 0 | AU39: 366775.3713 | AV39: 376581.7947 | AW39: 387361.3093 | AX39: 398115.1124 | AY39: 409680.6124 | AZ39: 421893.7602 | BA39: 434242.0832 | BC39: 0 | BD39: 0 | BE39: 0 | BF39: 0 | BG39: 0 | BH39: 0 | BI39: 0 | BJ39: 0 | BM39: ='Calc|Fee Based'!AB38*'Input|Escalations'!$H$20/'Input|Escalations'!$I$20 -> 8.062586141 | BN39: =BM39*(1-'Input|Fee Based Mapping'!Z$6) -> 8.139588533 | BO39: =BN39*(1-'Input|Fee Based Mapping'!AA$6) -> 8.230746511 | BP39: =BO39*(1-'Input|Fee Based Mapping'!AB$6) -> 8.331773672 | BQ39: =BP39*(1-'Input|Fee Based Mapping'!AC$6) -> 8.431966718 | BU39: 0 | BV39: 0 | BW39: 0 | BX39: 0 | BY39: 0 | CC39: 50354.55632 | CD39: 51752.48371 | CE39: 53255.92664 | CF39: 54843.55975 | CG39: 56448.76479 | CK39: ='Calc|Fee Based'!AC38*'Input|Escalations'!$H$20/'Input|Escalations'!$I$20 -> 15.44395157 | CL39: =CK39*(1-'Input|Fee Based Mapping'!Z$6) -> 15.5914503 | CM39: =CL39*(1-'Input|Fee Based Mapping'!AA$6) -> 15.76606418 | CN39: =CM39*(1-'Input|Fee Based Mapping'!AB$6) -> 15.95958255 | CO39: =CN39*(1-'Input|Fee Based Mapping'!AC$6) -> 16.15150318 | CS39: 96454.5762 | CT39: 99132.31787 | CU39: 102012.1755 | CV39: 105053.3 | CW39: 108128.0838
A40: 28 | B40: SPRD | C40: Field-based special meter reads | D40: Business Hours | E40: SPRDBH | F40: Per connection | H40: 329 | I40: 333.5731 | J40: 338.1764088 | K40: 344.0074035 | L40: 350.212892 | M40: 356.3954102 | N40: 362.5697399 | O40: 368.7473795 | Q40: ='Input|Fee Based Mapping'!J39 -> 56.51 | R40: ='Input|Fee Based Mapping'!K39 -> 58.61878662 | S40: ='Input|Fee Based Mapping'!Y39 -> 61.40276041 | T40: ='Input|Fee Based Mapping'!Z39 -> 63.58851369 | U40: ='Input|Fee Based Mapping'!AA39 -> 65.94032965 | V40: ='Input|Fee Based Mapping'!AB39 -> 68.43847266 | W40: ='Input|Fee Based Mapping'!AC39 -> 70.99301062 | Y40: 18850.21588 | Z40: 19823.49075 | AA40: 21123.00417 | AB40: 22269.51728 | AC40: 23500.83083 | AD40: 24813.71923 | AE40: 26178.48663 | AG40: =Y40/('Input|Escalations'!G$17/'Input|Escalations'!$H$17) -> 19307.27475 | AH40: =Z40/('Input|Escalations'!H$17/'Input|Escalations'!$H$17) -> 19823.49075 | AI40: =AA40/('Input|Escalations'!I$17/'Input|Escalations'!$H$17) -> 20587.72337 | AJ40: =AB40/('Input|Escalations'!J$17/'Input|Escalations'!$H$17) -> 21159.27328 | AK40: =AC40/('Input|Escalations'!K$17/'Input|Escalations'!$H$17) -> 21773.96378 | AL40: =AD40/('Input|Escalations'!L$17/'Input|Escalations'!$H$17) -> 22423.07587 | AM40: =AE40/('Input|Escalations'!M$17/'Input|Escalations'!$H$17) -> 23079.37233 | AO40: =SUM('Calc|Fee Based'!Z39-'Calc|Fee Based'!V39,'Calc|Fee Based'!AB39:AE39) -> 61.40276041 | AP40: ='Calc|Fee Based'!V39 -> 0 | AQ40: 0 | AR40: 1 | AS40: 0 | AU40: 19307.27475 | AV40: 19823.49075 | AW40: 20587.72337 | AX40: 21159.27328 | AY40: 21773.96378 | AZ40: 22423.07587 | BA40: 23079.37233 | BC40: 0 | BD40: 0 | BE40: 0 | BF40: 0 | BG40: 0 | BH40: 0 | BI40: 0 | BJ40: 0 | BM40: ='Calc|Fee Based'!AB39*'Input|Escalations'!$H$20/'Input|Escalations'!$I$20 -> 0 | BN40: =BM40*(1-'Input|Fee Based Mapping'!Z$6) -> 0 | BO40: =BN40*(1-'Input|Fee Based Mapping'!AA$6) -> 0 | BP40: =BO40*(1-'Input|Fee Based Mapping'!AB$6) -> 0 | BQ40: =BP40*(1-'Input|Fee Based Mapping'!AC$6) -> 0 | BU40: 0 | BV40: 0 | BW40: 0 | BX40: 0 | BY40: 0 | CC40: 0 | CD40: 0 | CE40: 0 | CF40: 0 | CG40: 0 | CK40: ='Calc|Fee Based'!AC39*'Input|Escalations'!$H$20/'Input|Escalations'!$I$20 -> 0 | CL40: =CK40*(1-'Input|Fee Based Mapping'!Z$6) -> 0 | CM40: =CL40*(1-'Input|Fee Based Mapping'!AA$6) -> 0 | CN40: =CM40*(1-'Input|Fee Based Mapping'!AB$6) -> 0 | CO40: =CN40*(1-'Input|Fee Based Mapping'!AC$6) -> 0 | CS40: 0 | CT40: 0 | CU40: 0 | CV40: 0 | CW40: 0
A41: 29 | B41: MTAL | C41: Meter test of types 5, 6 and AMI smart metering installations BH | D41: Business Hours | E41: MTALBH | F41: Per connection | H41: 87 | I41: 88.2093 | J41: 89.42658834 | K41: 90.9685231 | L41: 92.60948816 | M41: 94.24437898 | N41: 95.87710448 | O41: 97.51070521 | Q41: ='Input|Fee Based Mapping'!J40 -> 609.13 | R41: ='Input|Fee Based Mapping'!K40 -> 631.860936 | S41: ='Input|Fee Based Mapping'!Y40 -> 661.8740474 | T41: ='Input|Fee Based Mapping'!Z40 -> 685.4347694 | U41: ='Input|Fee Based Mapping'!AA40 -> 710.7855181 | V41: ='Input|Fee Based Mapping'!AB40 -> 737.7135587 | W41: ='Input|Fee Based Mapping'!AC40 -> 765.249493 | Y41: 53730.93091 | Z41: 56505.16781 | AA41: 60209.70457 | AB41: 63477.76316 | AC41: 66987.53974 | AD41: 70729.83994 | AE41: 74620.01773 | AG41: =Y41/('Input|Escalations'!G$17/'Input|Escalations'!$H$17) -> 55033.7382 | AH41: =Z41/('Input|Escalations'!H$17/'Input|Escalations'!$H$17) -> 56505.16781 | AI41: =AA41/('Input|Escalations'!I$17/'Input|Escalations'!$H$17) -> 58683.92258 | AJ41: =AB41/('Input|Escalations'!J$17/'Input|Escalations'!$H$17) -> 60313.08722 | AK41: =AC41/('Input|Escalations'!K$17/'Input|Escalations'!$H$17) -> 62065.22119 | AL41: =AD41/('Input|Escalations'!L$17/'Input|Escalations'!$H$17) -> 63915.4716 | AM41: =AE41/('Input|Escalations'!M$17/'Input|Escalations'!$H$17) -> 65786.20059 | AO41: =SUM('Calc|Fee Based'!Z40-'Calc|Fee Based'!V40,'Calc|Fee Based'!AB40:AE40) -> 661.8740474 | AP41: ='Calc|Fee Based'!V40 -> 0 | AQ41: 0 | AR41: 1 | AS41: 0 | AU41: 55033.7382 | AV41: 56505.16781 | AW41: 58683.92258 | AX41: 60313.08722 | AY41: 62065.22119 | AZ41: 63915.4716 | BA41: 65786.20059 | BC41: 0 | BD41: 0 | BE41: 0 | BF41: 0 | BG41: 0 | BH41: 0 | BI41: 0 | BJ41: 0 | BM41: ='Calc|Fee Based'!AB40*'Input|Escalations'!$H$20/'Input|Escalations'!$I$20 -> 0 | BN41: =BM41*(1-'Input|Fee Based Mapping'!Z$6) -> 0 | BO41: =BN41*(1-'Input|Fee Based Mapping'!AA$6) -> 0 | BP41: =BO41*(1-'Input|Fee Based Mapping'!AB$6) -> 0 | BQ41: =BP41*(1-'Input|Fee Based Mapping'!AC$6) -> 0 | BU41: 0 | BV41: 0 | BW41: 0 | BX41: 0 | BY41: 0 | CC41: 0 | CD41: 0 | CE41: 0 | CF41: 0 | CG41: 0 | CK41: ='Calc|Fee Based'!AC40*'Input|Escalations'!$H$20/'Input|Escalations'!$I$20 -> 0 | CL41: =CK41*(1-'Input|Fee Based Mapping'!Z$6) -> 0 | CM41: =CL41*(1-'Input|Fee Based Mapping'!AA$6) -> 0 | CN41: =CM41*(1-'Input|Fee Based Mapping'!AB$6) -> 0 | CO41: =CN41*(1-'Input|Fee Based Mapping'!AC$6) -> 0 | CS41: 0 | CT41: 0 | CU41: 0 | CV41: 0 | CW41: 0
A42: 30 | B42: MTAL | C42: Meter test of types 5, 6 and AMI smart metering installations AH | D42: After Hours | E42: MTALAH | F42: Per connection | H42: 0 | I42: 0 | J42: 0 | K42: 0 | L42: 0 | M42: 0 | N42: 0 | O42: 0 | Q42: ='Input|Fee Based Mapping'!J41 -> 826.97 | R42: ='Input|Fee Based Mapping'!K41 -> 857.8300826 | S42: ='Input|Fee Based Mapping'!Y41 -> 898.5841584 | T42: ='Input|Fee Based Mapping'!Z41 -> 930.5710471 | U42: ='Input|Fee Based Mapping'!AA41 -> 964.9881409 | V42: ='Input|Fee Based Mapping'!AB41 -> 1001.546623 | W42: ='Input|Fee Based Mapping'!AC41 -> 1038.930404 | Y42: 0 | Z42: 0 | AA42: 0 | AB42: 0 | AC42: 0 | AD42: 0 | AE42: 0 | AG42: =Y42/('Input|Escalations'!G$17/'Input|Escalations'!$H$17) -> 0 | AH42: =Z42/('Input|Escalations'!H$17/'Input|Escalations'!$H$17) -> 0 | AI42: =AA42/('Input|Escalations'!I$17/'Input|Escalations'!$H$17) -> 0 | AJ42: =AB42/('Input|Escalations'!J$17/'Input|Escalations'!$H$17) -> 0 | AK42: =AC42/('Input|Escalations'!K$17/'Input|Escalations'!$H$17) -> 0 | AL42: =AD42/('Input|Escalations'!L$17/'Input|Escalations'!$H$17) -> 0 | AM42: =AE42/('Input|Escalations'!M$17/'Input|Escalations'!$H$17) -> 0 | AO42: =SUM('Calc|Fee Based'!Z41-'Calc|Fee Based'!V41,'Calc|Fee Based'!AB41:AE41) -> 898.5841584 | AP42: ='Calc|Fee Based'!V41 -> 0 | AQ42: 0 | AR42: 1 | AS42: 0 | AU42: 0 | AV42: 0 | AW42: 0 | AX42: 0 | AY42: 0 | AZ42: 0 | BA42: 0 | BC42: 0 | BD42: 0 | BE42: 0 | BF42: 0 | BG42: 0 | BH42: 0 | BI42: 0 | BJ42: 0 | BM42: ='Calc|Fee Based'!AB41*'Input|Escalations'!$H$20/'Input|Escalations'!$I$20 -> 0 | BN42: =BM42*(1-'Input|Fee Based Mapping'!Z$6) -> 0 | BO42: =BN42*(1-'Input|Fee Based Mapping'!AA$6) -> 0 | BP42: =BO42*(1-'Input|Fee Based Mapping'!AB$6) -> 0 | BQ42: =BP42*(1-'Input|Fee Based Mapping'!AC$6) -> 0 | BU42: 0 | BV42: 0 | BW42: 0 | BX42: 0 | BY42: 0 | CC42: 0 | CD42: 0 | CE42: 0 | CF42: 0 | CG42: 0 | CK42: ='Calc|Fee Based'!AC41*'Input|Escalations'!$H$20/'Input|Escalations'!$I$20 -> 0 | CL42: =CK42*(1-'Input|Fee Based Mapping'!Z$6) -> 0 | CM42: =CL42*(1-'Input|Fee Based Mapping'!AA$6) -> 0 | CN42: =CM42*(1-'Input|Fee Based Mapping'!AB$6) -> 0 | CO42: =CN42*(1-'Input|Fee Based Mapping'!AC$6) -> 0 | CS42: 0 | CT42: 0 | CU42: 0 | CV42: 0 | CW42: 0
